Workbook

Sheet Index
B2: List of Statistical Tables | C2: Page | D2: Hyperlinks to tables [worksheet name]
A3: =Census!A1 -> Table 1a Population by major centers, percent of population and growth, 1930-2011 | C3: 1 | D3: [Census]
A4: =Census!A16 -> Table 1b Working age population, economically active, and not economically active, 1988, 1999 and 2011 | C4: =C3 -> 1
A5: =Mig!A1 -> Table 1c Net Air Passengers from US, Majuro and Kwajalein Atolls: 1990 to 2011 | C5: =C4+1 -> 2 | D5: [Mig]
A6: =GNI!A1 -> Table 2a National income measures in current prices and real terms, FY2004-FY2011 | C6: =C5+1 -> 3 | D6: [GNI]
A7: =NApc!A1 -> Table 2b Current and constant price RMI GDP, GDP per capita, 1981-2011 | C7: =C6+1 -> 4 | D7: [NApc]
A8: =NAInd!A1 -> Table 2c RMI Constant price GDP by industry, FY2004-FY2011 | C8: =C7+1 -> 5 | D8: [NAInd]
A9: =NAInd!A25 -> Table 2d RMI Constant price GDP by industry, annual % growth, FY2004-FY2011 | C9: 6
A10: =NAInd!A51 -> Table 2e: RMI Constant price GDP by industry, contribution to change, FY2004-FY2011 | C10: 7
A11: =NAInd!A75 -> Table 2f RMI Current price GDP by industry, FY2004-FY2011 | C11: 8
A12: =NAInd!A99 -> Table 2g RMI Implicit GDP price deflators by industry, FY2004-FY2011 | C12: 9
A13: =NAInd!A123 -> Table 2h RMI Share of GDP by industry, current prices, FY2004-FY2011 | C13: 10
A14: =NAInst!A1 -> Table 2i Constant price GDP by institutional sector, FY2004-FY2011 | C14: =C13+1 -> 11 | D14: [NAInst]
A15: =NAInst!A14 -> Table 2j Constant price GDP by institutional sector, annual percent growth, FY2004-FY2011 | C15: =C14 -> 11
A16: =NAInst!A27 -> Table 2k Current price GDP by institutional sector, FY2004-FY2011 | C16: =C15+1 -> 12 | M16: `
A17: =NAInst!A40 -> Table 2l Implicit GDP price deflators by institutional sector, FY2004-FY2011 | C17: =C16 -> 12
A18: =NAInst!A53 -> Table 2m Share of GDP by institutional sector, current prices, FY2004-FY2011 | C18: =C17+1 -> 13
A19: =NAInst!A66 -> Table 2n GDP by income component, current prices, FY2004-FY2011 | C19: =C18+1 -> 14
A20: =NAInst!A81 -> Table 2o GDP by income component, constant prices, FY2004-FY2011 | C20: =C19 -> 14
A21: =NAdet!A1 -> Table 2p Current price GDP by institutional sector and income components, FY2004-FY2011 | C21: =C20+1 -> 15 | D21: [NAdet]
A22: =NAdet!A39 -> Table 2q Constant price GDP by institutional sector and income components, FY2004-FY2011 | C22: =C21+1 -> 16
A23: =EmpInst!A1 -> Table 3a Employment by institutional sector, numbers, FY2004-FY2011 | C23: =C22+1 -> 17 | D23: [EmpInst]
A24: =EmpInst!A15 -> Table 3b Employment by institutional sector, wage costs, FY2004-FY2011 | C24: =C23 -> 17
A25: =EmpInst!A29 -> Table 3c Employment by institutional sector, average wage and salary rates, FY2004-FY2011 | C25: =C24+1 -> 18
A26: =EmpInd!A1 -> Table 3d Employment by industry, numbers, FY2004-FY2011 | C26: 19 | D26: EmpInd
A27: =EmpInd!A24 -> Table 3e Employment by industry, wage costs, FY2004-FY2011 | C27: 20
A28: =EmpInd!A47 -> Table 3f Employment by industry, average wage and salary rates, FY2004-FY2011 | C28: 21
A29: =EmpPriv!A1 -> Table 3g Employment in private sector by industry, numbers, FY2004-FY2011 | C29: 22 | D29: [EmpPriv]
A30: =EmpPriv!A24 -> Table 3h Employment in private sector by industry, wage costs, FY2004-FY2011 | C30: 23
A31: =EmpPriv!A47 -> Table 3i Employment in private sector by industry, average wage and salary rates, FY2004-FY2011 | C31: =C30+1 -> 24
A32: =Pb_Dept!A1 -> Table 4a National government employment by department, FY2004-FY2012 | C32: 25 | D32: [Pb_Dept]
A33: =Pb_Dept!A27 -> Table 4b National government wage costs by department, FY2004-FY2012 | C33: 26
A34: =Pb_Dept!A53 -> Table 4c National government average wage and salary rates by department, FY2004-FY2012 | C34: 27
A35: =Pb_Fnd!A1 -> Table 4d National government employment, by fund, FY2004 - FY2012 Qtr 1 | C35: 28 | D35: [Pb_Fnd]
A36: =Pb_Fnd!A39 -> Table 4e National government wage costs, by fund, FY2004 - FY2012 Qtr 1 | C36: 29
A37: =Pb_Fnd!A77 -> Table 4f National government wage rates, by fund, FY2004 - FY2012 Qtr 1 | C37: 30
A38: ='Real_Cp&Fsh'!A1 -> Table 5a Copra production, average producer price and income to producers: 1951-2011 | C38: =C37+1 -> 31 | D38: [Real_Cp&Fish]
A39: ='Real_Cp&Fsh'!A22 -> Table 5b Tuna loining plant achievements, Majuro: 2008 to 2011 | C39: 32
A40: ='Real_Cp&Fsh'!A33 -> Table 5c Tuna loining plant achievements, Majuro: FY1999 to FY2003 | C40: =C39 -> 32
A41: ='Real_Cp&Fsh'!A45 -> Table 5d Total fish catch in RMI EEZ, by method, and fishing license fees recieved: 1998-2011 | C41: =C40+1 -> 33
A42: ='Real_Cp&Fsh'!A64 -> Table 5e Total fish catch by Marshall Islands and domestically based vessels: 2001-2011 | C42: =C41 -> 33
A43: =Real_trsm!A1 -> Table 5f Visitors to Majuro, by year and purpose of visit: 2004-2011 | C43: =C42+1 -> 34 | D43: [Real_trsm]
A44: =Real_trsm!A13 -> Table 5g Length of stay, visitors to Majuro, by year and purpose of visit: 2004-2011 | C44: =C43 -> 34
A45: =Real_trsm!A25 -> Table 5h Visitors to Majuro by usual residence: 2004 to 2011 | C45: =C44+1 -> 35
A46: ='M&Ba'!A1 -> Table 6a Assets and liabilities of Deposit Money Banks, FY2004-FY2011 | C46: =C45+1 -> 36 | D46: [M&Ba]
A47: ='M&Bbc'!A1 -> Table 6b Income and expense of Deposit Money Banks, 2004-2011 | C47: =C46+1 -> 37 | D47: [M&Bbc]
A48: ='M&Bbc'!A29 -> Table 6c Interest rates of Deposit Money Banks, 2004-2011 | C48: =C47 -> 37
A49: =CpiMajOld!A1 -> Table 7a Majuro Consumer Price Index (CPI) by major groups, 1982-2001 | C49: 38 | D49: [CpiMajOld]
A50: =CpiMaj!A1 -> Table 7b Majuro Consumer Price Index (CPI) by major groups, 2007-2011 | C50: 39 | D50: [CpiMaj]
A51: =CpiEbeye!A1 -> Table 7c Ebeye Consumer Price Index (CPI) by major groups, 2005-2010 | C51: 40 | D51: CpiEbeye]
A52: =BOPsum!A1 -> Table 8a Marshall Islands: Balance of Payments (summary), FY2004-FY2011 | C52: 41 | D52: [BOPsum]
A53: =BOPdet!A1 -> Table 8b Marshall Islands: Balance of Payments (detail), FY2004-FY2011 | C53: 42 | D53: [BOPdet]
A54: =IIP!A1 -> Table 8c Marshall Islands: International Investment Position, FY2004-FY2011 | C54: =C53+2 -> 44 | D54: [IIP]
A55: =ExtD_out!A1 -> Table 8d External debt, original value, and outstanding principle by loan | C55: =C54+1 -> 45 | D55: [ExtD_out]
A56: =ExtD_Hist!A1 -> Table 8e External debt and debt service, RMI and national government, FY2004-FY2010 | C56: 46 | D56: [ExtD_Hist]
A57: =ExtD_Prj!A1 -> Table 8f External debt and debt service projections, FY2011-FY2038 | C57: 47 | D57: [ExtD_Prj]
A58: =GFSsum!A1 -> Table 9a RMI Government Finances (GFS 2001 Format, summary) FY2004-FY2010 | C58: 48 | D58: [GFSsum]
A59: =GFSdet!A1 -> Table 9b RMI Government Finances (GFS 2001 Format, detail) FY2004-FY2010 | C59: 49 | D59: [GFSdet]
A60: =FPse!B1 -> Table 9c Transfers (including subsidies and capital transfers) to Public Enterprises, FY2004-FY2011 | C60: =C59+2 -> 51 | D60: [FPse]
A61: =FPse!B23 -> Table 9d Transfers treated as current subsidies to Public Enterprises in GDP estimates, FY2004-FY2011 | C61: =C60 -> 51
A62: =FPse!B41 -> Table 9e Operating Income (loss), Public Enterprises, FY2004-FY2011 | C62: =C61 -> 51
A63: =CII!A1 -> Table 9f RMI: Compact grants awarded, FY2004-FY2012 | C63: =C61+1 -> 52 | D63: [CII]

Sheet Census
A1: Table 1a Population by major centers, percent of population and growth, 1930-2011
B2: Population | F2: Percent of Population | I2: Population Growth
B3: Total | C3: Majuro | D3: Ebeye | E3: Other | F3: Majuro | G3: Ebeye | H3: Other | I3: Total | J3: Majuro | K3: Ebeye | L3: Other
A4: 1930 | B4: 10412 | C4: 753 | D4: 19 | E4: =B4-C4-D4 -> 9640 | F4: =C4/$B4 -> 0.07232039954 | G4: =D4/$B4 -> 0.001824817518 | H4: =E4/$B4 -> 0.9258547829
A5: 1935 | B5: 10446 | C5: 779 | D5: 16 | E5: =B5-C5-D5 -> 9651 | F5: =C5/$B5 -> 0.07457399962 | G5: =D5/$B5 -> 0.00153168677 | H5: =E5/$B5 -> 0.9238943136 | I5: =EXP(LN(B5/B4)/($A5-$A4))-1 -> 0.0006522411932 | J5: =EXP(LN(C5/C4)/($A5-$A4))-1 -> 0.006812262229 | K5: -0.03378611031 | L5: 0.000228111674
A6: 1958 | B6: 14163 | C6: 3415 | D6: 1284 | E6: 9464 | F6: 0.2411212314 | G6: 0.09065875874 | H6: 0.6682200099 | I6: =EXP(LN(B6/B5)/($A6-$A5))-1 -> 0.013323358 | J6: 0.06636691702 | K6: 0.2100462171 | L6: -0.000850351735
A7: 1967 | B7: 18925 | C7: 5249 | D7: 3540 | E7: 10136 | F7: 0.2773579921 | G7: 0.1870541612 | H7: 0.5355878468 | I7: 0.03272986656 | J7: 0.04892122592 | K7: 0.1192770064 | L7: 0.007651156801
A8: 1973 | B8: 25045 | C8: 10290 | D8: 5123 | E8: 9632 | F8: 0.4108604512 | G8: 0.2045518067 | H8: 0.3845877421 | I8: 0.04780594445 | J8: 0.11872446 | K8: 0.06353923392 | L8: -0.008464399276
A9: 1980 | B9: 30873 | C9: 11791 | D9: 6169 | E9: 12913 | F9: 0.3819194766 | G9: 0.1998186117 | H9: 0.4182619117 | I9: 0.03033792382 | J9: 0.01964241975 | K9: 0.02689774944 | L9: 0.04276690589
A10: 1988 | B10: 43380 | C10: 19664 | D10: 8324 | E10: 15392 | F10: 0.45329645 | G10: 0.1918856616 | H10: 0.3548178884 | I10: 0.04343124991 | J10: 0.06601951041 | K10: 0.03816088694 | L10: 0.02219437782
A11: 1999 | B11: 50840 | C11: 23676 | D11: 9345 | E11: 17819 | F11: 0.4656963021 | G11: 0.1838119591 | H11: 0.3504917388 | I11: 0.01453045923 | J11: 0.01702256251 | K11: 0.01057355751 | L11: 0.013399655
A12: 2011 | B12: 53158 | C12: 27797 | D12: 9614 | E12: 15747 | F12: 0.5229128259 | G12: 0.1808570676 | H12: 0.2962301065 | I12: =EXP(LN(B12/B11)/($A12-$A11))-1 -> 0.003722341146 | J12: =EXP(LN(C12/C11)/($A12-$A11))-1 -> 0.0134619929 | K12: =EXP(LN(D12/D11)/($A12-$A11))-1 -> 0.002367709321 | L12: =EXP(LN(E12/E11)/($A12-$A11))-1 -> -0.01024840954
A13: Source | B13: Annual Abstract 2004 Tables 1.3 and 1.6; RMI 2011 Census of Population
A16: Table 1b Working age population, economically active, and not economically active, 1988, 1999 and 2011
E17: Numbers | H17: Percent
E18: 1988 | F18: 1999 | G18: 2011 | H18: 1988 | I18: 1999 | J18: 2011
A19: Working age population | E19: 21244 | F19: 28692 | G19: 31307
A20: Economically active | E20: 11488 | F20: 14677 | G20: 12924 | H20: =E20/E$19 -> 0.5407644511 | I20: 0.5115363167 | J20: 0.4128150254
A21: Economically inactive | E21: 9546 | F21: 14015 | G21: 18383 | H21: 0.4493504048 | I21: 0.4884636833 | J21: 0.5871849746
A22: Not stated | E22: 210 | F22: 6
A23: Employed | E23: 10056 | F23: 10141 | G23: 12312 | H23: =E23/E$20 -> 0.8753481894 | I23: =F23/F$20 -> 0.690945016 | J23: =G23/G$20 -> 0.9526462396
A24: Employee - public sector | E24: 3392 | F24: 3106 | H24: =E24/E$23 -> 0.3373110581 | I24: =F24/F$23 -> 0.3062814318
A25: Employee - private sector | E25: 3369 | F25: 4115 | H25: =E25/E$23 -> 0.3350238663 | I25: 0.4057785228
A26: Self employed | E26: 2484 | F26: 2622 | H26: =E26/E23 -> 0.2470167064 | I26: 0.2585543832
A27: Employer in own farm or business | F27: 115 | I27: 0.01134010453
A28: Paid family worker | E28: 811 | F28: 96 | H28: =E28/E23 -> 0.08064836913 | I28: 0.009466522039
A29: Unpaid family worker | F29: 87 | I29: 0.008579035598
A30: Unemployed | E30: 1432 | F30: 4536 | G30: 612 | H30: =E30/E$20 -> 0.1246518106 | I30: =F30/F$20 -> 0.309054984 | J30: =G30/G$20 -> 0.04735376045
A31: Source | B31: RMI Population Censuses

Sheet Mig
A1: Table 1c Net Air Passengers from US, Majuro and Kwajalein Atolls: 1990 to 2011
A2: (Arrivals minus departures)
A4: Calender Year | B4: Kwajalein | D4: Majuro | F4: Majuro | G4: Kwajalein | H4: RMI
B5: Disembarkations | C5: Embarkations | D5: Disembarkations | E5: Embarkations
A6: 1990 | B6: 6002 | C6: 5682 | D6: 6636 | E6: 6945 | F6: -309 | G6: 320 | H6: 11
A7: 1991 | B7: 6593 | C7: 6058 | D7: 7078 | E7: 7275 | F7: -197 | G7: 535 | H7: 338
A8: 1992 | B8: 5530 | C8: 5906 | D8: 7194 | E8: 7524 | F8: -330 | G8: -376 | H8: -706
A9: 1993 | B9: 5332 | C9: 5856 | D9: 7633 | E9: 7887 | F9: -254 | G9: -524 | H9: -778
A10: 1994 | B10: 4781 | C10: 4574 | D10: 7744 | E10: 8074 | F10: -330 | G10: 207 | H10: -123
A11: 1995 | B11: 5086 | C11: 5366 | D11: 7959 | E11: 8472 | F11: -513 | G11: -280 | H11: -793
A12: 1996 | B12: 5051 | C12: 5105 | D12: 8160 | E12: 8746 | F12: -586 | G12: -54 | H12: -640
A13: 1997 | B13: 4719 | C13: 4955 | D13: 8111 | E13: 9290 | F13: -1179 | G13: -236 | H13: -1415
A14: 1998 | B14: 3869 | C14: 3791 | D14: 8227 | E14: 9060 | F14: -833 | G14: 78 | H14: -755
A15: 1999 | B15: 4335 | C15: 4132 | D15: 8776 | E15: 9436 | F15: -660 | G15: 203 | H15: -457
A16: 2000 | B16: 23190 | C16: 23817 | D16: 8893 | E16: 10182 | F16: -1289 | G16: -627 | H16: -1916
A17: 2001 | B17: 5676 | C17: 6188 | D17: 9392 | E17: 10909 | F17: -1517 | G17: -512 | H17: -2029
A18: 2002 | B18: 7463 | C18: 7482 | D18: 9548 | E18: 10442 | F18: -894 | G18: -19 | H18: -913
A19: 2003 | B19: 6813 | C19: 7175 | D19: 10005 | E19: 10424 | F19: -419 | G19: -362 | H19: -781
A20: 2004 | B20: 7991 | C20: 8002 | D20: 9406 | E20: 9948 | F20: -542 | G20: -11 | H20: -553
A21: 2005 | B21: 7001 | C21: 6984 | D21: 10369 | E21: 11423 | F21: -1054 | G21: 17 | H21: -1037
A22: 2006 | B22: 6282 | C22: 6468 | D22: 9312 | E22: 10104 | F22: -792 | G22: -186 | H22: -978
A23: 2007 | B23: 5669 | C23: 5781 | D23: 9878 | E23: 10344 | F23: -466 | G23: -112 | H23: -578
A24: 2008 | B24: 4994 | C24: 5274 | D24: 9517 | E24: 10740 | F24: -1223 | G24: -280 | H24: -1503
A25: 2009 | B25: 4932 | C25: 4833 | D25: 9011 | E25: 9782 | F25: -771 | G25: 99 | H25: -672
A26: 2010 | B26: 4753 | C26: 4887 | D26: 8890 | E26: 9796 | F26: -906 | G26: -134 | H26: -1040
A27: 2011 | B27: 4780 | C27: 4817 | D27: 8773 | E27: 9603 | F27: -830 | G27: -37 | H27: -867
A29: 5 year averages
A30: 1993-1996 | F30: =AVERAGE(F9:F12) -> -420.75 | G30: =AVERAGE(G9:G12) -> -162.75 | H30: -583.5
A31: 1997-2001 | F31: =AVERAGE(F13:F17) -> -1095.6 | G31: =AVERAGE(G13:G17) -> -218.8 | H31: -1314.4
A32: 2002-2006 | F32: =AVERAGE(F18:F22) -> -740.2 | G32: =AVERAGE(G18:G22) -> -112.2 | H32: -852.4
A33: 2007-2011 | F33: =AVERAGE(F23:F27) -> -839.2 | G33: =AVERAGE(G23:G27) -> -92.8 | H33: -932
A35: Source : US Department of Transportation "TRANSTATS" database
A36: Notes : Only includes air passengers to/from Majuro or Kwajalein and US airports (Guam, Hawaii)
A37: These data are used as proxy indicators of net migration to/from the RMI. However;
A38: Passengers to/from FSM and other countries (e.g. FSM, Kiribati) are excluded.
A39: Passengers between Majuro and Kwajalein are excluded.
A40: Some one-way movements of non-residents (e.g. fishing crews and US military personnel) may be included.

Sheet GNI
A1: Table 2a National income measures in current prices and real terms, FY2004-FY2011
B2: (US$ millions) | C2: FY1997 | D2: FY1998 | E2: FY1999 | F2: FY2000 | G2: FY2001 | H2: FY2002 | I2: FY2003 | J2: FY2004 | K2: FY2005 | L2: FY2006 | M2: FY2007 | N2: FY2008 | O2: FY2009 | P2: FY2010 | Q2: FY2011
A3: Current prices
B4: Gross Domestic Product (GDP) | C4: =[2]cerTabGNI!C4 -> 106.2418184 | D4: =[2]cerTabGNI!D4 -> 108.6577203 | E4: =[2]cerTabGNI!E4 -> 107.9386102 | F4: =[2]cerTabGNI!F4 -> 110.9027332 | G4: =[2]cerTabGNI!G4 -> 115.121002 | H4: =[2]cerTabGNI!H4 -> 124.6980711 | I4: =[2]cerTabGNI!I4 -> 126.8848944 | J4: =[2]cerTabGNI!J4 -> 131.1486807 | K4: =[2]cerTabGNI!K4 -> 137.6187841 | L4: =[2]cerTabGNI!L4 -> 143.4211446 | M4: =[2]cerTabGNI!M4 -> 149.8486353 | N4: =[2]cerTabGNI!N4 -> 152.7124494 | O4: =[2]cerTabGNI!O4 -> 151.6810674 | P4: =[2]cerTabGNI!P4 -> 163.2195517 | Q4: =[2]cerTabGNI!Q4 -> 170.7476975
B5: Primary incomes 2
B6: Receivable from the rest of the world | C6: =[2]cerTabGNI!C6 -> 38.66185376 | D6: =[2]cerTabGNI!D6 -> 43.5791218 | E6: =[2]cerTabGNI!E6 -> 46.28257671 | F6: =[2]cerTabGNI!F6 -> 45.96689648 | G6: =[2]cerTabGNI!G6 -> 46.17831033 | H6: =[2]cerTabGNI!H6 -> 45.12044273 | I6: =[2]cerTabGNI!I6 -> 44.43500187 | J6: =[2]cerTabGNI!J6 -> 47.23067863 | K6: =[2]cerTabGNI!K6 -> 52.05955612 | L6: =[2]cerTabGNI!L6 -> 56.03706246 | M6: =[2]cerTabGNI!M6 -> 57.69195573 | N6: =[2]cerTabGNI!N6 -> 56.95800203 | O6: =[2]cerTabGNI!O6 -> 53.74909808 | P6: =[2]cerTabGNI!P6 -> 52.29086181 | Q6: =[2]cerTabGNI!Q6 -> 56.46539234
B7: Payable to the rest of the world | C7: =[2]cerTabGNI!C7 -> -11.83562975 | D7: =[2]cerTabGNI!D7 -> -11.38459063 | E7: =[2]cerTabGNI!E7 -> -10.39266414 | F7: =[2]cerTabGNI!F7 -> -8.752359739 | G7: =[2]cerTabGNI!G7 -> -7.989224318 | H7: =[2]cerTabGNI!H7 -> -7.657272112 | I7: =[2]cerTabGNI!I7 -> -7.803162614 | J7: =[2]cerTabGNI!J7 -> -9.767794487 | K7: =[2]cerTabGNI!K7 -> -10.52538368 | L7: =[2]cerTabGNI!L7 -> -14.39950677 | M7: =[2]cerTabGNI!M7 -> -13.7051139 | N7: =[2]cerTabGNI!N7 -> -12.93282531 | O7: =[2]cerTabGNI!O7 -> -12.39184773 | P7: =[2]cerTabGNI!P7 -> -16.67937385 | Q7: =[2]cerTabGNI!Q7 -> -17.33289842
B8: Net primary incomes | C8: =[2]cerTabGNI!C8 -> 26.82622401 | D8: =[2]cerTabGNI!D8 -> 32.19453117 | E8: =[2]cerTabGNI!E8 -> 35.88991257 | F8: =[2]cerTabGNI!F8 -> 37.21453674 | G8: =[2]cerTabGNI!G8 -> 38.18908601 | H8: =[2]cerTabGNI!H8 -> 37.46317062 | I8: =[2]cerTabGNI!I8 -> 36.63183925 | J8: =[2]cerTabGNI!J8 -> 37.46288414 | K8: =[2]cerTabGNI!K8 -> 41.53417244 | L8: =[2]cerTabGNI!L8 -> 41.63755569 | M8: =[2]cerTabGNI!M8 -> 43.98684183 | N8: =[2]cerTabGNI!N8 -> 44.02517672 | O8: =[2]cerTabGNI!O8 -> 41.35725036 | P8: =[2]cerTabGNI!P8 -> 35.61148796 | Q8: =[2]cerTabGNI!Q8 -> 39.13249392
B9: Gross National Income (GNI) | C9: =[2]cerTabGNI!C9 -> 133.0680424 | D9: =[2]cerTabGNI!D9 -> 140.8522515 | E9: =[2]cerTabGNI!E9 -> 143.8285228 | F9: =[2]cerTabGNI!F9 -> 148.11727 | G9: =[2]cerTabGNI!G9 -> 153.310088 | H9: =[2]cerTabGNI!H9 -> 162.1612417 | I9: =[2]cerTabGNI!I9 -> 163.5167336 | J9: =[2]cerTabGNI!J9 -> 168.6115649 | K9: =[2]cerTabGNI!K9 -> 179.1529565 | L9: =[2]cerTabGNI!L9 -> 185.0587003 | M9: =[2]cerTabGNI!M9 -> 193.8354772 | N9: =[2]cerTabGNI!N9 -> 196.7376261 | O9: =[2]cerTabGNI!O9 -> 193.0383178 | P9: =[2]cerTabGNI!P9 -> 198.8310397 | Q9: =[2]cerTabGNI!Q9 -> 209.8801914
B10: Secondary Incomes (Current transfers) 2 3
B11: Receivable from the rest of the world | C11: =[2]cerTabGNI!C11 -> 27.28233176 | D11: =[2]cerTabGNI!D11 -> 32.31652211 | E11: =[2]cerTabGNI!E11 -> 28.46135672 | F11: =[2]cerTabGNI!F11 -> 36.73071967 | G11: =[2]cerTabGNI!G11 -> 44.94216098 | H11: =[2]cerTabGNI!H11 -> 41.29302989 | I11: =[2]cerTabGNI!I11 -> 43.15077326 | J11: =[2]cerTabGNI!J11 -> 49.22490064 | K11: =[2]cerTabGNI!K11 -> 61.15520335 | L11: =[2]cerTabGNI!L11 -> 58.1451004 | M11: =[2]cerTabGNI!M11 -> 66.02951915 | N11: =[2]cerTabGNI!N11 -> 66.31795562 | O11: =[2]cerTabGNI!O11 -> 64.64591361 | P11: =[2]cerTabGNI!P11 -> 66.16159453 | Q11: =[2]cerTabGNI!Q11 -> 66.77551458
B12: Payable to the rest of the world | C12: =[2]cerTabGNI!C12 -> -2.767196137 | D12: =[2]cerTabGNI!D12 -> -2.847006329 | E12: =[2]cerTabGNI!E12 -> -2.835187031 | F12: =[2]cerTabGNI!F12 -> -2.955779706 | G12: =[2]cerTabGNI!G12 -> -3.044260375 | H12: =[2]cerTabGNI!H12 -> -3.222626356 | I12: =[2]cerTabGNI!I12 -> -3.310160867 | J12: =[2]cerTabGNI!J12 -> -3.390500088 | K12: =[2]cerTabGNI!K12 -> -3.581153849 | L12: =[2]cerTabGNI!L12 -> -3.711220198 | M12: =[2]cerTabGNI!M12 -> -3.882496134 | N12: =[2]cerTabGNI!N12 -> -4.105204455 | O12: =[2]cerTabGNI!O12 -> -4.4324703 | P12: =[2]cerTabGNI!P12 -> -5.326865848 | Q12: =[2]cerTabGNI!Q12 -> -5.982751619
B13: Net secondary incomes | C13: =[2]cerTabGNI!C13 -> 24.51513562 | D13: =[2]cerTabGNI!D13 -> 29.46951578 | E13: =[2]cerTabGNI!E13 -> 25.62616968 | F13: =[2]cerTabGNI!F13 -> 33.77493996 | G13: =[2]cerTabGNI!G13 -> 41.8979006 | H13: =[2]cerTabGNI!H13 -> 38.07040353 | I13: =[2]cerTabGNI!I13 -> 39.8406124 | J13: =[2]cerTabGNI!J13 -> 45.83440055 | K13: =[2]cerTabGNI!K13 -> 57.5740495 | L13: =[2]cerTabGNI!L13 -> 54.4338802 | M13: =[2]cerTabGNI!M13 -> 62.14702301 | N13: =[2]cerTabGNI!N13 -> 62.21275116 | O13: =[2]cerTabGNI!O13 -> 60.21344331 | P13: =[2]cerTabGNI!P13 -> 60.83472868 | Q13: =[2]cerTabGNI!Q13 -> 60.79276296
B14: Gross National Disposable Income (GNDI) | C14: =[2]cerTabGNI!C14 -> 157.583178 | D14: =[2]cerTabGNI!D14 -> 170.3217673 | E14: =[2]cerTabGNI!E14 -> 169.4546925 | F14: =[2]cerTabGNI!F14 -> 181.8922099 | G14: =[2]cerTabGNI!G14 -> 195.2079886 | H14: =[2]cerTabGNI!H14 -> 200.2316452 | I14: =[2]cerTabGNI!I14 -> 203.357346 | J14: =[2]cerTabGNI!J14 -> 214.4459654 | K14: =[2]cerTabGNI!K14 -> 236.727006 | L14: =[2]cerTabGNI!L14 -> 239.4925805 | M14: =[2]cerTabGNI!M14 -> 255.9825002 | N14: =[2]cerTabGNI!N14 -> 258.9503773 | O14: =[2]cerTabGNI!O14 -> 253.2517611 | P14: =[2]cerTabGNI!P14 -> 259.6657683 | Q14: =[2]cerTabGNI!Q14 -> 270.6729544
A15: Constant 2004 prices
B16: GDP, at constant prices | C16: =[2]cerTabGNI!C16 -> 120.5841116 | D16: =[2]cerTabGNI!D16 -> 117.1302092 | E16: =[2]cerTabGNI!E16 -> 114.3467613 | F16: =[2]cerTabGNI!F16 -> 121.1095869 | G16: =[2]cerTabGNI!G16 -> 127.6057887 | H16: =[2]cerTabGNI!H16 -> 130.9324532 | I16: =[2]cerTabGNI!I16 -> 131.1841362 | J16: =[2]cerTabGNI!J16 -> 131.1486807 | K16: =[2]cerTabGNI!K16 -> 134.5819726 | L16: =[2]cerTabGNI!L16 -> 137.0947561 | M16: =[2]cerTabGNI!M16 -> 141.483724 | N16: =[2]cerTabGNI!N16 -> 138.8201543 | O16: =[2]cerTabGNI!O16 -> 136.7710555 | P16: =[2]cerTabGNI!P16 -> 144.4211677 | Q16: =[2]cerTabGNI!Q16 -> 145.5896549
B17: Trading gains/losses 4 | C17: =[2]cerTabGNI!C17 -> n.a. | D17: =[2]cerTabGNI!D17 -> n.a. | E17: =[2]cerTabGNI!E17 -> n.a. | F17: =[2]cerTabGNI!F17 -> n.a. | G17: =[2]cerTabGNI!G17 -> n.a. | H17: =[2]cerTabGNI!H17 -> n.a. | I17: =[2]cerTabGNI!I17 -> n.a. | J17: =[2]cerTabGNI!J17 -> n.a. | K17: =[2]cerTabGNI!K17 -> n.a. | L17: =[2]cerTabGNI!L17 -> n.a. | M17: =[2]cerTabGNI!M17 -> n.a. | N17: =[2]cerTabGNI!N17 -> n.a. | O17: =[2]cerTabGNI!O17 -> n.a. | P17: =[2]cerTabGNI!P17 -> n.a. | Q17: =[2]cerTabGNI!Q17 -> n.a.
B18: Real Gross Domestic Income | C18: =[2]cerTabGNI!C18 -> 120.5841116 | D18: =[2]cerTabGNI!D18 -> 117.1302092 | E18: =[2]cerTabGNI!E18 -> 114.3467613 | F18: =[2]cerTabGNI!F18 -> 121.1095869 | G18: =[2]cerTabGNI!G18 -> 127.6057887 | H18: =[2]cerTabGNI!H18 -> 130.9324532 | I18: =[2]cerTabGNI!I18 -> 131.1841362 | J18: =[2]cerTabGNI!J18 -> 131.1486807 | K18: =[2]cerTabGNI!K18 -> 134.5819726 | L18: =[2]cerTabGNI!L18 -> 137.0947561 | M18: =[2]cerTabGNI!M18 -> 141.483724 | N18: =[2]cerTabGNI!N18 -> 138.8201543 | O18: =[2]cerTabGNI!O18 -> 136.7710555 | P18: =[2]cerTabGNI!P18 -> 144.4211677 | Q18: =[2]cerTabGNI!Q18 -> 145.5896549
B19: Primary incomes 5
B20: Receivable from the rest of the world | C20: =[2]cerTabGNI!C20 -> 44.86253456 | D20: =[2]cerTabGNI!D20 -> 48.21680566 | E20: =[2]cerTabGNI!E20 -> 49.64723066 | F20: =[2]cerTabGNI!F20 -> 48.80155955 | G20: =[2]cerTabGNI!G20 -> 49.05973414 | H20: =[2]cerTabGNI!H20 -> 46.8009211 | I20: =[2]cerTabGNI!I20 -> 45.91581299 | J20: =[2]cerTabGNI!J20 -> 47.23067863 | K20: =[2]cerTabGNI!K20 -> 49.91403892 | L20: =[2]cerTabGNI!L20 -> 50.824407 | M20: =[2]cerTabGNI!M20 -> 51.09889016 | N20: =[2]cerTabGNI!N20 -> 44.72398591 | O20: =[2]cerTabGNI!O20 -> 43.3133394 | P20: =[2]cerTabGNI!P20 -> 41.29917326 | Q20: =[2]cerTabGNI!Q20 -> 42.85396348
B21: Payable to the rest of the world | C21: =[2]cerTabGNI!C21 -> -13.73385643 | D21: =[2]cerTabGNI!D21 -> -12.59613712 | E21: =[2]cerTabGNI!E21 -> -11.14819076 | F21: =[2]cerTabGNI!F21 -> -9.292095785 | G21: =[2]cerTabGNI!G21 -> -8.487734138 | H21: =[2]cerTabGNI!H21 -> -7.942461694 | I21: =[2]cerTabGNI!I21 -> -8.063205588 | J21: =[2]cerTabGNI!J21 -> -9.767794487 | K21: =[2]cerTabGNI!K21 -> -10.09160373 | L21: =[2]cerTabGNI!L21 -> -13.06004206 | M21: =[2]cerTabGNI!M21 -> -12.13888663 | N21: =[2]cerTabGNI!N21 -> -10.1549822 | O21: =[2]cerTabGNI!O21 -> -9.98588489 | P21: =[2]cerTabGNI!P21 -> -13.17332182 | Q21: =[2]cerTabGNI!Q21 -> -13.15466634
B22: Net primary incomes | C22: =[2]cerTabGNI!C22 -> 31.12867814 | D22: =[2]cerTabGNI!D22 -> 35.62066854 | E22: =[2]cerTabGNI!E22 -> 38.4990399 | F22: =[2]cerTabGNI!F22 -> 39.50946376 | G22: =[2]cerTabGNI!G22 -> 40.572 | H22: =[2]cerTabGNI!H22 -> 38.85845941 | I22: =[2]cerTabGNI!I22 -> 37.8526074 | J22: =[2]cerTabGNI!J22 -> 37.46288414 | K22: =[2]cerTabGNI!K22 -> 39.82243519 | L22: =[2]cerTabGNI!L22 -> 37.76436493 | M22: =[2]cerTabGNI!M22 -> 38.96000353 | N22: =[2]cerTabGNI!N22 -> 34.5690037 | O22: =[2]cerTabGNI!O22 -> 33.32745451 | P22: =[2]cerTabGNI!P22 -> 28.12585145 | Q22: =[2]cerTabGNI!Q22 -> 29.69929714
B23: Real Gross National Income (GNI) | C23: =[2]cerTabGNI!C23 -> 151.7127897 | D23: =[2]cerTabGNI!D23 -> 152.7508778 | E23: =[2]cerTabGNI!E23 -> 152.8458012 | F23: =[2]cerTabGNI!F23 -> 160.6190507 | G23: =[2]cerTabGNI!G23 -> 168.1777887 | H23: =[2]cerTabGNI!H23 -> 169.7909126 | I23: =[2]cerTabGNI!I23 -> 169.0367436 | J23: =[2]cerTabGNI!J23 -> 168.6115649 | K23: =[2]cerTabGNI!K23 -> 174.4044078 | L23: =[2]cerTabGNI!L23 -> 174.859121 | M23: =[2]cerTabGNI!M23 -> 180.4437275 | N23: =[2]cerTabGNI!N23 -> 173.389158 | O23: =[2]cerTabGNI!O23 -> 170.09851 | P23: =[2]cerTabGNI!P23 -> 172.5470191 | Q23: =[2]cerTabGNI!Q23 -> 175.2889521
B24: Secondary Incomes (Current transfers) 5
B25: Receivable from the rest of the world | C25: =[2]cerTabGNI!C25 -> 31.65793753 | D25: =[2]cerTabGNI!D25 -> 35.75564173 | E25: =[2]cerTabGNI!E25 -> 30.53044238 | F25: =[2]cerTabGNI!F25 -> 38.99581091 | G25: =[2]cerTabGNI!G25 -> 47.74645182 | H25: =[2]cerTabGNI!H25 -> 42.83095903 | I25: =[2]cerTabGNI!I25 -> 44.58878705 | J25: =[2]cerTabGNI!J25 -> 49.22490064 | K25: =[2]cerTabGNI!K25 -> 58.63482956 | L25: =[2]cerTabGNI!L25 -> 52.73635194 | M25: =[2]cerTabGNI!M25 -> 58.48363266 | N25: =[2]cerTabGNI!N25 -> 52.07351393 | O25: =[2]cerTabGNI!O25 -> 52.09446292 | P25: =[2]cerTabGNI!P25 -> 52.25423833 | Q25: =[2]cerTabGNI!Q25 -> 50.67874931
B26: Payable to the rest of the world | C26: =[2]cerTabGNI!C26 -> -3.211005688 | D26: =[2]cerTabGNI!D26 -> -3.149984332 | E26: =[2]cerTabGNI!E26 -> -3.041299653 | F26: =[2]cerTabGNI!F26 -> -3.138055218 | G26: =[2]cerTabGNI!G26 -> -3.234215448 | H26: =[2]cerTabGNI!H26 -> -3.342650752 | I26: =[2]cerTabGNI!I26 -> -3.420473072 | J26: =[2]cerTabGNI!J26 -> -3.390500088 | K26: =[2]cerTabGNI!K26 -> -3.433564669 | L26: =[2]cerTabGNI!L26 -> -3.365996673 | M26: =[2]cerTabGNI!M26 -> -3.438802533 | N26: =[2]cerTabGNI!N26 -> -3.223447095 | O26: =[2]cerTabGNI!O26 -> -3.571875573 | P26: =[2]cerTabGNI!P26 -> -4.207143427 | Q26: =[2]cerTabGNI!Q26 -> -4.540562081
B27: Net secondary incomes | C27: =[2]cerTabGNI!C27 -> 28.44693185 | D27: =[2]cerTabGNI!D27 -> 32.6056574 | E27: =[2]cerTabGNI!E27 -> 27.48914273 | F27: =[2]cerTabGNI!F27 -> 35.85775569 | G27: =[2]cerTabGNI!G27 -> 44.51223637 | H27: =[2]cerTabGNI!H27 -> 39.48830827 | I27: =[2]cerTabGNI!I27 -> 41.16831397 | J27: =[2]cerTabGNI!J27 -> 45.83440055 | K27: =[2]cerTabGNI!K27 -> 55.20126489 | L27: =[2]cerTabGNI!L27 -> 49.37035527 | M27: =[2]cerTabGNI!M27 -> 55.04483013 | N27: =[2]cerTabGNI!N27 -> 48.85006684 | O27: =[2]cerTabGNI!O27 -> 48.52258735 | P27: =[2]cerTabGNI!P27 -> 48.0470949 | Q27: =[2]cerTabGNI!Q27 -> 46.13818723
B28: Real Gross National Disposable Income (GNDI) 1 | C28: =[2]cerTabGNI!C28 -> 180.1597216 | D28: =[2]cerTabGNI!D28 -> 185.3565352 | E28: =[2]cerTabGNI!E28 -> 180.334944 | F28: =[2]cerTabGNI!F28 -> 196.4768064 | G28: =[2]cerTabGNI!G28 -> 212.6900251 | H28: =[2]cerTabGNI!H28 -> 209.2792208 | I28: =[2]cerTabGNI!I28 -> 210.2050576 | J28: =[2]cerTabGNI!J28 -> 214.4459654 | K28: =[2]cerTabGNI!K28 -> 229.6056727 | L28: =[2]cerTabGNI!L28 -> 224.2294763 | M28: =[2]cerTabGNI!M28 -> 235.4885577 | N28: =[2]cerTabGNI!N28 -> 222.2392248 | O28: =[2]cerTabGNI!O28 -> 218.6210973 | P28: =[2]cerTabGNI!P28 -> 220.594114 | Q28: =[2]cerTabGNI!Q28 -> 221.4271393
B29: Annual changes
B30: GDP at constant prices | D30: =[2]cerTabGNI!D30 -> -0.02864309666 | E30: =[2]cerTabGNI!E30 -> -0.02376370633 | F30: =[2]cerTabGNI!F30 -> 0.05914313207 | G30: =[2]cerTabGNI!G30 -> 0.05363903822 | H30: =[2]cerTabGNI!H30 -> 0.02606985548 | I30: =[2]cerTabGNI!I30 -> 0.001922235815 | J30: =[2]cerTabGNI!J30 -> -0.0002702724906 | K30: =[2]cerTabGNI!K30 -> 0.02617862269 | L30: =[2]cerTabGNI!L30 -> 0.01867102589 | M30: =[2]cerTabGNI!M30 -> 0.03201411978 | N30: =[2]cerTabGNI!N30 -> -0.01882597989 | O30: =[2]cerTabGNI!O30 -> -0.01476081625 | P30: =[2]cerTabGNI!P30 -> 0.05593370759 | Q30: =[2]cerTabGNI!Q30 -> 0.008090830693
B31: Real GNI | D31: =[2]cerTabGNI!D31 -> 0.006842455678 | E31: =[2]cerTabGNI!E31 -> 0.0006214266733 | F31: =[2]cerTabGNI!F31 -> 0.05085680736 | G31: =[2]cerTabGNI!G31 -> 0.04706003409 | H31: =[2]cerTabGNI!H31 -> 0.009591777169 | I31: =[2]cerTabGNI!I31 -> -0.004441750993 | J31: =[2]cerTabGNI!J31 -> -0.002515303567 | K31: =[2]cerTabGNI!K31 -> 0.03435614208 | L31: =[2]cerTabGNI!L31 -> 0.002607234766 | M31: =[2]cerTabGNI!M31 -> 0.031937748 | N31: =[2]cerTabGNI!N31 -> -0.03909567636 | O31: =[2]cerTabGNI!O31 -> -0.0189783953 | P31: =[2]cerTabGNI!P31 -> 0.01439465377 | Q31: =[2]cerTabGNI!Q31 -> 0.01589093178
B32: Real GNDI | D32: =[2]cerTabGNI!D32 -> 0.02884559073 | E32: =[2]cerTabGNI!E32 -> -0.02709152496 | F32: =[2]cerTabGNI!F32 -> 0.08951045248 | G32: =[2]cerTabGNI!G32 -> 0.08251975883 | H32: =[2]cerTabGNI!H32 -> -0.01603650299 | I32: =[2]cerTabGNI!I32 -> 0.004423930582 | J32: =[2]cerTabGNI!J32 -> 0.02017509904 | K32: =[2]cerTabGNI!K32 -> 0.07069243381 | L32: =[2]cerTabGNI!L32 -> -0.02341491099 | M32: =[2]cerTabGNI!M32 -> 0.05021231636 | N32: =[2]cerTabGNI!N32 -> -0.05626317045 | O32: =[2]cerTabGNI!O32 -> -0.016280328 | P32: =[2]cerTabGNI!P32 -> 0.009024823019 | Q32: =[2]cerTabGNI!Q32 -> 0.003776280429
B33: Per capita income measures 6
B34: Population (1999 Census and estimates) | C34: =[2]cerTabGNI!C34 -> 49286.22219 | D34: =[2]cerTabGNI!D34 -> 50028.07841 | E34: =[2]cerTabGNI!E34 -> 50840 | F34: =[2]cerTabGNI!F34 -> 51231.33377 | G34: =[2]cerTabGNI!G34 -> 50539.66753 | H34: =[2]cerTabGNI!H34 -> 49714.0013 | I34: =[2]cerTabGNI!I34 -> 49995.33507 | J34: =[2]cerTabGNI!J34 -> 50460.66883 | K34: =[2]cerTabGNI!K34 -> 51186.0026 | L34: =[2]cerTabGNI!L34 -> 51479.33637 | M34: =[2]cerTabGNI!M34 -> 51796.67013 | N34: =[2]cerTabGNI!N34 -> 52476.4039 | O34: =[2]cerTabGNI!O34 -> 52278.35767 | P34: =[2]cerTabGNI!P34 -> 52920.50743 | Q34: =[2]cerTabGNI!Q34 -> 53158
B35: Current price GDP per capita (US$) | C35: =[2]cerTabGNI!C35 -> 2155.608884 | D35: =[2]cerTabGNI!D35 -> 2171.934717 | E35: =[2]cerTabGNI!E35 -> 2123.104056 | F35: =[2]cerTabGNI!F35 -> 2164.744212 | G35: =[2]cerTabGNI!G35 -> 2277.834572 | H35: =[2]cerTabGNI!H35 -> 2508.308883 | I35: =[2]cerTabGNI!I35 -> 2537.934674 | J35: =[2]cerTabGNI!J35 -> 2599.027793 | K35: =[2]cerTabGNI!K35 -> 2688.601905 | L35: =[2]cerTabGNI!L35 -> 2785.994434 | M35: =[2]cerTabGNI!M35 -> 2893.01677 | N35: =[2]cerTabGNI!N35 -> 2910.116511 | O35: =[2]cerTabGNI!O35 -> 2901.412251 | P35: =[2]cerTabGNI!P35 -> 3084.240111 | Q35: =[2]cerTabGNI!Q35 -> 3212.079038
B36: Current price GNI per capita (US$) | C36: =[2]cerTabGNI!C36 -> 2699.903472 | D36: =[2]cerTabGNI!D36 -> 2815.463955 | E36: =[2]cerTabGNI!E36 -> 2829.042541 | F36: =[2]cerTabGNI!F36 -> 2891.146083 | G36: =[2]cerTabGNI!G36 -> 3033.460556 | H36: =[2]cerTabGNI!H36 -> 3261.882719 | I36: =[2]cerTabGNI!I36 -> 3270.639819 | J36: =[2]cerTabGNI!J36 -> 3341.445304 | K36: =[2]cerTabGNI!K36 -> 3500.038046 | L36: =[2]cerTabGNI!L36 -> 3594.815188 | M36: =[2]cerTabGNI!M36 -> 3742.238192 | N36: =[2]cerTabGNI!N36 -> 3749.068372 | O36: =[2]cerTabGNI!O36 -> 3692.509221 | P36: =[2]cerTabGNI!P36 -> 3757.16427 | Q36: =[2]cerTabGNI!Q36 -> 3948.233406
B37: Current price GNDI per capita (US$) | C37: =[2]cerTabGNI!C37 -> 3197.306895 | D37: =[2]cerTabGNI!D37 -> 3404.523473 | E37: =[2]cerTabGNI!E37 -> 3333.097806 | F37: =[2]cerTabGNI!F37 -> 3550.409418 | G37: =[2]cerTabGNI!G37 -> 3862.470771 | H37: =[2]cerTabGNI!H37 -> 4027.671079 | I37: =[2]cerTabGNI!I37 -> 4067.526416 | J37: =[2]cerTabGNI!J37 -> 4249.764627 | K37: =[2]cerTabGNI!K37 -> 4624.838706 | L37: =[2]cerTabGNI!L37 -> 4652.208 | M37: =[2]cerTabGNI!M37 -> 4942.064799 | N37: =[2]cerTabGNI!N37 -> 4934.605996 | O37: =[2]cerTabGNI!O37 -> 4844.294511 | P37: =[2]cerTabGNI!P37 -> 4906.713502 | Q37: =[2]cerTabGNI!Q37 -> 5091.857376
B38: Constant price GDP per capita (US$) | C38: =[2]cerTabGNI!C38 -> 2446.608935 | D38: =[2]cerTabGNI!D38 -> 2341.289391 | E38: =[2]cerTabGNI!E38 -> 2249.149515 | F38: =[2]cerTabGNI!F38 -> 2363.974896 | G38: =[2]cerTabGNI!G38 -> 2524.864031 | H38: =[2]cerTabGNI!H38 -> 2633.713838 | I38: =[2]cerTabGNI!I38 -> 2623.927533 | J38: =[2]cerTabGNI!J38 -> 2599.027793 | K38: =[2]cerTabGNI!K38 -> 2629.27296 | L38: =[2]cerTabGNI!L38 -> 2663.10263 | M38: =[2]cerTabGNI!M38 -> 2731.521614 | N38: =[2]cerTabGNI!N38 -> 2645.38238 | O38: =[2]cerTabGNI!O38 -> 2616.20796 | P38: =[2]cerTabGNI!P38 -> 2729.020841 | Q38: =[2]cerTabGNI!Q38 -> 2738.809867
B39: Real GDI per capita | C39: =[2]cerTabGNI!C39 -> 2446.608935 | D39: =[2]cerTabGNI!D39 -> 2341.289391 | E39: =[2]cerTabGNI!E39 -> 2249.149515 | F39: =[2]cerTabGNI!F39 -> 2363.974896 | G39: =[2]cerTabGNI!G39 -> 2524.864031 | H39: =[2]cerTabGNI!H39 -> 2633.713838 | I39: =[2]cerTabGNI!I39 -> 2623.927533 | J39: =[2]cerTabGNI!J39 -> 2599.027793 | K39: =[2]cerTabGNI!K39 -> 2629.27296 | L39: =[2]cerTabGNI!L39 -> 2663.10263 | M39: =[2]cerTabGNI!M39 -> 2731.521614 | N39: =[2]cerTabGNI!N39 -> 2645.38238 | O39: =[2]cerTabGNI!O39 -> 2616.20796 | P39: =[2]cerTabGNI!P39 -> 2729.020841 | Q39: =[2]cerTabGNI!Q39 -> 2738.809867
B40: Real GNI per capita (US$) | C40: =[2]cerTabGNI!C40 -> 3078.198794 | D40: =[2]cerTabGNI!D40 -> 3053.302917 | E40: =[2]cerTabGNI!E40 -> 3006.408364 | F40: =[2]cerTabGNI!F40 -> 3135.172147 | G40: =[2]cerTabGNI!G40 -> 3327.639395 | H40: =[2]cerTabGNI!H40 -> 3415.353987 | I40: =[2]cerTabGNI!I40 -> 3381.05032 | J40: =[2]cerTabGNI!J40 -> 3341.445304 | K40: =[2]cerTabGNI!K40 -> 3407.267591 | L40: =[2]cerTabGNI!L40 -> 3396.685609 | M40: =[2]cerTabGNI!M40 -> 3483.693586 | N40: =[2]cerTabGNI!N40 -> 3304.13567 | O40: =[2]cerTabGNI!O40 -> 3253.707989 | P40: =[2]cerTabGNI!P40 -> 3260.494419 | Q40: =[2]cerTabGNI!Q40 -> 3297.50841
B41: Real GNDI per capita (US$) | C41: =[2]cerTabGNI!C41 -> 3655.37697 | D41: =[2]cerTabGNI!D41 -> 3705.050065 | E41: =[2]cerTabGNI!E41 -> 3547.107474 | F41: =[2]cerTabGNI!F41 -> 3835.090597 | G41: =[2]cerTabGNI!G41 -> 4208.378002 | H41: =[2]cerTabGNI!H41 -> 4209.663583 | I41: =[2]cerTabGNI!I41 -> 4204.493425 | J41: =[2]cerTabGNI!J41 -> 4249.764627 | K41: =[2]cerTabGNI!K41 -> 4485.712128 | L41: =[2]cerTabGNI!L41 -> 4355.718082 | M41: =[2]cerTabGNI!M41 -> 4546.403409 | N41: =[2]cerTabGNI!N41 -> 4235.031525 | O41: =[2]cerTabGNI!O41 -> 4181.866208 | P41: =[2]cerTabGNI!P41 -> 4168.405118 | Q41: =[2]cerTabGNI!Q41 -> 4165.452788
B42: RMI Implicit Price deflators
B43: Gross Domestic Product (GDP) | C43: =[2]cerTabGNI!C43 -> 88.10598429 | D43: =[2]cerTabGNI!D43 -> 92.76660653 | E43: =[2]cerTabGNI!E43 -> 94.3958613 | F43: =[2]cerTabGNI!F43 -> 91.57221657 | G43: =[2]cerTabGNI!G43 -> 90.21612826 | H43: =[2]cerTabGNI!H43 -> 95.23847456 | I43: =[2]cerTabGNI!I43 -> 96.72274259 | J43: =[2]cerTabGNI!J43 -> 100 | K43: =[2]cerTabGNI!K43 -> 102.2564772 | L43: =[2]cerTabGNI!L43 -> 104.6146101 | M43: =[2]cerTabGNI!M43 -> 105.9122782 | N43: =[2]cerTabGNI!N43 -> 110.0074051 | O43: =[2]cerTabGNI!O43 -> 110.9014381 | P43: =[2]cerTabGNI!P43 -> 113.0163634 | Q43: =[2]cerTabGNI!Q43 -> 117.2801032
B44: Gross National Income (GNI) | C44: =[2]cerTabGNI!C44 -> 87.71049736 | D44: =[2]cerTabGNI!D44 -> 92.21043673 | E44: =[2]cerTabGNI!E44 -> 94.10040815 | F44: =[2]cerTabGNI!F44 -> 92.21650192 | G44: =[2]cerTabGNI!G44 -> 91.15953372 | H44: =[2]cerTabGNI!H44 -> 95.50643156 | I44: =[2]cerTabGNI!I44 -> 96.7344319 | J44: =[2]cerTabGNI!J44 -> 100 | K44: =[2]cerTabGNI!K44 -> 102.7227229 | L44: =[2]cerTabGNI!L44 -> 105.8330267 | M44: =[2]cerTabGNI!M44 -> 107.4215656 | N44: =[2]cerTabGNI!N44 -> 113.4659332 | O44: =[2]cerTabGNI!O44 -> 113.4861897 | P44: =[2]cerTabGNI!P44 -> 115.2329612 | Q44: =[2]cerTabGNI!Q44 -> 119.7338389
B45: Gross National Disposable Income (GNDI) | C45: =[2]cerTabGNI!C45 -> 87.46859546 | D45: =[2]cerTabGNI!D45 -> 91.88873061 | E45: =[2]cerTabGNI!E45 -> 93.96664271 | F45: =[2]cerTabGNI!F45 -> 92.57693733 | G45: =[2]cerTabGNI!G45 -> 91.78050947 | H45: =[2]cerTabGNI!H45 -> 95.6767922 | I45: =[2]cerTabGNI!I45 -> 96.74236594 | J45: =[2]cerTabGNI!J45 -> 100 | K45: =[2]cerTabGNI!K45 -> 103.1015494 | L45: =[2]cerTabGNI!L45 -> 106.8069125 | M45: =[2]cerTabGNI!M45 -> 108.7027339 | N45: =[2]cerTabGNI!N45 -> 116.5187547 | O45: =[2]cerTabGNI!O45 -> 115.8404949 | P45: =[2]cerTabGNI!P45 -> 117.7120112 | Q45: =[2]cerTabGNI!Q45 -> 122.2401894
B46: Other Price Indexes
B47: Majuro CPI | C47: =[2]cerTabGNI!C47 -> 92.20653707 | D47: =[2]cerTabGNI!D47 -> 94.88997414 | E47: =[2]cerTabGNI!E47 -> 96.66605301 | F47: =[2]cerTabGNI!F47 -> 97.53956449 | G47: =[2]cerTabGNI!G47 -> 99.3445046 | H47: =[2]cerTabGNI!H47 -> 98.94215719 | I47: =[2]cerTabGNI!I47 -> 98.00308456 | J47: =[2]cerTabGNI!J47 -> 100 | K47: =[2]cerTabGNI!K47 -> 103.4864503 | L47: =[2]cerTabGNI!L47 -> 108.9224317 | M47: =[2]cerTabGNI!M47 -> 111.7943996 | N47: =[2]cerTabGNI!N47 -> 128.2002646 | O47: =[2]cerTabGNI!O47 -> 128.8125733 | P47: =[2]cerTabGNI!P47 -> 131.0883709 | Q47: =[2]cerTabGNI!Q47 -> 138.1821247
B48: US CPI | C48: =[2]cerTabGNI!C48 -> 84.71848479 | D48: =[2]cerTabGNI!D48 -> 86.09602113 | E48: =[2]cerTabGNI!E48 -> 88.03274144 | F48: =[2]cerTabGNI!F48 -> 91.13120232 | G48: =[2]cerTabGNI!G48 -> 93.68287599 | H48: =[2]cerTabGNI!H48 -> 95.181802 | I48: =[2]cerTabGNI!I48 -> 97.37098345 | J48: =[2]cerTabGNI!J48 -> 100 | K48: =[2]cerTabGNI!K48 -> 103.4 | L48: =[2]cerTabGNI!L48 -> 106.7088 | M48: =[2]cerTabGNI!M48 -> 109.6966464 | N48: =[2]cerTabGNI!N48 -> 113.865119 | O48: =[2]cerTabGNI!O48 -> 113.4779776 | P48: =[2]cerTabGNI!P48 -> 115.3896897 | Q48: =[2]cerTabGNI!Q48 -> 118.4513931
B49: US GDP deflator | C49: =[2]cerTabGNI!C49 -> 87.78576264 | D49: =[2]cerTabGNI!D49 -> 88.88819455 | E49: =[2]cerTabGNI!E49 -> 90.09842212 | F49: =[2]cerTabGNI!F49 -> 91.84242046 | G49: =[2]cerTabGNI!G49 -> 94.02671458 | H49: =[2]cerTabGNI!H49 -> 95.58792897 | I49: =[2]cerTabGNI!I49 -> 97.53397907 | J49: =[2]cerTabGNI!J49 -> 100 | K49: =[2]cerTabGNI!K49 -> 103.2507941 | L49: =[2]cerTabGNI!L49 -> 106.7617039 | M49: =[2]cerTabGNI!M49 -> 109.9091288 | N49: =[2]cerTabGNI!N49 -> 112.4858095 | O49: =[2]cerTabGNI!O49 -> 114.1147217 | P49: =[2]cerTabGNI!P49 -> 115.1512784 | Q49: =[2]cerTabGNI!Q49 -> 117.4285268
A50: 1) GDP, GNI and GNDI are at purchasers prices.
A51: 2) Refer to Balance of Payments tables for breakdown of primary and secondary Income flows
A52: 3) Grants not passed through the Government of the RMI may be understated
A53: 4) Changes in the terms of trade. Not currently estimated.
A54: 5) Primary, Secondary income and capital grants are deflated by an equal weighting of the RMI CPI and the RMI GDP implicit price deflator, as a proxy for the Gross Domestic Expenditure deflator
A55: 6) Income comparisons between countries should be made using Purchasing Power Paritys (PPP) rather than US$. However, these measures are currently not available for the RMI.

Sheet NApc
A1: Table 2b Current and constant price RMI GDP, GDP per capita, 1981-2011
B2: GDP US$ millions (old series) 1 | C2: GDP US$ millions (new series) 2 | D2: Linked Series 3 | E2: Real GDP $ millions 4 | F2: Real GDP annual growth | G2: Population | H2: GDP per capita, Constant prices 4 | I2: Real per capita GDP annual growth
A3: FY1981 | B3: =[3]cerNApc!B4 -> 27.152 | D3: =[3]cerNApc!D4 -> 30.95195299 | E3: =[3]cerNApc!F4 -> 63.14967833 | G3: =[3]cerNApc!H4 -> 32213.85298 | H3: =E3/G3*1000000 -> 1960.326769
A4: FY1982 | B4: =[3]cerNApc!B5 -> 30.564 | D4: =[3]cerNApc!D5 -> 34.84146624 | E4: =[3]cerNApc!F5 -> 66.20058503 | F4: =E4/E3-1 -> 0.04831230772 | G4: =[3]cerNApc!H5 -> 33612.94088 | H4: =E4/G4*1000000 -> 1969.496964 | I4: =H4/H3-1 -> 0.004677891152
A5: FY1983 | B5: =[3]cerNApc!B6 -> 36.543 | D5: =[3]cerNApc!D6 -> 41.65723402 | E5: =[3]cerNApc!F6 -> 76.46690927 | F5: =E5/E4-1 -> 0.1550790561 | G5: =[3]cerNApc!H6 -> 35072.79291 | H5: 2180.23439 | I5: =H5/H4-1 -> 0.1070006349
A6: FY1984 | B6: =[3]cerNApc!B7 -> 39.515 | D6: =[3]cerNApc!D7 -> 45.04516877 | E6: =[3]cerNApc!F7 -> 79.42319274 | F6: 0.03866095147 | G6: =[3]cerNApc!H7 -> 36596.04815 | H6: 2170.266921 | I6: -0.004571741972
A7: FY1985 | B7: =[3]cerNApc!B8 -> 38.408 | D7: =[3]cerNApc!D8 -> 43.78324288 | E7: =[3]cerNApc!F8 -> 74.45338029 | F7: -0.06257381851 | G7: =[3]cerNApc!H8 -> 38185.46026 | H7: 1949.783498 | I7: -0.1015927675
A8: FY1986 | B8: =[3]cerNApc!B9 -> 49.008 | D8: =[3]cerNApc!D9 -> 55.86672482 | E8: =[3]cerNApc!F9 -> 92.72611391 | F8: 0.2454251715 | G8: =[3]cerNApc!H9 -> 39843.90253 | H8: 2327.234734 | I8: 0.1935862296
A9: FY1987 | B9: =[3]cerNApc!B10 -> 55.13 | D9: =[3]cerNApc!D10 -> 62.84550562 | E9: =[3]cerNApc!F10 -> 101.4088212 | F9: 0.09363820918 | G9: =[3]cerNApc!H10 -> 41574.37302 | H9: 2439.214685 | I9: 0.04811717042
A10: FY1988 | B10: =[3]cerNApc!B11 -> 61.874 | D10: =[3]cerNApc!D11 -> 70.53333602 | E10: =[3]cerNApc!F11 -> 109.3075402 | F10: 0.07788986181 | G10: =[3]cerNApc!H11 -> 43380 | H10: 2519.768101 | I10: 0.03302432422
A11: FY1989 | B11: =[3]cerNApc!B12 -> 63.721 | D11: =[3]cerNApc!D12 -> 72.63882575 | E11: =[3]cerNApc!F12 -> 107.4585082 | F11: -0.01691586905 | G11: =[3]cerNApc!H12 -> 43734 | H11: 2457.093067 | I11: -0.02487333423
A12: FY1990 | B12: =[3]cerNApc!B13 -> 68.691 | D12: =[3]cerNApc!D13 -> 78.30438285 | E12: =[3]cerNApc!F13 -> 110.3344014 | F12: 0.02676282425 | G12: =[3]cerNApc!H13 -> 44392.28417 | H12: 2485.44096 | I12: 0.01153716681
A13: FY1991 | B13: =[3]cerNApc!B14 -> 72.2192 | D13: =[3]cerNApc!D14 -> 82.32635841 | E13: =[3]cerNApc!F14 -> 110.4313553 | F13: 0.0008787280736 | G13: =[3]cerNApc!H14 -> 45060.47683 | H13: 2450.736501 | I13: -0.01396309935
A14: FY1992 | B14: =[3]cerNApc!B15 -> 79.7085 | D14: =[3]cerNApc!D15 -> 90.86379439 | E14: =[3]cerNApc!F15 -> 118.3169883 | F14: 0.07140755472 | G14: =[3]cerNApc!H15 -> 45738.72713 | H14: 2586.801072 | I14: 0.05551986964
A15: FY1993 | B15: =[3]cerNApc!B16 -> 87.0594 | D15: =[3]cerNApc!D16 -> 99.24346112 | E15: =[3]cerNApc!F16 -> 125.4234206 | F15: 0.06006265324 | G15: =[3]cerNApc!H16 -> 46427.18645 | H15: 2701.508107 | I15: 0.0443431994
A16: FY1994 | B16: =[3]cerNApc!B17 -> 94.596174 | D16: =[3]cerNApc!D17 -> 107.8350151 | E16: =[3]cerNApc!F17 -> 132.7954949 | F16: 0.0587774934 | G16: =[3]cerNApc!H17 -> 47126.00846 | H16: 2817.881234 | I16: 0.04307709694
A17: FY1995 | B17: =[3]cerNApc!B18 -> 105.2388 | D17: =[3]cerNApc!D18 -> 119.9670886 | E17: =[3]cerNApc!F18 -> 143.7022501 | F17: 0.0821319669 | G17: =[3]cerNApc!H18 -> 47835.34914 | H17: 3004.101625 | I17: 0.0660852517
A18: FY1996 | B18: =[3]cerNApc!B19 -> 97.0357 | D18: =[3]cerNApc!D19 -> 110.6159556 | E18: =[3]cerNApc!F19 -> 128.8967092 | F18: -0.1030292903 | G18: =[3]cerNApc!H19 -> 48555.36681 | H18: 2654.633621 | I18: -0.1163302869
A19: FY1997 | B19: =[3]cerNApc!B20 -> 92.1839 | C19: =[3]cerNApc!C20 -> 106.2418184 | D19: =[3]cerNApc!D20 -> 106.2418184 | E19: =[3]cerNApc!F20 -> 120.5841116 | F19: -0.06449037901 | G19: =[3]cerNApc!H20 -> 49286.22219 | H19: 2446.608935 | I19: -0.07836286123
A20: FY1998 | B20: =[3]cerNApc!B21 -> 95.6593 | C20: =[3]cerNApc!C21 -> 108.6577203 | D20: =[3]cerNApc!D21 -> 108.6577203 | E20: =[3]cerNApc!F21 -> 117.1302092 | F20: -0.02864309666 | G20: =[3]cerNApc!H21 -> 50028.07841 | H20: 2341.289391 | I20: -0.04304715095
A21: FY1999 | B21: =[3]cerNApc!B22 -> 95.3603 | C21: =[3]cerNApc!C22 -> 107.9386102 | D21: =[3]cerNApc!D22 -> 107.9386102 | E21: =[3]cerNApc!F22 -> 114.3467613 | F21: -0.02376370633 | G21: =[3]cerNApc!H22 -> 50840 | H21: 2249.149515 | I21: -0.03935433032
A22: FY2000 | B22: =[3]cerNApc!B23 -> 98.8486 | C22: =[3]cerNApc!C23 -> 110.9027332 | D22: =[3]cerNApc!D23 -> 110.9027332 | E22: =[3]cerNApc!F23 -> 121.1095869 | F22: 0.05914313207 | G22: =[3]cerNApc!H23 -> 51231.33377 | H22: 2363.974896 | I22: 0.05105280061
A23: FY2001 | B23: =[3]cerNApc!B24 -> 99.17378999 | C23: =[3]cerNApc!C24 -> 115.121002 | D23: =[3]cerNApc!D24 -> 115.121002 | E23: =[3]cerNApc!F24 -> 127.6057887 | F23: 0.05363903822 | G23: =[3]cerNApc!H24 -> 50539.66753 | H23: 2524.864031 | I23: 0.0680587323
A24: FY2002 | C24: =[3]cerNApc!C25 -> 124.6980711 | D24: =[3]cerNApc!D25 -> 124.6980711 | E24: =[3]cerNApc!F25 -> 130.9324532 | F24: 0.02606985548 | G24: =[3]cerNApc!H25 -> 49714.0013 | H24: 2633.713838 | I24: 0.04311115593
A25: FY2003 | C25: =[3]cerNApc!C26 -> 126.8848944 | D25: =[3]cerNApc!D26 -> 126.8848944 | E25: =[3]cerNApc!F26 -> 131.1841362 | F25: 0.001922235815 | G25: =[3]cerNApc!H26 -> 49995.33507 | H25: 2623.927533 | I25: -0.003715781335
A26: FY2004 | C26: =[3]cerNApc!C27 -> 131.1486807 | D26: =[3]cerNApc!D27 -> 131.1486807 | E26: =[3]cerNApc!F27 -> 131.1486807 | F26: -0.0002702724906 | G26: =[3]cerNApc!H27 -> 50460.66883 | H26: 2599.027793 | I26: -0.009489492341
A27: FY2005 | C27: =[3]cerNApc!C28 -> 137.6187841 | D27: =[3]cerNApc!D28 -> 137.6187841 | E27: =[3]cerNApc!F28 -> 134.5819726 | F27: 0.02617862269 | G27: =[3]cerNApc!H28 -> 51186.0026 | H27: 2629.27296 | I27: 0.01163710806
A28: FY2006 | C28: =[3]cerNApc!C29 -> 143.4211446 | D28: =[3]cerNApc!D29 -> 143.4211446 | E28: =[3]cerNApc!F29 -> 137.0947561 | F28: 0.01867102589 | G28: =[3]cerNApc!H29 -> 51479.33637 | H28: 2663.10263 | I28: 0.01286654918
A29: FY2007 | C29: =[3]cerNApc!C30 -> 149.8486353 | D29: =[3]cerNApc!D30 -> 149.8486353 | E29: =[3]cerNApc!F30 -> 141.483724 | F29: 0.03201411978 | G29: =[3]cerNApc!H30 -> 51796.67013 | H29: 2731.521614 | I29: 0.02569145604
A30: FY2008 | C30: =[3]cerNApc!C31 -> 152.7124494 | D30: =[3]cerNApc!D31 -> 152.7124494 | E30: =[3]cerNApc!F31 -> 138.8201543 | F30: -0.01882597989 | G30: =[3]cerNApc!H31 -> 52476.4039 | H30: 2645.38238 | I30: -0.03153525611
A31: FY2009 | C31: =[3]cerNApc!C32 -> 151.6810674 | D31: =[3]cerNApc!D32 -> 151.6810674 | E31: =[3]cerNApc!F32 -> 136.7710555 | F31: -0.01476081625 | G31: =[3]cerNApc!H32 -> 52278.35767 | H31: 2616.20796 | I31: -0.01102843218
A32: FY2010 | C32: =[3]cerNApc!C33 -> 163.2195517 | D32: =[3]cerNApc!D33 -> 163.2195517 | E32: =[3]cerNApc!F33 -> 144.4211677 | F32: =E32/E31-1 -> 0.05593370759 | G32: =[3]cerNApc!H33 -> 52920.50743 | H32: 2729.020841 | I32: =H32/H31-1 -> 0.04312076197
A33: FY2011 | C33: =[3]cerNApc!C34 -> 170.7476975 | D33: =[3]cerNApc!D34 -> 170.7476975 | E33: =[3]cerNApc!F34 -> 145.5896549 | F33: =E33/E32-1 -> 0.008090830693 | G33: =[3]cerNApc!H34 -> 53158 | H33: =E33/G33*1000000 -> 2738.809867 | I33: =H33/H32-1 -> 0.003587010406
A34: Notes | B34: 1 GDP estimates old series 1981-2001
B35: 2 GDP estimates, EPPSO from 1997
B36: 3 Series linked based on differential between the average figures 1997-1999
B37: 4 Constant price GDP is in 2004 prices. U.S. CPI used as deflator for 1981-1997

Sheet NAInd
A1: Table 2c RMI Constant price GDP by industry, FY2004-FY2011
B2: (constant prices of FY2004, US$ millions) | C2: FY1997 | D2: FY1998 | E2: FY1999 | F2: FY2000 | G2: FY2001 | H2: FY2002 | I2: FY2003 | J2: FY2004 | K2: FY2005 | L2: FY2006 | M2: FY2007 | N2: FY2008 | O2: FY2009 | P2: FY2010 | Q2: FY2011
A3: A | B3: Agriculture, Hunting and Forestry | C3: =[3]cerNAind!C3 -> 4.507288089 | D3: =[3]cerNAind!D3 -> 4.076915434 | E3: =[3]cerNAind!E3 -> 3.865808484 | F3: =[3]cerNAind!F3 -> 3.767041392 | G3: =[3]cerNAind!G3 -> 4.139263871 | H3: =[3]cerNAind!H3 -> 3.465295638 | I3: =[3]cerNAind!I3 -> 3.756675286 | J3: =[3]cerNAind!J3 -> 3.920008315 | K3: =[3]cerNAind!K3 -> 3.965399388 | L3: =[3]cerNAind!L3 -> 3.929807708 | M3: =[3]cerNAind!M3 -> 4.310053137 | N3: =[3]cerNAind!N3 -> 4.61437549 | O3: =[3]cerNAind!O3 -> 4.458083851 | P3: =[3]cerNAind!P3 -> 4.204834253 | Q3: =[3]cerNAind!Q3 -> 3.869921945
A4: B | B4: Fisheries (1) | C4: =[3]cerNAind!C4 -> 5.361452019 | D4: =[3]cerNAind!D4 -> 5.442405988 | E4: =[3]cerNAind!E4 -> 5.2706302 | F4: =[3]cerNAind!F4 -> 7.485984332 | G4: =[3]cerNAind!G4 -> 7.661563988 | H4: =[3]cerNAind!H4 -> 8.221099974 | I4: =[3]cerNAind!I4 -> 9.193310373 | J4: =[3]cerNAind!J4 -> 8.223696121 | K4: =[3]cerNAind!K4 -> 7.042777201 | L4: =[3]cerNAind!L4 -> 7.367667404 | M4: =[3]cerNAind!M4 -> 7.929223889 | N4: =[3]cerNAind!N4 -> 7.40444926 | O4: =[3]cerNAind!O4 -> 9.086289235 | P4: =[3]cerNAind!P4 -> 12.63538463 | Q4: =[3]cerNAind!Q4 -> 13.77291678
A5: C | B5: Mining and Quarrying | C5: =[3]cerNAind!C5 -> 0 | D5: =[3]cerNAind!D5 -> 0 | E5: =[3]cerNAind!E5 -> 0 | F5: =[3]cerNAind!F5 -> 0 | G5: =[3]cerNAind!G5 -> 0 | H5: =[3]cerNAind!H5 -> 0 | I5: =[3]cerNAind!I5 -> 0 | J5: =[3]cerNAind!J5 -> 0 | K5: =[3]cerNAind!K5 -> 0 | L5: =[3]cerNAind!L5 -> 0 | M5: =[3]cerNAind!M5 -> 0 | N5: =[3]cerNAind!N5 -> 0 | O5: =[3]cerNAind!O5 -> 0 | P5: =[3]cerNAind!P5 -> 0 | Q5: =[3]cerNAind!Q5 -> 0
A6: D | B6: Manufacturing | C6: =[3]cerNAind!C6 -> 3.884587751 | D6: =[3]cerNAind!D6 -> 3.494817133 | E6: =[3]cerNAind!E6 -> 2.939064079 | F6: =[3]cerNAind!F6 -> 3.273549672 | G6: =[3]cerNAind!G6 -> 3.700088746 | H6: =[3]cerNAind!H6 -> 2.786847584 | I6: =[3]cerNAind!I6 -> 3.355127456 | J6: =[3]cerNAind!J6 -> 3.654538923 | K6: =[3]cerNAind!K6 -> 3.693246686 | L6: =[3]cerNAind!L6 -> 3.630376894 | M6: =[3]cerNAind!M6 -> 4.282184907 | N6: =[3]cerNAind!N6 -> 4.61487655 | O6: =[3]cerNAind!O6 -> 4.140761538 | P6: =[3]cerNAind!P6 -> 3.667333753 | Q6: =[3]cerNAind!Q6 -> 3.29963257
A7: E | B7: Electricity, Gas and Water Supply | C7: =[3]cerNAind!C7 -> 1.648265079 | D7: =[3]cerNAind!D7 -> 1.615255054 | E7: =[3]cerNAind!E7 -> 1.743210211 | F7: =[3]cerNAind!F7 -> 1.753845935 | G7: =[3]cerNAind!G7 -> 1.84833999 | H7: =[3]cerNAind!H7 -> 1.878698241 | I7: =[3]cerNAind!I7 -> 1.846723 | J7: =[3]cerNAind!J7 -> 1.940064 | K7: =[3]cerNAind!K7 -> 2.336439298 | L7: =[3]cerNAind!L7 -> 1.995156955 | M7: =[3]cerNAind!M7 -> 2.185921854 | N7: =[3]cerNAind!N7 -> 2.350278338 | O7: =[3]cerNAind!O7 -> 2.339198011 | P7: =[3]cerNAind!P7 -> 2.312785353 | Q7: =[3]cerNAind!Q7 -> 2.30143398
A8: F | B8: Construction | C8: =[3]cerNAind!C8 -> 7.70063221 | D8: =[3]cerNAind!D8 -> 9.641539129 | E8: =[3]cerNAind!E8 -> 9.513997824 | F8: =[3]cerNAind!F8 -> 7.11969136 | G8: =[3]cerNAind!G8 -> 8.535797437 | H8: =[3]cerNAind!H8 -> 8.676350832 | I8: =[3]cerNAind!I8 -> 7.907954581 | J8: =[3]cerNAind!J8 -> 7.070657763 | K8: =[3]cerNAind!K8 -> 7.20898131 | L8: =[3]cerNAind!L8 -> 10.5958765 | M8: =[3]cerNAind!M8 -> 9.314375096 | N8: =[3]cerNAind!N8 -> 9.338532594 | O8: =[3]cerNAind!O8 -> 8.622427316 | P8: =[3]cerNAind!P8 -> 8.190682734 | Q8: =[3]cerNAind!Q8 -> 7.666005763
A9: G | B9: Wholesale and Retail Trade and Repairs | C9: =[3]cerNAind!C9 -> 15.86132614 | D9: =[3]cerNAind!D9 -> 14.7269812 | E9: =[3]cerNAind!E9 -> 14.15892344 | F9: =[3]cerNAind!F9 -> 16.95147561 | G9: =[3]cerNAind!G9 -> 18.23849047 | H9: =[3]cerNAind!H9 -> 19.29058857 | I9: =[3]cerNAind!I9 -> 18.1368807 | J9: =[3]cerNAind!J9 -> 19.15975004 | K9: =[3]cerNAind!K9 -> 19.4312024 | L9: =[3]cerNAind!L9 -> 17.74314895 | M9: =[3]cerNAind!M9 -> 18.34078526 | N9: =[3]cerNAind!N9 -> 18.16620003 | O9: =[3]cerNAind!O9 -> 17.55850253 | P9: =[3]cerNAind!P9 -> 18.49508303 | Q9: =[3]cerNAind!Q9 -> 19.05463648
A10: H | B10: Hotels and Restaurants | C10: =[3]cerNAind!C10 -> 4.698314831 | D10: =[3]cerNAind!D10 -> 4.127006425 | E10: =[3]cerNAind!E10 -> 3.937215734 | F10: =[3]cerNAind!F10 -> 4.751368131 | G10: =[3]cerNAind!G10 -> 5.418615957 | H10: =[3]cerNAind!H10 -> 5.197243008 | I10: =[3]cerNAind!I10 -> 4.504465676 | J10: =[3]cerNAind!J10 -> 3.998386985 | K10: =[3]cerNAind!K10 -> 4.229784373 | L10: =[3]cerNAind!L10 -> 3.345623565 | M10: =[3]cerNAind!M10 -> 4.161912077 | N10: =[3]cerNAind!N10 -> 3.839299063 | O10: =[3]cerNAind!O10 -> 3.765767019 | P10: =[3]cerNAind!P10 -> 3.420411724 | Q10: =[3]cerNAind!Q10 -> 3.404305343
A11: I | B11: Transport, Storage and Communications | C11: =[3]cerNAind!C11 -> 10.03908978 | D11: =[3]cerNAind!D11 -> 9.593444988 | E11: =[3]cerNAind!E11 -> 8.968608948 | F11: =[3]cerNAind!F11 -> 9.788385633 | G11: =[3]cerNAind!G11 -> 10.40103291 | H11: =[3]cerNAind!H11 -> 12.07496949 | I11: =[3]cerNAind!I11 -> 12.36402665 | J11: =[3]cerNAind!J11 -> 12.11623 | K11: =[3]cerNAind!K11 -> 11.42250581 | L11: =[3]cerNAind!L11 -> 11.6655458 | M11: =[3]cerNAind!M11 -> 13.24908979 | N11: =[3]cerNAind!N11 -> 10.22573477 | O11: =[3]cerNAind!O11 -> 10.7202176 | P11: =[3]cerNAind!P11 -> 11.16293781 | Q11: =[3]cerNAind!Q11 -> 10.28965316
A12: J | B12: Financial Intermediation | C12: =[3]cerNAind!C12 -> 4.775526416 | D12: =[3]cerNAind!D12 -> 5.049168608 | E12: =[3]cerNAind!E12 -> 5.245060834 | F12: =[3]cerNAind!F12 -> 5.355476907 | G12: =[3]cerNAind!G12 -> 5.914613441 | H12: =[3]cerNAind!H12 -> 5.84454703 | I12: =[3]cerNAind!I12 -> 5.666453513 | J12: =[3]cerNAind!J12 -> 6.072537733 | K12: =[3]cerNAind!K12 -> 6.111031477 | L12: =[3]cerNAind!L12 -> 6.277790912 | M12: =[3]cerNAind!M12 -> 6.878675055 | N12: =[3]cerNAind!N12 -> 7.333057408 | O12: =[3]cerNAind!O12 -> 7.566057047 | P12: =[3]cerNAind!P12 -> 7.940370642 | Q12: =[3]cerNAind!Q12 -> 7.781813694
A13: K | B13: Real Estate, Renting, Business Activities | C13: =[3]cerNAind!C13 -> 11.11174501 | D13: =[3]cerNAind!D13 -> 10.04380301 | E13: =[3]cerNAind!E13 -> 9.64865324 | F13: =[3]cerNAind!F13 -> 9.993425647 | G13: =[3]cerNAind!G13 -> 10.07810814 | H13: =[3]cerNAind!H13 -> 10.0960853 | I13: =[3]cerNAind!I13 -> 10.06788467 | J13: =[3]cerNAind!J13 -> 9.70328021 | K13: =[3]cerNAind!K13 -> 9.782105801 | L13: =[3]cerNAind!L13 -> 9.885768411 | M13: =[3]cerNAind!M13 -> 10.02492433 | N13: =[3]cerNAind!N13 -> 10.16524822 | O13: =[3]cerNAind!O13 -> 10.49509461 | P13: =[3]cerNAind!P13 -> 10.61413387 | Q13: =[3]cerNAind!Q13 -> 10.82745438
A14: L | B14: Public Administration | C14: =[3]cerNAind!C14 -> 21.93751596 | D14: =[3]cerNAind!D14 -> 21.50085344 | E14: =[3]cerNAind!E14 -> 20.88405673 | F14: =[3]cerNAind!F14 -> 21.02448922 | G14: =[3]cerNAind!G14 -> 20.83683093 | H14: =[3]cerNAind!H14 -> 19.9731842 | I14: =[3]cerNAind!I14 -> 20.14816604 | J14: =[3]cerNAind!J14 -> 21.17983891 | K14: =[3]cerNAind!K14 -> 21.79488669 | L14: =[3]cerNAind!L14 -> 22.38511391 | M14: =[3]cerNAind!M14 -> 22.05376435 | N14: =[3]cerNAind!N14 -> 22.76486406 | O14: =[3]cerNAind!O14 -> 21.74669366 | P14: =[3]cerNAind!P14 -> 21.62070492 | Q14: =[3]cerNAind!Q14 -> 21.46111051
A15: M | B15: Education | C15: =[3]cerNAind!C15 -> 14.44742292 | D15: =[3]cerNAind!D15 -> 13.02967998 | E15: =[3]cerNAind!E15 -> 13.45680906 | F15: =[3]cerNAind!F15 -> 13.63428138 | G15: =[3]cerNAind!G15 -> 15.26500567 | H15: =[3]cerNAind!H15 -> 17.42580488 | I15: =[3]cerNAind!I15 -> 17.47268014 | J15: =[3]cerNAind!J15 -> 16.99935368 | K15: =[3]cerNAind!K15 -> 18.26333788 | L15: =[3]cerNAind!L15 -> 18.51162477 | M15: =[3]cerNAind!M15 -> 19.77127997 | N15: =[3]cerNAind!N15 -> 19.54353952 | O15: =[3]cerNAind!O15 -> 19.97429562 | P15: =[3]cerNAind!P15 -> 21.10645542 | Q15: =[3]cerNAind!Q15 -> 22.04849256
A16: N | B16: Health and Social Work | C16: =[3]cerNAind!C16 -> 7.844200257 | D16: =[3]cerNAind!D16 -> 7.347254583 | E16: =[3]cerNAind!E16 -> 6.739894094 | F16: =[3]cerNAind!F16 -> 6.592565011 | G16: =[3]cerNAind!G16 -> 6.508649371 | H16: =[3]cerNAind!H16 -> 6.829702047 | I16: =[3]cerNAind!I16 -> 7.63941145 | J16: =[3]cerNAind!J16 -> 8.386016368 | K16: =[3]cerNAind!K16 -> 9.189563485 | L16: =[3]cerNAind!L16 -> 9.596958162 | M16: =[3]cerNAind!M16 -> 9.641082744 | N16: =[3]cerNAind!N16 -> 9.339350047 | O16: =[3]cerNAind!O16 -> 8.902108184 | P16: =[3]cerNAind!P16 -> 9.47465751 | Q16: =[3]cerNAind!Q16 -> 9.740744205
A17: O | B17: Other Community, Social, Personal Services | C17: =[3]cerNAind!C17 -> 0.3712416475 | D17: =[3]cerNAind!D17 -> 0.5182160906 | E17: =[3]cerNAind!E17 -> 0.5778308425 | F17: =[3]cerNAind!F17 -> 0.7043434344 | G17: =[3]cerNAind!G17 -> 0.7775691318 | H17: =[3]cerNAind!H17 -> 0.6606049591 | I17: =[3]cerNAind!I17 -> 0.6204650879 | J17: =[3]cerNAind!J17 -> 0.6391966482 | K17: =[3]cerNAind!K17 -> 0.6328562139 | L17: =[3]cerNAind!L17 -> 0.6335623672 | M17: =[3]cerNAind!M17 -> 0.6906132865 | N17: =[3]cerNAind!N17 -> 0.9667720674 | O17: =[3]cerNAind!O17 -> 1.06006885 | P17: =[3]cerNAind!P17 -> 1.209078678 | Q17: =[3]cerNAind!Q17 -> 1.349930583
B18: less intermediate FISIM | C18: =[3]cerNAind!C18 -> -2.404190907 | D18: =[3]cerNAind!D18 -> -2.465682604 | E18: =[3]cerNAind!E18 -> -2.551250317 | F18: =[3]cerNAind!F18 -> -2.632552194 | G18: =[3]cerNAind!G18 -> -2.721149714 | H18: =[3]cerNAind!H18 -> -2.794643215 | I18: =[3]cerNAind!I18 -> -2.730606683 | J18: =[3]cerNAind!J18 -> -2.839350559 | K18: =[3]cerNAind!K18 -> -2.810274225 | L18: =[3]cerNAind!L18 -> -2.69354486 | M18: =[3]cerNAind!M18 -> -3.009085086 | N18: =[3]cerNAind!N18 -> -3.333436372 | O18: =[3]cerNAind!O18 -> -3.5742414 | P18: =[3]cerNAind!P18 -> -3.678789888 | Q18: =[3]cerNAind!Q18 -> -3.534505512
B19: GDP at basic prices | C19: =[3]cerNAind!C19 -> 111.7844172 | D19: =[3]cerNAind!D19 -> 107.7416584 | E19: =[3]cerNAind!E19 -> 104.3985134 | F19: =[3]cerNAind!F19 -> 109.5633715 | G19: =[3]cerNAind!G19 -> 116.6028204 | H19: =[3]cerNAind!H19 -> 119.6263785 | I19: =[3]cerNAind!I19 -> 119.9496179 | J19: =[3]cerNAind!J19 -> 120.2242051 | K19: =[3]cerNAind!K19 -> 122.2938438 | L19: =[3]cerNAind!L19 -> 124.8704775 | M19: =[3]cerNAind!M19 -> 129.8248007 | N19: =[3]cerNAind!N19 -> 127.3331411 | O19: =[3]cerNAind!O19 -> 126.8613237 | P19: =[3]cerNAind!P19 -> 132.3760644 | Q19: =[3]cerNAind!Q19 -> 133.3335464
B20: Taxes on products | C20: =[3]cerNAind!C20 -> 12.20270028 | D20: =[3]cerNAind!D20 -> 12.51019173 | E20: =[3]cerNAind!E20 -> 12.66054994 | F20: =[3]cerNAind!F20 -> 14.28099325 | G20: =[3]cerNAind!G20 -> 14.0687116 | H20: =[3]cerNAind!H20 -> 14.09569496 | I20: =[3]cerNAind!I20 -> 14.07262586 | J20: =[3]cerNAind!J20 -> 14.0094516 | K20: =[3]cerNAind!K20 -> 15.34022367 | L20: =[3]cerNAind!L20 -> 15.18397145 | M20: =[3]cerNAind!M20 -> 16.41160688 | N20: =[3]cerNAind!N20 -> 15.88788438 | O20: =[3]cerNAind!O20 -> 14.21230178 | P20: =[3]cerNAind!P20 -> 15.84434822 | Q20: =[3]cerNAind!Q20 -> 15.44779143
B21: less subsidies | C21: =[3]cerNAind!C21 -> -3.403005903 | D21: =[3]cerNAind!D21 -> -3.121640962 | E21: =[3]cerNAind!E21 -> -2.712302036 | F21: =[3]cerNAind!F21 -> -2.734777791 | G21: =[3]cerNAind!G21 -> -3.065743266 | H21: =[3]cerNAind!H21 -> -2.789620339 | I21: =[3]cerNAind!I21 -> -2.838107599 | J21: =[3]cerNAind!J21 -> -3.084976 | K21: =[3]cerNAind!K21 -> -3.052094893 | L21: =[3]cerNAind!L21 -> -2.959692829 | M21: =[3]cerNAind!M21 -> -4.752683526 | N21: =[3]cerNAind!N21 -> -4.400871178 | O21: =[3]cerNAind!O21 -> -4.30256998 | P21: =[3]cerNAind!P21 -> -3.799244947 | Q21: =[3]cerNAind!Q21 -> -3.191682948
B22: GDP at purchasers prices | C22: =[3]cerNAind!C22 -> 120.5841116 | D22: =[3]cerNAind!D22 -> 117.1302092 | E22: =[3]cerNAind!E22 -> 114.3467613 | F22: =[3]cerNAind!F22 -> 121.1095869 | G22: =[3]cerNAind!G22 -> 127.6057887 | H22: =[3]cerNAind!H22 -> 130.9324532 | I22: =[3]cerNAind!I22 -> 131.1841362 | J22: =[3]cerNAind!J22 -> 131.1486807 | K22: =[3]cerNAind!K22 -> 134.5819726 | L22: =[3]cerNAind!L22 -> 137.0947561 | M22: =[3]cerNAind!M22 -> 141.483724 | N22: =[3]cerNAind!N22 -> 138.8201543 | O22: =[3]cerNAind!O22 -> 136.7710555 | P22: =[3]cerNAind!P22 -> 144.4211677 | Q22: =[3]cerNAind!Q22 -> 145.5896549
A23: memo: GDP excluding offshore fishing vessels | C23: =[3]cerNAind!C23 -> 120.5841116 | D23: =[3]cerNAind!D23 -> 117.1302092 | E23: =[3]cerNAind!E23 -> 114.3467613 | F23: =[3]cerNAind!F23 -> 121.1095869 | G23: =[3]cerNAind!G23 -> 127.6057887 | H23: =[3]cerNAind!H23 -> 130.9324532 | I23: =[3]cerNAind!I23 -> 131.1841362 | J23: =[3]cerNAind!J23 -> 131.1486807 | K23: =[3]cerNAind!K23 -> 134.5819726 | L23: =[3]cerNAind!L23 -> 137.0947561 | M23: =[3]cerNAind!M23 -> 141.483724 | N23: =[3]cerNAind!N23 -> 138.8201543 | O23: =[3]cerNAind!O23 -> 135.9069653 | P23: =[3]cerNAind!P23 -> 140.7874127 | Q23: =[3]cerNAind!Q23 -> 140.4006236
A25: Table 2d RMI Constant price GDP by industry, annual % growth, FY2004-FY2011
C26: =C2 -> FY1997 | D26: =D2 -> FY1998 | E26: FY1999 | F26: FY2000 | G26: FY2001 | H26: FY2002 | I26: FY2003 | J26: FY2004 | K26: FY2005 | L26: FY2006 | M26: FY2007 | N26: FY2008 | O26: FY2009 | P26: FY2010 | Q26: =Q2 -> FY2011
A27: A | B27: Agriculture, Hunting and Forestry | D27: =IF(C3>0.1,D3/C3-1,"") -> -0.0954837246 | E27: =IF(D3>0.1,E3/D3-1,"") -> -0.05178104722 | F27: -0.02554888379 | G27: 0.09881029696 | H27: -0.1628232105 | I27: 0.08408507609 | J27: 0.04347808027 | K27: 0.01157933065 | L27: -0.008975559919 | M27: 0.09675929631 | N27: 0.07060756415 | O27: -0.03387059404 | P27: =IF(O3>0.1,P3/O3-1,"") -> -0.05680682699 | Q27: -0.07964934839
A28: B | B28: Fisheries (1) | D28: =IF(C4>0.1,D4/C4-1,"") -> 0.01509926216 | E28: -0.03156247229 | F28: 0.42032054 | G28: 0.0234544515 | H28: 0.07303156199 | I28: 0.1182579464 | J28: -0.1054695439 | K28: -0.1435995328 | L28: 0.04613097852 | M28: 0.07621903294 | N28: -0.06618234476 | O28: 0.2271391046 | P28: 0.3905989895 | Q28: 0.09002750494
A29: C | B29: Mining and Quarrying
A30: D | B30: Manufacturing | D30: -0.1003377046 | E30: -0.1590220697 | F30: 0.1138068392 | G30: 0.1302986411 | H30: -0.2468160158 | I30: 0.2039149453 | J30: 0.08923996782 | K30: 0.01059169557 | L30: -0.01702290645 | M30: 0.1795427949 | N30: 0.07769203103 | O30: -0.1027362286 | P30: -0.1143335063 | Q30: -0.1002638994
A31: E | B31: Electricity, Gas and Water Supply | D31: -0.02002713389 | E31: 0.07921668915 | F31: 0.006101228206 | G31: 0.05387819637 | H31: 0.01642460275 | I31: -0.01701989168 | J31: 0.05054412599 | K31: 0.204310424 | L31: -0.1460694243 | M31: 0.09561398076 | N31: 0.07518863664 | O31: -0.004714474209 | P31: -0.01129133054 | Q31: -0.00490809635
A32: F | B32: Construction | D32: 0.2520451394 | E32: -0.01322831379 | F32: -0.2516614475 | G32: 0.1988999249 | H32: 0.01646634612 | I32: -0.0885621462 | J32: -0.1058803272 | K32: 0.01956303815 | L32: 0.4698160597 | M32: -0.1209434074 | N32: 0.00259357151 | O32: -0.07668284821 | P32: -0.05007227858 | Q32: -0.06405778217
A33: G | B33: Wholesale and Retail Trade and Repairs | D33: -0.07151639966 | E33: -0.03857258628 | F33: 0.1972291307 | G33: 0.07592347106 | H33: 0.05768559067 | I33: -0.05980677373 | J33: 0.05639720238 | K33: 0.01416784458 | L33: -0.08687333976 | M33: 0.03368265195 | N33: -0.009518961321 | O33: -0.03345209784 | P33: 0.05334056803 | Q33: 0.03025417321
A34: H | B34: Hotels and Restaurants | D34: -0.1215985786 | E34: -0.04598749599 | F34: 0.2067837914 | G34: 0.140432778 | H34: -0.04085415001 | I34: -0.1332970829 | J34: -0.1123504378 | K34: 0.05787268423 | L34: -0.2090321232 | M34: 0.2439869568 | N34: -0.07751557655 | O34: -0.01915246569 | P34: -0.09170915084 | Q34: -0.004708901175
A35: I | B35: Transport, Storage and Communications | D35: -0.0443909559 | E35: -0.06513156019 | F35: 0.09140510978 | G35: 0.06258920533 | H35: 0.160939456 | I35: 0.02393854156 | J35: -0.02004174302 | K35: -0.05725577938 | L35: 0.021277292 | M35: 0.135745383 | N35: -0.2281934126 | O35: 0.04835670377 | P35: 0.04129768879 | Q35: -0.07823071933
A36: J | B36: Financial Intermediation | D36: 0.05730094818 | E36: 0.03879692696 | F36: 0.02105143806 | G36: 0.1044046206 | H36: -0.01184632138 | I36: -0.03047173986 | J36: 0.07166461681 | K36: 0.006338988126 | L36: 0.02728826309 | M36: 0.09571585799 | N36: 0.06605666771 | O36: 0.03177387363 | P36: 0.04947274293 | Q36: -0.01996845683
A37: K | B37: Real Estate, Renting, Business Activities | D37: -0.09610929752 | E37: -0.03934264404 | F37: 0.03573269745 | G37: 0.00847382071 | H37: 0.001783782511 | I37: -0.002793223784 | J37: -0.0362146045 | K37: 0.008123602404 | L37: 0.0105971671 | M37: 0.01407638828 | N37: 0.0139975021 | O37: 0.0324484339 | P37: 0.01134237089 | Q37: 0.02009777921
A38: L | B38: Public Administration | D38: -0.01990482967 | E38: -0.02868708021 | F38: 0.006724387275 | G38: -0.008925699945 | H38: -0.04144808447 | I38: 0.008760838289 | J38: 0.05120430656 | K38: 0.02903930396 | L38: 0.02708099499 | M38: -0.01480222784 | N38: 0.03224391531 | O38: -0.04472552084 | P38: -0.005793466495 | Q38: -0.007381554598
A39: M | B39: Education | D39: -0.09813119961 | E39: 0.0327812416 | F39: 0.01318829125 | G39: 0.1196047115 | H39: 0.1415524666 | I39: 0.002689991083 | J39: -0.02708951653 | K39: 0.07435483875 | L39: 0.0135948251 | M39: 0.06804671256 | N39: -0.01151875111 | O39: 0.02204084357 | P39: 0.05668083712 | Q39: 0.044632655
A40: N | B40: Health and Social Work | D40: -0.06335198721 | E40: -0.08266495766 | F40: -0.02185925792 | G40: -0.01272883 | H40: 0.04932708119 | I40: 0.118557061 | J40: 0.09773068552 | K40: 0.09581988425 | L40: 0.04433232084 | M40: 0.004597767399 | N40: -0.03129655705 | O40: -0.04681716197 | P40: 0.06431615015 | Q40: 0.02808404366
A41: O | B41: Other Community, Social, Personal Services | D41: 0.3958996628 | E41: 0.1150384037 | F41: 0.218943993 | G41: 0.1039630581 | H41: -0.15042286 | I41: -0.06076229167 | J41: 0.03018954764 | K41: -0.009919379787 | L41: 0.001115819416 | M41: 0.09004783477 | N41: 0.3998747002 | O41: 0.09650339096 | P41: 0.1405661793 | Q41: 0.1164952351
B42: less intermediate FISIM
B43: GDP at basic prices | D43: -0.03616567365 | E43: -0.03102927023 | F43: 0.04947252489 | G43: 0.06425002076 | H43: 0.02593040351 | I43: 0.002702074672 | J43: 0.002289187742 | K43: 0.01721482499 | L43: 0.02106920168 | M43: 0.03967569685 | N43: -0.01919247774 | O43: -0.003705377738 | P43: 0.04347062285 | Q43: 0.007233044793
B44: Taxes on products | D44: =IF(C20>0.1,D20/C20-1,"") -> 0.02519863959 | E44: 0.01201885786 | F44: 0.1279915418 | G44: -0.01486462818 | H44: 0.001917969529 | I44: -0.001636605815 | J44: -0.004489159179 | K44: 0.09499101809 | L44: -0.01018578551 | M44: 0.08085074673 | N44: -0.03191171332 | O44: -0.105462915 | P44: 0.1148333648 | Q44: -0.02502828018
B45: less subsidies
B46: GDP at purchasers prices | D46: -0.02864309666 | E46: -0.02376370633 | F46: 0.05914313207 | G46: 0.05363903822 | H46: 0.02606985548 | I46: 0.001922235815 | J46: -0.0002702724906 | K46: 0.02617862269 | L46: 0.01867102589 | M46: 0.03201411978 | N46: -0.01882597989 | O46: -0.01476081625 | P46: 0.05593370759 | Q46: 0.008090830693
A47: memo: GDP excluding offshore fishing vessels | D47: -0.02864309666 | E47: -0.02376370633 | F47: 0.05914313207 | G47: 0.05363903822 | H47: 0.02606985548 | I47: 0.001922235815 | J47: -0.0002702724906 | K47: 0.02617862269 | L47: 0.01867102589 | M47: 0.03201411978 | N47: -0.01882597989 | O47: -0.0209853463 | P47: 0.03591020824 | Q47: -0.002747327122
A48: 1) "Fisheries" includes fish processing and other vessel support services.
A49: Source: EPPSO estimates
A51: Table 2e: RMI Constant price GDP by industry, contribution to change, FY2004-FY2011
C52: =C2 -> FY1997 | D52: =D2 -> FY1998 | E52: FY1999 | F52: FY2000 | G52: FY2001 | H52: FY2002 | I52: FY2003 | J52: FY2004 | K52: FY2005 | L52: FY2006 | M52: FY2007 | N52: FY2008 | O52: FY2009 | P52: FY2010 | Q52: =Q2 -> FY2011
A53: A | B53: Agriculture, Hunting and Forestry | D53: =[3]cerNAind!D53 -> -0.003569066015 | E53: =[3]cerNAind!E53 -> -0.001802327103 | F53: =[3]cerNAind!F53 -> -0.0008637506701 | G53: =[3]cerNAind!G53 -> 0.003073435292 | H53: =[3]cerNAind!H53 -> -0.005281643092 | I53: =[3]cerNAind!I53 -> 0.002225419599 | J53: =[3]cerNAind!J53 -> 0.001245066929 | K53: =[3]cerNAind!K53 -> 0.0003461039195 | L53: =[3]cerNAind!L53 -> -0.0002644609759 | M53: =[3]cerNAind!M53 -> 0.002773595718 | N53: =[3]cerNAind!N53 -> 0.00215093542 | O53: =[3]cerNAind!O53 -> -0.001125856975 | P53: =[3]cerNAind!P53 -> -0.001851631525 | Q53: =[3]cerNAind!Q53 -> -0.002318997372
A54: B | B54: Fisheries | D54: =[3]cerNAind!D54 -> 0.0006713485595 | E54: =[3]cerNAind!E54 -> -0.001466537022 | F54: =[3]cerNAind!F54 -> 0.01937399981 | G54: =[3]cerNAind!G54 -> 0.001449758528 | H54: =[3]cerNAind!H54 -> 0.004384879331 | I54: =[3]cerNAind!I54 -> 0.007425282093 | J54: =[3]cerNAind!J54 -> -0.00739124623 | K54: =[3]cerNAind!K54 -> -0.009004428515 | L54: =[3]cerNAind!L54 -> 0.002414069266 | M54: =[3]cerNAind!M54 -> 0.004096119361 | N54: =[3]cerNAind!N54 -> -0.003709081258 | O54: =[3]cerNAind!O54 -> 0.01211524353 | P54: =[3]cerNAind!P54 -> 0.02594917017 | Q54: =[3]cerNAind!Q54 -> 0.007876491862
A55: C | B55: Mining and Quarrying | D55: =[3]cerNAind!D55 -> 0 | E55: =[3]cerNAind!E55 -> 0 | F55: =[3]cerNAind!F55 -> 0 | G55: =[3]cerNAind!G55 -> 0 | H55: =[3]cerNAind!H55 -> 0 | I55: =[3]cerNAind!I55 -> 0 | J55: =[3]cerNAind!J55 -> 0 | K55: =[3]cerNAind!K55 -> 0 | L55: =[3]cerNAind!L55 -> 0 | M55: =[3]cerNAind!M55 -> 0 | N55: =[3]cerNAind!N55 -> 0 | O55: =[3]cerNAind!O55 -> 0 | P55: =[3]cerNAind!P55 -> 0 | Q55: =[3]cerNAind!Q55 -> 0
A56: D | B56: Manufacturing | D56: =[3]cerNAind!D56 -> -0.003232354688 | E56: =[3]cerNAind!E56 -> -0.004744745678 | F56: =[3]cerNAind!F56 -> 0.002925186417 | G56: =[3]cerNAind!G56 -> 0.003521926585 | H56: =[3]cerNAind!H56 -> -0.007156737729 | I56: =[3]cerNAind!I56 -> 0.004340252237 | J56: =[3]cerNAind!J56 -> 0.002282375559 | K56: =[3]cerNAind!K56 -> 0.0002951441333 | L56: =[3]cerNAind!L56 -> -0.0004671486948 | M56: =[3]cerNAind!M56 -> 0.004754434324 | N56: =[3]cerNAind!N56 -> 0.002351448162 | O56: =[3]cerNAind!O56 -> -0.003415318291 | P56: =[3]cerNAind!P56 -> -0.00346146181 | Q56: =[3]cerNAind!Q56 -> -0.002546033855
A57: E | B57: Electricity, Gas and Water Supply | D57: =[3]cerNAind!D57 -> -0.0002737510357 | E57: =[3]cerNAind!E57 -> 0.001092418074 | F57: =[3]cerNAind!F57 -> 9.301289506e-05 | G57: =[3]cerNAind!G57 -> 0.0007802359671 | H57: =[3]cerNAind!H57 -> 0.0002379065276 | I57: =[3]cerNAind!I57 -> -0.0002442117274 | J57: =[3]cerNAind!J57 -> 0.0007115265815 | K57: =[3]cerNAind!K57 -> 0.003022335384 | L57: =[3]cerNAind!L57 -> -0.002535869676 | M57: =[3]cerNAind!M57 -> 0.001391482097 | N57: =[3]cerNAind!N57 -> 0.001161663542 | O57: =[3]cerNAind!O57 -> -7.981785257e-05 | P57: =[3]cerNAind!P57 -> -0.0001931158449 | Q57: =[3]cerNAind!Q57 -> -7.859909687e-05
A58: F | B58: Construction | D58: =[3]cerNAind!D58 -> 0.0160958761 | E58: =[3]cerNAind!E58 -> -0.001088884805 | F58: =[3]cerNAind!F58 -> -0.02093899675 | G58: =[3]cerNAind!G58 -> 0.01169276614 | H58: =[3]cerNAind!H58 -> 0.001101465666 | I58: =[3]cerNAind!I58 -> -0.005868646255 | J58: =[3]cerNAind!J58 -> -0.006382607248 | K58: =[3]cerNAind!K58 -> 0.001054707884 | L58: =[3]cerNAind!L58 -> 0.02516603917 | M58: =[3]cerNAind!M58 -> -0.009347559639 | N58: =[3]cerNAind!N58 -> 0.0001707440064 | O58: =[3]cerNAind!O58 -> -0.005158510889 | P58: =[3]cerNAind!P58 -> -0.003156695553 | Q58: =[3]cerNAind!Q58 -> -0.003632964466
A59: G | B59: Wholesale and Retail Trade and Repairs | D59: =[3]cerNAind!D59 -> -0.009407084601 | E59: =[3]cerNAind!E59 -> -0.004849797133 | F59: =[3]cerNAind!F59 -> 0.02442178625 | G59: =[3]cerNAind!G59 -> 0.010626862 | H59: =[3]cerNAind!H59 -> 0.008244908846 | I59: =[3]cerNAind!I59 -> -0.008811473686 | J59: =[3]cerNAind!J59 -> 0.007797202933 | K59: =[3]cerNAind!K59 -> 0.002069806262 | L59: =[3]cerNAind!L59 -> -0.01254293882 | M59: =[3]cerNAind!M59 -> 0.004359293731 | N59: =[3]cerNAind!N59 -> -0.001233959784 | O59: =[3]cerNAind!O59 -> -0.004377588428 | P59: =[3]cerNAind!P59 -> 0.006847797552 | Q59: =[3]cerNAind!Q59 -> 0.003874455902
A60: H | B60: Hotels and Restaurants | D60: =[3]cerNAind!D60 -> -0.004737841476 | E60: =[3]cerNAind!E60 -> -0.001620339387 | F60: =[3]cerNAind!F60 -> 0.007120030229 | G60: =[3]cerNAind!G60 -> 0.005509455055 | H60: =[3]cerNAind!H60 -> -0.001734819019 | I60: =[3]cerNAind!I60 -> -0.005291104805 | J60: =[3]cerNAind!J60 -> -0.003857773549 | K60: =[3]cerNAind!K60 -> 0.001764389745 | L60: =[3]cerNAind!L60 -> -0.006569682337 | M60: =[3]cerNAind!M60 -> 0.005954192091 | N60: =[3]cerNAind!N60 -> -0.002280212911 | O60: =[3]cerNAind!O60 -> -0.0005296928531 | P60: =[3]cerNAind!P60 -> -0.002525061274 | Q60: =[3]cerNAind!Q60 -> -0.0001115236848
A61: I | B61: Transport, Storage and Communications | D61: =[3]cerNAind!D61 -> -0.003695717337 | E61: =[3]cerNAind!E61 -> -0.005334542163 | F61: =[3]cerNAind!F61 -> 0.007169216478 | G61: =[3]cerNAind!G61 -> 0.005058619171 | H61: =[3]cerNAind!H61 -> 0.01311803012 | I61: =[3]cerNAind!I61 -> 0.002207681534 | J61: =[3]cerNAind!J61 -> -0.001888922334 | K61: =[3]cerNAind!K61 -> -0.005289600995 | L61: =[3]cerNAind!L61 -> 0.001805888166 | M61: =[3]cerNAind!M61 -> 0.01155072614 | N61: =[3]cerNAind!N61 -> -0.02136892448 | O61: =[3]cerNAind!O61 -> 0.003562039172 | P61: =[3]cerNAind!P61 -> 0.003236943728 | Q61: =[3]cerNAind!Q61 -> -0.006046791262
A62: J | B62: Financial Intermediation | D62: =[3]cerNAind!D62 -> 0.002269305534 | E62: =[3]cerNAind!E62 -> 0.00167243128 | F62: =[3]cerNAind!F62 -> 0.0009656248414 | G62: =[3]cerNAind!G62 -> 0.004616781782 | H62: =[3]cerNAind!H62 -> -0.0005490848998 | I62: =[3]cerNAind!I62 -> -0.001360193843 | J62: =[3]cerNAind!J62 -> 0.003095528403 | K62: =[3]cerNAind!K62 -> 0.0002935122516 | L62: =[3]cerNAind!L62 -> 0.001239091919 | M62: =[3]cerNAind!M62 -> 0.004382984154 | N62: =[3]cerNAind!N62 -> 0.00321155211 | O62: =[3]cerNAind!O62 -> 0.00167842804 | P62: =[3]cerNAind!P62 -> 0.00273678955 | Q62: =[3]cerNAind!Q62 -> -0.00109787887
A63: K | B63: Real Estate, Renting, Business Activities | D63: =[3]cerNAind!D63 -> -0.008856407313 | E63: =[3]cerNAind!E63 -> -0.003373593961 | F63: =[3]cerNAind!F63 -> 0.003015147985 | G63: =[3]cerNAind!G63 -> 0.0006992220795 | H63: =[3]cerNAind!H63 -> 0.0001408803883 | I63: =[3]cerNAind!I63 -> -0.0002153830078 | J63: =[3]cerNAind!J63 -> -0.002779333478 | K63: =[3]cerNAind!K63 -> 0.0006010399037 | L63: =[3]cerNAind!L63 -> 0.0007702562818 | M63: =[3]cerNAind!M63 -> 0.001015034554 | N63: =[3]cerNAind!N63 -> 0.0009918024159 | O63: =[3]cerNAind!O63 -> 0.002376069864 | P63: =[3]cerNAind!P63 -> 0.0008703541489 | Q63: =[3]cerNAind!Q63 -> 0.001477072387
A64: L | B64: Public Administration | D64: =[3]cerNAind!D64 -> -0.003621227646 | E64: =[3]cerNAind!E64 -> -0.005265906305 | F64: =[3]cerNAind!F64 -> 0.001228128228 | G64: =[3]cerNAind!G64 -> -0.001549491555 | H64: =[3]cerNAind!H64 -> -0.00676808425 | I64: =[3]cerNAind!I64 -> 0.001336428309 | J64: =[3]cerNAind!J64 -> 0.007864311192 | K64: =[3]cerNAind!K64 -> 0.004689698566 | L64: =[3]cerNAind!L64 -> 0.004385633573 | M64: =[3]cerNAind!M64 -> -0.002416938224 | N64: =[3]cerNAind!N64 -> 0.005026017763 | O64: =[3]cerNAind!O64 -> -0.007334456639 | P64: =[3]cerNAind!P64 -> -0.0009211652324 | Q64: =[3]cerNAind!Q64 -> -0.00110506248
A65: M | B65: Education | D65: =[3]cerNAind!D65 -> -0.01175729475 | E65: =[3]cerNAind!E65 -> 0.003646617642 | F65: =[3]cerNAind!F65 -> 0.001552053728 | G65: =[3]cerNAind!G65 -> 0.01346486544 | H65: =[3]cerNAind!H65 -> 0.01693339485 | I65: =[3]cerNAind!I65 -> 0.0003580110095 | J65: =[3]cerNAind!J65 -> -0.003608107436 | K65: =[3]cerNAind!K65 -> 0.009637795779 | L65: =[3]cerNAind!L65 -> 0.001844874759 | M65: =[3]cerNAind!M65 -> 0.009188208547 | N65: =[3]cerNAind!N65 -> -0.001609658318 | O65: =[3]cerNAind!O65 -> 0.003102979532 | P65: =[3]cerNAind!P65 -> 0.008277773339 | Q65: =[3]cerNAind!Q65 -> 0.006522846739
A66: N | B66: Health and Social Work | D66: =[3]cerNAind!D66 -> -0.00412115384 | E66: =[3]cerNAind!E66 -> -0.005185344524 | F66: =[3]cerNAind!F66 -> -0.001288441244 | G66: =[3]cerNAind!G66 -> -0.0006928901453 | H66: =[3]cerNAind!H66 -> 0.002515972663 | I66: =[3]cerNAind!I66 -> 0.006184176519 | J66: =[3]cerNAind!J66 -> 0.005691274414 | K66: =[3]cerNAind!K66 -> 0.006126993525 | L66: =[3]cerNAind!L66 -> 0.003027111797 | M66: =[3]cerNAind!M66 -> 0.0003218546255 | N66: =[3]cerNAind!N66 -> -0.00213263185 | O66: =[3]cerNAind!O66 -> -0.003149700172 | P66: =[3]cerNAind!P66 -> 0.00418618782 | Q66: =[3]cerNAind!Q66 -> 0.001842435561
A67: O | B67: Other Community, Social, Personal Services | D67: =[3]cerNAind!D67 -> 0.001218854136 | E67: =[3]cerNAind!E67 -> 0.0005089613707 | F67: =[3]cerNAind!F67 -> 0.001106394186 | G67: =[3]cerNAind!G67 -> 0.0006046234593 | H67: =[3]cerNAind!H67 -> -0.0009166055384 | I67: =[3]cerNAind!I67 -> -0.0003065693053 | J67: =[3]cerNAind!J67 -> 0.0001427883041 | K67: =[3]cerNAind!K67 -> -4.834539148e-05 | L67: =[3]cerNAind!L67 -> 5.247012192e-06 | M67: =[3]cerNAind!M67 -> 0.0004161422435 | N67: =[3]cerNAind!N67 -> 0.001951876676 | O67: =[3]cerNAind!O67 -> 0.0006720694361 | P67: =[3]cerNAind!P67 -> 0.001089483645 | Q67: =[3]cerNAind!Q67 -> 0.0009752857365
B68: less intermediate FISIM | D68: =[3]cerNAind!D68 -> -0.0005099485865 | E68: =[3]cerNAind!E68 -> -0.0007305349632 | F68: =[3]cerNAind!F68 -> -0.0007110116237 | G68: =[3]cerNAind!G68 -> -0.0007315483669 | H68: =[3]cerNAind!H68 -> -0.0005759417448 | I68: =[3]cerNAind!I68 -> 0.000489080672 | J68: =[3]cerNAind!J68 -> -0.0008289407474 | K68: =[3]cerNAind!K68 -> 0.0002217051176 | L68: =[3]cerNAind!L68 -> 0.0008673477029 | M68: =[3]cerNAind!M68 -> -0.00230162141 | N68: =[3]cerNAind!N68 -> -0.00229249893 | O68: =[3]cerNAind!O68 -> -0.001734654665 | P68: =[3]cerNAind!P68 -> -0.0007644050714 | Q68: =[3]cerNAind!Q68 -> 0.0009990528299
B69: GDP at basic prices | D69: =[3]cerNAind!D69 -> -0.03352646297 | E69: =[3]cerNAind!E69 -> -0.02854212468 | F69: =[3]cerNAind!F69 -> 0.04516838076 | G69: =[3]cerNAind!G69 -> 0.05812462143 | H69: =[3]cerNAind!H69 -> 0.02369452211 | I69: =[3]cerNAind!I69 -> 0.002468749342 | J69: =[3]cerNAind!J69 -> 0.002093143295 | K69: =[3]cerNAind!K69 -> 0.01578085757 | L69: =[3]cerNAind!L69 -> 0.01914545915 | M69: =[3]cerNAind!M69 -> 0.03613794832 | N69: =[3]cerNAind!N69 -> -0.01761092743 | O69: =[3]cerNAind!O69 -> -0.003398767194 | P69: =[3]cerNAind!P69 -> 0.04032096364 | Q69: =[3]cerNAind!Q69 -> 0.006629789932
B70: Taxes on products | D70: =[3]cerNAind!D70 -> 0.00255001627 | E70: =[3]cerNAind!E70 -> 0.001283684347 | F70: =[3]cerNAind!F70 -> 0.01417130918 | G70: =[3]cerNAind!G70 -> -0.001752806365 | H70: =[3]cerNAind!H70 -> 0.0002114587467 | I70: =[3]cerNAind!I70 -> -0.0001761908204 | J70: =[3]cerNAind!J70 -> -0.0004815693375 | K70: =[3]cerNAind!K70 -> 0.01014704885 | L70: =[3]cerNAind!L70 -> -0.001161019006 | M70: =[3]cerNAind!M70 -> 0.008954649069 | N70: =[3]cerNAind!N70 -> -0.003701644818 | O70: =[3]cerNAind!O70 -> -0.01207016812 | P70: =[3]cerNAind!P70 -> 0.01193268875 | Q70: =[3]cerNAind!Q70 -> -0.00274583562
B71: less subsidies | D71: =[3]cerNAind!D71 -> 0.002333350034 | E71: =[3]cerNAind!E71 -> 0.003494734005 | F71: =[3]cerNAind!F71 -> -0.0001965578594 | G71: =[3]cerNAind!G71 -> -0.002732776848 | H71: =[3]cerNAind!H71 -> 0.00216387462 | I71: =[3]cerNAind!I71 -> -0.000370322707 | J71: =[3]cerNAind!J71 -> -0.001881846448 | K71: =[3]cerNAind!K71 -> 0.0002507162638 | L71: =[3]cerNAind!L71 -> 0.0006865857437 | M71: =[3]cerNAind!M71 -> -0.01307847761 | N71: =[3]cerNAind!N71 -> 0.002486592366 | O71: =[3]cerNAind!O71 -> 0.0007081190686 | P71: =[3]cerNAind!P71 -> 0.003680055193 | Q71: =[3]cerNAind!Q71 -> 0.004206876381
B72: GDP at purchasers prices | D72: =[3]cerNAind!D72 -> -0.02864309666 | E72: =[3]cerNAind!E72 -> -0.02376370633 | F72: =[3]cerNAind!F72 -> 0.05914313207 | G72: =[3]cerNAind!G72 -> 0.05363903822 | H72: =[3]cerNAind!H72 -> 0.02606985548 | I72: =[3]cerNAind!I72 -> 0.001922235815 | J72: =[3]cerNAind!J72 -> -0.0002702724906 | K72: =[3]cerNAind!K72 -> 0.02617862269 | L72: =[3]cerNAind!L72 -> 0.01867102589 | M72: =[3]cerNAind!M72 -> 0.03201411978 | N72: =[3]cerNAind!N72 -> -0.01882597989 | O72: =[3]cerNAind!O72 -> -0.01476081625 | P72: =[3]cerNAind!P72 -> 0.05593370759 | Q72: =[3]cerNAind!Q72 -> 0.008090830693
B73: memo: Excluding offshore fishing vessels | D73: =[3]cerNAind!D73 -> -0.02864309666 | E73: =[3]cerNAind!E73 -> -0.02376370633 | F73: =[3]cerNAind!F73 -> 0.05914313207 | G73: =[3]cerNAind!G73 -> 0.05363903822 | H73: =[3]cerNAind!H73 -> 0.02606985548 | I73: =[3]cerNAind!I73 -> 0.001922235815 | J73: =[3]cerNAind!J73 -> -0.0002702724906 | K73: =[3]cerNAind!K73 -> 0.02617862269 | L73: =[3]cerNAind!L73 -> 0.01867102589 | M73: =[3]cerNAind!M73 -> 0.03201411978 | N73: =[3]cerNAind!N73 -> -0.01882597989 | O73: =[3]cerNAind!O73 -> -0.0209853463 | P73: =[3]cerNAind!P73 -> 0.03591020824 | Q73: =[3]cerNAind!Q73 -> -0.002747327122
A75: Table 2f RMI Current price GDP by industry, FY2004-FY2011
B76: (US$ millions) | C76: =C2 -> FY1997 | D76: =D2 -> FY1998 | E76: FY1999 | F76: FY2000 | G76: FY2001 | H76: FY2002 | I76: FY2003 | J76: FY2004 | K76: FY2005 | L76: FY2006 | M76: FY2007 | N76: FY2008 | O76: FY2009 | P76: FY2010 | Q76: =Q2 -> FY2011
A77: A | B77: Agriculture, Hunting and Forestry | C77: =[3]cerNAind!C77 -> 4.82821542 | D77: =[3]cerNAind!D77 -> 3.540729447 | E77: =[3]cerNAind!E77 -> 3.854945015 | F77: =[3]cerNAind!F77 -> 3.753595211 | G77: =[3]cerNAind!G77 -> 3.693000125 | H77: =[3]cerNAind!H77 -> 3.172758731 | I77: =[3]cerNAind!I77 -> 3.604492775 | J77: =[3]cerNAind!J77 -> 3.920008315 | K77: =[3]cerNAind!K77 -> 3.969552619 | L77: =[3]cerNAind!L77 -> 3.978344998 | M77: =[3]cerNAind!M77 -> 4.747205827 | N77: =[3]cerNAind!N77 -> 6.466512004 | O77: =[3]cerNAind!O77 -> 6.511218436 | P77: =[3]cerNAind!P77 -> 5.655608207 | Q77: =[3]cerNAind!Q77 -> 5.649670081
A78: B | B78: Fisheries (1) | C78: =[3]cerNAind!C78 -> 4.774859641 | D78: =[3]cerNAind!D78 -> 4.830099731 | E78: =[3]cerNAind!E78 -> 4.863734329 | F78: =[3]cerNAind!F78 -> 6.891541388 | G78: =[3]cerNAind!G78 -> 7.156193653 | H78: =[3]cerNAind!H78 -> 7.744326232 | I78: =[3]cerNAind!I78 -> 8.299662119 | J78: =[3]cerNAind!J78 -> 8.223696121 | K78: =[3]cerNAind!K78 -> 7.470168555 | L78: =[3]cerNAind!L78 -> 8.019585294 | M78: =[3]cerNAind!M78 -> 8.148349034 | N78: =[3]cerNAind!N78 -> 8.862612828 | O78: =[3]cerNAind!O78 -> 11.88294068 | P78: =[3]cerNAind!P78 -> 17.6705192 | Q78: =[3]cerNAind!Q78 -> 18.76679295
A79: C | B79: Mining and Quarrying | C79: =[3]cerNAind!C79 -> 0 | D79: =[3]cerNAind!D79 -> 0 | E79: =[3]cerNAind!E79 -> 0 | F79: =[3]cerNAind!F79 -> 0 | G79: =[3]cerNAind!G79 -> 0 | H79: =[3]cerNAind!H79 -> 0 | I79: =[3]cerNAind!I79 -> 0 | J79: =[3]cerNAind!J79 -> 0 | K79: =[3]cerNAind!K79 -> 0 | L79: =[3]cerNAind!L79 -> 0 | M79: =[3]cerNAind!M79 -> 0 | N79: =[3]cerNAind!N79 -> 0 | O79: =[3]cerNAind!O79 -> 0 | P79: =[3]cerNAind!P79 -> 0 | Q79: =[3]cerNAind!Q79 -> 0
A80: D | B80: Manufacturing | C80: =[3]cerNAind!C80 -> 1.284269731 | D80: =[3]cerNAind!D80 -> 1.998901005 | E80: =[3]cerNAind!E80 -> 1.97043263 | F80: =[3]cerNAind!F80 -> 1.144203188 | G80: =[3]cerNAind!G80 -> 2.039127898 | H80: =[3]cerNAind!H80 -> 2.156787426 | I80: =[3]cerNAind!I80 -> 2.324618298 | J80: =[3]cerNAind!J80 -> 3.654538923 | K80: =[3]cerNAind!K80 -> 2.776504059 | L80: =[3]cerNAind!L80 -> 2.768270065 | M80: =[3]cerNAind!M80 -> 4.069675769 | N80: =[3]cerNAind!N80 -> 4.196857248 | O80: =[3]cerNAind!O80 -> 1.049722172 | P80: =[3]cerNAind!P80 -> 2.777504868 | Q80: =[3]cerNAind!Q80 -> 4.935006688
A81: E | B81: Electricity, Gas and Water Supply | C81: =[3]cerNAind!C81 -> 2.9188 | D81: =[3]cerNAind!D81 -> 3.88 | E81: =[3]cerNAind!E81 -> 4.4048 | F81: =[3]cerNAind!F81 -> 4.0663 | G81: =[3]cerNAind!G81 -> 1.96 | H81: =[3]cerNAind!H81 -> 5.937663 | I81: =[3]cerNAind!I81 -> 3.318747 | J81: =[3]cerNAind!J81 -> 1.940064 | K81: =[3]cerNAind!K81 -> 1.586279 | L81: =[3]cerNAind!L81 -> 1.88558 | M81: =[3]cerNAind!M81 -> 4.908268 | N81: =[3]cerNAind!N81 -> 4.436976 | O81: =[3]cerNAind!O81 -> 6.406704 | P81: =[3]cerNAind!P81 -> 5.784381 | Q81: =[3]cerNAind!Q81 -> 6.87174046
A82: F | B82: Construction | C82: =[3]cerNAind!C82 -> 6.831454263 | D82: =[3]cerNAind!D82 -> 8.654235439 | E82: =[3]cerNAind!E82 -> 8.813282947 | F82: =[3]cerNAind!F82 -> 6.727133705 | G82: =[3]cerNAind!G82 -> 8.107973469 | H82: =[3]cerNAind!H82 -> 8.293702306 | I82: =[3]cerNAind!I82 -> 7.788086387 | J82: =[3]cerNAind!J82 -> 7.070657763 | K82: =[3]cerNAind!K82 -> 7.375059454 | L82: =[3]cerNAind!L82 -> 11.23333639 | M82: =[3]cerNAind!M82 -> 10.04057416 | N82: =[3]cerNAind!N82 -> 10.81729074 | O82: =[3]cerNAind!O82 -> 10.08283771 | P82: =[3]cerNAind!P82 -> 9.66509611 | Q82: =[3]cerNAind!Q82 -> 9.503032743
A83: G | B83: Wholesale and Retail Trade and Repairs | C83: =[3]cerNAind!C83 -> 14.72439071 | D83: =[3]cerNAind!D83 -> 14.10534711 | E83: =[3]cerNAind!E83 -> 13.40142637 | F83: =[3]cerNAind!F83 -> 15.87881967 | G83: =[3]cerNAind!G83 -> 17.6404586 | H83: =[3]cerNAind!H83 -> 18.91720371 | I83: =[3]cerNAind!I83 -> 17.93053854 | J83: =[3]cerNAind!J83 -> 19.15975004 | K83: =[3]cerNAind!K83 -> 20.07669861 | L83: =[3]cerNAind!L83 -> 20.01386548 | M83: =[3]cerNAind!M83 -> 20.36136822 | N83: =[3]cerNAind!N83 -> 20.90132827 | O83: =[3]cerNAind!O83 -> 21.40797582 | P83: =[3]cerNAind!P83 -> 22.35707209 | Q83: =[3]cerNAind!Q83 -> 23.6744276
A84: H | B84: Hotels and Restaurants | C84: =[3]cerNAind!C84 -> 4.092542323 | D84: =[3]cerNAind!D84 -> 4.411579441 | E84: =[3]cerNAind!E84 -> 3.748505712 | F84: =[3]cerNAind!F84 -> 4.220093638 | G84: =[3]cerNAind!G84 -> 6.222944664 | H84: =[3]cerNAind!H84 -> 4.075209913 | I84: =[3]cerNAind!I84 -> 3.703853408 | J84: =[3]cerNAind!J84 -> 3.998386985 | K84: =[3]cerNAind!K84 -> 3.491715683 | L84: =[3]cerNAind!L84 -> 2.838873338 | M84: =[3]cerNAind!M84 -> 3.274311172 | N84: =[3]cerNAind!N84 -> 2.62119557 | O84: =[3]cerNAind!O84 -> 2.685139373 | P84: =[3]cerNAind!P84 -> 2.41500276 | Q84: =[3]cerNAind!Q84 -> 2.365299334
A85: I | B85: Transport, Storage and Communications | C85: =[3]cerNAind!C85 -> 8.925111177 | D85: =[3]cerNAind!D85 -> 9.663938094 | E85: =[3]cerNAind!E85 -> 9.465164127 | F85: =[3]cerNAind!F85 -> 10.31914057 | G85: =[3]cerNAind!G85 -> 10.10754662 | H85: =[3]cerNAind!H85 -> 11.87286632 | I85: =[3]cerNAind!I85 -> 13.54126334 | J85: =[3]cerNAind!J85 -> 12.11623 | K85: =[3]cerNAind!K85 -> 12.26353864 | L85: =[3]cerNAind!L85 -> 11.74388471 | M85: =[3]cerNAind!M85 -> 13.86415641 | N85: =[3]cerNAind!N85 -> 11.11553736 | O85: =[3]cerNAind!O85 -> 11.63913302 | P85: =[3]cerNAind!P85 -> 13.59079183 | Q85: =[3]cerNAind!Q85 -> 13.25025962
A86: J | B86: Financial Intermediation | C86: =[3]cerNAind!C86 -> 4.23539962 | D86: =[3]cerNAind!D86 -> 4.542171572 | E86: =[3]cerNAind!E86 -> 4.830883032 | F86: =[3]cerNAind!F86 -> 5.317389746 | G86: =[3]cerNAind!G86 -> 5.223635855 | H86: =[3]cerNAind!H86 -> 5.806211791 | I86: =[3]cerNAind!I86 -> 5.579708886 | J86: =[3]cerNAind!J86 -> 6.072537733 | K86: =[3]cerNAind!K86 -> 6.955486658 | L86: =[3]cerNAind!L86 -> 7.937243354 | M86: =[3]cerNAind!M86 -> 8.873640245 | N86: =[3]cerNAind!N86 -> 8.416890125 | O86: =[3]cerNAind!O86 -> 7.407743728 | P86: =[3]cerNAind!P86 -> 6.905999389 | Q86: =[3]cerNAind!Q86 -> 6.781659201
A87: K | B87: Real Estate, Renting, Business Activities | C87: =[3]cerNAind!C87 -> 10.23413843 | D87: =[3]cerNAind!D87 -> 9.434580182 | E87: =[3]cerNAind!E87 -> 9.286962792 | F87: =[3]cerNAind!F87 -> 9.706858336 | G87: =[3]cerNAind!G87 -> 9.924501704 | H87: =[3]cerNAind!H87 -> 9.921226858 | I87: =[3]cerNAind!I87 -> 9.852444657 | J87: =[3]cerNAind!J87 -> 9.70328021 | K87: =[3]cerNAind!K87 -> 10.09382618 | L87: =[3]cerNAind!L87 -> 10.66352752 | M87: =[3]cerNAind!M87 -> 11.00789881 | N87: =[3]cerNAind!N87 -> 12.56480177 | O87: =[3]cerNAind!O87 -> 12.97531168 | P87: =[3]cerNAind!P87 -> 13.33723021 | Q87: =[3]cerNAind!Q87 -> 14.29824351
A88: L | B88: Public Administration | C88: =[3]cerNAind!C88 -> 19.40399484 | D88: =[3]cerNAind!D88 -> 18.94685369 | E88: =[3]cerNAind!E88 -> 18.72293604 | F88: =[3]cerNAind!F88 -> 19.5156503 | G88: =[3]cerNAind!G88 -> 19.85515311 | H88: =[3]cerNAind!H88 -> 20.09354462 | I88: =[3]cerNAind!I88 -> 20.35828414 | J88: =[3]cerNAind!J88 -> 21.17983891 | K88: =[3]cerNAind!K88 -> 22.65744653 | L88: =[3]cerNAind!L88 -> 23.37417526 | M88: =[3]cerNAind!M88 -> 23.48868701 | N88: =[3]cerNAind!N88 -> 23.57063717 | O88: =[3]cerNAind!O88 -> 22.94213956 | P88: =[3]cerNAind!P88 -> 22.32946857 | Q88: =[3]cerNAind!Q88 -> 22.60294146
A89: M | B89: Education | C89: =[3]cerNAind!C89 -> 8.595015077 | D89: =[3]cerNAind!D89 -> 9.153089123 | E89: =[3]cerNAind!E89 -> 10.03751051 | F89: =[3]cerNAind!F89 -> 10.86884525 | G89: =[3]cerNAind!G89 -> 11.52240539 | H89: =[3]cerNAind!H89 -> 13.8801887 | I89: =[3]cerNAind!I89 -> 15.00062249 | J89: =[3]cerNAind!J89 -> 16.99935368 | K89: =[3]cerNAind!K89 -> 17.7579352 | L89: =[3]cerNAind!L89 -> 18.48534142 | M89: =[3]cerNAind!M89 -> 18.64022129 | N89: =[3]cerNAind!N89 -> 19.24993455 | O89: =[3]cerNAind!O89 -> 20.09277735 | P89: =[3]cerNAind!P89 -> 21.09708998 | Q89: =[3]cerNAind!Q89 -> 21.79162768
A90: N | B90: Health and Social Work | C90: =[3]cerNAind!C90 -> 6.350545832 | D90: =[3]cerNAind!D90 -> 6.048862518 | E90: =[3]cerNAind!E90 -> 5.682204774 | F90: =[3]cerNAind!F90 -> 5.74865088 | G90: =[3]cerNAind!G90 -> 5.91634451 | H90: =[3]cerNAind!H90 -> 6.349126468 | I90: =[3]cerNAind!I90 -> 7.564849784 | J90: =[3]cerNAind!J90 -> 8.386016368 | K90: =[3]cerNAind!K90 -> 9.844162553 | L90: =[3]cerNAind!L90 -> 10.45670595 | M90: =[3]cerNAind!M90 -> 10.86315787 | N90: =[3]cerNAind!N90 -> 10.96693916 | O90: =[3]cerNAind!O90 -> 10.66838963 | P90: =[3]cerNAind!P90 -> 11.1875955 | Q90: =[3]cerNAind!Q90 -> 11.27729248
A91: O | B91: Other Community, Social, Personal Services | C91: =[3]cerNAind!C91 -> 0.3450827977 | D91: =[3]cerNAind!D91 -> 0.4063549384 | E91: =[3]cerNAind!E91 -> 0.4739928724 | F91: =[3]cerNAind!F91 -> 0.5492056889 | G91: =[3]cerNAind!G91 -> 0.639932356 | H91: =[3]cerNAind!H91 -> 0.6417946262 | I91: =[3]cerNAind!I91 -> 0.5992618703 | J91: =[3]cerNAind!J91 -> 0.6391966482 | K91: =[3]cerNAind!K91 -> 0.5744503179 | L91: =[3]cerNAind!L91 -> 0.5835377428 | M91: =[3]cerNAind!M91 -> 0.702379395 | N91: =[3]cerNAind!N91 -> 0.9952733125 | O91: =[3]cerNAind!O91 -> 1.112457762 | P91: =[3]cerNAind!P91 -> 1.200496341 | Q91: =[3]cerNAind!Q91 -> 1.438609973
B92: less intermediate FISIM | C92: =[3]cerNAind!C92 -> -2.225958612 | D92: =[3]cerNAind!D92 -> -2.250366799 | E92: =[3]cerNAind!E92 -> -2.44501436 | F92: =[3]cerNAind!F92 -> -2.854629898 | G92: =[3]cerNAind!G92 -> -2.959587939 | H92: =[3]cerNAind!H92 -> -3.187033445 | I92: =[3]cerNAind!I92 -> -2.730111077 | J92: =[3]cerNAind!J92 -> -2.839350559 | K92: =[3]cerNAind!K92 -> -3.107791831 | L92: =[3]cerNAind!L92 -> -3.492457523 | M92: =[3]cerNAind!M92 -> -4.134949015 | N92: =[3]cerNAind!N92 -> -4.021373823 | O92: =[3]cerNAind!O92 -> -3.564812042 | P92: =[3]cerNAind!P92 -> -3.340178052 | Q92: =[3]cerNAind!Q92 -> -3.178993332
B93: GDP at basic prices | C93: =[3]cerNAind!C93 -> 95.31786125 | D93: =[3]cerNAind!D93 -> 97.36637549 | E93: =[3]cerNAind!E93 -> 97.11176679 | F93: =[3]cerNAind!F93 -> 101.8527977 | G93: =[3]cerNAind!G93 -> 107.04963 | H93: =[3]cerNAind!H93 -> 115.6755773 | I93: =[3]cerNAind!I93 -> 116.7363226 | J93: =[3]cerNAind!J93 -> 120.2242051 | K93: =[3]cerNAind!K93 -> 123.7850322 | L93: =[3]cerNAind!L93 -> 130.489814 | M93: =[3]cerNAind!M93 -> 138.8549442 | N93: =[3]cerNAind!N93 -> 141.1614123 | O93: =[3]cerNAind!O93 -> 143.2996789 | P93: =[3]cerNAind!P93 -> 152.633678 | Q93: =[3]cerNAind!Q93 -> 160.0276105
B94: Taxes on products | C94: =[3]cerNAind!C94 -> 13.23235715 | D94: =[3]cerNAind!D94 -> 13.92994482 | E94: =[3]cerNAind!E94 -> 12.19514342 | F94: =[3]cerNAind!F94 -> 11.04243555 | G94: =[3]cerNAind!G94 -> 10.67987197 | H94: =[3]cerNAind!H94 -> 12.89025683 | I94: =[3]cerNAind!I94 -> 13.99041877 | J94: =[3]cerNAind!J94 -> 14.0094516 | K94: =[3]cerNAind!K94 -> 16.53123085 | L94: =[3]cerNAind!L94 -> 16.94856255 | M94: =[3]cerNAind!M94 -> 18.85829413 | N94: =[3]cerNAind!N94 -> 18.45126914 | O94: =[3]cerNAind!O94 -> 15.85817753 | P94: =[3]cerNAind!P94 -> 17.39160969 | Q94: =[3]cerNAind!Q94 -> 16.25156479
B95: less subsidies | C95: =[3]cerNAind!C95 -> -2.3084 | D95: =[3]cerNAind!D95 -> -2.6386 | E95: =[3]cerNAind!E95 -> -1.3683 | F95: =[3]cerNAind!F95 -> -1.9925 | G95: =[3]cerNAind!G95 -> -2.6085 | H95: =[3]cerNAind!H95 -> -3.867763 | I95: =[3]cerNAind!I95 -> -3.841847 | J95: =[3]cerNAind!J95 -> -3.084976 | K95: =[3]cerNAind!K95 -> -2.697479 | L95: =[3]cerNAind!L95 -> -4.017232 | M95: =[3]cerNAind!M95 -> -7.864603 | N95: =[3]cerNAind!N95 -> -6.900232 | O95: =[3]cerNAind!O95 -> -7.476789 | P95: =[3]cerNAind!P95 -> -6.805736 | Q95: =[3]cerNAind!Q95 -> -5.53147775
B96: GDP at purchasers prices | C96: =[3]cerNAind!C96 -> 106.2418184 | D96: =[3]cerNAind!D96 -> 108.6577203 | E96: =[3]cerNAind!E96 -> 107.9386102 | F96: =[3]cerNAind!F96 -> 110.9027332 | G96: =[3]cerNAind!G96 -> 115.121002 | H96: =[3]cerNAind!H96 -> 124.6980711 | I96: =[3]cerNAind!I96 -> 126.8848944 | J96: =[3]cerNAind!J96 -> 131.1486807 | K96: =[3]cerNAind!K96 -> 137.6187841 | L96: =[3]cerNAind!L96 -> 143.4211446 | M96: =[3]cerNAind!M96 -> 149.8486353 | N96: =[3]cerNAind!N96 -> 152.7124494 | O96: =[3]cerNAind!O96 -> 151.6810674 | P96: =[3]cerNAind!P96 -> 163.2195517 | Q96: =[3]cerNAind!Q96 -> 170.7476975
A97: memo: GDP excluding offshore fishing vessels | C97: =[3]cerNAind!C97 -> 106.2418184 | D97: =[3]cerNAind!D97 -> 108.6577203 | E97: =[3]cerNAind!E97 -> 107.9386102 | F97: =[3]cerNAind!F97 -> 110.9027332 | G97: =[3]cerNAind!G97 -> 115.121002 | H97: =[3]cerNAind!H97 -> 124.6980711 | I97: =[3]cerNAind!I97 -> 126.8848944 | J97: =[3]cerNAind!J97 -> 131.1486807 | K97: =[3]cerNAind!K97 -> 137.6187841 | L97: =[3]cerNAind!L97 -> 143.4211446 | M97: =[3]cerNAind!M97 -> 149.8486353 | N97: =[3]cerNAind!N97 -> 152.7124494 | O97: =[3]cerNAind!O97 -> 150.2687234 | P97: =[3]cerNAind!P97 -> 157.3896764 | Q97: =[3]cerNAind!Q97 -> 164.3189743
A99: Table 2g RMI Implicit GDP price deflators by industry, FY2004-FY2011
B100: (FY2004=100) | C100: =C2 -> FY1997 | D100: =D2 -> FY1998 | E100: FY1999 | F100: FY2000 | G100: FY2001 | H100: FY2002 | I100: FY2003 | J100: FY2004 | K100: FY2005 | L100: FY2006 | M100: FY2007 | N100: FY2008 | O100: FY2009 | P100: FY2010 | Q100: =Q2 -> FY2011
A101: A | B101: Agriculture, Hunting and Forestry | C101: =IF(C77<>0,C77/C3*100,0) -> 107.1201868 | D101: 86.84824359 | E101: 99.71898586 | F101: 99.64305725 | G101: 89.21876547 | H101: 91.5580967 | I101: 95.94901078 | J101: 100 | K101: 100.1047368 | L101: 101.235106 | M101: 110.1426288 | N101: 140.1384005 | O101: 146.054194 | P101: 134.5025242 | Q101: =IF(Q77<>0,Q77/Q3*100,0) -> 145.9892515
A102: B | B102: Fisheries (1) | C102: =IF(C78<>0,C78/C4*100,0) -> 89.05907624 | D102: 88.74934617 | E102: 92.27993892 | F102: 92.05925477 | G102: 93.40382282 | H102: 94.20060889 | I102: 90.27936382 | J102: 100 | K102: 106.068506 | L102: 108.8483621 | M102: 102.7635132 | N102: 119.6930726 | O102: 130.7788072 | P102: 139.849476 | Q102: =IF(Q78<>0,Q78/Q4*100,0) -> 136.258668
A103: C | B103: Mining and Quarrying | C103: =IF(C79<>0,C79/C5*100,0) -> 0 | D103: 0 | E103: 0 | F103: 0 | G103: 0 | H103: 0 | I103: 0 | J103: 0 | K103: 0 | L103: 0 | M103: 0 | N103: 0 | O103: 0 | P103: 0 | Q103: =IF(Q79<>0,Q79/Q5*100,0) -> 0
A104: D | B104: Manufacturing | C104: =IF(C80<>0,C80/C6*100,0) -> 33.06064409 | D104: 57.19615444 | E104: 67.04286049 | F104: 34.95298079 | G104: 55.11024296 | H104: 77.39165353 | I104: 69.28554363 | J104: 100 | K104: 75.17786639 | L104: 76.2529662 | M104: 95.03736661 | N104: 90.94191801 | O104: 25.35094481 | P104: 75.73635385 | Q104: =IF(Q80<>0,Q80/Q6*100,0) -> 149.5623098
A105: E | B105: Electricity, Gas and Water Supply | C105: =IF(C81<>0,C81/C7*100,0) -> 177.0831668 | D105: 240.2097421 | E105: 252.6832376 | F105: 231.8504676 | G105: 106.0410969 | H105: 316.0519807 | I105: 179.7100594 | J105: 100 | K105: 67.89301144 | L105: 94.50785289 | M105: 224.5399574 | N105: 188.7851293 | O105: 273.8846378 | P105: 250.1045327 | Q105: =IF(Q81<>0,Q81/Q7*100,0) -> 298.5851656
A106: F | B106: Construction | C106: =IF(C82<>0,C82/C8*100,0) -> 88.71290144 | D106: 89.75989542 | E106: 92.63490606 | F106: 94.48631078 | G106: 94.98788518 | H106: 95.58975273 | I106: 98.48420735 | J106: 100 | K106: 102.3037672 | L106: 106.0161128 | M106: 107.7965409 | N106: 115.8350161 | O106: 116.9373465 | P106: 118.0011047 | Q106: =IF(Q82<>0,Q82/Q8*100,0) -> 123.9632872
A107: G | B107: Wholesale and Retail Trade and Repairs | C107: =IF(C83<>0,C83/C9*100,0) -> 92.83202797 | D107: 95.77894427 | E107: 94.65003766 | F107: 93.67219726 | G107: 96.72104509 | H107: 98.06441957 | I107: 98.86230622 | J107: 100 | K107: 103.3219571 | L107: 112.7977088 | M107: 111.0168836 | N107: 115.0561385 | O107: 121.9236992 | P107: 120.8811663 | Q107: =IF(Q83<>0,Q83/Q9*100,0) -> 124.2449712
A108: H | B108: Hotels and Restaurants | C108: =IF(C84<>0,C84/C10*100,0) -> 87.10660036 | D108: 106.8953858 | E108: 95.20701849 | F108: 88.81849441 | G108: 114.8438035 | H108: 78.4109942 | I108: 82.22625445 | J108: 100 | K108: 82.55067813 | L108: 84.85334 | M108: 78.67324229 | N108: 68.27276353 | O108: 71.30391656 | P108: 70.60561579 | Q108: =IF(Q84<>0,Q84/Q10*100,0) -> 69.47964696
A109: I | B109: Transport, Storage and Communications | C109: =IF(C85<>0,C85/C11*100,0) -> 88.9035896 | D109: 100.7348049 | E109: 105.5365908 | F109: 105.4222928 | G109: 97.1782967 | H109: 98.32626351 | I109: 109.5214668 | J109: 100 | K109: 107.362945 | L109: 100.6715409 | M109: 104.6423312 | N109: 108.7016005 | O109: 108.5717982 | P109: 121.749239 | Q109: =IF(Q85<>0,Q85/Q11*100,0) -> 128.7726555
A110: J | B110: Financial Intermediation | C110: =IF(C86<>0,C86/C12*100,0) -> 88.68969095 | D110: 89.95880162 | E110: 92.10347001 | F110: 99.2888185 | G110: 88.31745146 | H110: 99.34408538 | I110: 98.46915488 | J110: 100 | K110: 113.8185376 | L110: 126.4337004 | M110: 129.0021723 | N110: 114.7800932 | O110: 97.90758491 | P110: 86.97326234 | Q110: =IF(Q86<>0,Q86/Q12*100,0) -> 87.14753999
A111: K | B111: Real Estate, Renting, Business Activities | C111: =IF(C87<>0,C87/C13*100,0) -> 92.10199135 | D111: 93.93434116 | E111: 96.25138929 | F111: 97.13244166 | G111: 98.47584052 | H111: 98.26805703 | I111: 97.86012632 | J111: 100 | K111: 103.1866388 | L111: 107.8674624 | M111: 109.8053058 | N111: 123.6054594 | O111: 123.6321554 | P111: 125.6553797 | Q111: =IF(Q87<>0,Q87/Q13*100,0) -> 132.0554491
A112: L | B112: Public Administration | C112: =IF(C88<>0,C88/C14*100,0) -> 88.45119418 | D112: 88.12140291 | E112: 89.65181563 | F112: 92.82342178 | G112: 95.28873741 | H112: 100.60261 | I112: 101.0428646 | J112: 100 | K112: 103.9576248 | L112: 104.4183887 | M112: 106.506475 | N112: 103.5395472 | O112: 105.4971386 | P112: 103.2781709 | Q112: =IF(Q88<>0,Q88/Q14*100,0) -> 105.3204654
A113: M | B113: Education | C113: =IF(C89<>0,C89/C15*100,0) -> 59.49168323 | D113: 70.24799641 | E113: 74.59056945 | F113: 79.71703787 | G113: 75.48248353 | H113: 79.65307082 | I113: 85.85186914 | J113: 100 | K113: 97.23269271 | L113: 99.8580171 | M113: 94.27928446 | N113: 98.49768786 | O113: 100.593171 | P113: 99.95562762 | Q113: =IF(Q89<>0,Q89/Q15*100,0) -> 98.83500028
A114: N | B114: Health and Social Work | C114: =IF(C90<>0,C90/C16*100,0) -> 80.95848682 | D114: 82.32820096 | E114: 84.30703354 | F114: 87.19900176 | G114: 90.899727 | H114: 92.96344737 | I114: 99.02398677 | J114: 100 | K114: 107.1232879 | L114: 108.9585447 | M114: 112.6757042 | N114: 117.4272204 | O114: 119.8411591 | P114: 118.0791547 | Q114: =IF(Q90<>0,Q90/Q16*100,0) -> 115.7744444
A115: O | B115: Other Community, Social, Personal Services | C115: =IF(C91<>0,C91/C17*100,0) -> 92.95368662 | D115: 78.41418778 | E115: 82.02969409 | F115: 77.97413337 | G115: 82.29909469 | H115: 97.15255953 | I115: 96.58268966 | J115: 100 | K115: 90.77106383 | L115: 92.10423046 | M115: 101.7037188 | N115: 102.9480832 | O115: 104.9420291 | P115: 99.29017545 | Q115: =IF(Q91<>0,Q91/Q17*100,0) -> 106.5691814
B116: less intermediate FISIM | C116: =IF(C92<>0,C92/C18*100,0) -> 92.58659975 | D116: 91.26749708 | E116: 95.83592576 | F116: 108.4358329 | G116: 108.7624074 | H116: 114.0407988 | I116: 99.98184996 | J116: 100 | K116: 110.586782 | L116: 129.6602694 | M116: 137.41549 | N116: 120.6374856 | O116: 99.73618575 | P116: 90.79556467 | Q116: =IF(Q92<>0,Q92/Q18*100,0) -> 89.94167137
B117: GDP at basic prices | C117: =IF(C93<>0,C93/C19*100,0) -> 85.26936369 | D117: 90.3702216 | E117: 93.02025825 | F117: 92.96245297 | G117: 91.80706752 | H117: 96.69738286 | I117: 97.32112917 | J117: 100 | K117: 101.2193487 | L117: 104.5001322 | M117: 106.9556383 | N117: 110.8599153 | O117: 112.9577358 | P117: 115.3030789 | Q117: =IF(Q93<>0,Q93/Q19*100,0) -> 120.020516
B118: Taxes on products less Subsidies | C118: =IF(C94<>0,C94/C20*100,0) -> 108.4379428 | D118: 111.3487716 | E118: 96.32396284 | F118: 77.32260185 | G118: 75.91222474 | H118: 91.44818235 | I118: 99.41583687 | J118: 100 | K118: 107.7639492 | L118: 111.6214069 | M118: 114.9082736 | N118: 116.1342108 | O118: 111.5806417 | P118: 109.7653842 | Q118: =IF(Q94<>0,Q94/Q20*100,0) -> 105.2031604
B119: GDP at purchasers prices | C119: =IF(C96<>0,C96/C22*100,0) -> 88.10598429 | D119: 92.76660653 | E119: 94.3958613 | F119: 91.57221657 | G119: 90.21612826 | H119: 95.23847456 | I119: 96.72274259 | J119: 100 | K119: 102.2564772 | L119: 104.6146101 | M119: 105.9122782 | N119: 110.0074051 | O119: 110.9014381 | P119: =IF(P96<>0,P96/P22*100,0) -> 113.0163634 | Q119: 117.2801032
A120: memo: GDP excluding offshore fishing vessels | C120: =IF(C97<>0,C97/C23*100,0) -> 88.10598429 | D120: 92.76660653 | E120: 94.3958613 | F120: 91.57221657 | G120: 90.21612826 | H120: 95.23847456 | I120: 96.72274259 | J120: 100 | K120: 102.2564772 | L120: 104.6146101 | M120: 105.9122782 | N120: 110.0074051 | O120: 110.5673452 | P120: 111.7924347 | Q120: 117.0357867
A121: 1) "Fisheries" includes fish processing and other vessel support services.
A122: Source: EPPSO estimates
A123: Table 2h RMI Share of GDP by industry, current prices, FY2004-FY2011
C124: =C2 -> FY1997 | D124: =D2 -> FY1998 | E124: FY1999 | F124: FY2000 | G124: FY2001 | H124: FY2002 | I124: FY2003 | J124: FY2004 | K124: FY2005 | L124: FY2006 | M124: FY2007 | N124: FY2008 | O124: FY2009 | P124: FY2010 | Q124: =Q2 -> FY2011
A125: A | B125: Agriculture, Hunting and Forestry | C125: =IF(C77/C$96<>0,C77/C$96,"~") -> 0.04544552693 | D125: =IF(D77/D$96<>0,D77/D$96,"~") -> 0.03258608258 | E125: 0.03571423616 | F125: 0.03384583141 | G125: 0.03207929102 | H125: 0.02544352694 | I125: 0.02840757989 | J125: 0.02988980364 | K125: 0.02884455524 | L125: 0.02773890147 | M125: 0.03168000707 | N125: 0.042344367 | O125: 0.04292703465 | P125: 0.03465031087 | Q125: =IF(Q77/Q$96<>0,Q77/Q$96,"~") -> 0.03308782586
A126: B | B126: Fisheries (1) | C126: =IF(C78/C$96<>0,C78/C$96,"~") -> 0.04494331623 | D126: 0.04445243023 | E126: 0.04506019041 | F126: 0.06214041068 | G126: 0.0621623642 | H126: 0.0621046193 | I126: 0.06541095502 | J126: 0.06270513797 | K126: 0.05428160556 | L126: 0.05591633868 | M126: 0.0543771988 | N126: 0.05803464525 | O126: 0.07834162091 | P126: 0.1082622701 | Q126: 0.1099094935
A127: C | B127: Mining and Quarrying | C127: ~ | D127: ~ | E127: ~ | F127: ~ | G127: ~ | H127: ~ | I127: ~ | J127: ~ | K127: ~ | L127: ~ | M127: ~ | N127: ~ | O127: ~ | P127: ~ | Q127: ~
A128: D | B128: Manufacturing | C128: 0.01208817536 | D128: 0.01839630906 | E128: 0.01825512323 | F128: 0.01031717754 | G128: 0.01771290957 | H128: 0.0172960769 | I128: 0.01832068592 | J128: 0.02786561711 | K128: 0.02017532765 | L128: 0.01930168717 | M128: 0.02715857746 | N128: 0.0274820898 | O128: 0.006920587982 | P128: 0.01701698625 | Q128: 0.02890233227
A129: E | B129: Electricity, Gas and Water Supply | C129: 0.02747317435 | D129: 0.03570846129 | E129: 0.04080838165 | F129: 0.03666546244 | G129: 0.01702556411 | H129: 0.04761631794 | I129: 0.02615557207 | J129: 0.01479285944 | K129: 0.01152661688 | L129: 0.01314715487 | M129: 0.0327548395 | N129: 0.02905444852 | O129: 0.0422379939 | P129: 0.03543926533 | Q129: 0.04024499634
A130: F | B130: Construction | C130: 0.06430099151 | D130: 0.07964676062 | E130: 0.08165088405 | F130: 0.06065796135 | G130: 0.07043001129 | H130: 0.06651026944 | I130: 0.06137914544 | J130: 0.0539132969 | K130: 0.05359050004 | L130: 0.07832413013 | M130: 0.06700477544 | N130: 0.07083437387 | O130: 0.06647393693 | P130: 0.05921530852 | Q130: 0.05565540785
A131: G | B131: Wholesale and Retail Trade and Repairs | C131: 0.138593173 | D131: 0.1298144952 | E131: 0.1241578555 | F131: 0.143177893 | G131: 0.1532340606 | H131: 0.1517040604 | I131: 0.1413134213 | J131: 0.1460918244 | K131: 0.1458863246 | L131: 0.1395461286 | M131: 0.1358795706 | N131: 0.136867219 | O131: 0.1411380879 | P131: 0.1369754533 | Q131: 0.1386515189
A132: H | B132: Hotels and Restaurants | C132: 0.03852101164 | D132: 0.04060069941 | E132: 0.03472812652 | F132: 0.03805220588 | G132: 0.05405568538 | H132: 0.03268061709 | I132: 0.02919065682 | J132: 0.03048743581 | K132: 0.02537237708 | L132: 0.01979396655 | M132: 0.02185079073 | N132: 0.01716425596 | O132: 0.01770253479 | P132: 0.01479603843 | Q132: 0.01385259871
A133: I | B133: Transport, Storage and Communications | C133: 0.08400751522 | D133: 0.08893926788 | E133: 0.08769025382 | F133: 0.09304676509 | G133: 0.08779932808 | H133: 0.0952129108 | I133: 0.1067208465 | J133: 0.0923854509 | K133: 0.08911238912 | L133: 0.08188391433 | M133: 0.09252107221 | N133: 0.07278736871 | O133: 0.07673425051 | P133: 0.08326693519 | Q133: 0.07760139558
A134: J | B134: Financial Intermediation | C134: 0.03986565444 | D134: 0.04180256643 | E134: 0.04475583874 | F134: 0.04794642649 | G134: 0.04537517712 | H134: 0.04656216203 | I134: 0.0439745717 | J134: 0.04630269781 | K134: 0.05054169534 | L134: 0.05534221176 | M134: 0.05921735774 | N134: 0.05511593951 | O134: 0.04883762921 | P134: 0.04231110377 | Q134: 0.03971742694
A135: K | B135: Real Estate, Renting, Business Activities | C135: 0.09632872052 | D135: 0.08682843847 | E135: 0.08603930302 | F135: 0.08752587113 | G135: 0.08620930614 | H135: 0.07956199139 | I135: 0.07764868076 | J135: 0.07398686861 | K135: 0.07334628227 | L135: 0.07435115342 | M135: 0.07346012049 | N135: 0.08227752104 | O135: 0.08554338322 | P135: 0.0817134349 | Q135: 0.08373901212
A136: L | B136: Public Administration | C136: 0.1826398976 | D136: 0.174371905 | E136: 0.1734591172 | F136: 0.1759708687 | G136: 0.1724720318 | H136: 0.1611375737 | I136: 0.1604468699 | J136: 0.1614948682 | K136: 0.1646392001 | L136: 0.1629757964 | M136: 0.1567494223 | N136: 0.1543465334 | O136: 0.1512524929 | P136: 0.1368063344 | Q136: 0.1323762592
A137: M | B137: Education | C137: 0.08090048915 | D137: 0.08423781666 | E137: 0.09299277146 | F137: 0.09800340295 | G137: 0.1000895162 | H137: 0.1113103722 | I137: 0.1182222877 | J137: 0.1296189453 | K137: 0.1290371465 | L137: 0.1288885365 | M137: 0.1243936673 | N137: 0.1260534726 | O137: 0.1324672729 | P137: 0.1292558995 | Q137: 0.1276247235
A138: N | B138: Health and Social Work | C138: 0.05977444595 | D138: 0.05566896214 | E138: 0.05264293067 | F138: 0.05183506946 | G138: 0.05139239937 | H138: 0.05091599584 | I138: 0.05961978232 | J138: 0.0639428191 | K138: 0.07153211401 | L138: 0.07290909568 | M138: 0.07249420623 | N138: 0.07181430984 | O138: 0.07033435227 | P138: 0.0685432314 | Q138: 0.06604652741
A139: O | B139: Other Community, Social, Personal Services | C139: 0.003248088209 | D139: 0.003739770513 | E139: 0.004391319023 | F139: 0.004952138445 | G139: 0.005558780283 | H139: 0.005146788724 | I139: 0.004722877953 | J139: 0.004873832086 | K139: 0.004174214456 | L139: 0.004068700919 | M139: 0.004687259203 | N139: 0.00651730305 | O139: 0.00733418996 | P139: 0.007355101326 | Q139: 0.008425355034
B140: less intermediate FISIM | C140: -0.02095181206 | D140: -0.02071060199 | E140: -0.02265189773 | F140: -0.0257399418 | G140: -0.02570849705 | H140: -0.02555800116 | I140: -0.02151643889 | J140: -0.02164985986 | K140: -0.02258261365 | L140: -0.02435106437 | M140: -0.02759417199 | N140: -0.02633297965 | O140: -0.02350202371 | P140: -0.02046432561 | Q140: -0.01861807438
B141: GDP at basic prices | C141: 0.897178368 | D141: 0.8960833635 | E141: 0.8996944337 | F141: 0.9183975427 | G141: 0.9298879281 | H141: 0.9276452815 | I141: 0.9200174944 | J141: 0.9167015974 | K141: 0.8994777352 | L141: 0.9098366521 | M141: 0.926634693 | N141: 0.9243608679 | O141: 0.9447433442 | P141: 0.9351433478 | Q141: 0.9372167988
B142: Taxes on products | C142: 0.1245494227 | D142: 0.1282002308 | E142: 0.1129822165 | F142: 0.09956865113 | G142: 0.09277083923 | H142: 0.103371742 | I142: 0.1102607118 | J142: 0.1068211401 | K142: 0.1201233608 | L142: 0.1181733879 | M142: 0.1258489548 | N142: 0.1208236081 | O142: 0.1045494853 | P142: 0.1065534705 | Q142: 0.09517882249
B143: less subsidies | C143: -0.02172779076 | D143: -0.02428359432 | E143: -0.01267665016 | F143: -0.01796619382 | G143: -0.02265876734 | H143: -0.03101702349 | I143: -0.03027820623 | J143: -0.02352273757 | K143: -0.01960109601 | L143: -0.02801004003 | M143: -0.0524836478 | N143: -0.04518447596 | O143: -0.04929282954 | P143: -0.04169681836 | Q143: -0.03239562132
B144: GDP at purchasers prices | C144: 1 | D144: 1 | E144: 1 | F144: =IF(F96/F$96<>0,F96/F$96,"~") -> 1 | G144: 1 | H144: 1 | I144: 1 | J144: 1 | K144: 1 | L144: 1 | M144: 1 | N144: 1 | O144: 1 | P144: 1 | Q144: =IF(Q96/Q$96<>0,Q96/Q$96,"~") -> 1
A145: 1) "Fisheries" includes fish processing and other vessel support services.
A146: Source: EPPSO estimates

Sheet NAInst
A1: Table 2i Constant price GDP by institutional sector, FY2004-FY2011
B2: (constant prices of FY2004, US$ millions) | C2: FY1997 | D2: FY1998 | E2: FY1999 | F2: FY2000 | G2: FY2001 | H2: FY2002 | I2: FY2003 | J2: FY2004 | K2: FY2005 | L2: FY2006 | M2: FY2007 | N2: FY2008 | O2: FY2009 | P2: FY2010 | Q2: FY2011
A3: 1.1 | B3: Private Enterprise | C3: =[3]cerNAsum!C3 -> 31.47052231 | D3: =[3]cerNAsum!D3 -> 31.73697106 | E3: =[3]cerNAsum!E3 -> 30.32112749 | F3: =[3]cerNAsum!F3 -> 32.78049182 | G3: =[3]cerNAsum!G3 -> 35.80991796 | H3: =[3]cerNAsum!H3 -> 37.06508464 | I3: =[3]cerNAsum!I3 -> 35.35572747 | J3: =[3]cerNAsum!J3 -> 34.25670173 | K3: =[3]cerNAsum!K3 -> 33.15554198 | L3: =[3]cerNAsum!L3 -> 35.65112228 | M3: =[3]cerNAsum!M3 -> 36.21887923 | N3: =[3]cerNAsum!N3 -> 34.61485163 | O3: =[3]cerNAsum!O3 -> 34.57094101 | P3: =[3]cerNAsum!P3 -> 38.277295 | Q3: =[3]cerNAsum!Q3 -> 39.34293459
A4: 1.2 | B4: Public Enterprise | C4: =[3]cerNAsum!C4 -> 9.933471738 | D4: =[3]cerNAsum!D4 -> 9.134733037 | E4: =[3]cerNAsum!E4 -> 8.509919807 | F4: =[3]cerNAsum!F4 -> 10.77714368 | G4: =[3]cerNAsum!G4 -> 11.03739404 | H4: =[3]cerNAsum!H4 -> 11.61742335 | I4: =[3]cerNAsum!I4 -> 11.96063715 | J4: =[3]cerNAsum!J4 -> 11.30722936 | K4: =[3]cerNAsum!K4 -> 11.49377118 | L4: =[3]cerNAsum!L4 -> 10.14835517 | M4: =[3]cerNAsum!M4 -> 11.46906149 | N4: =[3]cerNAsum!N4 -> 10.43927822 | O4: =[3]cerNAsum!O4 -> 10.70769503 | P4: =[3]cerNAsum!P4 -> 11.21445991 | Q4: =[3]cerNAsum!Q4 -> 10.74638905
A5: 2 | B5: Finance (Banks) | C5: =[3]cerNAsum!C5 -> 4.509673056 | D5: =[3]cerNAsum!D5 -> 4.778763586 | E5: =[3]cerNAsum!E5 -> 5.002106135 | F5: =[3]cerNAsum!F5 -> 5.109571528 | G5: =[3]cerNAsum!G5 -> 5.623939367 | H5: =[3]cerNAsum!H5 -> 5.578527078 | I5: =[3]cerNAsum!I5 -> 5.441984515 | J5: =[3]cerNAsum!J5 -> 5.840296 | K5: =[3]cerNAsum!K5 -> 5.88840598 | L5: =[3]cerNAsum!L5 -> 6.0187469 | M5: =[3]cerNAsum!M5 -> 6.53996647 | N5: =[3]cerNAsum!N5 -> 7.034535661 | O5: =[3]cerNAsum!O5 -> 7.24241832 | P5: =[3]cerNAsum!P5 -> 7.627606382 | Q5: =[3]cerNAsum!Q5 -> 7.458755252
A6: 3 | B6: Government | C6: =[3]cerNAsum!C6 -> 44.04756579 | D6: =[3]cerNAsum!D6 -> 41.55531984 | E6: =[3]cerNAsum!E6 -> 40.69016099 | F6: =[3]cerNAsum!F6 -> 41.01609939 | G6: =[3]cerNAsum!G6 -> 43.59674946 | H6: =[3]cerNAsum!H6 -> 45.86994801 | I6: =[3]cerNAsum!I6 -> 47.33135755 | J6: =[3]cerNAsum!J6 -> 48.45376224 | K6: =[3]cerNAsum!K6 -> 50.89033088 | L6: =[3]cerNAsum!L6 -> 52.14880446 | M6: =[3]cerNAsum!M6 -> 52.68371222 | N6: =[3]cerNAsum!N6 -> 52.57201108 | O6: =[3]cerNAsum!O6 -> 52.29115803 | P6: =[3]cerNAsum!P6 -> 53.79524566 | Q6: =[3]cerNAsum!Q6 -> 54.94590978
A7: 4 | B7: NGOs | C7: =[3]cerNAsum!C7 -> 1.882904544 | D7: =[3]cerNAsum!D7 -> 1.93735374 | E7: =[3]cerNAsum!E7 -> 1.88775811 | F7: =[3]cerNAsum!F7 -> 1.90309984 | G7: =[3]cerNAsum!G7 -> 1.983267356 | H7: =[3]cerNAsum!H7 -> 2.043295364 | I7: =[3]cerNAsum!I7 -> 1.972165522 | J7: =[3]cerNAsum!J7 -> 2.044020609 | K7: =[3]cerNAsum!K7 -> 2.249711376 | L7: =[3]cerNAsum!L7 -> 2.142263473 | M7: =[3]cerNAsum!M7 -> 2.1618451 | N7: =[3]cerNAsum!N7 -> 2.044020609 | O7: =[3]cerNAsum!O7 -> 1.996656503 | P7: =[3]cerNAsum!P7 -> 2.018915959 | Q7: =[3]cerNAsum!Q7 -> 2.043295364
A8: 5 | B8: Households | C8: =[3]cerNAsum!C8 -> 18.94146476 | D8: =[3]cerNAsum!D8 -> 17.94255882 | E8: =[3]cerNAsum!E8 -> 17.82638916 | F8: =[3]cerNAsum!F8 -> 17.87473961 | G8: =[3]cerNAsum!G8 -> 18.20695862 | H8: =[3]cerNAsum!H8 -> 17.45712298 | I8: =[3]cerNAsum!I8 -> 17.78024482 | J8: =[3]cerNAsum!J8 -> 18.07656976 | K8: =[3]cerNAsum!K8 -> 18.37426173 | L8: =[3]cerNAsum!L8 -> 18.4950372 | M8: =[3]cerNAsum!M8 -> 19.00773771 | N8: =[3]cerNAsum!N8 -> 19.56100907 | O8: =[3]cerNAsum!O8 -> 19.32412621 | P8: =[3]cerNAsum!P8 -> 19.32208647 | Q8: =[3]cerNAsum!Q8 -> 19.13908497
B9: GDP at Factor Cost (Gross) | C9: =[3]cerNAsum!C9 -> 110.7856022 | D9: =[3]cerNAsum!D9 -> 107.0857001 | E9: =[3]cerNAsum!E9 -> 104.2374617 | F9: =[3]cerNAsum!F9 -> 109.4611459 | G9: =[3]cerNAsum!G9 -> 116.2582268 | H9: =[3]cerNAsum!H9 -> 119.6314014 | I9: =[3]cerNAsum!I9 -> 119.842117 | J9: =[3]cerNAsum!J9 -> 119.9785797 | K9: =[3]cerNAsum!K9 -> 122.0520231 | L9: =[3]cerNAsum!L9 -> 124.6043295 | M9: =[3]cerNAsum!M9 -> 128.0812022 | N9: =[3]cerNAsum!N9 -> 126.2657063 | O9: =[3]cerNAsum!O9 -> 126.1329951 | P9: =[3]cerNAsum!P9 -> 132.2556094 | Q9: =[3]cerNAsum!Q9 -> 133.676369
B10: Indirect taxes less Subsidies | C10: =[3]cerNAsum!C10 -> 12.20270028 | D10: =[3]cerNAsum!D10 -> 12.51019173 | E10: =[3]cerNAsum!E10 -> 12.66054994 | F10: =[3]cerNAsum!F10 -> 14.28099325 | G10: =[3]cerNAsum!G10 -> 14.0687116 | H10: =[3]cerNAsum!H10 -> 14.09569496 | I10: =[3]cerNAsum!I10 -> 14.07262586 | J10: =[3]cerNAsum!J10 -> 14.0094516 | K10: =[3]cerNAsum!K10 -> 15.34022367 | L10: =[3]cerNAsum!L10 -> 15.18397145 | M10: =[3]cerNAsum!M10 -> 16.41160688 | N10: =[3]cerNAsum!N10 -> 15.88788438 | O10: =[3]cerNAsum!O10 -> 14.21230178 | P10: =[3]cerNAsum!P10 -> 15.84434822 | Q10: =[3]cerNAsum!Q10 -> 15.44779143
B11: Less intermediate FISIM | C11: =[3]cerNAsum!C11 -> -2.404190907 | D11: =[3]cerNAsum!D11 -> -2.465682604 | E11: =[3]cerNAsum!E11 -> -2.551250317 | F11: =[3]cerNAsum!F11 -> -2.632552194 | G11: =[3]cerNAsum!G11 -> -2.721149714 | H11: =[3]cerNAsum!H11 -> -2.794643215 | I11: =[3]cerNAsum!I11 -> -2.730606683 | J11: =[3]cerNAsum!J11 -> -2.839350559 | K11: =[3]cerNAsum!K11 -> -2.810274225 | L11: =[3]cerNAsum!L11 -> -2.69354486 | M11: =[3]cerNAsum!M11 -> -3.009085086 | N11: =[3]cerNAsum!N11 -> -3.333436372 | O11: =[3]cerNAsum!O11 -> -3.5742414 | P11: =[3]cerNAsum!P11 -> -3.678789888 | Q11: =[3]cerNAsum!Q11 -> -3.534505512
B12: Real GDP at Market Prices (Gross) | C12: =[3]cerNAsum!C12 -> 120.5841116 | D12: =[3]cerNAsum!D12 -> 117.1302092 | E12: =[3]cerNAsum!E12 -> 114.3467613 | F12: =[3]cerNAsum!F12 -> 121.1095869 | G12: =[3]cerNAsum!G12 -> 127.6057887 | H12: =[3]cerNAsum!H12 -> 130.9324532 | I12: =[3]cerNAsum!I12 -> 131.1841362 | J12: =[3]cerNAsum!J12 -> 131.1486807 | K12: =[3]cerNAsum!K12 -> 134.5819726 | L12: =[3]cerNAsum!L12 -> 137.0947561 | M12: =[3]cerNAsum!M12 -> 141.483724 | N12: =[3]cerNAsum!N12 -> 138.8201543 | O12: =[3]cerNAsum!O12 -> 136.7710555 | P12: =[3]cerNAsum!P12 -> 144.4211677 | Q12: =[3]cerNAsum!Q12 -> 145.5896549
A14: Table 2j Constant price GDP by institutional sector, annual percent growth, FY2004-FY2011
C15: =C2 -> FY1997 | D15: =D2 -> FY1998 | E15: FY1999 | F15: FY2000 | G15: FY2001 | H15: FY2002 | I15: FY2003 | J15: FY2004 | K15: FY2005 | L15: FY2006 | M15: FY2007 | N15: FY2008 | O15: FY2009 | P15: FY2010 | Q15: FY2011
A16: 1.1 | B16: Private Enterprise | D16: =D3/C3-1 -> 0.008466613491 | E16: =E3/D3-1 -> -0.04461180537 | F16: 0.0811105832 | G16: 0.09241551837 | H16: 0.03505081115 | I16: -0.04611771912 | J16: -0.03108480073 | K16: -0.03214435997 | L16: 0.07526887379 | M16: 0.01592535959 | N16: -0.04428705789 | O16: -0.001268548524 | P16: =P3/O3-1 -> 0.1072100985 | Q16: 0.02783999208
A17: 1.2 | B17: Public Enterprise | D17: =D4/C4-1 -> -0.08040881601 | E17: -0.06839972524 | F17: 0.2664212972 | G17: 0.02414836164 | H17: 0.05255129073 | I17: 0.02954302285 | J17: -0.05462984805 | K17: 0.01649757096 | L17: -0.1170560986 | M17: 0.1301399389 | N17: -0.08978792814 | O17: 0.02571220043 | P17: 0.04732716715 | Q17: -0.0417381541
A18: 2 | B18: Finance (Banks) | D18: 0.05966963151 | E18: 0.04673647173 | F18: 0.02148402894 | G18: 0.1006675092 | H18: -0.0080748185 | I18: -0.02447645423 | J18: 0.07319232241 | K18: 0.00823759281 | L18: 0.02213517896 | M18: 0.08659935001 | N18: 0.07562258825 | O18: 0.02955172428 | P18: 0.05318500601 | Q18: -0.02213684358
A19: 3 | B19: Government | D19: -0.05658078723 | E19: -0.02081944856 | F19: 0.008010250816 | G19: 0.06291797869 | H19: 0.05214146883 | I19: 0.03185984729 | J19: 0.02371376507 | K19: 0.05028646953 | L19: 0.02472912944 | M19: 0.01025733509 | N19: -0.00212022161 | O19: -0.005342254223 | P19: 0.02876370864 | Q19: 0.02138969908
A20: 4 | B20: NGOs | D20: 0.0289176617 | E20: -0.02559967748 | F20: 0.008126957858 | G20: 0.04212470319 | H20: 0.03026722925 | I20: -0.03481133621 | J20: 0.03643461288 | K20: 0.1006304757 | L20: -0.04776074989 | M20: 0.009140625 | N20: -0.05450181931 | O20: -0.0231720298 | P20: 0.01114836547 | Q20: 0.01207549255
A21: 5 | B21: Households | D21: -0.05273646738 | E21: -0.006474531665 | F21: 0.002712296298 | G21: 0.01858594947 | H21: -0.04118401387 | I21: 0.01850945544 | J21: 0.01666596499 | K21: 0.01646838845 | L21: 0.006573078699 | M21: 0.0277209778 | N21: 0.02910769078 | O21: -0.01210995085 | P21: -0.0001055540415 | Q21: -0.009471104465
B22: GDP at Factor Cost (Gross) | D22: -0.03339695808 | E22: -0.02659774736 | F22: 0.05011330946 | G22: 0.06209583211 | H22: 0.02901450248 | I22: 0.00176137379 | J22: 0.00113868708 | K22: 0.01728178005 | L22: 0.0209116268 | M22: 0.02790330603 | N22: -0.01417456997 | O22: -0.001051046746 | P22: 0.04854094103 | Q22: 0.0107425283
B23: Indirect taxes less Subsidies | D23: 0.02519863959 | E23: 0.01201885786 | F23: 0.1279915418 | G23: -0.01486462818 | H23: 0.001917969529 | I23: -0.001636605815 | J23: -0.004489159179 | K23: 0.09499101809 | L23: -0.01018578551 | M23: 0.08085074673 | N23: -0.03191171332 | O23: -0.105462915 | P23: 0.1148333648 | Q23: -0.02502828018
B24: Less intermediate FISIM | D24: 0.02557687789 | E24: 0.03470345815 | F24: 0.03186746352 | G24: 0.03365461119 | H24: 0.02700825324 | I24: -0.02291402775 | J24: 0.03982407155 | K24: -0.01024048743 | L24: -0.04153664569 | M24: 0.117146824 | N24: 0.1077906661 | O24: 0.07223927542 | P24: 0.02925053927 | Q24: -0.03922060804
B25: Real GDP at Market Prices (Gross) | D25: -0.02864309666 | E25: -0.02376370633 | F25: 0.05914313207 | G25: 0.05363903822 | H25: 0.02606985548 | I25: 0.001922235815 | J25: -0.0002702724906 | K25: 0.02617862269 | L25: 0.01867102589 | M25: 0.03201411978 | N25: -0.01882597989 | O25: -0.01476081625 | P25: 0.05593370759 | Q25: 0.008090830693
A27: Table 2k Current price GDP by institutional sector, FY2004-FY2011
B28: (US$ millions) | C28: =C2 -> FY1997 | D28: =D2 -> FY1998 | E28: FY1999 | F28: FY2000 | G28: FY2001 | H28: FY2002 | I28: FY2003 | J28: FY2004 | K28: FY2005 | L28: FY2006 | M28: FY2007 | N28: FY2008 | O28: FY2009 | P28: FY2010 | Q28: FY2011
A29: 1.1 | B29: Private Enterprise | C29: =[3]cerNAsum!C29 -> 28.88947506 | D29: =[3]cerNAsum!D29 -> 28.87730345 | E29: =[3]cerNAsum!E29 -> 28.59276619 | F29: =[3]cerNAsum!F29 -> 31.49331412 | G29: =[3]cerNAsum!G29 -> 34.42447456 | H29: =[3]cerNAsum!H29 -> 35.84540579 | I29: =[3]cerNAsum!I29 -> 34.19578009 | J29: =[3]cerNAsum!J29 -> 34.25670173 | K29: =[3]cerNAsum!K29 -> 34.13494398 | L29: =[3]cerNAsum!L29 -> 38.13915606 | M29: =[3]cerNAsum!M29 -> 38.98251572 | N29: =[3]cerNAsum!N29 -> 41.07183125 | O29: =[3]cerNAsum!O29 -> 41.77723994 | P29: =[3]cerNAsum!P29 -> 48.1160838 | Q29: =[3]cerNAsum!Q29 -> 50.43264805
A30: 1.2 | B30: Public Enterprise | C30: =[3]cerNAsum!C30 -> 8.742683785 | D30: =[3]cerNAsum!D30 -> 11.89375018 | E30: =[3]cerNAsum!E30 -> 12.2143546 | F30: =[3]cerNAsum!F30 -> 11.25865908 | G30: =[3]cerNAsum!G30 -> 10.72898165 | H30: =[3]cerNAsum!H30 -> 13.19669654 | I30: =[3]cerNAsum!I30 -> 11.98797658 | J30: =[3]cerNAsum!J30 -> 11.30722936 | K30: =[3]cerNAsum!K30 -> 10.17919867 | L30: =[3]cerNAsum!L30 -> 8.24767 | M30: =[3]cerNAsum!M30 -> 10.274849 | N30: =[3]cerNAsum!N30 -> 7.137959 | O30: =[3]cerNAsum!O30 -> 7.411425798 | P30: =[3]cerNAsum!P30 -> 10.999868 | Q30: =[3]cerNAsum!Q30 -> 14.82662787
A31: 2 | B31: Finance (Banks) | C31: =[3]cerNAsum!C31 -> 3.979 | D31: =[3]cerNAsum!D31 -> 4.283 | E31: =[3]cerNAsum!E31 -> 4.56935 | F31: =[3]cerNAsum!F31 -> 5.0816 | G31: =[3]cerNAsum!G31 -> 4.93285 | H31: =[3]cerNAsum!H31 -> 5.5743 | I31: =[3]cerNAsum!I31 -> 5.357 | J31: =[3]cerNAsum!J31 -> 5.840296 | K31: =[3]cerNAsum!K31 -> 6.703841 | L31: =[3]cerNAsum!L31 -> 7.664262 | M31: =[3]cerNAsum!M31 -> 8.579708 | N31: =[3]cerNAsum!N31 -> 8.08855 | O31: =[3]cerNAsum!O31 -> 7.067259 | P31: =[3]cerNAsum!P31 -> 6.546317 | Q31: =[3]cerNAsum!Q31 -> 6.388569
A32: 3 | B32: Government | C32: =[3]cerNAsum!C32 -> 34.00359639 | D32: =[3]cerNAsum!D32 -> 33.80685954 | E32: =[3]cerNAsum!E32 -> 34.04051689 | F32: =[3]cerNAsum!F32 -> 35.89938376 | G32: =[3]cerNAsum!G32 -> 38.00320857 | H32: =[3]cerNAsum!H32 -> 41.53177029 | I32: =[3]cerNAsum!I32 -> 44.70750271 | J32: =[3]cerNAsum!J32 -> 48.45376224 | K32: =[3]cerNAsum!K32 -> 52.07224621 | L32: =[3]cerNAsum!L32 -> 54.15717031 | M32: =[3]cerNAsum!M32 -> 54.21683353 | N32: =[3]cerNAsum!N32 -> 54.75986795 | O32: =[3]cerNAsum!O32 -> 55.05665429 | P32: =[3]cerNAsum!P32 -> 55.68264847 | Q32: =[3]cerNAsum!Q32 -> 56.8985148
A33: 4 | B33: NGOs | C33: =[3]cerNAsum!C33 -> 1.793492588 | D33: =[3]cerNAsum!D33 -> 1.775701584 | E33: =[3]cerNAsum!E33 -> 1.781195476 | F33: =[3]cerNAsum!F33 -> 1.784829028 | G33: =[3]cerNAsum!G33 -> 1.956427671 | H33: =[3]cerNAsum!H33 -> 2.027374438 | I33: =[3]cerNAsum!I33 -> 2.047219912 | J33: =[3]cerNAsum!J33 -> 2.044020609 | K33: =[3]cerNAsum!K33 -> 2.341742407 | L33: =[3]cerNAsum!L33 -> 2.208368658 | M33: =[3]cerNAsum!M33 -> 2.258624795 | N33: =[3]cerNAsum!N33 -> 2.203649169 | O33: =[3]cerNAsum!O33 -> 2.255789826 | P33: =[3]cerNAsum!P33 -> 2.464396816 | Q33: =[3]cerNAsum!Q33 -> 2.553065129
A34: 5 | B34: Households | C34: =[3]cerNAsum!C34 -> 17.82717205 | D34: =[3]cerNAsum!D34 -> 16.34152754 | E34: =[3]cerNAsum!E34 -> 16.990298 | F34: =[3]cerNAsum!F34 -> 17.19714158 | G34: =[3]cerNAsum!G34 -> 17.35477551 | H34: =[3]cerNAsum!H34 -> 16.81930065 | I34: =[3]cerNAsum!I34 -> 17.3291074 | J34: =[3]cerNAsum!J34 -> 18.07656976 | K34: =[3]cerNAsum!K34 -> 18.7633728 | L34: =[3]cerNAsum!L34 -> 19.54841251 | M34: =[3]cerNAsum!M34 -> 20.81275917 | N34: =[3]cerNAsum!N34 -> 25.02069674 | O34: =[3]cerNAsum!O34 -> 25.81933306 | P34: =[3]cerNAsum!P34 -> 25.35880597 | Q34: =[3]cerNAsum!Q34 -> 26.57570118
B35: GDP at Factor Cost (Gross) | C35: =[3]cerNAsum!C35 -> 95.23541986 | D35: =[3]cerNAsum!D35 -> 96.97814229 | E35: =[3]cerNAsum!E35 -> 98.18848115 | F35: =[3]cerNAsum!F35 -> 102.7149276 | G35: =[3]cerNAsum!G35 -> 107.400718 | H35: =[3]cerNAsum!H35 -> 114.9948477 | I35: =[3]cerNAsum!I35 -> 115.6245867 | J35: =[3]cerNAsum!J35 -> 119.9785797 | K35: =[3]cerNAsum!K35 -> 124.1953451 | L35: =[3]cerNAsum!L35 -> 129.9650395 | M35: =[3]cerNAsum!M35 -> 135.1252902 | N35: =[3]cerNAsum!N35 -> 138.2825541 | O35: =[3]cerNAsum!O35 -> 139.3877019 | P35: =[3]cerNAsum!P35 -> 149.1681201 | Q35: =[3]cerNAsum!Q35 -> 157.675126
B36: Indirect taxes less Subsidies | C36: =[3]cerNAsum!C36 -> 13.23235715 | D36: =[3]cerNAsum!D36 -> 13.92994482 | E36: =[3]cerNAsum!E36 -> 12.19514342 | F36: =[3]cerNAsum!F36 -> 11.04243555 | G36: =[3]cerNAsum!G36 -> 10.67987197 | H36: =[3]cerNAsum!H36 -> 12.89025683 | I36: =[3]cerNAsum!I36 -> 13.99041877 | J36: =[3]cerNAsum!J36 -> 14.0094516 | K36: =[3]cerNAsum!K36 -> 16.53123085 | L36: =[3]cerNAsum!L36 -> 16.94856255 | M36: =[3]cerNAsum!M36 -> 18.85829413 | N36: =[3]cerNAsum!N36 -> 18.45126914 | O36: =[3]cerNAsum!O36 -> 15.85817753 | P36: =[3]cerNAsum!P36 -> 17.39160969 | Q36: =[3]cerNAsum!Q36 -> 16.25156479
B37: Less intermediate FISIM | C37: =[3]cerNAsum!C37 -> -2.225958612 | D37: =[3]cerNAsum!D37 -> -2.250366799 | E37: =[3]cerNAsum!E37 -> -2.44501436 | F37: =[3]cerNAsum!F37 -> -2.854629898 | G37: =[3]cerNAsum!G37 -> -2.959587939 | H37: =[3]cerNAsum!H37 -> -3.187033445 | I37: =[3]cerNAsum!I37 -> -2.730111077 | J37: =[3]cerNAsum!J37 -> -2.839350559 | K37: =[3]cerNAsum!K37 -> -3.107791831 | L37: =[3]cerNAsum!L37 -> -3.492457523 | M37: =[3]cerNAsum!M37 -> -4.134949015 | N37: =[3]cerNAsum!N37 -> -4.021373823 | O37: =[3]cerNAsum!O37 -> -3.564812042 | P37: =[3]cerNAsum!P37 -> -3.340178052 | Q37: =[3]cerNAsum!Q37 -> -3.178993332
B38: Nominal GDP at Market Prices (Gross) | C38: =[3]cerNAsum!C38 -> 106.2418184 | D38: =[3]cerNAsum!D38 -> 108.6577203 | E38: =[3]cerNAsum!E38 -> 107.9386102 | F38: =[3]cerNAsum!F38 -> 110.9027332 | G38: =[3]cerNAsum!G38 -> 115.121002 | H38: =[3]cerNAsum!H38 -> 124.6980711 | I38: =[3]cerNAsum!I38 -> 126.8848944 | J38: =[3]cerNAsum!J38 -> 131.1486807 | K38: =[3]cerNAsum!K38 -> 137.6187841 | L38: =[3]cerNAsum!L38 -> 143.4211446 | M38: =[3]cerNAsum!M38 -> 149.8486353 | N38: =[3]cerNAsum!N38 -> 152.7124494 | O38: =[3]cerNAsum!O38 -> 151.6810674 | P38: =[3]cerNAsum!P38 -> 163.2195517 | Q38: =[3]cerNAsum!Q38 -> 170.7476975
A39: Source: EPPSO estimates
A40: Table 2l Implicit GDP price deflators by institutional sector, FY2004-FY2011
B41: (US$ millions) | C41: =C2 -> FY1997 | D41: =D2 -> FY1998 | E41: FY1999 | F41: FY2000 | G41: FY2001 | H41: FY2002 | I41: FY2003 | J41: FY2004 | K41: FY2005 | L41: FY2006 | M41: FY2007 | N41: FY2008 | O41: FY2009 | P41: FY2010 | Q41: FY2011
A42: 1.1 | B42: Private Enterprise | C42: =C29/C3*100 -> 91.79852425 | D42: =D29/D3*100 -> 90.9894753 | E42: 94.29981191 | F42: 96.07334233 | G42: 96.13111818 | H42: 96.70935906 | I42: 96.7192094 | J42: 100 | K42: 102.9539617 | L42: 106.9788372 | M42: 107.6303755 | N42: 118.6537839 | O42: 120.8449603 | P42: =P29/P3*100 -> 125.7039814 | Q42: 128.1873063
A43: 1.2 | B43: Public Enterprise | C43: =C30/C4*100 -> 88.01236884 | D43: 130.2035881 | E43: 143.5307838 | F43: 104.4679316 | G43: 97.20574989 | H43: 113.5940057 | I43: 100.2285784 | J43: 100 | K43: 88.56273984 | L43: 81.27100269 | M43: 89.58753087 | N43: 68.37598204 | O43: 69.21588423 | P43: =P30/P4*100 -> 98.08647133 | Q43: 137.9684637
A44: 2 | B44: Finance (Banks) | C44: 88.23256033 | D44: 89.6256934 | E44: 91.34852153 | F44: 99.45256607 | G44: 87.71164975 | H44: 99.92422592 | I44: 98.43835434 | J44: 100 | K44: 113.8481454 | L44: 127.3398288 | M44: 131.1888683 | N44: 114.9834245 | O44: 97.58148022 | P44: =P31/P5*100 -> 85.8240013 | Q44: 85.65194572
A45: 3 | B45: Government | C45: 77.19744731 | D45: 81.35386678 | E45: 83.65785747 | F45: 87.52510427 | G45: 87.16982124 | H45: 90.54244029 | I45: 94.45641331 | J45: 100 | K45: 102.3224752 | L45: 103.8512213 | M45: 102.910048 | N45: 104.1616382 | O45: 105.2886499 | P45: =P32/P6*100 -> 103.5084937 | Q45: 103.5536859
A46: 4 | B46: NGOs | C46: 95.25138136 | D46: 91.65603302 | E46: 94.35506947 | F46: 93.78535954 | G46: 98.64669355 | H46: 99.22082115 | I46: 103.8056841 | J46: 100 | K46: 104.0907928 | L46: 103.0857635 | M46: 104.4767173 | N46: 107.8095377 | O46: 112.9783627 | P46: =P33/P7*100 -> 122.0653492 | Q46: 124.948413
A47: 5 | B47: Households | C47: 94.11717767 | D47: 91.07690658 | E47: 95.30981202 | F47: 96.20918655 | G47: 95.31946482 | H47: 96.34634911 | I47: 97.46270412 | J47: 100 | K47: 102.1176963 | L47: 105.6954485 | M47: 109.4962456 | N47: 127.9110738 | O47: 133.6119046 | P47: =P34/P8*100 -> 131.2425861 | Q47: 138.8556518
B48: GDP at Factor Cost (Gross) | C48: 85.96371547 | D48: 90.56124413 | E48: 94.19692264 | F48: 93.83688318 | G48: 92.38117672 | H48: 96.12430043 | I48: 96.48076116 | J48: 100 | K48: 101.7560724 | L48: 104.302186 | M48: 105.4997048 | N48: 109.5171113 | O48: 110.5085167 | P48: =P35/P9*100 -> 112.7877455 | Q48: 117.9528792
B49: Indirect taxes less Subsidies | C49: 108.4379428 | D49: 111.3487716 | E49: 96.32396284 | F49: 77.32260185 | G49: 75.91222474 | H49: 91.44818235 | I49: 99.41583687 | J49: 100 | K49: 107.7639492 | L49: 111.6214069 | M49: 114.9082736 | N49: 116.1342108 | O49: 111.5806417 | P49: =P36/P10*100 -> 109.7653842 | Q49: 105.2031604
B50: Less intermediate FISIM | C50: 92.58659975 | D50: 91.26749708 | E50: 95.83592576 | F50: 108.4358329 | G50: 108.7624074 | H50: 114.0407988 | I50: 99.98184996 | J50: 100 | K50: 110.586782 | L50: 129.6602694 | M50: 137.41549 | N50: 120.6374856 | O50: 99.73618575 | P50: =P37/P11*100 -> 90.79556467 | Q50: 89.94167137
B51: GDP at Market Prices (Gross) | C51: 88.10598429 | D51: 92.76660653 | E51: 94.3958613 | F51: 91.57221657 | G51: 90.21612826 | H51: 95.23847456 | I51: 96.72274259 | J51: 100 | K51: 102.2564772 | L51: 104.6146101 | M51: 105.9122782 | N51: 110.0074051 | O51: 110.9014381 | P51: =P38/P12*100 -> 113.0163634 | Q51: 117.2801032
A53: Table 2m Share of GDP by institutional sector, current prices, FY2004-FY2011
C54: =C2 -> FY1997 | D54: =D2 -> FY1998 | E54: FY1999 | F54: FY2000 | G54: FY2001 | H54: FY2002 | I54: FY2003 | J54: FY2004 | K54: FY2005 | L54: FY2006 | M54: FY2007 | N54: FY2008 | O54: FY2009 | P54: FY2010 | Q54: FY2011
A55: 1.1 | B55: Private Enterprise | C55: =C29/C$38 -> 0.2719218806 | D55: =D29/D$38 -> 0.2657639362 | E55: 0.2648984097 | F55: 0.2839723892 | G55: 0.2990286218 | H55: 0.2874575803 | I55: 0.2695023727 | J55: 0.2612050806 | K55: 0.2480398603 | L55: 0.2659242204 | M55: 0.2601459508 | N55: 0.268948808 | O55: 0.2754281774 | P55: =P29/P$38 -> 0.294793628 | Q55: 0.2953635615
A56: 1.2 | B56: Public Enterprise | C56: =C30/C$38 -> 0.08229041931 | D56: 0.1094607005 | E56: 0.1131601989 | F56: 0.1015183193 | G56: 0.09319743108 | H56: 0.1058291955 | I56: 0.09447914694 | J56: 0.08621687459 | K56: 0.07396663715 | L56: 0.05750665304 | M56: 0.06856818533 | N56: 0.04674117288 | O56: 0.04886190429 | P56: =P30/P$38 -> 0.06739307813 | Q56: 0.08683354498
A57: 2 | B57: Finance (Banks) | C57: 0.03745229571 | D57: 0.0394173556 | E57: 0.04233285931 | F57: 0.04582033149 | G57: 0.04284926221 | H57: 0.04470237552 | I57: 0.04221936761 | J57: 0.04453186999 | K57: 0.04871312477 | L57: 0.05343885675 | M57: 0.05725583006 | N57: 0.05296588477 | O57: 0.0465928881 | P57: =P31/P$38 -> 0.04010743157 | Q57: 0.03741525709
A58: 3 | B58: Government | C58: 0.3200584939 | D58: 0.3111316844 | E58: 0.3153692346 | F58: 0.323701524 | G58: 0.3301153387 | H58: 0.3330586426 | I58: 0.3523469277 | J58: 0.3694567263 | K58: 0.3783803683 | L58: 0.3776093858 | M58: 0.3618106592 | N58: 0.3585815574 | O58: 0.3629764428 | P58: =P32/P$38 -> 0.3411518283 | Q58: 0.3332315202
A59: 4 | B59: NGOs | C59: 0.01688123015 | D59: 0.01634215755 | E59: 0.01650193079 | F59: 0.01609364328 | G59: 0.01699453303 | H59: 0.01625826623 | I59: 0.0161344652 | J59: 0.0155855217 | K59: 0.01701615388 | L59: 0.01539778995 | M59: 0.01507270847 | N59: 0.01443005582 | O59: 0.01487192742 | P59: =P33/P$38 -> 0.01509866183 | Q59: 0.0149522668
A60: 5 | B60: Households | C60: 0.1677980697 | D60: 0.150394537 | E60: 0.157407048 | F60: 0.1550650834 | G60: 0.150752471 | H60: 0.1348801991 | I60: 0.136573447 | J60: 0.1378326465 | K60: 0.1363431084 | L60: 0.1363007705 | M60: 0.1388918833 | N60: 0.1638418926 | O60: 0.1702211984 | P60: =P34/P$38 -> 0.1553662273 | Q60: 0.1556431013
B61: GDP at Factor Cost (Gross) | C61: 0.8964023893 | D61: 0.8925103712 | E61: 0.9096696813 | F61: 0.9261712907 | G61: 0.9329376578 | H61: 0.9221862592 | I61: 0.9112557271 | J61: 0.9148287197 | K61: 0.9024592528 | L61: 0.9061776764 | M61: 0.9017452172 | N61: 0.9055093716 | O61: 0.9189525384 | P61: =P35/P$38 -> 0.9139108551 | Q61: 0.9234392519
B62: Indirect taxes less Subsidies | C62: 0.1245494227 | D62: 0.1282002308 | E62: 0.1129822165 | F62: 0.09956865113 | G62: 0.09277083923 | H62: 0.103371742 | I62: 0.1102607118 | J62: 0.1068211401 | K62: 0.1201233608 | L62: 0.1181733879 | M62: 0.1258489548 | N62: 0.1208236081 | O62: 0.1045494853 | P62: =P36/P$38 -> 0.1065534705 | Q62: 0.09517882249
B63: Less intermediate FISIM | C63: -0.02095181206 | D63: -0.02071060199 | E63: -0.02265189773 | F63: -0.0257399418 | G63: -0.02570849705 | H63: -0.02555800116 | I63: -0.02151643889 | J63: -0.02164985986 | K63: -0.02258261365 | L63: -0.02435106437 | M63: -0.02759417199 | N63: -0.02633297965 | O63: -0.02350202371 | P63: =P37/P$38 -> -0.02046432561 | Q63: -0.01861807438
B64: Real GDP at Market Prices (Gross) | C64: =C38/C$38 -> 1 | D64: =D38/D$38 -> 1 | E64: 1 | F64: 1 | G64: 1 | H64: 1 | I64: 1 | J64: 1 | K64: 1 | L64: 1 | M64: 1 | N64: 1 | O64: 1 | P64: =P38/P$38 -> 1 | Q64: 1
A66: Table 2n GDP by income component, current prices, FY2004-FY2011
B67: (US$ millions) | C67: =C2 -> FY1997 | D67: =D2 -> FY1998 | E67: FY1999 | F67: FY2000 | G67: FY2001 | H67: FY2002 | I67: FY2003 | J67: FY2004 | K67: FY2005 | L67: FY2006 | M67: FY2007 | N67: FY2008 | O67: FY2009 | P67: FY2010 | Q67: FY2011
B68: Compensation of employees | C68: =[3]cerNAsum!C68 -> 62.13847311 | D68: =[3]cerNAsum!D68 -> 62.52434453 | E68: =[3]cerNAsum!E68 -> 62.99763034 | F68: =[3]cerNAsum!F68 -> 66.36915799 | G68: =[3]cerNAsum!G68 -> 71.00036314 | H68: =[3]cerNAsum!H68 -> 75.4936322 | I68: =[3]cerNAsum!I68 -> 77.98700454 | J68: =[3]cerNAsum!J68 -> 81.47243301 | K68: =[3]cerNAsum!K68 -> 85.6056282 | L68: =[3]cerNAsum!L68 -> 89.52915405 | M68: =[3]cerNAsum!M68 -> 92.42990697 | N68: =[3]cerNAsum!N68 -> 94.97764239 | O68: =[3]cerNAsum!O68 -> 96.63365016 | P68: =[3]cerNAsum!P68 -> 99.42935849 | Q68: =[3]cerNAsum!Q68 -> 101.4402799
B69: Operating surplus (Gross before depreciation) | C69: =[3]cerNAsum!C69 -> 17.57817471 | D69: =[3]cerNAsum!D69 -> 20.75087022 | E69: =[3]cerNAsum!E69 -> 19.56885281 | F69: =[3]cerNAsum!F69 -> 21.14112801 | G69: =[3]cerNAsum!G69 -> 21.65407931 | H69: =[3]cerNAsum!H69 -> 26.54967785 | I69: =[3]cerNAsum!I69 -> 24.15032176 | J69: =[3]cerNAsum!J69 -> 23.51455293 | K69: =[3]cerNAsum!K69 -> 22.52382306 | L69: =[3]cerNAsum!L69 -> 24.90470498 | M69: =[3]cerNAsum!M69 -> 29.74722708 | N69: =[3]cerNAsum!N69 -> 25.18444698 | O69: =[3]cerNAsum!O69 -> 24.4115077 | P69: =[3]cerNAsum!P69 -> 31.18569159 | Q69: =[3]cerNAsum!Q69 -> 35.19062265
B70: Household mixed income | C70: =[3]cerNAsum!C70 -> 4.086510419 | D70: =[3]cerNAsum!D70 -> 2.968535194 | E70: =[3]cerNAsum!E70 -> 3.246241825 | F70: =[3]cerNAsum!F70 -> 3.515253765 | G70: =[3]cerNAsum!G70 -> 3.365046162 | H70: =[3]cerNAsum!H70 -> 2.952679078 | I70: =[3]cerNAsum!I70 -> 3.58632452 | J70: =[3]cerNAsum!J70 -> 3.876485083 | K70: =[3]cerNAsum!K70 -> 4.031784941 | L70: =[3]cerNAsum!L70 -> 4.15363817 | M70: =[3]cerNAsum!M70 -> 4.967604062 | N70: =[3]cerNAsum!N70 -> 6.80258592 | O70: =[3]cerNAsum!O70 -> 6.807442597 | P70: =[3]cerNAsum!P70 -> 6.046211599 | Q70: =[3]cerNAsum!Q70 -> 6.136772322
B71: Indirect taxes less Subsidies | C71: =[3]cerNAsum!C71 -> 10.92395715 | D71: =[3]cerNAsum!D71 -> 11.29134482 | E71: =[3]cerNAsum!E71 -> 10.82684342 | F71: =[3]cerNAsum!F71 -> 9.049935553 | G71: =[3]cerNAsum!G71 -> 8.071371967 | H71: =[3]cerNAsum!H71 -> 9.022493828 | I71: =[3]cerNAsum!I71 -> 10.14857177 | J71: =[3]cerNAsum!J71 -> 10.9244756 | K71: =[3]cerNAsum!K71 -> 13.83375185 | L71: =[3]cerNAsum!L71 -> 12.93133055 | M71: =[3]cerNAsum!M71 -> 10.99369113 | N71: =[3]cerNAsum!N71 -> 11.55103714 | O71: =[3]cerNAsum!O71 -> 8.38138853 | P71: =[3]cerNAsum!P71 -> 10.58587369 | Q71: =[3]cerNAsum!Q71 -> 10.72008704
B72: Less intermediate FISIM | C72: =[3]cerNAsum!C72 -> -2.225958612 | D72: =[3]cerNAsum!D72 -> -2.250366799 | E72: =[3]cerNAsum!E72 -> -2.44501436 | F72: =[3]cerNAsum!F72 -> -2.854629898 | G72: =[3]cerNAsum!G72 -> -2.959587939 | H72: =[3]cerNAsum!H72 -> -3.187033445 | I72: =[3]cerNAsum!I72 -> -2.730111077 | J72: =[3]cerNAsum!J72 -> -2.839350559 | K72: =[3]cerNAsum!K72 -> -3.107791831 | L72: =[3]cerNAsum!L72 -> -3.492457523 | M72: =[3]cerNAsum!M72 -> -4.134949015 | N72: =[3]cerNAsum!N72 -> -4.021373823 | O72: =[3]cerNAsum!O72 -> -3.564812042 | P72: =[3]cerNAsum!P72 -> -3.340178052 | Q72: =[3]cerNAsum!Q72 -> -3.178993332
B73: Total Monetary | C73: =[3]cerNAsum!C73 -> 92.50115678 | D73: =[3]cerNAsum!D73 -> 95.28472796 | E73: =[3]cerNAsum!E73 -> 94.19455404 | F73: =[3]cerNAsum!F73 -> 97.22084541 | G73: =[3]cerNAsum!G73 -> 101.1312726 | H73: =[3]cerNAsum!H73 -> 110.8314495 | I73: =[3]cerNAsum!I73 -> 113.1421115 | J73: =[3]cerNAsum!J73 -> 116.9485961 | K73: =[3]cerNAsum!K73 -> 122.8871962 | L73: =[3]cerNAsum!L73 -> 128.0263702 | M73: =[3]cerNAsum!M73 -> 134.0034802 | N73: =[3]cerNAsum!N73 -> 134.4943386 | O73: =[3]cerNAsum!O73 -> 132.6691769 | P73: =[3]cerNAsum!P73 -> 143.9069573 | Q73: =[3]cerNAsum!Q73 -> 150.3087686
B74: Percentage Monetary | C74: =[3]cerNAsum!C74 -> 0.8706661667 | D74: =[3]cerNAsum!D74 -> 0.8769255207 | E74: =[3]cerNAsum!E74 -> 0.872667842 | F74: =[3]cerNAsum!F74 -> 0.8766316446 | G74: =[3]cerNAsum!G74 -> 0.8784780439 | H74: =[3]cerNAsum!H74 -> 0.8887984277 | I74: =[3]cerNAsum!I74 -> 0.891690946 | J74: =[3]cerNAsum!J74 -> 0.8917252953 | K74: =[3]cerNAsum!K74 -> 0.8929536549 | L74: =[3]cerNAsum!L74 -> 0.8926603578 | M74: =[3]cerNAsum!M74 -> 0.8942589295 | N74: =[3]cerNAsum!N74 -> 0.8807031719 | O74: =[3]cerNAsum!O74 -> 0.8746587772 | P74: =[3]cerNAsum!P74 -> 0.8816772 | Q74: =[3]cerNAsum!Q74 -> 0.8802974848
B75: Household subsistence | C75: =[3]cerNAsum!C75 -> 6.875661626 | D75: =[3]cerNAsum!D75 -> 6.923992345 | E75: =[3]cerNAsum!E75 -> 7.136056173 | F75: =[3]cerNAsum!F75 -> 6.92908761 | G75: =[3]cerNAsum!G75 -> 7.170731181 | H75: =[3]cerNAsum!H75 -> 7.152621244 | I75: =[3]cerNAsum!I75 -> 7.021264176 | J75: =[3]cerNAsum!J75 -> 7.24298693 | K75: =[3]cerNAsum!K75 -> 7.391929097 | L75: =[3]cerNAsum!L75 -> 7.586456304 | M75: =[3]cerNAsum!M75 -> 7.741234518 | N75: =[3]cerNAsum!N75 -> 8.755906169 | O75: =[3]cerNAsum!O75 -> 9.49301592 | P75: =[3]cerNAsum!P75 -> 9.457526055 | Q75: =[3]cerNAsum!Q75 -> 9.951765484
B76: Owner occupied housing | C76: =[3]cerNAsum!C76 -> 6.865 | D76: =[3]cerNAsum!D76 -> 6.449 | E76: =[3]cerNAsum!E76 -> 6.608 | F76: =[3]cerNAsum!F76 -> 6.7528002 | G76: =[3]cerNAsum!G76 -> 6.818998168 | H76: =[3]cerNAsum!H76 -> 6.714000328 | I76: =[3]cerNAsum!I76 -> 6.721518704 | J76: =[3]cerNAsum!J76 -> 6.957097745 | K76: =[3]cerNAsum!K76 -> 7.33965876 | L76: =[3]cerNAsum!L76 -> 7.808318035 | M76: =[3]cerNAsum!M76 -> 8.103920591 | N76: =[3]cerNAsum!N76 -> 9.462204655 | O76: =[3]cerNAsum!O76 -> 9.518874547 | P76: =[3]cerNAsum!P76 -> 9.855068318 | Q76: =[3]cerNAsum!Q76 -> 10.48716338
B77: Total Non-Monetary | C77: =[3]cerNAsum!C77 -> 13.74066163 | D77: =[3]cerNAsum!D77 -> 13.37299234 | E77: =[3]cerNAsum!E77 -> 13.74405617 | F77: =[3]cerNAsum!F77 -> 13.68188781 | G77: =[3]cerNAsum!G77 -> 13.98972935 | H77: =[3]cerNAsum!H77 -> 13.86662157 | I77: =[3]cerNAsum!I77 -> 13.74278288 | J77: =[3]cerNAsum!J77 -> 14.20008467 | K77: =[3]cerNAsum!K77 -> 14.73158786 | L77: =[3]cerNAsum!L77 -> 15.39477434 | M77: =[3]cerNAsum!M77 -> 15.84515511 | N77: =[3]cerNAsum!N77 -> 18.21811082 | O77: =[3]cerNAsum!O77 -> 19.01189047 | P77: =[3]cerNAsum!P77 -> 19.31259437 | Q77: =[3]cerNAsum!Q77 -> 20.43892886
B78: Percentage Non-Monetary | C78: =[3]cerNAsum!C78 -> 0.1293338333 | D78: =[3]cerNAsum!D78 -> 0.1230744793 | E78: =[3]cerNAsum!E78 -> 0.127332158 | F78: =[3]cerNAsum!F78 -> 0.1233683554 | G78: =[3]cerNAsum!G78 -> 0.1215219561 | H78: =[3]cerNAsum!H78 -> 0.1112015723 | I78: =[3]cerNAsum!I78 -> 0.108309054 | J78: =[3]cerNAsum!J78 -> 0.1082747047 | K78: =[3]cerNAsum!K78 -> 0.1070463451 | L78: =[3]cerNAsum!L78 -> 0.1073396422 | M78: =[3]cerNAsum!M78 -> 0.1057410705 | N78: =[3]cerNAsum!N78 -> 0.1192968281 | O78: =[3]cerNAsum!O78 -> 0.1253412228 | P78: =[3]cerNAsum!P78 -> 0.1183228 | Q78: =[3]cerNAsum!Q78 -> 0.1197025152
B79: Nominal GDP at Market Prices (Gross) | C79: =[3]cerNAsum!C79 -> 106.2418184 | D79: =[3]cerNAsum!D79 -> 108.6577203 | E79: =[3]cerNAsum!E79 -> 107.9386102 | F79: =[3]cerNAsum!F79 -> 110.9027332 | G79: =[3]cerNAsum!G79 -> 115.121002 | H79: =[3]cerNAsum!H79 -> 124.6980711 | I79: =[3]cerNAsum!I79 -> 126.8848944 | J79: =[3]cerNAsum!J79 -> 131.1486807 | K79: =[3]cerNAsum!K79 -> 137.6187841 | L79: =[3]cerNAsum!L79 -> 143.4211446 | M79: =[3]cerNAsum!M79 -> 149.8486353 | N79: =[3]cerNAsum!N79 -> 152.7124494 | O79: =[3]cerNAsum!O79 -> 151.6810674 | P79: =[3]cerNAsum!P79 -> 163.2195517 | Q79: =[3]cerNAsum!Q79 -> 170.7476975
A80: Source: EPPSO estimates
A81: Table 2o GDP by income component, constant prices, FY2004-FY2011
B82: (constant prices of FY2004, US$ millions) | C82: =C2 -> FY1997 | D82: =D2 -> FY1998 | E82: FY1999 | F82: FY2000 | G82: FY2001 | H82: FY2002 | I82: FY2003 | J82: FY2004 | K82: FY2005 | L82: FY2006 | M82: FY2007 | N82: FY2008 | O82: FY2009 | P82: FY2010 | Q82: FY2011
B83: Compensation of employees | C83: =[3]cerNAsum!C83 -> 71.91721712 | D83: =[3]cerNAsum!D83 -> 71.48880343 | E83: =[3]cerNAsum!E83 -> 68.87985129 | F83: =[3]cerNAsum!F83 -> 69.65497631 | G83: =[3]cerNAsum!G83 -> 75.01737004 | H83: =[3]cerNAsum!H83 -> 78.64917518 | I83: =[3]cerNAsum!I83 -> 79.06939486 | J83: =[3]cerNAsum!J83 -> 81.47243301 | K83: =[3]cerNAsum!K83 -> 84.73842646 | L83: =[3]cerNAsum!L83 -> 87.64639344 | M83: =[3]cerNAsum!M83 -> 91.3071193 | N83: =[3]cerNAsum!N83 -> 91.52335727 | O83: =[3]cerNAsum!O83 -> 91.41161666 | P83: =[3]cerNAsum!P83 -> 93.01311394 | Q83: =[3]cerNAsum!Q83 -> 94.31739096
B84: Operating surplus (Gross before depreciation) | C84: =[3]cerNAsum!C84 -> 23.32992622 | D84: =[3]cerNAsum!D84 -> 20.77597879 | E84: =[3]cerNAsum!E84 -> 20.24352327 | F84: =[3]cerNAsum!F84 -> 24.66620774 | G84: =[3]cerNAsum!G84 -> 26.09964142 | H84: =[3]cerNAsum!H84 -> 26.31472359 | I84: =[3]cerNAsum!I84 -> 25.83058494 | J84: =[3]cerNAsum!J84 -> 23.51455293 | K84: =[3]cerNAsum!K84 -> 21.99142982 | L84: =[3]cerNAsum!L84 -> 21.42259167 | M84: =[3]cerNAsum!M84 -> 22.51902873 | N84: =[3]cerNAsum!N84 -> 19.5822111 | O84: =[3]cerNAsum!O84 -> 19.69982221 | P84: =[3]cerNAsum!P84 -> 23.71965391 | Q84: =[3]cerNAsum!Q84 -> 23.41157602
B85: Household mixed income | C85: =[3]cerNAsum!C85 -> 3.859960998 | D85: =[3]cerNAsum!D85 -> 3.626479753 | E85: =[3]cerNAsum!E85 -> 3.369054125 | F85: =[3]cerNAsum!F85 -> 3.638480105 | G85: =[3]cerNAsum!G85 -> 3.89797811 | H85: =[3]cerNAsum!H85 -> 3.281251072 | I85: =[3]cerNAsum!I85 -> 3.712748608 | J85: =[3]cerNAsum!J85 -> 3.876485083 | K85: =[3]cerNAsum!K85 -> 3.985942251 | L85: =[3]cerNAsum!L85 -> 4.008995802 | M85: =[3]cerNAsum!M85 -> 4.418277911 | N85: =[3]cerNAsum!N85 -> 4.790082342 | O85: =[3]cerNAsum!O85 -> 4.558746479 | P85: =[3]cerNAsum!P85 -> 4.381660243 | Q85: =[3]cerNAsum!Q85 -> 4.109826522
B86: Indirect taxes less Subsidies | C86: =[3]cerNAsum!C86 -> 8.799694379 | D86: =[3]cerNAsum!D86 -> 9.388550767 | E86: =[3]cerNAsum!E86 -> 9.948247908 | F86: =[3]cerNAsum!F86 -> 11.54621546 | G86: =[3]cerNAsum!G86 -> 11.00296833 | H86: =[3]cerNAsum!H86 -> 11.30607462 | I86: =[3]cerNAsum!I86 -> 11.23451826 | J86: =[3]cerNAsum!J86 -> 10.9244756 | K86: =[3]cerNAsum!K86 -> 12.28812878 | L86: =[3]cerNAsum!L86 -> 12.22427862 | M86: =[3]cerNAsum!M86 -> 11.65892335 | N86: =[3]cerNAsum!N86 -> 11.4870132 | O86: =[3]cerNAsum!O86 -> 9.909731802 | P86: =[3]cerNAsum!P86 -> 12.04510327 | Q86: =[3]cerNAsum!Q86 -> 12.25610848
B87: Less intermediate FISIM | C87: =[3]cerNAsum!C87 -> -2.404190907 | D87: =[3]cerNAsum!D87 -> -2.465682604 | E87: =[3]cerNAsum!E87 -> -2.551250317 | F87: =[3]cerNAsum!F87 -> -2.632552194 | G87: =[3]cerNAsum!G87 -> -2.721149714 | H87: =[3]cerNAsum!H87 -> -2.794643215 | I87: =[3]cerNAsum!I87 -> -2.730606683 | J87: =[3]cerNAsum!J87 -> -2.839350559 | K87: =[3]cerNAsum!K87 -> -2.810274225 | L87: =[3]cerNAsum!L87 -> -2.69354486 | M87: =[3]cerNAsum!M87 -> -3.009085086 | N87: =[3]cerNAsum!N87 -> -3.333436372 | O87: =[3]cerNAsum!O87 -> -3.5742414 | P87: =[3]cerNAsum!P87 -> -3.678789888 | Q87: =[3]cerNAsum!Q87 -> -3.534505512
B88: Total Monetary | C88: =[3]cerNAsum!C88 -> 105.5026078 | D88: =[3]cerNAsum!D88 -> 102.8141301 | E88: =[3]cerNAsum!E88 -> 99.88942628 | F88: =[3]cerNAsum!F88 -> 106.8733274 | G88: =[3]cerNAsum!G88 -> 113.2968082 | H88: =[3]cerNAsum!H88 -> 116.7565812 | I88: =[3]cerNAsum!I88 -> 117.11664 | J88: =[3]cerNAsum!J88 -> 116.9485961 | K88: =[3]cerNAsum!K88 -> 120.1936531 | L88: =[3]cerNAsum!L88 -> 122.6087147 | M88: =[3]cerNAsum!M88 -> 126.8942642 | N88: =[3]cerNAsum!N88 -> 124.0492275 | O88: =[3]cerNAsum!O88 -> 122.0056758 | P88: =[3]cerNAsum!P88 -> 129.4807415 | Q88: =[3]cerNAsum!Q88 -> 130.5603965
B89: Percentage Monetary | C89: =[3]cerNAsum!C89 -> 0.8749295942 | D89: =[3]cerNAsum!D89 -> 0.8777763724 | E89: =[3]cerNAsum!E89 -> 0.8735658547 | F89: =[3]cerNAsum!F89 -> 0.8824514238 | G89: =[3]cerNAsum!G89 -> 0.8878657414 | H89: =[3]cerNAsum!H89 -> 0.8917314114 | I89: =[3]cerNAsum!I89 -> 0.892765264 | J89: =[3]cerNAsum!J89 -> 0.8917252953 | K89: =[3]cerNAsum!K89 -> 0.8930888053 | L89: =[3]cerNAsum!L89 -> 0.8943355544 | M89: =[3]cerNAsum!M89 -> 0.8968824159 | N89: =[3]cerNAsum!N89 -> 0.8935966697 | O89: =[3]cerNAsum!O89 -> 0.8920430958 | P89: =[3]cerNAsum!P89 -> 0.8965496093 | Q89: =[3]cerNAsum!Q89 -> 0.8967697365
B90: Household subsistence | C90: =[3]cerNAsum!C90 -> 7.636261575 | D90: =[3]cerNAsum!D90 -> 7.519786778 | E90: =[3]cerNAsum!E90 -> 7.62142957 | F90: =[3]cerNAsum!F90 -> 7.313119919 | G90: =[3]cerNAsum!G90 -> 7.44498919 | H90: =[3]cerNAsum!H90 -> 7.390088659 | I90: =[3]cerNAsum!I90 -> 7.209019527 | J90: =[3]cerNAsum!J90 -> 7.24298693 | K90: =[3]cerNAsum!K90 -> 7.295933237 | L90: =[3]cerNAsum!L90 -> 7.317345365 | M90: =[3]cerNAsum!M90 -> 7.340509393 | N90: =[3]cerNAsum!N90 -> 7.390127092 | O90: =[3]cerNAsum!O90 -> 7.375670552 | P90: =[3]cerNAsum!P90 -> 7.422544778 | Q90: =[3]cerNAsum!Q90 -> 7.439880734
B91: Owner occupied housing | C91: =[3]cerNAsum!C91 -> 7.44524219 | D91: =[3]cerNAsum!D91 -> 6.796292294 | E91: =[3]cerNAsum!E91 -> 6.835905464 | F91: =[3]cerNAsum!F91 -> 6.923139585 | G91: =[3]cerNAsum!G91 -> 6.863991316 | H91: =[3]cerNAsum!H91 -> 6.785783249 | I91: =[3]cerNAsum!I91 -> 6.858476685 | J91: =[3]cerNAsum!J91 -> 6.957097745 | K91: =[3]cerNAsum!K91 -> 7.092386242 | L91: =[3]cerNAsum!L91 -> 7.168696031 | M91: =[3]cerNAsum!M91 -> 7.248950411 | N91: =[3]cerNAsum!N91 -> 7.380799632 | O91: =[3]cerNAsum!O91 -> 7.389709176 | P91: =[3]cerNAsum!P91 -> 7.517881447 | Q91: =[3]cerNAsum!Q91 -> 7.589377713
B92: Total Non-Monetary | C92: =[3]cerNAsum!C92 -> 15.08150377 | D92: =[3]cerNAsum!D92 -> 14.31607907 | E92: =[3]cerNAsum!E92 -> 14.45733503 | F92: =[3]cerNAsum!F92 -> 14.2362595 | G92: =[3]cerNAsum!G92 -> 14.30898051 | H92: =[3]cerNAsum!H92 -> 14.17587191 | I92: =[3]cerNAsum!I92 -> 14.06749621 | J92: =[3]cerNAsum!J92 -> 14.20008467 | K92: =[3]cerNAsum!K92 -> 14.38831948 | L92: =[3]cerNAsum!L92 -> 14.4860414 | M92: =[3]cerNAsum!M92 -> 14.5894598 | N92: =[3]cerNAsum!N92 -> 14.77092672 | O92: =[3]cerNAsum!O92 -> 14.76537973 | P92: =[3]cerNAsum!P92 -> 14.94042622 | Q92: =[3]cerNAsum!Q92 -> 15.02925845
B93: Percentage Non-Monetary | C93: =[3]cerNAsum!C93 -> 0.1250704058 | D93: =[3]cerNAsum!D93 -> 0.1222236276 | E93: =[3]cerNAsum!E93 -> 0.1264341453 | F93: =[3]cerNAsum!F93 -> 0.1175485762 | G93: =[3]cerNAsum!G93 -> 0.1121342586 | H93: =[3]cerNAsum!H93 -> 0.1082685886 | I93: =[3]cerNAsum!I93 -> 0.107234736 | J93: =[3]cerNAsum!J93 -> 0.1082747047 | K93: =[3]cerNAsum!K93 -> 0.1069111947 | L93: =[3]cerNAsum!L93 -> 0.1056644456 | M93: =[3]cerNAsum!M93 -> 0.1031175841 | N93: =[3]cerNAsum!N93 -> 0.1064033303 | O93: =[3]cerNAsum!O93 -> 0.1079569042 | P93: =[3]cerNAsum!P93 -> 0.1034503907 | Q93: =[3]cerNAsum!Q93 -> 0.1032302635
B94: Real GDP at Market Prices (Gross) | C94: =[3]cerNAsum!C94 -> 120.5841116 | D94: =[3]cerNAsum!D94 -> 117.1302092 | E94: =[3]cerNAsum!E94 -> 114.3467613 | F94: =[3]cerNAsum!F94 -> 121.1095869 | G94: =[3]cerNAsum!G94 -> 127.6057887 | H94: =[3]cerNAsum!H94 -> 130.9324532 | I94: =[3]cerNAsum!I94 -> 131.1841362 | J94: =[3]cerNAsum!J94 -> 131.1486807 | K94: =[3]cerNAsum!K94 -> 134.5819726 | L94: =[3]cerNAsum!L94 -> 137.0947561 | M94: =[3]cerNAsum!M94 -> 141.483724 | N94: =[3]cerNAsum!N94 -> 138.8201543 | O94: =[3]cerNAsum!O94 -> 136.7710555 | P94: =[3]cerNAsum!P94 -> 144.4211677 | Q94: =[3]cerNAsum!Q94 -> 145.5896549
A95: Source: EPPSO estimates

Sheet NAdet
A1: Table 2p Current price GDP by institutional sector and income components, FY2004-FY2011
B2: (US$ millions) | C2: FY1997 | D2: FY1998 | E2: FY1999 | F2: FY2000 | G2: FY2001 | H2: FY2002 | I2: FY2003 | J2: FY2004 | K2: FY2005 | L2: FY2006 | M2: FY2007 | N2: FY2008 | O2: FY2009 | P2: FY2010 | Q2: FY2011
A3: 1.1 | B3: Private Enterprise (1) | C3: =[3]cerNAdet!C3 -> 28.88947506 | D3: =[3]cerNAdet!D3 -> 28.87730345 | E3: =[3]cerNAdet!E3 -> 28.59276619 | F3: =[3]cerNAdet!F3 -> 31.49331412 | G3: =[3]cerNAdet!G3 -> 34.42447456 | H3: =[3]cerNAdet!H3 -> 35.84540579 | I3: =[3]cerNAdet!I3 -> 34.19578009 | J3: =[3]cerNAdet!J3 -> 34.25670173 | K3: =[3]cerNAdet!K3 -> 34.13494398 | L3: =[3]cerNAdet!L3 -> 38.13915606 | M3: =[3]cerNAdet!M3 -> 38.98251572 | N3: =[3]cerNAdet!N3 -> 41.07183125 | O3: =[3]cerNAdet!O3 -> 41.77723994 | P3: =[3]cerNAdet!P3 -> 48.1160838 | Q3: =[3]cerNAdet!Q3 -> 50.43264805
B4: Compensation of employees | C4: =[3]cerNAdet!C4 -> 16.66990035 | D4: =[3]cerNAdet!D4 -> 17.23768322 | E4: =[3]cerNAdet!E4 -> 17.77196338 | F4: =[3]cerNAdet!F4 -> 18.72528612 | G4: =[3]cerNAdet!G4 -> 20.72056525 | H4: =[3]cerNAdet!H4 -> 21.25744093 | I4: =[3]cerNAdet!I4 -> 19.56845533 | J4: =[3]cerNAdet!J4 -> 19.1015208 | K4: =[3]cerNAdet!K4 -> 18.99234158 | L4: =[3]cerNAdet!L4 -> 20.52223009 | M4: =[3]cerNAdet!M4 -> 22.26348964 | N4: =[3]cerNAdet!N4 -> 23.59274527 | O4: =[3]cerNAdet!O4 -> 24.47586025 | P4: =[3]cerNAdet!P4 -> 25.75483721 | Q4: =[3]cerNAdet!Q4 -> 26.54569261
B5: Operating surplus (gross) | C5: =[3]cerNAdet!C5 -> 12.21957471 | D5: =[3]cerNAdet!D5 -> 11.63962022 | E5: =[3]cerNAdet!E5 -> 10.82080281 | F5: =[3]cerNAdet!F5 -> 12.76802801 | G5: =[3]cerNAdet!G5 -> 13.70390931 | H5: =[3]cerNAdet!H5 -> 14.58796485 | I5: =[3]cerNAdet!I5 -> 14.62732476 | J5: =[3]cerNAdet!J5 -> 15.15518093 | K5: =[3]cerNAdet!K5 -> 15.1426024 | L5: =[3]cerNAdet!L5 -> 17.61692598 | M5: =[3]cerNAdet!M5 -> 16.71902608 | N5: =[3]cerNAdet!N5 -> 17.47908598 | O5: =[3]cerNAdet!O5 -> 17.3013797 | P5: =[3]cerNAdet!P5 -> 22.36124659 | Q5: =[3]cerNAdet!Q5 -> 23.88695544
A6: 1.2 | B6: Public Enterprise | C6: =[3]cerNAdet!C6 -> 8.742683785 | D6: =[3]cerNAdet!D6 -> 11.89375018 | E6: =[3]cerNAdet!E6 -> 12.2143546 | F6: =[3]cerNAdet!F6 -> 11.25865908 | G6: =[3]cerNAdet!G6 -> 10.72898165 | H6: =[3]cerNAdet!H6 -> 13.19669654 | I6: =[3]cerNAdet!I6 -> 11.98797658 | J6: =[3]cerNAdet!J6 -> 11.30722936 | K6: =[3]cerNAdet!K6 -> 10.17919867 | L6: =[3]cerNAdet!L6 -> 8.24767 | M6: =[3]cerNAdet!M6 -> 10.274849 | N6: =[3]cerNAdet!N6 -> 7.137959 | O6: =[3]cerNAdet!O6 -> 7.411425798 | P6: =[3]cerNAdet!P6 -> 10.999868 | Q6: =[3]cerNAdet!Q6 -> 14.82662787
B7: Compensation of employees | C7: =[3]cerNAdet!C7 -> 8.151483785 | D7: =[3]cerNAdet!D7 -> 8.08985018 | E7: =[3]cerNAdet!E7 -> 7.646354595 | F7: =[3]cerNAdet!F7 -> 8.126759085 | G7: =[3]cerNAdet!G7 -> 8.211761648 | H7: =[3]cerNAdet!H7 -> 8.307296542 | I7: =[3]cerNAdet!I7 -> 9.378576581 | J7: =[3]cerNAdet!J7 -> 9.35562936 | K7: =[3]cerNAdet!K7 -> 9.294999 | L7: =[3]cerNAdet!L7 -> 9.429097 | M7: =[3]cerNAdet!M7 -> 10.279725 | N7: =[3]cerNAdet!N7 -> 10.96558 | O7: =[3]cerNAdet!O7 -> 11.2645508 | P7: =[3]cerNAdet!P7 -> 11.756093 | Q7: =[3]cerNAdet!Q7 -> 11.66942841
B8: Operating surplus (gross) | C8: =[3]cerNAdet!C8 -> 2.8996 | D8: =[3]cerNAdet!D8 -> 6.4425 | E8: =[3]cerNAdet!E8 -> 5.9363 | F8: =[3]cerNAdet!F8 -> 5.1244 | G8: =[3]cerNAdet!G8 -> 5.12572 | H8: =[3]cerNAdet!H8 -> 8.757163 | I8: =[3]cerNAdet!I8 -> 6.451247 | J8: =[3]cerNAdet!J8 -> 5.036576 | K8: =[3]cerNAdet!K8 -> 3.581678667 | L8: =[3]cerNAdet!L8 -> 2.835805 | M8: =[3]cerNAdet!M8 -> 7.859727 | N8: =[3]cerNAdet!N8 -> 3.072611 | O8: =[3]cerNAdet!O8 -> 3.623664 | P8: =[3]cerNAdet!P8 -> 6.049511 | Q8: =[3]cerNAdet!Q8 -> 8.68867721
B9: Less Subsidies | C9: =[3]cerNAdet!C9 -> -2.3084 | D9: =[3]cerNAdet!D9 -> -2.6386 | E9: =[3]cerNAdet!E9 -> -1.3683 | F9: =[3]cerNAdet!F9 -> -1.9925 | G9: =[3]cerNAdet!G9 -> -2.6085 | H9: =[3]cerNAdet!H9 -> -3.867763 | I9: =[3]cerNAdet!I9 -> -3.841847 | J9: =[3]cerNAdet!J9 -> -3.084976 | K9: =[3]cerNAdet!K9 -> -2.697479 | L9: =[3]cerNAdet!L9 -> -4.017232 | M9: =[3]cerNAdet!M9 -> -7.864603 | N9: =[3]cerNAdet!N9 -> -6.900232 | O9: =[3]cerNAdet!O9 -> -7.476789 | P9: =[3]cerNAdet!P9 -> -6.805736 | Q9: =[3]cerNAdet!Q9 -> -5.53147775
A10: 2 | B10: Finance (Banks) | C10: =[3]cerNAdet!C10 -> 3.979 | D10: =[3]cerNAdet!D10 -> 4.283 | E10: =[3]cerNAdet!E10 -> 4.56935 | F10: =[3]cerNAdet!F10 -> 5.0816 | G10: =[3]cerNAdet!G10 -> 4.93285 | H10: =[3]cerNAdet!H10 -> 5.5743 | I10: =[3]cerNAdet!I10 -> 5.357 | J10: =[3]cerNAdet!J10 -> 5.840296 | K10: =[3]cerNAdet!K10 -> 6.703841 | L10: =[3]cerNAdet!L10 -> 7.664262 | M10: =[3]cerNAdet!M10 -> 8.579708 | N10: =[3]cerNAdet!N10 -> 8.08855 | O10: =[3]cerNAdet!O10 -> 7.067259 | P10: =[3]cerNAdet!P10 -> 6.546317 | Q10: =[3]cerNAdet!Q10 -> 6.388569
B11: Compensation of employees | C11: =[3]cerNAdet!C11 -> 1.52 | D11: =[3]cerNAdet!D11 -> 1.61425 | E11: =[3]cerNAdet!E11 -> 1.7576 | F11: =[3]cerNAdet!F11 -> 1.8329 | G11: =[3]cerNAdet!G11 -> 2.1084 | H11: =[3]cerNAdet!H11 -> 2.36975 | I11: =[3]cerNAdet!I11 -> 2.28525 | J11: =[3]cerNAdet!J11 -> 2.5175 | K11: =[3]cerNAdet!K11 -> 2.904299 | L11: =[3]cerNAdet!L11 -> 3.212288 | M11: =[3]cerNAdet!M11 -> 3.411234 | N11: =[3]cerNAdet!N11 -> 3.4558 | O11: =[3]cerNAdet!O11 -> 3.580795 | P11: =[3]cerNAdet!P11 -> 3.771383 | Q11: =[3]cerNAdet!Q11 -> 3.773579
B12: Operating surplus (gross) | C12: =[3]cerNAdet!C12 -> 2.459 | D12: =[3]cerNAdet!D12 -> 2.66875 | E12: =[3]cerNAdet!E12 -> 2.81175 | F12: =[3]cerNAdet!F12 -> 3.2487 | G12: =[3]cerNAdet!G12 -> 2.82445 | H12: =[3]cerNAdet!H12 -> 3.20455 | I12: =[3]cerNAdet!I12 -> 3.07175 | J12: =[3]cerNAdet!J12 -> 3.322796 | K12: =[3]cerNAdet!K12 -> 3.799542 | L12: =[3]cerNAdet!L12 -> 4.451974 | M12: =[3]cerNAdet!M12 -> 5.168474 | N12: =[3]cerNAdet!N12 -> 4.63275 | O12: =[3]cerNAdet!O12 -> 3.486464 | P12: =[3]cerNAdet!P12 -> 2.774934 | Q12: =[3]cerNAdet!Q12 -> 2.61499
A13: 3 | B13: Government (compensation of employees) | C13: =[3]cerNAdet!C13 -> 34.00359639 | D13: =[3]cerNAdet!D13 -> 33.80685954 | E13: =[3]cerNAdet!E13 -> 34.04051689 | F13: =[3]cerNAdet!F13 -> 35.89938376 | G13: =[3]cerNAdet!G13 -> 38.00320857 | H13: =[3]cerNAdet!H13 -> 41.53177029 | I13: =[3]cerNAdet!I13 -> 44.70750271 | J13: =[3]cerNAdet!J13 -> 48.45376224 | K13: =[3]cerNAdet!K13 -> 52.07224621 | L13: =[3]cerNAdet!L13 -> 54.15717031 | M13: =[3]cerNAdet!M13 -> 54.21683353 | N13: =[3]cerNAdet!N13 -> 54.75986795 | O13: =[3]cerNAdet!O13 -> 55.05665429 | P13: =[3]cerNAdet!P13 -> 55.68264847 | Q13: =[3]cerNAdet!Q13 -> 56.8985148
A14: 3.1 | B14: RMI Government (REPMAR) | C14: =[3]cerNAdet!C14 -> 22.041037 | D14: =[3]cerNAdet!D14 -> 20.736139 | E14: =[3]cerNAdet!E14 -> 19.203961 | F14: =[3]cerNAdet!F14 -> 19.445888 | G14: =[3]cerNAdet!G14 -> 20.779301 | H14: =[3]cerNAdet!H14 -> 23.523049 | I14: =[3]cerNAdet!I14 -> 26.842263 | J14: =[3]cerNAdet!J14 -> 30.384718 | K14: =[3]cerNAdet!K14 -> 33.395501 | L14: =[3]cerNAdet!L14 -> 37.108665 | M14: =[3]cerNAdet!M14 -> 36.923986 | N14: =[3]cerNAdet!N14 -> 37.299086 | O14: =[3]cerNAdet!O14 -> 37.541186 | P14: =[3]cerNAdet!P14 -> 38.205508 | Q14: =[3]cerNAdet!Q14 -> 38.7471939
A15: 3.2 | B15: Government Agencies | C15: =[3]cerNAdet!C15 -> 4.779541094 | D15: =[3]cerNAdet!D15 -> 5.656342344 | E15: =[3]cerNAdet!E15 -> 6.943670225 | F15: =[3]cerNAdet!F15 -> 7.900414679 | G15: =[3]cerNAdet!G15 -> 8.615243207 | H15: =[3]cerNAdet!H15 -> 9.458734116 | I15: =[3]cerNAdet!I15 -> 9.669738238 | J15: =[3]cerNAdet!J15 -> 9.339329463 | K15: =[3]cerNAdet!K15 -> 9.507690635 | L15: =[3]cerNAdet!L15 -> 7.652691887 | M15: =[3]cerNAdet!M15 -> 7.763295085 | N15: =[3]cerNAdet!N15 -> 8.082500338 | O15: =[3]cerNAdet!O15 -> 8.824950862 | P15: =[3]cerNAdet!P15 -> 9.567152107 | Q15: =[3]cerNAdet!Q15 -> 10.08928667
A16: 3.3 | B16: Local Government | C16: =[3]cerNAdet!C16 -> 7.183018295 | D16: =[3]cerNAdet!D16 -> 7.414378195 | E16: =[3]cerNAdet!E16 -> 7.892885666 | F16: =[3]cerNAdet!F16 -> 8.553081079 | G16: =[3]cerNAdet!G16 -> 8.608664359 | H16: =[3]cerNAdet!H16 -> 8.549987172 | I16: =[3]cerNAdet!I16 -> 8.195501472 | J16: =[3]cerNAdet!J16 -> 8.729714779 | K16: =[3]cerNAdet!K16 -> 9.169054576 | L16: =[3]cerNAdet!L16 -> 9.395813423 | M16: =[3]cerNAdet!M16 -> 9.529552445 | N16: =[3]cerNAdet!N16 -> 9.378281614 | O16: =[3]cerNAdet!O16 -> 8.690517425 | P16: =[3]cerNAdet!P16 -> 7.909988365 | Q16: =[3]cerNAdet!Q16 -> 8.062034234
A17: 4 | B17: NGOs (compensation of employees) | C17: =[3]cerNAdet!C17 -> 1.793492588 | D17: =[3]cerNAdet!D17 -> 1.775701584 | E17: =[3]cerNAdet!E17 -> 1.781195476 | F17: =[3]cerNAdet!F17 -> 1.784829028 | G17: =[3]cerNAdet!G17 -> 1.956427671 | H17: =[3]cerNAdet!H17 -> 2.027374438 | I17: =[3]cerNAdet!I17 -> 2.047219912 | J17: =[3]cerNAdet!J17 -> 2.044020609 | K17: =[3]cerNAdet!K17 -> 2.341742407 | L17: =[3]cerNAdet!L17 -> 2.208368658 | M17: =[3]cerNAdet!M17 -> 2.258624795 | N17: =[3]cerNAdet!N17 -> 2.203649169 | O17: =[3]cerNAdet!O17 -> 2.255789826 | P17: =[3]cerNAdet!P17 -> 2.464396816 | Q17: =[3]cerNAdet!Q17 -> 2.553065129
A18: 5 | B18: Households | C18: =[3]cerNAdet!C18 -> 17.82717205 | D18: =[3]cerNAdet!D18 -> 16.34152754 | E18: =[3]cerNAdet!E18 -> 16.990298 | F18: =[3]cerNAdet!F18 -> 17.19714158 | G18: =[3]cerNAdet!G18 -> 17.35477551 | H18: =[3]cerNAdet!H18 -> 16.81930065 | I18: =[3]cerNAdet!I18 -> 17.3291074 | J18: =[3]cerNAdet!J18 -> 18.07656976 | K18: =[3]cerNAdet!K18 -> 18.7633728 | L18: =[3]cerNAdet!L18 -> 19.54841251 | M18: =[3]cerNAdet!M18 -> 20.81275917 | N18: =[3]cerNAdet!N18 -> 25.02069674 | O18: =[3]cerNAdet!O18 -> 25.81933306 | P18: =[3]cerNAdet!P18 -> 25.35880597 | Q18: =[3]cerNAdet!Q18 -> 26.57570118
B19: Mixed Income | C19: =[3]cerNAdet!C19 -> 4.086510419 | D19: =[3]cerNAdet!D19 -> 2.968535194 | E19: =[3]cerNAdet!E19 -> 3.246241825 | F19: =[3]cerNAdet!F19 -> 3.515253765 | G19: =[3]cerNAdet!G19 -> 3.365046162 | H19: =[3]cerNAdet!H19 -> 2.952679078 | I19: =[3]cerNAdet!I19 -> 3.58632452 | J19: =[3]cerNAdet!J19 -> 3.876485083 | K19: =[3]cerNAdet!K19 -> 4.031784941 | L19: =[3]cerNAdet!L19 -> 4.15363817 | M19: =[3]cerNAdet!M19 -> 4.967604062 | N19: =[3]cerNAdet!N19 -> 6.80258592 | O19: =[3]cerNAdet!O19 -> 6.807442597 | P19: =[3]cerNAdet!P19 -> 6.046211599 | Q19: =[3]cerNAdet!Q19 -> 6.136772322
B20: Copra production | C20: =[3]cerNAdet!C20 -> 2.062 | D20: =[3]cerNAdet!D20 -> 0.821 | E20: =[3]cerNAdet!E20 -> 1.007 | F20: =[3]cerNAdet!F20 -> 1.183 | G20: =[3]cerNAdet!G20 -> 0.949 | H20: =[3]cerNAdet!H20 -> 0.478 | I20: =[3]cerNAdet!I20 -> 1.027 | J20: =[3]cerNAdet!J20 -> 1.186 | K20: =[3]cerNAdet!K20 -> 1.178 | L20: =[3]cerNAdet!L20 -> 1.115 | M20: =[3]cerNAdet!M20 -> 1.81 | N20: =[3]cerNAdet!N20 -> 3.152898 | O20: =[3]cerNAdet!O20 -> 2.889 | P20: =[3]cerNAdet!P20 -> 2.048 | Q20: =[3]cerNAdet!Q20 -> 1.857
B21: Fishing | C21: =[3]cerNAdet!C21 -> 0.9091324961 | D21: =[3]cerNAdet!D21 -> 0.9750478276 | E21: =[3]cerNAdet!E21 -> 1.043198877 | F21: =[3]cerNAdet!F21 -> 1.11611335 | G21: =[3]cerNAdet!G21 -> 1.194124185 | H21: =[3]cerNAdet!H21 -> 1.277587595 | I21: =[3]cerNAdet!I21 -> 1.366884687 | J21: =[3]cerNAdet!J21 -> 1.462423206 | K21: =[3]cerNAdet!K21 -> 1.564639399 | L21: =[3]cerNAdet!L21 -> 1.674 | M21: =[3]cerNAdet!M21 -> 1.748350518 | N21: =[3]cerNAdet!N21 -> 2.012418184 | O21: =[3]cerNAdet!O21 -> 2.279561528 | P21: =[3]cerNAdet!P21 -> 2.30988908 | Q21: =[3]cerNAdet!Q21 -> 2.492100701
B22: Handicrafts | C22: =[3]cerNAdet!C22 -> 0.9153779225 | D22: =[3]cerNAdet!D22 -> 0.9635688643 | E22: =[3]cerNAdet!E22 -> 0.97976 | F22: =[3]cerNAdet!F22 -> 0.9962232002 | G22: =[3]cerNAdet!G22 -> 1.00095927 | H22: =[3]cerNAdet!H22 -> 0.980618926 | I22: =[3]cerNAdet!I22 -> 0.9768084436 | J22: =[3]cerNAdet!J22 -> 1.005988878 | K22: =[3]cerNAdet!K22 -> 1.056026658 | L22: =[3]cerNAdet!L22 -> 1.117867795 | M22: =[3]cerNAdet!M22 -> 1.154415278 | N22: =[3]cerNAdet!N22 -> 1.341198825 | O22: =[3]cerNAdet!O22 -> 1.342518777 | P22: =[3]cerNAdet!P22 -> 1.383019626 | Q22: =[3]cerNAdet!Q22 -> 1.464403222
B23: Other | C23: =[3]cerNAdet!C23 -> 0.2 | D23: =[3]cerNAdet!D23 -> 0.2089185021 | E23: =[3]cerNAdet!E23 -> 0.2162829484 | F23: =[3]cerNAdet!F23 -> 0.2199172154 | G23: =[3]cerNAdet!G23 -> 0.2209627072 | H23: =[3]cerNAdet!H23 -> 0.2164725571 | I23: =[3]cerNAdet!I23 -> 0.2156313895 | J23: =[3]cerNAdet!J23 -> 0.2220729981 | K23: =[3]cerNAdet!K23 -> 0.2331188853 | L23: =[3]cerNAdet!L23 -> 0.2467703751 | M23: =[3]cerNAdet!M23 -> 0.2548382665 | N23: =[3]cerNAdet!N23 -> 0.2960709115 | O23: =[3]cerNAdet!O23 -> 0.2963622921 | P23: =[3]cerNAdet!P23 -> 0.3053028929 | Q23: =[3]cerNAdet!Q23 -> 0.3232683989
B24: Subsistence | C24: =[3]cerNAdet!C24 -> 6.875661626 | D24: =[3]cerNAdet!D24 -> 6.923992345 | E24: =[3]cerNAdet!E24 -> 7.136056173 | F24: =[3]cerNAdet!F24 -> 6.92908761 | G24: =[3]cerNAdet!G24 -> 7.170731181 | H24: =[3]cerNAdet!H24 -> 7.152621244 | I24: =[3]cerNAdet!I24 -> 7.021264176 | J24: =[3]cerNAdet!J24 -> 7.24298693 | K24: =[3]cerNAdet!K24 -> 7.391929097 | L24: =[3]cerNAdet!L24 -> 7.586456304 | M24: =[3]cerNAdet!M24 -> 7.741234518 | N24: =[3]cerNAdet!N24 -> 8.755906169 | O24: =[3]cerNAdet!O24 -> 9.49301592 | P24: =[3]cerNAdet!P24 -> 9.457526055 | Q24: =[3]cerNAdet!Q24 -> 9.951765484
B25: Home Ownership | C25: =[3]cerNAdet!C25 -> 6.865 | D25: =[3]cerNAdet!D25 -> 6.449 | E25: =[3]cerNAdet!E25 -> 6.608 | F25: =[3]cerNAdet!F25 -> 6.7528002 | G25: =[3]cerNAdet!G25 -> 6.818998168 | H25: =[3]cerNAdet!H25 -> 6.714000328 | I25: =[3]cerNAdet!I25 -> 6.721518704 | J25: =[3]cerNAdet!J25 -> 6.957097745 | K25: =[3]cerNAdet!K25 -> 7.33965876 | L25: =[3]cerNAdet!L25 -> 7.808318035 | M25: =[3]cerNAdet!M25 -> 8.103920591 | N25: =[3]cerNAdet!N25 -> 9.462204655 | O25: =[3]cerNAdet!O25 -> 9.518874547 | P25: =[3]cerNAdet!P25 -> 9.855068318 | Q25: =[3]cerNAdet!Q25 -> 10.48716338
B26: Indirect taxes | C26: =[3]cerNAdet!C26 -> 13.23235715 | D26: =[3]cerNAdet!D26 -> 13.92994482 | E26: =[3]cerNAdet!E26 -> 12.19514342 | F26: =[3]cerNAdet!F26 -> 11.04243555 | G26: =[3]cerNAdet!G26 -> 10.67987197 | H26: =[3]cerNAdet!H26 -> 12.89025683 | I26: =[3]cerNAdet!I26 -> 13.99041877 | J26: =[3]cerNAdet!J26 -> 14.0094516 | K26: =[3]cerNAdet!K26 -> 16.53123085 | L26: =[3]cerNAdet!L26 -> 16.94856255 | M26: =[3]cerNAdet!M26 -> 18.85829413 | N26: =[3]cerNAdet!N26 -> 18.45126914 | O26: =[3]cerNAdet!O26 -> 15.85817753 | P26: =[3]cerNAdet!P26 -> 17.39160969 | Q26: =[3]cerNAdet!Q26 -> 16.25156479
B27: Import and fuel taxes (REPMAR) | C27: =[3]cerNAdet!C27 -> 7.810482 | D27: =[3]cerNAdet!D27 -> 8.334591 | E27: =[3]cerNAdet!E27 -> 6.226785 | F27: =[3]cerNAdet!F27 -> 4.522863 | G27: =[3]cerNAdet!G27 -> 4.450707 | H27: =[3]cerNAdet!H27 -> 6.322558 | I27: =[3]cerNAdet!I27 -> 7.039552 | J27: =[3]cerNAdet!J27 -> 6.68052 | K27: =[3]cerNAdet!K27 -> 8.829749 | L27: =[3]cerNAdet!L27 -> 8.601212 | M27: =[3]cerNAdet!M27 -> 9.354281 | N27: =[3]cerNAdet!N27 -> 8.672349 | O27: =[3]cerNAdet!O27 -> 7.138075 | P27: =[3]cerNAdet!P27 -> 7.721629 | Q27: =[3]cerNAdet!Q27 -> 7.711841
B28: Other Indirect taxes (REPMAR) | C28: =[3]cerNAdet!C28 -> 2.693475151 | D28: =[3]cerNAdet!D28 -> 2.63210382 | E28: =[3]cerNAdet!E28 -> 2.641858424 | F28: =[3]cerNAdet!F28 -> 2.995972553 | G28: =[3]cerNAdet!G28 -> 2.860264967 | H28: =[3]cerNAdet!H28 -> 2.913848828 | I28: =[3]cerNAdet!I28 -> 3.30501677 | J28: =[3]cerNAdet!J28 -> 3.858531604 | K28: =[3]cerNAdet!K28 -> 3.704481854 | L28: =[3]cerNAdet!L28 -> 4.531350554 | M28: =[3]cerNAdet!M28 -> 5.500613134 | N28: =[3]cerNAdet!N28 -> 5.466258509 | O28: =[3]cerNAdet!O28 -> 5.01541453 | P28: =[3]cerNAdet!P28 -> 5.86023869 | Q28: =[3]cerNAdet!Q28 -> 4.806575791
B29: Indirect taxes (Local Government) | C29: =[3]cerNAdet!C29 -> 2.7284 | D29: =[3]cerNAdet!D29 -> 2.96325 | E29: =[3]cerNAdet!E29 -> 3.3265 | F29: =[3]cerNAdet!F29 -> 3.5236 | G29: =[3]cerNAdet!G29 -> 3.3689 | H29: =[3]cerNAdet!H29 -> 3.65385 | I29: =[3]cerNAdet!I29 -> 3.64585 | J29: =[3]cerNAdet!J29 -> 3.4704 | K29: =[3]cerNAdet!K29 -> 3.997 | L29: =[3]cerNAdet!L29 -> 3.816 | M29: =[3]cerNAdet!M29 -> 4.0034 | N29: =[3]cerNAdet!N29 -> 4.31266163 | O29: =[3]cerNAdet!O29 -> 3.704688 | P29: =[3]cerNAdet!P29 -> 3.809742 | Q29: =[3]cerNAdet!Q29 -> 3.733148
B30: Less intermediate FISIM | C30: =[3]cerNAdet!C30 -> -2.225958612 | D30: =[3]cerNAdet!D30 -> -2.250366799 | E30: =[3]cerNAdet!E30 -> -2.44501436 | F30: =[3]cerNAdet!F30 -> -2.854629898 | G30: =[3]cerNAdet!G30 -> -2.959587939 | H30: =[3]cerNAdet!H30 -> -3.187033445 | I30: =[3]cerNAdet!I30 -> -2.730111077 | J30: =[3]cerNAdet!J30 -> -2.839350559 | K30: =[3]cerNAdet!K30 -> -3.107791831 | L30: =[3]cerNAdet!L30 -> -3.492457523 | M30: =[3]cerNAdet!M30 -> -4.134949015 | N30: =[3]cerNAdet!N30 -> -4.021373823 | O30: =[3]cerNAdet!O30 -> -3.564812042 | P30: =[3]cerNAdet!P30 -> -3.340178052 | Q30: =[3]cerNAdet!Q30 -> -3.178993332
B31: Nominal GDP at Market Prices (Gross) | C31: =[3]cerNAdet!C31 -> 106.2418184 | D31: =[3]cerNAdet!D31 -> 108.6577203 | E31: =[3]cerNAdet!E31 -> 107.9386102 | F31: =[3]cerNAdet!F31 -> 110.9027332 | G31: =[3]cerNAdet!G31 -> 115.121002 | H31: =[3]cerNAdet!H31 -> 124.6980711 | I31: =[3]cerNAdet!I31 -> 126.8848944 | J31: =[3]cerNAdet!J31 -> 131.1486807 | K31: =[3]cerNAdet!K31 -> 137.6187841 | L31: =[3]cerNAdet!L31 -> 143.4211446 | M31: =[3]cerNAdet!M31 -> 149.8486353 | N31: =[3]cerNAdet!N31 -> 152.7124494 | O31: =[3]cerNAdet!O31 -> 151.6810674 | P31: =[3]cerNAdet!P31 -> 163.2195517 | Q31: =[3]cerNAdet!Q31 -> 170.7476975
B32: Memo items:
B33: Non-resident pelagic fishing vessels (2) | C33: =[3]cerNAdet!C33 -> 3.020108099 | D33: =[3]cerNAdet!D33 -> 2.728011476 | E33: =[3]cerNAdet!E33 -> 0 | F33: =[3]cerNAdet!F33 -> 0 | G33: =[3]cerNAdet!G33 -> 13.83985758 | H33: =[3]cerNAdet!H33 -> 15.67637016 | I33: =[3]cerNAdet!I33 -> 15.03564053 | J33: =[3]cerNAdet!J33 -> 18.94758872 | K33: =[3]cerNAdet!K33 -> 23.39579879 | L33: =[3]cerNAdet!L33 -> 18.15020944 | M33: =[3]cerNAdet!M33 -> 34.71178873 | N33: =[3]cerNAdet!N33 -> 25.77398546 | O33: =[3]cerNAdet!O33 -> 23.66194154 | P33: =[3]cerNAdet!P33 -> 26.71398159 | Q33: =[3]cerNAdet!Q33 -> 34.74739406
B34: Labor Income, Kwajalein base & Embassies (3) | C34: =[3]cerNAdet!C34 -> 15.02158669 | D34: =[3]cerNAdet!D34 -> 15.17486558 | E34: =[3]cerNAdet!E34 -> 16.62965401 | F34: =[3]cerNAdet!F34 -> 19.18224783 | G34: =[3]cerNAdet!G34 -> 20.12854794 | H34: =[3]cerNAdet!H34 -> 18.32567645 | I34: =[3]cerNAdet!I34 -> 20.39263087 | J34: =[3]cerNAdet!J34 -> 20.64283191 | K34: =[3]cerNAdet!K34 -> 21.23110262 | L34: =[3]cerNAdet!L34 -> 23.32333638 | M34: =[3]cerNAdet!M34 -> 22.17252693 | N34: =[3]cerNAdet!N34 -> 19.71905761 | O34: =[3]cerNAdet!O34 -> 19.91014423 | P34: =[3]cerNAdet!P34 -> 18.91887857 | Q34: =[3]cerNAdet!Q34 -> 18.75801629
A35: (1) Includes Value Added for shore based processing and support units directly related to pelagic fishing, and resident purse seiners that commenced in FY2009
A36: (2) Estimated Value Added for pelagic fishing vessels of RMI incorporated companies that are treated as economic non-residents and outside the RMI GDP
A37: (3) Income earned by Marshallese workers on Kwajalein military base and in foreign embassies in Majuro - outside the economic territory and GDP of the RMI
A38: Source: EPPSO estimates
A39: Table 2q Constant price GDP by institutional sector and income components, FY2004-FY2011
B40: (constant prices of FY2004, US$ millions) | C40: =C2 -> FY1997 | D40: =D2 -> FY1998 | E40: FY1999 | F40: FY2000 | G40: FY2001 | H40: FY2002 | I40: FY2003 | J40: FY2004 | K40: FY2005 | L40: FY2006 | M40: FY2007 | N40: FY2008 | O40: FY2009 | P40: FY2010 | Q40: FY2011
A41: 1.1 | B41: Private Enterprise (1) | C41: =[3]cerNAdet!C43 -> 31.47052231 | D41: =[3]cerNAdet!D43 -> 31.73697106 | E41: =[3]cerNAdet!E43 -> 30.32112749 | F41: =[3]cerNAdet!F43 -> 32.78049182 | G41: =[3]cerNAdet!G43 -> 35.80991796 | H41: =[3]cerNAdet!H43 -> 37.06508464 | I41: =[3]cerNAdet!I43 -> 35.35572747 | J41: =[3]cerNAdet!J43 -> 34.25670173 | K41: =[3]cerNAdet!K43 -> 33.15554198 | L41: =[3]cerNAdet!L43 -> 35.65112228 | M41: =[3]cerNAdet!M43 -> 36.21887923 | N41: =[3]cerNAdet!N43 -> 34.61485163 | O41: =[3]cerNAdet!O43 -> 34.57094101 | P41: =[3]cerNAdet!P43 -> 38.277295 | Q41: =[3]cerNAdet!Q43 -> 39.34293459
B42: Compensation of employees | C42: =[3]cerNAdet!C44 -> 15.21168238 | D42: =[3]cerNAdet!D44 -> 16.79256478 | E42: =[3]cerNAdet!E44 -> 16.38089641 | F42: =[3]cerNAdet!F44 -> 16.95887781 | G42: =[3]cerNAdet!G44 -> 19.29832722 | H42: =[3]cerNAdet!H44 -> 20.100529 | I42: =[3]cerNAdet!I44 -> 18.78392218 | J42: =[3]cerNAdet!J44 -> 19.1015208 | K42: =[3]cerNAdet!K44 -> 19.14987794 | L42: =[3]cerNAdet!L44 -> 20.69879802 | M42: =[3]cerNAdet!M44 -> 22.32515627 | N42: =[3]cerNAdet!N44 -> 22.32695078 | O42: =[3]cerNAdet!O44 -> 22.07908596 | P42: =[3]cerNAdet!P44 -> 22.58419211 | Q42: =[3]cerNAdet!Q44 -> 22.12207962
B43: Operating surplus (gross) | C43: =[3]cerNAdet!C45 -> 16.25883993 | D43: =[3]cerNAdet!D45 -> 14.94440629 | E43: =[3]cerNAdet!E45 -> 13.94023108 | F43: =[3]cerNAdet!F45 -> 15.82161401 | G43: =[3]cerNAdet!G45 -> 16.51159074 | H43: =[3]cerNAdet!H45 -> 16.96455564 | I43: =[3]cerNAdet!I45 -> 16.57180529 | J43: =[3]cerNAdet!J45 -> 15.15518093 | K43: =[3]cerNAdet!K45 -> 14.00566404 | L43: =[3]cerNAdet!L45 -> 14.95232426 | M43: =[3]cerNAdet!M45 -> 13.89372296 | N43: =[3]cerNAdet!N45 -> 12.28790085 | O43: =[3]cerNAdet!O45 -> 12.49185505 | P43: =[3]cerNAdet!P45 -> 15.69310288 | Q43: =[3]cerNAdet!Q45 -> 17.22085497
A44: 1.2 | B44: Public Enterprise | C44: =[3]cerNAdet!C46 -> 9.933471738 | D44: =[3]cerNAdet!D46 -> 9.134733037 | E44: =[3]cerNAdet!E46 -> 8.509919807 | F44: =[3]cerNAdet!F46 -> 10.77714368 | G44: =[3]cerNAdet!G46 -> 11.03739404 | H44: =[3]cerNAdet!H46 -> 11.61742335 | I44: =[3]cerNAdet!I46 -> 11.96063715 | J44: =[3]cerNAdet!J46 -> 11.30722936 | K44: =[3]cerNAdet!K46 -> 11.49377118 | L44: =[3]cerNAdet!L46 -> 10.14835517 | M44: =[3]cerNAdet!M46 -> 11.46906149 | N44: =[3]cerNAdet!N46 -> 10.43927822 | O44: =[3]cerNAdet!O46 -> 10.70769503 | P44: =[3]cerNAdet!P46 -> 11.21445991 | Q44: =[3]cerNAdet!Q46 -> 10.74638905
B45: Compensation of employees | C45: =[3]cerNAdet!C47 -> 9.078934721 | D45: =[3]cerNAdet!D47 -> 9.310306516 | E45: =[3]cerNAdet!E47 -> 7.904571673 | F45: =[3]cerNAdet!F47 -> 7.748114611 | G45: =[3]cerNAdet!G47 -> 7.699556183 | H45: =[3]cerNAdet!H47 -> 8.327352236 | I45: =[3]cerNAdet!I47 -> 8.735501816 | J45: =[3]cerNAdet!J47 -> 9.35562936 | K45: =[3]cerNAdet!K47 -> 9.848869241 | L45: =[3]cerNAdet!L47 -> 9.7899451 | M45: =[3]cerNAdet!M47 -> 11.11786982 | N45: =[3]cerNAdet!N47 -> 11.44684707 | O45: =[3]cerNAdet!O47 -> 11.98511177 | P45: =[3]cerNAdet!P47 -> 11.29231731 | Q45: =[3]cerNAdet!Q47 -> 11.8836633
B46: Operating surplus (gross) | C46: =[3]cerNAdet!C48 -> 4.257542919 | D46: =[3]cerNAdet!D48 -> 2.946067483 | E46: =[3]cerNAdet!E48 -> 3.31765017 | F46: =[3]cerNAdet!F48 -> 5.76380686 | G46: =[3]cerNAdet!G48 -> 6.403581127 | H46: =[3]cerNAdet!H48 -> 6.07969145 | I46: =[3]cerNAdet!I48 -> 6.063242933 | J46: =[3]cerNAdet!J48 -> 5.036576 | K46: =[3]cerNAdet!K48 -> 4.69699683 | L46: =[3]cerNAdet!L48 -> 3.318102895 | M46: =[3]cerNAdet!M48 -> 5.103875195 | N46: =[3]cerNAdet!N48 -> 3.393302324 | O46: =[3]cerNAdet!O48 -> 3.025153244 | P46: =[3]cerNAdet!P48 -> 3.721387546 | Q46: =[3]cerNAdet!Q48 -> 2.054408695
B47: Less Subsidies | C47: =[3]cerNAdet!C49 -> -3.403005903 | D47: =[3]cerNAdet!D49 -> -3.121640962 | E47: =[3]cerNAdet!E49 -> -2.712302036 | F47: =[3]cerNAdet!F49 -> -2.734777791 | G47: =[3]cerNAdet!G49 -> -3.065743266 | H47: =[3]cerNAdet!H49 -> -2.789620339 | I47: =[3]cerNAdet!I49 -> -2.838107599 | J47: =[3]cerNAdet!J49 -> -3.084976 | K47: =[3]cerNAdet!K49 -> -3.052094893 | L47: =[3]cerNAdet!L49 -> -2.959692829 | M47: =[3]cerNAdet!M49 -> -4.752683526 | N47: =[3]cerNAdet!N49 -> -4.400871178 | O47: =[3]cerNAdet!O49 -> -4.30256998 | P47: =[3]cerNAdet!P49 -> -3.799244947 | Q47: =[3]cerNAdet!Q49 -> -3.191682948
A48: 2 | B48: Finance (Banks) | C48: =[3]cerNAdet!C50 -> 4.509673056 | D48: =[3]cerNAdet!D50 -> 4.778763586 | E48: =[3]cerNAdet!E50 -> 5.002106135 | F48: =[3]cerNAdet!F50 -> 5.109571528 | G48: =[3]cerNAdet!G50 -> 5.623939367 | H48: =[3]cerNAdet!H50 -> 5.578527078 | I48: =[3]cerNAdet!I50 -> 5.441984515 | J48: =[3]cerNAdet!J50 -> 5.840296 | K48: =[3]cerNAdet!K50 -> 5.88840598 | L48: =[3]cerNAdet!L50 -> 6.0187469 | M48: =[3]cerNAdet!M50 -> 6.53996647 | N48: =[3]cerNAdet!N50 -> 7.034535661 | O48: =[3]cerNAdet!O50 -> 7.24241832 | P48: =[3]cerNAdet!P50 -> 7.627606382 | Q48: =[3]cerNAdet!Q50 -> 7.458755252
B49: Compensation of employees | C49: =[3]cerNAdet!C51 -> 1.69612969 | D49: =[3]cerNAdet!D51 -> 1.893258564 | E49: =[3]cerNAdet!E51 -> 2.016464111 | F49: =[3]cerNAdet!F51 -> 2.028784666 | G49: =[3]cerNAdet!G51 -> 2.439469821 | H49: =[3]cerNAdet!H51 -> 2.308050571 | I49: =[3]cerNAdet!I51 -> 2.246447798 | J49: =[3]cerNAdet!J51 -> 2.5175 | K49: =[3]cerNAdet!K51 -> 2.599637031 | L49: =[3]cerNAdet!L51 -> 2.866582382 | M49: =[3]cerNAdet!M51 -> 3.018535889 | N49: =[3]cerNAdet!N51 -> 3.133527732 | O49: =[3]cerNAdet!O51 -> 3.059604405 | P49: =[3]cerNAdet!P51 -> 3.322442904 | Q49: =[3]cerNAdet!Q51 -> 3.322442904
B50: Operating surplus (gross) | C50: =[3]cerNAdet!C52 -> 2.813543366 | D50: =[3]cerNAdet!D52 -> 2.885505022 | E50: =[3]cerNAdet!E52 -> 2.985642024 | F50: =[3]cerNAdet!F52 -> 3.080786863 | G50: =[3]cerNAdet!G52 -> 3.184469547 | H50: =[3]cerNAdet!H52 -> 3.270476507 | I50: =[3]cerNAdet!I52 -> 3.195536717 | J50: =[3]cerNAdet!J52 -> 3.322796 | K50: =[3]cerNAdet!K52 -> 3.288768949 | L50: =[3]cerNAdet!L52 -> 3.152164519 | M50: =[3]cerNAdet!M52 -> 3.521430581 | N50: =[3]cerNAdet!N52 -> 3.901007929 | O50: =[3]cerNAdet!O52 -> 4.182813915 | P50: =[3]cerNAdet!P52 -> 4.305163478 | Q50: =[3]cerNAdet!Q52 -> 4.136312349
A51: 3 | B51: Government (compensation of employees) | C51: =[3]cerNAdet!C53 -> 44.04756579 | D51: =[3]cerNAdet!D53 -> 41.55531984 | E51: =[3]cerNAdet!E53 -> 40.69016099 | F51: =[3]cerNAdet!F53 -> 41.01609939 | G51: =[3]cerNAdet!G53 -> 43.59674946 | H51: =[3]cerNAdet!H53 -> 45.86994801 | I51: =[3]cerNAdet!I53 -> 47.33135755 | J51: =[3]cerNAdet!J53 -> 48.45376224 | K51: =[3]cerNAdet!K53 -> 50.89033088 | L51: =[3]cerNAdet!L53 -> 52.14880446 | M51: =[3]cerNAdet!M53 -> 52.68371222 | N51: =[3]cerNAdet!N53 -> 52.57201108 | O51: =[3]cerNAdet!O53 -> 52.29115803 | P51: =[3]cerNAdet!P53 -> 53.79524566 | Q51: =[3]cerNAdet!Q53 -> 54.94590978
A52: 3.1 | B52: RMI Government (REPMAR) | C52: =[3]cerNAdet!C54 -> 28.85183953 | D52: =[3]cerNAdet!D54 -> 26.29111734 | E52: =[3]cerNAdet!E54 -> 23.78868169 | F52: =[3]cerNAdet!F54 -> 23.15006899 | G52: =[3]cerNAdet!G54 -> 23.50876522 | H52: =[3]cerNAdet!H54 -> 26.78573391 | I52: =[3]cerNAdet!I54 -> 28.61509348 | J52: =[3]cerNAdet!J54 -> 30.384718 | K52: =[3]cerNAdet!K54 -> 32.52597567 | L52: =[3]cerNAdet!L54 -> 35.8776995 | M52: =[3]cerNAdet!M54 -> 35.31346919 | N52: =[3]cerNAdet!N54 -> 35.99324415 | O52: =[3]cerNAdet!O54 -> 35.06099269 | P52: =[3]cerNAdet!P54 -> 35.726397 | Q52: =[3]cerNAdet!Q54 -> 35.65547229
A53: 3.2 | B53: Government Agencies | C53: =[3]cerNAdet!C55 -> 7.805064458 | D53: =[3]cerNAdet!D55 -> 7.194700858 | E53: =[3]cerNAdet!E55 -> 8.227644629 | F53: =[3]cerNAdet!F55 -> 9.128037084 | G53: =[3]cerNAdet!G55 -> 10.86462044 | H53: =[3]cerNAdet!H55 -> 10.65244378 | I53: =[3]cerNAdet!I55 -> 10.74502863 | J53: =[3]cerNAdet!J55 -> 9.339329463 | K53: =[3]cerNAdet!K55 -> 9.400771831 | L53: =[3]cerNAdet!L55 -> 7.248495623 | M53: =[3]cerNAdet!M55 -> 8.751212258 | N53: =[3]cerNAdet!N55 -> 8.240212909 | O53: =[3]cerNAdet!O55 -> 9.286911347 | P53: =[3]cerNAdet!P55 -> 10.56021774 | Q53: =[3]cerNAdet!Q55 -> 11.64314112
A54: 3.3 | B54: Local Government | C54: =[3]cerNAdet!C56 -> 7.390661801 | D54: =[3]cerNAdet!D56 -> 8.069501641 | E54: =[3]cerNAdet!E56 -> 8.67383467 | F54: =[3]cerNAdet!F56 -> 8.737993313 | G54: =[3]cerNAdet!G56 -> 9.223363799 | H54: =[3]cerNAdet!H56 -> 8.431770317 | I54: =[3]cerNAdet!I56 -> 7.971235435 | J54: =[3]cerNAdet!J56 -> 8.729714779 | K54: =[3]cerNAdet!K56 -> 8.963583382 | L54: =[3]cerNAdet!L56 -> 9.022609334 | M54: =[3]cerNAdet!M56 -> 8.619030771 | N54: =[3]cerNAdet!N56 -> 8.338554017 | O54: =[3]cerNAdet!O56 -> 7.943253988 | P54: =[3]cerNAdet!P56 -> 7.508630919 | Q54: =[3]cerNAdet!Q56 -> 7.647296374
A55: 4 | B55: NGOs (compensation of employees) | C55: =[3]cerNAdet!C57 -> 1.882904544 | D55: =[3]cerNAdet!D57 -> 1.93735374 | E55: =[3]cerNAdet!E57 -> 1.88775811 | F55: =[3]cerNAdet!F57 -> 1.90309984 | G55: =[3]cerNAdet!G57 -> 1.983267356 | H55: =[3]cerNAdet!H57 -> 2.043295364 | I55: =[3]cerNAdet!I57 -> 1.972165522 | J55: =[3]cerNAdet!J57 -> 2.044020609 | K55: =[3]cerNAdet!K57 -> 2.249711376 | L55: =[3]cerNAdet!L57 -> 2.142263473 | M55: =[3]cerNAdet!M57 -> 2.1618451 | N55: =[3]cerNAdet!N57 -> 2.044020609 | O55: =[3]cerNAdet!O57 -> 1.996656503 | P55: =[3]cerNAdet!P57 -> 2.018915959 | Q55: =[3]cerNAdet!Q57 -> 2.043295364
A56: 5 | B56: Households | C56: =[3]cerNAdet!C58 -> 18.94146476 | D56: =[3]cerNAdet!D58 -> 17.94255882 | E56: =[3]cerNAdet!E58 -> 17.82638916 | F56: =[3]cerNAdet!F58 -> 17.87473961 | G56: =[3]cerNAdet!G58 -> 18.20695862 | H56: =[3]cerNAdet!H58 -> 17.45712298 | I56: =[3]cerNAdet!I58 -> 17.78024482 | J56: =[3]cerNAdet!J58 -> 18.07656976 | K56: =[3]cerNAdet!K58 -> 18.37426173 | L56: =[3]cerNAdet!L58 -> 18.4950372 | M56: =[3]cerNAdet!M58 -> 19.00773771 | N56: =[3]cerNAdet!N58 -> 19.56100907 | O56: =[3]cerNAdet!O58 -> 19.32412621 | P56: =[3]cerNAdet!P58 -> 19.32208647 | Q56: =[3]cerNAdet!Q58 -> 19.13908497
B57: Mixed Income | C57: =[3]cerNAdet!C59 -> 3.859960998 | D57: =[3]cerNAdet!D59 -> 3.626479753 | E57: =[3]cerNAdet!E59 -> 3.369054125 | F57: =[3]cerNAdet!F59 -> 3.638480105 | G57: =[3]cerNAdet!G59 -> 3.89797811 | H57: =[3]cerNAdet!H59 -> 3.281251072 | I57: =[3]cerNAdet!I59 -> 3.712748608 | J57: =[3]cerNAdet!J59 -> 3.876485083 | K57: =[3]cerNAdet!K59 -> 3.985942251 | L57: =[3]cerNAdet!L59 -> 4.008995802 | M57: =[3]cerNAdet!M59 -> 4.418277911 | N57: =[3]cerNAdet!N59 -> 4.790082342 | O57: =[3]cerNAdet!O59 -> 4.558746479 | P57: =[3]cerNAdet!P59 -> 4.381660243 | Q57: =[3]cerNAdet!Q59 -> 4.109826522
B58: Copra production | C58: =[3]cerNAdet!C60 -> 1.407217749 | D58: =[3]cerNAdet!D60 -> 1.111692276 | E58: =[3]cerNAdet!E60 -> 0.817384963 | F58: =[3]cerNAdet!F60 -> 1.040795399 | G58: =[3]cerNAdet!G60 -> 1.28052917 | H58: =[3]cerNAdet!H60 -> 0.6463553821 | I58: =[3]cerNAdet!I60 -> 1.043475349 | J58: =[3]cerNAdet!J60 -> 1.186 | K58: =[3]cerNAdet!K60 -> 1.196232539 | L58: =[3]cerNAdet!L60 -> 1.131913722 | M58: =[3]cerNAdet!M60 -> 1.47470378 | N58: =[3]cerNAdet!N60 -> 1.749764174 | O58: =[3]cerNAdet!O60 -> 1.599930567 | P58: =[3]cerNAdet!P60 -> 1.31683032 | Q58: =[3]cerNAdet!Q60 -> 0.9832982744
B59: Fishing | C59: =[3]cerNAdet!C61 -> 1.200733558 | D59: =[3]cerNAdet!D61 -> 1.235891555 | E59: =[3]cerNAdet!E61 -> 1.271049553 | F59: =[3]cerNAdet!F61 -> 1.307207708 | G59: =[3]cerNAdet!G61 -> 1.34439447 | H59: =[3]cerNAdet!H61 -> 1.382639102 | I59: =[3]cerNAdet!I61 -> 1.421971698 | J59: =[3]cerNAdet!J61 -> 1.462423206 | K59: =[3]cerNAdet!K61 -> 1.504025458 | L59: =[3]cerNAdet!L61 -> 1.546811189 | M59: =[3]cerNAdet!M61 -> 1.590814067 | N59: =[3]cerNAdet!N61 -> 1.636068715 | O59: =[3]cerNAdet!O61 -> 1.682610744 | P59: =[3]cerNAdet!P61 -> 1.730476776 | Q59: =[3]cerNAdet!Q61 -> 1.779704476
B60: Handicrafts | C60: =[3]cerNAdet!C62 -> 1.027510055 | D60: =[3]cerNAdet!D62 -> 1.051017116 | E60: =[3]cerNAdet!E62 -> 1.049042486 | F60: =[3]cerNAdet!F62 -> 1.057117343 | G60: =[3]cerNAdet!G62 -> 1.042845367 | H60: =[3]cerNAdet!H62 -> 1.025808409 | I60: =[3]cerNAdet!I62 -> 1.021749411 | J60: =[3]cerNAdet!J62 -> 1.005988878 | K60: =[3]cerNAdet!K62 -> 1.053191281 | L60: =[3]cerNAdet!L62 -> 1.089715223 | M60: =[3]cerNAdet!M62 -> 1.108137632 | N60: =[3]cerNAdet!N62 -> 1.150316087 | O60: =[3]cerNAdet!O62 -> 1.045426318 | P60: =[3]cerNAdet!P62 -> 1.093059276 | Q60: =[3]cerNAdet!Q62 -> 1.103274811
B61: Other | C61: =[3]cerNAdet!C63 -> 0.2244996367 | D61: =[3]cerNAdet!D63 -> 0.2278788052 | E61: =[3]cerNAdet!E63 -> 0.2315771228 | F61: =[3]cerNAdet!F63 -> 0.2333596552 | G61: =[3]cerNAdet!G63 -> 0.230209103 | H61: =[3]cerNAdet!H63 -> 0.2264481783 | I61: =[3]cerNAdet!I63 -> 0.2255521506 | J61: =[3]cerNAdet!J63 -> 0.2220729981 | K61: =[3]cerNAdet!K63 -> 0.2324929732 | L61: =[3]cerNAdet!L63 -> 0.240555668 | M61: =[3]cerNAdet!M63 -> 0.2446224323 | N61: =[3]cerNAdet!N63 -> 0.2539333661 | O61: =[3]cerNAdet!O63 -> 0.2307788504 | P61: =[3]cerNAdet!P63 -> 0.2412938709 | Q61: =[3]cerNAdet!Q63 -> 0.24354896
B62: Subsistence | C62: =[3]cerNAdet!C64 -> 7.636261575 | D62: =[3]cerNAdet!D64 -> 7.519786778 | E62: =[3]cerNAdet!E64 -> 7.62142957 | F62: =[3]cerNAdet!F64 -> 7.313119919 | G62: =[3]cerNAdet!G64 -> 7.44498919 | H62: =[3]cerNAdet!H64 -> 7.390088659 | I62: =[3]cerNAdet!I64 -> 7.209019527 | J62: =[3]cerNAdet!J64 -> 7.24298693 | K62: =[3]cerNAdet!K64 -> 7.295933237 | L62: =[3]cerNAdet!L64 -> 7.317345365 | M62: =[3]cerNAdet!M64 -> 7.340509393 | N62: =[3]cerNAdet!N64 -> 7.390127092 | O62: =[3]cerNAdet!O64 -> 7.375670552 | P62: =[3]cerNAdet!P64 -> 7.422544778 | Q62: =[3]cerNAdet!Q64 -> 7.439880734
B63: Home Ownership | C63: =[3]cerNAdet!C65 -> 7.44524219 | D63: =[3]cerNAdet!D65 -> 6.796292294 | E63: =[3]cerNAdet!E65 -> 6.835905464 | F63: =[3]cerNAdet!F65 -> 6.923139585 | G63: =[3]cerNAdet!G65 -> 6.863991316 | H63: =[3]cerNAdet!H65 -> 6.785783249 | I63: =[3]cerNAdet!I65 -> 6.858476685 | J63: =[3]cerNAdet!J65 -> 6.957097745 | K63: =[3]cerNAdet!K65 -> 7.092386242 | L63: =[3]cerNAdet!L65 -> 7.168696031 | M63: =[3]cerNAdet!M65 -> 7.248950411 | N63: =[3]cerNAdet!N65 -> 7.380799632 | O63: =[3]cerNAdet!O65 -> 7.389709176 | P63: =[3]cerNAdet!P65 -> 7.517881447 | Q63: =[3]cerNAdet!Q65 -> 7.589377713
B64: Indirect taxes | C64: =[3]cerNAdet!C66 -> 12.20270028 | D64: =[3]cerNAdet!D66 -> 12.51019173 | E64: =[3]cerNAdet!E66 -> 12.66054994 | F64: =[3]cerNAdet!F66 -> 14.28099325 | G64: =[3]cerNAdet!G66 -> 14.0687116 | H64: =[3]cerNAdet!H66 -> 14.09569496 | I64: =[3]cerNAdet!I66 -> 14.07262586 | J64: =[3]cerNAdet!J66 -> 14.0094516 | K64: =[3]cerNAdet!K66 -> 15.34022367 | L64: =[3]cerNAdet!L66 -> 15.18397145 | M64: =[3]cerNAdet!M66 -> 16.41160688 | N64: =[3]cerNAdet!N66 -> 15.88788438 | O64: =[3]cerNAdet!O66 -> 14.21230178 | P64: =[3]cerNAdet!P66 -> 15.84434822 | Q64: =[3]cerNAdet!Q66 -> 15.44779143
B65: Import and fuel taxes (REPMAR) | C65: =[3]cerNAdet!C67 -> 6.268482551 | D65: =[3]cerNAdet!D67 -> 6.370162527 | E65: =[3]cerNAdet!E67 -> 6.317487839 | F65: =[3]cerNAdet!F67 -> 7.535431189 | G65: =[3]cerNAdet!G67 -> 7.586421949 | H65: =[3]cerNAdet!H67 -> 7.324043479 | I65: =[3]cerNAdet!I67 -> 7.06166501 | J65: =[3]cerNAdet!J67 -> 6.68052 | K65: =[3]cerNAdet!K67 -> 7.761197524 | L65: =[3]cerNAdet!L67 -> 7.202719187 | M65: =[3]cerNAdet!M67 -> 7.432829469 | N65: =[3]cerNAdet!N67 -> 7.274547244 | O65: =[3]cerNAdet!O67 -> 6.577072783 | P65: =[3]cerNAdet!P67 -> 7.507379906 | Q65: =[3]cerNAdet!Q67 -> 8.49750007
B66: Other Indirect taxes (REPMAR) | C66: =[3]cerNAdet!C68 -> 2.947996321 | D66: =[3]cerNAdet!D68 -> 2.888323927 | E66: =[3]cerNAdet!E68 -> 2.807718784 | F66: =[3]cerNAdet!F68 -> 3.09982267 | G66: =[3]cerNAdet!G68 -> 2.976493011 | H66: =[3]cerNAdet!H68 -> 3.004335193 | I66: =[3]cerNAdet!I68 -> 3.333590465 | J66: =[3]cerNAdet!J68 -> 3.858531604 | K66: =[3]cerNAdet!K68 -> 3.645579562 | L66: =[3]cerNAdet!L68 -> 4.332614476 | M66: =[3]cerNAdet!M68 -> 5.196623809 | N66: =[3]cerNAdet!N68 -> 4.814716426 | O66: =[3]cerNAdet!O68 -> 4.391443602 | P66: =[3]cerNAdet!P68 -> 5.052401429 | Q66: =[3]cerNAdet!Q68 -> 3.911965189
B67: Indirect taxes (Local Government) | C67: =[3]cerNAdet!C69 -> 2.98622141 | D67: =[3]cerNAdet!D69 -> 3.251705275 | E67: =[3]cerNAdet!E69 -> 3.535343321 | F67: =[3]cerNAdet!F69 -> 3.645739394 | G67: =[3]cerNAdet!G69 -> 3.505796638 | H67: =[3]cerNAdet!H69 -> 3.767316286 | I67: =[3]cerNAdet!I69 -> 3.677370387 | J67: =[3]cerNAdet!J69 -> 3.4704 | K67: =[3]cerNAdet!K69 -> 3.933446588 | L67: =[3]cerNAdet!L69 -> 3.648637783 | M67: =[3]cerNAdet!M69 -> 3.782153598 | N67: =[3]cerNAdet!N69 -> 3.798620712 | O67: =[3]cerNAdet!O69 -> 3.243785397 | P67: =[3]cerNAdet!P69 -> 3.284566882 | Q67: =[3]cerNAdet!Q69 -> 3.038326172
B68: Less intermediate FISIM | C68: =[3]cerNAdet!C70 -> -2.404190907 | D68: =[3]cerNAdet!D70 -> -2.465682604 | E68: =[3]cerNAdet!E70 -> -2.551250317 | F68: =[3]cerNAdet!F70 -> -2.632552194 | G68: =[3]cerNAdet!G70 -> -2.721149714 | H68: =[3]cerNAdet!H70 -> -2.794643215 | I68: =[3]cerNAdet!I70 -> -2.730606683 | J68: =[3]cerNAdet!J70 -> -2.839350559 | K68: =[3]cerNAdet!K70 -> -2.810274225 | L68: =[3]cerNAdet!L70 -> -2.69354486 | M68: =[3]cerNAdet!M70 -> -3.009085086 | N68: =[3]cerNAdet!N70 -> -3.333436372 | O68: =[3]cerNAdet!O70 -> -3.5742414 | P68: =[3]cerNAdet!P70 -> -3.678789888 | Q68: =[3]cerNAdet!Q70 -> -3.534505512
B69: Real GDP at Market Prices (Gross) | C69: =[3]cerNAdet!C71 -> 120.5841116 | D69: =[3]cerNAdet!D71 -> 117.1302092 | E69: =[3]cerNAdet!E71 -> 114.3467613 | F69: =[3]cerNAdet!F71 -> 121.1095869 | G69: =[3]cerNAdet!G71 -> 127.6057887 | H69: =[3]cerNAdet!H71 -> 130.9324532 | I69: =[3]cerNAdet!I71 -> 131.1841362 | J69: =[3]cerNAdet!J71 -> 131.1486807 | K69: =[3]cerNAdet!K71 -> 134.5819726 | L69: =[3]cerNAdet!L71 -> 137.0947561 | M69: =[3]cerNAdet!M71 -> 141.483724 | N69: =[3]cerNAdet!N71 -> 138.8201543 | O69: =[3]cerNAdet!O71 -> 136.7710555 | P69: =[3]cerNAdet!P71 -> 144.4211677 | Q69: =[3]cerNAdet!Q71 -> 145.5896549
B70: Memo items:
B71: Non-resident pelagic fishing vessels (2) | C71: =[3]cerNAdet!C73 -> 3.342713053 | D71: =[3]cerNAdet!D73 -> 3.257892283 | E71: =[3]cerNAdet!E73 -> 0 | F71: =[3]cerNAdet!F73 -> 0 | G71: =[3]cerNAdet!G73 -> 13.76795905 | H71: =[3]cerNAdet!H73 -> 15.58662533 | I71: =[3]cerNAdet!I73 -> 15.09562542 | J71: =[3]cerNAdet!J73 -> 18.94758872 | K71: =[3]cerNAdet!K73 -> 23.38773845 | L71: =[3]cerNAdet!L73 -> 17.79025859 | M71: =[3]cerNAdet!M73 -> 24.42430441 | N71: =[3]cerNAdet!N73 -> 14.60818041 | O71: =[3]cerNAdet!O73 -> 16.97261354 | P71: =[3]cerNAdet!P73 -> 19.18967857 | Q71: =[3]cerNAdet!Q73 -> 29.63604271
B72: Labor Income, Kwajalein base & Embassies (3) | C72: =[3]cerNAdet!C74 -> 19.08415736 | D72: =[3]cerNAdet!D74 -> 18.59000142 | E72: =[3]cerNAdet!E74 -> 19.40148427 | F72: =[3]cerNAdet!F74 -> 20.82686305 | G72: =[3]cerNAdet!G74 -> 21.51722962 | H72: =[3]cerNAdet!H74 -> 19.54754403 | I72: =[3]cerNAdet!I74 -> 24.3558077 | J72: =[3]cerNAdet!J74 -> 20.64283191 | K72: =[3]cerNAdet!K74 -> 20.28835372 | L72: =[3]cerNAdet!L74 -> 20.82457532 | M72: =[3]cerNAdet!M74 -> 20.082361 | N72: =[3]cerNAdet!N74 -> 18.46469957 | O72: =[3]cerNAdet!O74 -> 17.32561449 | P72: =[3]cerNAdet!P74 -> 16.79366613 | Q72: =[3]cerNAdet!Q74 -> 16.08436087
A73: (1) Includes Value Added for shore based processing and support units directly related to pelagic fishing, and resident purse seiners that commenced in FY2009
A74: (2) Estimated Value Added for pelagic fishing vessels of RMI incorporated companies that are treated as economic non-residents and outside the RMI GDP
A75: (3) Income earned by Marshallese workers on Kwajalein military base and in foreign embassies in Majuro - outside the economic territory and GDP of the RMI
A76: Source: EPPSO estimates

Sheet EmpInst
A1: Table 3a Employment by institutional sector, numbers, FY2004-FY2011
B2: (No. of workers, part and full time) | C2: FY1997 | D2: FY1998 | E2: FY1999 | F2: FY2000 | G2: FY2001 | H2: FY2002 | I2: FY2003 | J2: FY2004 | K2: FY2005 | L2: FY2006 | M2: FY2007 | N2: FY2008 | O2: FY2009 | P2: FY2010 | Q2: FY2011
A3: 1.1 | B3: Private Sector | C3: =[4]CER_EmpInst!C3 -> 2524.78 | D3: =[4]CER_EmpInst!D3 -> 2717.66 | E3: =[4]CER_EmpInst!E3 -> 2683.78 | F3: =[4]CER_EmpInst!F3 -> 3191.53 | G3: =[4]CER_EmpInst!G3 -> 3545.03 | H3: =[4]CER_EmpInst!H3 -> 3796.16 | I3: =[4]CER_EmpInst!I3 -> 3846.66 | J3: =[4]CER_EmpInst!J3 -> 4047.41 | K3: =[4]CER_EmpInst!K3 -> 3472.91 | L3: =[4]CER_EmpInst!L3 -> 3712.66 | M3: =[4]CER_EmpInst!M3 -> 3937.53 | N3: =[4]CER_EmpInst!N3 -> 4040.66 | O3: =[4]CER_EmpInst!O3 -> 4041.41 | P3: =[4]CER_EmpInst!P3 -> 4313.03 | Q3: =[4]CER_EmpInst!Q3 -> 4204.78
A4: 1.2 | B4: Public Enterprise | C4: =[4]CER_EmpInst!C4 -> 676 | D4: =[4]CER_EmpInst!D4 -> 683.25 | E4: =[4]CER_EmpInst!E4 -> 600 | F4: =[4]CER_EmpInst!F4 -> 587.5 | G4: =[4]CER_EmpInst!G4 -> 583.38 | H4: =[4]CER_EmpInst!H4 -> 633 | I4: =[4]CER_EmpInst!I4 -> 657.63 | J4: =[4]CER_EmpInst!J4 -> 690 | K4: =[4]CER_EmpInst!K4 -> 701.63 | L4: =[4]CER_EmpInst!L4 -> 704.25 | M4: =[4]CER_EmpInst!M4 -> 795.25 | N4: =[4]CER_EmpInst!N4 -> 813.5 | O4: =[4]CER_EmpInst!O4 -> 845.75 | P4: =[4]CER_EmpInst!P4 -> 793.75 | Q4: =[4]CER_EmpInst!Q4 -> 839.75
A5: 2 | B5: Banks | C5: =[4]CER_EmpInst!C5 -> 103.25 | D5: =[4]CER_EmpInst!D5 -> 115.25 | E5: =[4]CER_EmpInst!E5 -> 122.75 | F5: =[4]CER_EmpInst!F5 -> 123.5 | G5: =[4]CER_EmpInst!G5 -> 148.5 | H5: =[4]CER_EmpInst!H5 -> 140.5 | I5: =[4]CER_EmpInst!I5 -> 136.75 | J5: =[4]CER_EmpInst!J5 -> 153.25 | K5: =[4]CER_EmpInst!K5 -> 158.25 | L5: =[4]CER_EmpInst!L5 -> 174.5 | M5: =[4]CER_EmpInst!M5 -> 183.75 | N5: =[4]CER_EmpInst!N5 -> 190.75 | O5: =[4]CER_EmpInst!O5 -> 186.25 | P5: =[4]CER_EmpInst!P5 -> 202.25 | Q5: =[4]CER_EmpInst!Q5 -> 202.25
A6: 3.1 | B6: RMI Government | C6: =[4]CER_EmpInst!C6 -> 1856.25 | D6: =[4]CER_EmpInst!D6 -> 1691.5 | E6: =[4]CER_EmpInst!E6 -> 1530.5 | F6: =[4]CER_EmpInst!F6 -> 1486.5 | G6: =[4]CER_EmpInst!G6 -> 1525.13 | H6: =[4]CER_EmpInst!H6 -> 1774.63 | I6: =[4]CER_EmpInst!I6 -> 1899.75 | J6: =[4]CER_EmpInst!J6 -> 2002.75 | K6: =[4]CER_EmpInst!K6 -> 2115.88 | L6: =[4]CER_EmpInst!L6 -> 2420.5 | M6: =[4]CER_EmpInst!M6 -> 2407 | N6: =[4]CER_EmpInst!N6 -> 2412 | O6: =[4]CER_EmpInst!O6 -> 2352.63 | P6: =[4]CER_EmpInst!P6 -> 2391.5 | Q6: =[4]CER_EmpInst!Q6 -> 2394.25
A7: 3.2 | B7: Government Agencies | C7: =[4]CER_EmpInst!C7 -> 401 | D7: =[4]CER_EmpInst!D7 -> 363.25 | E7: =[4]CER_EmpInst!E7 -> 486.63 | F7: =[4]CER_EmpInst!F7 -> 564.25 | G7: =[4]CER_EmpInst!G7 -> 643.5 | H7: =[4]CER_EmpInst!H7 -> 630.38 | I7: =[4]CER_EmpInst!I7 -> 638.63 | J7: =[4]CER_EmpInst!J7 -> 595.88 | K7: =[4]CER_EmpInst!K7 -> 608.5 | L7: =[4]CER_EmpInst!L7 -> 406.5 | M7: =[4]CER_EmpInst!M7 -> 476.5 | N7: =[4]CER_EmpInst!N7 -> 450 | O7: =[4]CER_EmpInst!O7 -> 491.25 | P7: =[4]CER_EmpInst!P7 -> 539 | Q7: =[4]CER_EmpInst!Q7 -> 578.75
A8: 3.3 | B8: Local Government | C8: =[4]CER_EmpInst!C8 -> 892.75 | D8: =[4]CER_EmpInst!D8 -> 974.75 | E8: =[4]CER_EmpInst!E8 -> 1047.75 | F8: =[4]CER_EmpInst!F8 -> 1055.5 | G8: =[4]CER_EmpInst!G8 -> 1114.13 | H8: =[4]CER_EmpInst!H8 -> 1018.5 | I8: =[4]CER_EmpInst!I8 -> 962.88 | J8: =[4]CER_EmpInst!J8 -> 1054.5 | K8: =[4]CER_EmpInst!K8 -> 1082.75 | L8: =[4]CER_EmpInst!L8 -> 1089.88 | M8: =[4]CER_EmpInst!M8 -> 1041.13 | N8: =[4]CER_EmpInst!N8 -> 1007.25 | O8: =[4]CER_EmpInst!O8 -> 959.5 | P8: =[4]CER_EmpInst!P8 -> 907 | Q8: =[4]CER_EmpInst!Q8 -> 923.75
A9: 4 | B9: NGO's and Non-Profits | C9: =[4]CER_EmpInst!C9 -> 337.5 | D9: =[4]CER_EmpInst!D9 -> 347.25 | E9: =[4]CER_EmpInst!E9 -> 338.38 | F9: =[4]CER_EmpInst!F9 -> 341.13 | G9: =[4]CER_EmpInst!G9 -> 355.5 | H9: =[4]CER_EmpInst!H9 -> 366.25 | I9: =[4]CER_EmpInst!I9 -> 353.5 | J9: =[4]CER_EmpInst!J9 -> 366.38 | K9: =[4]CER_EmpInst!K9 -> 403.25 | L9: =[4]CER_EmpInst!L9 -> 384 | M9: =[4]CER_EmpInst!M9 -> 387.5 | N9: =[4]CER_EmpInst!N9 -> 366.38 | O9: =[4]CER_EmpInst!O9 -> 357.88 | P9: =[4]CER_EmpInst!P9 -> 361.88 | Q9: =[4]CER_EmpInst!Q9 -> 366.25
A10: 5 | B10: Households | C10: =[4]CER_EmpInst!C10 -> 0 | D10: =[4]CER_EmpInst!D10 -> 0 | E10: =[4]CER_EmpInst!E10 -> 0 | F10: =[4]CER_EmpInst!F10 -> 0 | G10: =[4]CER_EmpInst!G10 -> 0 | H10: =[4]CER_EmpInst!H10 -> 0 | I10: =[4]CER_EmpInst!I10 -> 0 | J10: =[4]CER_EmpInst!J10 -> 0 | K10: =[4]CER_EmpInst!K10 -> 0 | L10: =[4]CER_EmpInst!L10 -> 0 | M10: =[4]CER_EmpInst!M10 -> 0 | N10: =[4]CER_EmpInst!N10 -> 0 | O10: =[4]CER_EmpInst!O10 -> 0 | P10: =[4]CER_EmpInst!P10 -> 0 | Q10: =[4]CER_EmpInst!Q10 -> 0
A11: 6.1 | B11: Foreign Embassies | C11: =[4]CER_EmpInst!C11 -> 12 | D11: =[4]CER_EmpInst!D11 -> 11.75 | E11: =[4]CER_EmpInst!E11 -> 13.25 | F11: =[4]CER_EmpInst!F11 -> 13.5 | G11: =[4]CER_EmpInst!G11 -> 15.25 | H11: =[4]CER_EmpInst!H11 -> 13 | I11: =[4]CER_EmpInst!I11 -> 13.75 | J11: =[4]CER_EmpInst!J11 -> 14 | K11: =[4]CER_EmpInst!K11 -> 14.5 | L11: =[4]CER_EmpInst!L11 -> 15.5 | M11: =[4]CER_EmpInst!M11 -> 16.5 | N11: =[4]CER_EmpInst!N11 -> 15.75 | O11: =[4]CER_EmpInst!O11 -> 15.75 | P11: =[4]CER_EmpInst!P11 -> 28.75 | Q11: =[4]CER_EmpInst!Q11 -> 39.25
A12: 6.2 | B12: Kwajalein US Base | C12: =[4]CER_EmpInst!C12 -> 1137.25 | D12: =[4]CER_EmpInst!D12 -> 1107.75 | E12: =[4]CER_EmpInst!E12 -> 1155.25 | F12: =[4]CER_EmpInst!F12 -> 1240.75 | G12: =[4]CER_EmpInst!G12 -> 1280.75 | H12: =[4]CER_EmpInst!H12 -> 1164.25 | I12: =[4]CER_EmpInst!I12 -> 1452.75 | J12: =[4]CER_EmpInst!J12 -> 1229.25 | K12: =[4]CER_EmpInst!K12 -> 1207.5 | L12: =[4]CER_EmpInst!L12 -> 1238.88 | M12: =[4]CER_EmpInst!M12 -> 1193.38 | N12: =[4]CER_EmpInst!N12 -> 1096.75 | O12: =[4]CER_EmpInst!O12 -> 1028.25 | P12: =[4]CER_EmpInst!P12 -> 985 | Q12: =[4]CER_EmpInst!Q12 -> 933.25
B13: Total | C13: =SUM(C3:C12) -> 7940.78 | D13: =SUM(D3:D12) -> 8012.41 | E13: 7978.29 | F13: 8604.16 | G13: 9211.17 | H13: 9536.67 | I13: 9962.3 | J13: 10153.42 | K13: 9765.17 | L13: 10146.67 | M13: 10438.54 | N13: 10393.04 | O13: 10278.67 | P13: 10522.16 | Q13: 10482.28
A14: Source: Social Security plus EPPSO 'non-reported' estimate.
A15: Table 3b Employment by institutional sector, wage costs, FY2004-FY2011
B16: (US$000) | C16: FY1997 | D16: FY1998 | E16: FY1999 | F16: FY2000 | G16: FY2001 | H16: FY2002 | I16: FY2003 | J16: FY2004 | K16: FY2005 | L16: FY2006 | M16: FY2007 | N16: FY2008 | O16: FY2009 | P16: FY2010 | Q16: FY2011
A17: 1.1 | B17: Private Sector | C17: =[4]CER_EmpInst!C17 -> 14532.6 | D17: =[4]CER_EmpInst!D17 -> 14977.74 | E17: =[4]CER_EmpInst!E17 -> 15499.33 | F17: =[4]CER_EmpInst!F17 -> 16434.94 | G17: =[4]CER_EmpInst!G17 -> 18020.53 | H17: =[4]CER_EmpInst!H17 -> 18329.89 | I17: =[4]CER_EmpInst!I17 -> 16969.16 | J17: =[4]CER_EmpInst!J17 -> 17039.62 | K17: =[4]CER_EmpInst!K17 -> 16414.86 | L17: =[4]CER_EmpInst!L17 -> 17751.29 | M17: =[4]CER_EmpInst!M17 -> 19157.9 | N17: =[4]CER_EmpInst!N17 -> 20025.93 | O17: =[4]CER_EmpInst!O17 -> 20305.51 | P17: =[4]CER_EmpInst!P17 -> 20956.86 | Q17: =[4]CER_EmpInst!Q17 -> 21304.71
A18: 1.2 | B18: Public Enterprise | C18: =[4]CER_EmpInst!C18 -> 7009.03 | D18: =[4]CER_EmpInst!D18 -> 7023.41 | E18: =[4]CER_EmpInst!E18 -> 6265.3 | F18: =[4]CER_EmpInst!F18 -> 6393.54 | G18: =[4]CER_EmpInst!G18 -> 6343.24 | H18: =[4]CER_EmpInst!H18 -> 6789.71 | I18: =[4]CER_EmpInst!I18 -> 7540.68 | J18: =[4]CER_EmpInst!J18 -> 7829.83 | K18: =[4]CER_EmpInst!K18 -> 8139.53 | L18: =[4]CER_EmpInst!L18 -> 8207.76 | M18: =[4]CER_EmpInst!M18 -> 8664.7 | N18: =[4]CER_EmpInst!N18 -> 9430.52 | O18: =[4]CER_EmpInst!O18 -> 9893.13 | P18: =[4]CER_EmpInst!P18 -> 10370.98 | Q18: =[4]CER_EmpInst!Q18 -> 10656.24
A19: 2 | B19: Banks | C19: =[4]CER_EmpInst!C19 -> 1388.18 | D19: =[4]CER_EmpInst!D19 -> 1599.56 | E19: =[4]CER_EmpInst!E19 -> 1569.39 | F19: =[4]CER_EmpInst!F19 -> 1534.16 | G19: =[4]CER_EmpInst!G19 -> 1683.15 | H19: =[4]CER_EmpInst!H19 -> 1951.79 | I19: =[4]CER_EmpInst!I19 -> 2019.49 | J19: =[4]CER_EmpInst!J19 -> 2271.72 | K19: =[4]CER_EmpInst!K19 -> 2664.88 | L19: =[4]CER_EmpInst!L19 -> 2974.5 | M19: =[4]CER_EmpInst!M19 -> 3217.22 | N19: =[4]CER_EmpInst!N19 -> 3156.31 | O19: =[4]CER_EmpInst!O19 -> 3260.55 | P19: =[4]CER_EmpInst!P19 -> 3443.22 | Q19: =[4]CER_EmpInst!Q19 -> 3524.34
A20: 3.1 | B20: RMI Government | C20: =[4]CER_EmpInst!C20 -> 17485.12 | D20: =[4]CER_EmpInst!D20 -> 15854.41 | E20: =[4]CER_EmpInst!E20 -> 15843.06 | F20: =[4]CER_EmpInst!F20 -> 16645.32 | G20: =[4]CER_EmpInst!G20 -> 17937.88 | H20: =[4]CER_EmpInst!H20 -> 20664.99 | I20: =[4]CER_EmpInst!I20 -> 21862.65 | J20: =[4]CER_EmpInst!J20 -> 26478.44 | K20: =[4]CER_EmpInst!K20 -> 27500.12 | L20: =[4]CER_EmpInst!L20 -> 30233.04 | M20: =[4]CER_EmpInst!M20 -> 30143.65 | N20: =[4]CER_EmpInst!N20 -> 30425.45 | O20: =[4]CER_EmpInst!O20 -> 30643.13 | P20: =[4]CER_EmpInst!P20 -> 31046.09 | Q20: =[4]CER_EmpInst!Q20 -> 31480.16
A21: 3.2 | B21: Government Agencies | C21: =[4]CER_EmpInst!C21 -> 4048.91 | D21: =[4]CER_EmpInst!D21 -> 4071.07 | E21: =[4]CER_EmpInst!E21 -> 5498.94 | F21: =[4]CER_EmpInst!F21 -> 6749.64 | G21: =[4]CER_EmpInst!G21 -> 7075.2 | H21: =[4]CER_EmpInst!H21 -> 7530.8 | I21: =[4]CER_EmpInst!I21 -> 8055.14 | J21: =[4]CER_EmpInst!J21 -> 7666.93 | K21: =[4]CER_EmpInst!K21 -> 8016.79 | L21: =[4]CER_EmpInst!L21 -> 6392.94 | M21: =[4]CER_EmpInst!M21 -> 6786.3 | N21: =[4]CER_EmpInst!N21 -> 6778.33 | O21: =[4]CER_EmpInst!O21 -> 7401.74 | P21: =[4]CER_EmpInst!P21 -> 8066.73 | Q21: =[4]CER_EmpInst!Q21 -> 8722.6
A22: 3.3 | B22: Local Government | C22: =[4]CER_EmpInst!C22 -> 6485.67 | D22: =[4]CER_EmpInst!D22 -> 6671.82 | E22: =[4]CER_EmpInst!E22 -> 6952.05 | F22: =[4]CER_EmpInst!F22 -> 7243.95 | G22: =[4]CER_EmpInst!G22 -> 7628.44 | H22: =[4]CER_EmpInst!H22 -> 7435.52 | I22: =[4]CER_EmpInst!I22 -> 7021.41 | J22: =[4]CER_EmpInst!J22 -> 7523.12 | K22: =[4]CER_EmpInst!K22 -> 7915.58 | L22: =[4]CER_EmpInst!L22 -> 8220.7 | M22: =[4]CER_EmpInst!M22 -> 8256.82 | N22: =[4]CER_EmpInst!N22 -> 8252.44 | O22: =[4]CER_EmpInst!O22 -> 7392.11 | P22: =[4]CER_EmpInst!P22 -> 6864.21 | Q22: =[4]CER_EmpInst!Q22 -> 7165.86
A23: 4 | B23: NGO's and Non-Profits | C23: =[4]CER_EmpInst!C23 -> 1584.55 | D23: =[4]CER_EmpInst!D23 -> 1568.34 | E23: =[4]CER_EmpInst!E23 -> 1571.94 | F23: =[4]CER_EmpInst!F23 -> 1575.16 | G23: =[4]CER_EmpInst!G23 -> 1715.06 | H23: =[4]CER_EmpInst!H23 -> 1761.31 | I23: =[4]CER_EmpInst!I23 -> 1774.01 | J23: =[4]CER_EmpInst!J23 -> 1772.18 | K23: =[4]CER_EmpInst!K23 -> 2031.44 | L23: =[4]CER_EmpInst!L23 -> 1913.55 | M23: =[4]CER_EmpInst!M23 -> 1956.83 | N23: =[4]CER_EmpInst!N23 -> 1909.7 | O23: =[4]CER_EmpInst!O23 -> 1955.7 | P23: =[4]CER_EmpInst!P23 -> 2137.52 | Q23: =[4]CER_EmpInst!Q23 -> 2215.29
A24: 5 | B24: Households | C24: =[4]CER_EmpInst!C24 -> 0 | D24: =[4]CER_EmpInst!D24 -> 0 | E24: =[4]CER_EmpInst!E24 -> 0 | F24: =[4]CER_EmpInst!F24 -> 0 | G24: =[4]CER_EmpInst!G24 -> 0 | H24: =[4]CER_EmpInst!H24 -> 0 | I24: =[4]CER_EmpInst!I24 -> 0 | J24: =[4]CER_EmpInst!J24 -> 0 | K24: =[4]CER_EmpInst!K24 -> 0 | L24: =[4]CER_EmpInst!L24 -> 0 | M24: =[4]CER_EmpInst!M24 -> 0 | N24: =[4]CER_EmpInst!N24 -> 0 | O24: =[4]CER_EmpInst!O24 -> 0 | P24: =[4]CER_EmpInst!P24 -> 0 | Q24: =[4]CER_EmpInst!Q24 -> 0
A25: 6.1 | B25: Foreign Embassies | C25: =[4]CER_EmpInst!C25 -> 105.64 | D25: =[4]CER_EmpInst!D25 -> 112.63 | E25: =[4]CER_EmpInst!E25 -> 139.66 | F25: =[4]CER_EmpInst!F25 -> 149.93 | G25: =[4]CER_EmpInst!G25 -> 164.59 | H25: =[4]CER_EmpInst!H25 -> 143.13 | I25: =[4]CER_EmpInst!I25 -> 147.3 | J25: =[4]CER_EmpInst!J25 -> 174.84 | K25: =[4]CER_EmpInst!K25 -> 181.58 | L25: =[4]CER_EmpInst!L25 -> 199.33 | M25: =[4]CER_EmpInst!M25 -> 220.97 | N25: =[4]CER_EmpInst!N25 -> 207.67 | O25: =[4]CER_EmpInst!O25 -> 199.04 | P25: =[4]CER_EmpInst!P25 -> 309.79 | Q25: =[4]CER_EmpInst!Q25 -> 408.66
A26: 6.2 | B26: Kwajalein US Base | C26: =[4]CER_EmpInst!C26 -> 13181.08 | D26: =[4]CER_EmpInst!D26 -> 13323.21 | E26: =[4]CER_EmpInst!E26 -> 14603.22 | F26: =[4]CER_EmpInst!F26 -> 16877.12 | G26: =[4]CER_EmpInst!G26 -> 17601.04 | H26: =[4]CER_EmpInst!H26 -> 15908.59 | I26: =[4]CER_EmpInst!I26 -> 17688.97 | J26: =[4]CER_EmpInst!J26 -> 17892.16 | K26: =[4]CER_EmpInst!K26 -> 18413.18 | L26: =[4]CER_EmpInst!L26 -> 20122.95 | M26: =[4]CER_EmpInst!M26 -> 19230.44 | N26: =[4]CER_EmpInst!N26 -> 17064.38 | O26: =[4]CER_EmpInst!O26 -> 17291.68 | P26: =[4]CER_EmpInst!P26 -> 16304.54 | Q26: =[4]CER_EmpInst!Q26 -> 16088.48
B27: Total | C27: =SUM(C17:C26) -> 65820.78 | D27: =SUM(D17:D26) -> 65202.19 | E27: 67942.89 | F27: 73603.76 | G27: 78169.13 | H27: 80515.73 | I27: 83078.81 | J27: 88648.84 | K27: 91277.96 | L27: 96016.06 | M27: 97634.83 | N27: 97250.73 | O27: 98342.59 | P27: 99499.94 | Q27: 101566.34
A28: Source: Social Security plus EPPSO 'non-reported' estimate. Wage Costs = Gross wages and salaries as per Social Security regulations.
A29: Table 3c Employment by institutional sector, average wage and salary rates, FY2004-FY2011
C30: FY1997 | D30: FY1998 | E30: FY1999 | F30: FY2000 | G30: FY2001 | H30: FY2002 | I30: FY2003 | J30: FY2004 | K30: FY2005 | L30: FY2006 | M30: FY2007 | N30: FY2008 | O30: FY2009 | P30: FY2010 | Q30: FY2011
A31: 1.1 | B31: Private Sector | C31: =[4]CER_EmpInst!C31 -> 5755.98666 | D31: =[4]CER_EmpInst!D31 -> 5511.263366 | E31: =[4]CER_EmpInst!E31 -> 5775.186491 | F31: =[4]CER_EmpInst!F31 -> 5149.548962 | G31: =[4]CER_EmpInst!G31 -> 5083.322285 | H31: =[4]CER_EmpInst!H31 -> 4828.534624 | I31: =[4]CER_EmpInst!I31 -> 4411.40106 | J31: =[4]CER_EmpInst!J31 -> 4210.005905 | K31: =[4]CER_EmpInst!K31 -> 4726.543446 | L31: =[4]CER_EmpInst!L31 -> 4781.286194 | M31: =[4]CER_EmpInst!M31 -> 4865.461343 | N31: =[4]CER_EmpInst!N31 -> 4956.103706 | O31: =[4]CER_EmpInst!O31 -> 5024.362784 | P31: =[4]CER_EmpInst!P31 -> 4858.964579 | Q31: =[4]CER_EmpInst!Q31 -> 5066.783518
A32: 1.2 | B32: Public Enterprise | C32: =[4]CER_EmpInst!C32 -> 10368.38757 | D32: =[4]CER_EmpInst!D32 -> 10279.41456 | E32: =[4]CER_EmpInst!E32 -> 10442.16667 | F32: =[4]CER_EmpInst!F32 -> 10882.62128 | G32: =[4]CER_EmpInst!G32 -> 10873.25585 | H32: =[4]CER_EmpInst!H32 -> 10726.24013 | I32: =[4]CER_EmpInst!I32 -> 11466.4477 | J32: =[4]CER_EmpInst!J32 -> 11347.57971 | K32: =[4]CER_EmpInst!K32 -> 11600.88651 | L32: =[4]CER_EmpInst!L32 -> 11654.61129 | M32: =[4]CER_EmpInst!M32 -> 10895.56743 | N32: =[4]CER_EmpInst!N32 -> 11592.52612 | O32: =[4]CER_EmpInst!O32 -> 11697.46379 | P32: =[4]CER_EmpInst!P32 -> 13065.80157 | Q32: =[4]CER_EmpInst!Q32 -> 12689.77672
A33: 2 | B33: Banks | C33: =[4]CER_EmpInst!C33 -> 13444.84262 | D33: =[4]CER_EmpInst!D33 -> 13879.04555 | E33: =[4]CER_EmpInst!E33 -> 12785.25458 | F33: =[4]CER_EmpInst!F33 -> 12422.34818 | G33: =[4]CER_EmpInst!G33 -> 11334.34343 | H33: =[4]CER_EmpInst!H33 -> 13891.74377 | I33: =[4]CER_EmpInst!I33 -> 14767.75137 | J33: =[4]CER_EmpInst!J33 -> 14823.62153 | K33: =[4]CER_EmpInst!K33 -> 16839.68404 | L33: =[4]CER_EmpInst!L33 -> 17045.84527 | M33: =[4]CER_EmpInst!M33 -> 17508.68027 | N33: =[4]CER_EmpInst!N33 -> 16546.84142 | O33: =[4]CER_EmpInst!O33 -> 17506.30872 | P33: =[4]CER_EmpInst!P33 -> 17024.57355 | Q33: =[4]CER_EmpInst!Q33 -> 17425.66131
A34: 3.1 | B34: RMI Government | C34: =[4]CER_EmpInst!C34 -> 9419.593266 | D34: =[4]CER_EmpInst!D34 -> 9372.988472 | E34: =[4]CER_EmpInst!E34 -> 10351.55831 | F34: =[4]CER_EmpInst!F34 -> 11197.65893 | G34: =[4]CER_EmpInst!G34 -> 11761.54164 | H34: =[4]CER_EmpInst!H34 -> 11644.67523 | I34: =[4]CER_EmpInst!I34 -> 11508.17213 | J34: =[4]CER_EmpInst!J34 -> 13221.04107 | K34: =[4]CER_EmpInst!K34 -> 12997.01306 | L34: =[4]CER_EmpInst!L34 -> 12490.41107 | M34: =[4]CER_EmpInst!M34 -> 12523.32779 | N34: =[4]CER_EmpInst!N34 -> 12614.19983 | O34: =[4]CER_EmpInst!O34 -> 13025.05281 | P34: =[4]CER_EmpInst!P34 -> 12981.84821 | Q34: =[4]CER_EmpInst!Q34 -> 13148.23431
A35: 3.2 | B35: Government Agencies | C35: =[4]CER_EmpInst!C35 -> 10097.03242 | D35: =[4]CER_EmpInst!D35 -> 11207.35031 | E35: =[4]CER_EmpInst!E35 -> 11300.04315 | F35: =[4]CER_EmpInst!F35 -> 11962.14444 | G35: =[4]CER_EmpInst!G35 -> 10994.87179 | H35: =[4]CER_EmpInst!H35 -> 11946.445 | I35: =[4]CER_EmpInst!I35 -> 12613.15629 | J35: =[4]CER_EmpInst!J35 -> 12866.56709 | K35: =[4]CER_EmpInst!K35 -> 13174.67543 | L35: =[4]CER_EmpInst!L35 -> 15726.78967 | M35: =[4]CER_EmpInst!M35 -> 14241.97272 | N35: =[4]CER_EmpInst!N35 -> 15062.95556 | O35: =[4]CER_EmpInst!O35 -> 15067.15522 | P35: =[4]CER_EmpInst!P35 -> 14966.1039 | Q35: =[4]CER_EmpInst!Q35 -> 15071.44708
A36: 3.3 | B36: Local Government | C36: =[4]CER_EmpInst!C36 -> 7264.822179 | D36: =[4]CER_EmpInst!D36 -> 6844.647345 | E36: =[4]CER_EmpInst!E36 -> 6635.218325 | F36: =[4]CER_EmpInst!F36 -> 6863.050687 | G36: =[4]CER_EmpInst!G36 -> 6846.992721 | H36: =[4]CER_EmpInst!H36 -> 7300.461463 | I36: =[4]CER_EmpInst!I36 -> 7292.092473 | J36: =[4]CER_EmpInst!J36 -> 7134.300616 | K36: =[4]CER_EmpInst!K36 -> 7310.625722 | L36: =[4]CER_EmpInst!L36 -> 7542.757001 | M36: =[4]CER_EmpInst!M36 -> 7930.633062 | N36: =[4]CER_EmpInst!N36 -> 8193.040457 | O36: =[4]CER_EmpInst!O36 -> 7704.12715 | P36: =[4]CER_EmpInst!P36 -> 7568.037486 | Q36: =[4]CER_EmpInst!Q36 -> 7757.358593
A37: 4 | B37: NGO's and Non-Profits | C37: =[4]CER_EmpInst!C37 -> 4694.962963 | D37: =[4]CER_EmpInst!D37 -> 4516.457883 | E37: =[4]CER_EmpInst!E37 -> 4645.487322 | F37: =[4]CER_EmpInst!F37 -> 4617.477208 | G37: =[4]CER_EmpInst!G37 -> 4824.360056 | H37: =[4]CER_EmpInst!H37 -> 4809.037543 | I37: =[4]CER_EmpInst!I37 -> 5018.415842 | J37: =[4]CER_EmpInst!J37 -> 4836.999836 | K37: =[4]CER_EmpInst!K37 -> 5037.66894 | L37: =[4]CER_EmpInst!L37 -> 4983.203125 | M37: =[4]CER_EmpInst!M37 -> 5049.883871 | N37: =[4]CER_EmpInst!N37 -> 5212.347836 | O37: =[4]CER_EmpInst!O37 -> 5464.680899 | P37: =[4]CER_EmpInst!P37 -> 5906.709406 | Q37: =[4]CER_EmpInst!Q37 -> 6048.573379
A38: 5 | B38: Households | C38: =[4]CER_EmpInst!C38 ->  | D38: =[4]CER_EmpInst!D38 ->  | E38: =[4]CER_EmpInst!E38 ->  | F38: =[4]CER_EmpInst!F38 ->  | G38: =[4]CER_EmpInst!G38 ->  | H38: =[4]CER_EmpInst!H38 ->  | I38: =[4]CER_EmpInst!I38 ->  | J38: =[4]CER_EmpInst!J38 ->  | K38: =[4]CER_EmpInst!K38 ->  | L38: =[4]CER_EmpInst!L38 ->  | M38: =[4]CER_EmpInst!M38 ->  | N38: =[4]CER_EmpInst!N38 ->  | O38: =[4]CER_EmpInst!O38 ->  | P38: =[4]CER_EmpInst!P38 ->  | Q38: =[4]CER_EmpInst!Q38 -> 
A39: 6.1 | B39: Foreign Embassies | C39: =[4]CER_EmpInst!C39 -> 8803.333333 | D39: =[4]CER_EmpInst!D39 -> 9585.531915 | E39: =[4]CER_EmpInst!E39 -> 10540.37736 | F39: =[4]CER_EmpInst!F39 -> 11105.92593 | G39: =[4]CER_EmpInst!G39 -> 10792.78689 | H39: =[4]CER_EmpInst!H39 -> 11010 | I39: =[4]CER_EmpInst!I39 -> 10712.72727 | J39: =[4]CER_EmpInst!J39 -> 12488.57143 | K39: =[4]CER_EmpInst!K39 -> 12522.75862 | L39: =[4]CER_EmpInst!L39 -> 12860 | M39: =[4]CER_EmpInst!M39 -> 13392.12121 | N39: =[4]CER_EmpInst!N39 -> 13185.39683 | O39: =[4]CER_EmpInst!O39 -> 12637.46032 | P39: =[4]CER_EmpInst!P39 -> 10775.30435 | Q39: =[4]CER_EmpInst!Q39 -> 10411.71975
A40: 6.2 | B40: Kwajalein US Base | C40: =[4]CER_EmpInst!C40 -> 11590.30996 | D40: =[4]CER_EmpInst!D40 -> 12027.2715 | E40: =[4]CER_EmpInst!E40 -> 12640.74443 | F40: =[4]CER_EmpInst!F40 -> 13602.35342 | G40: =[4]CER_EmpInst!G40 -> 13742.7601 | H40: =[4]CER_EmpInst!H40 -> 13664.23878 | I40: =[4]CER_EmpInst!I40 -> 12176.19687 | J40: =[4]CER_EmpInst!J40 -> 14555.34676 | K40: =[4]CER_EmpInst!K40 -> 15249.01035 | L40: =[4]CER_EmpInst!L40 -> 16242.85645 | M40: =[4]CER_EmpInst!M40 -> 16114.26369 | N40: =[4]CER_EmpInst!N40 -> 15559.04263 | O40: =[4]CER_EmpInst!O40 -> 16816.61075 | P40: =[4]CER_EmpInst!P40 -> 16552.83249 | Q40: =[4]CER_EmpInst!Q40 -> 17239.19636
B41: Total | C41: =[4]CER_EmpInst!C41 -> 8288.9565 | D41: =[4]CER_EmpInst!D41 -> 8137.65022 | E41: =[4]CER_EmpInst!E41 -> 8515.971468 | F41: =[4]CER_EmpInst!F41 -> 8554.438783 | G41: =[4]CER_EmpInst!G41 -> 8486.34104 | H41: =[4]CER_EmpInst!H41 -> 8442.750981 | I41: =[4]CER_EmpInst!I41 -> 8339.320237 | J41: =[4]CER_EmpInst!J41 -> 8730.93401 | K41: =[4]CER_EmpInst!K41 -> 9347.298613 | L41: =[4]CER_EmpInst!L41 -> 9462.814894 | M41: =[4]CER_EmpInst!M41 -> 9353.30324 | N41: =[4]CER_EmpInst!N41 -> 9357.29392 | O41: =[4]CER_EmpInst!O41 -> 9567.637642 | P41: =[4]CER_EmpInst!P41 -> 9456.227619 | Q41: =[4]CER_EmpInst!Q41 -> 9689.336671
A42: Source: Social Security plus EPPSO 'non-reported' estimate.

Sheet EmpInd
A1: Table 3d Employment by industry, numbers, FY2004-FY2011
B2: (No. of workers, part and full time) | C2: FY1997 | D2: FY1998 | E2: FY1999 | F2: FY2000 | G2: FY2001 | H2: FY2002 | I2: FY2003 | J2: FY2004 | K2: FY2005 | L2: FY2006 | M2: FY2007 | N2: FY2008 | O2: FY2009 | P2: FY2010 | Q2: FY2011
A3: A | B3: Agriculture, Hunting and Forestry | C3: =[4]CER_EmpInd!C3 -> 10 | D3: =[4]CER_EmpInd!D3 -> 8.5 | E3: =[4]CER_EmpInd!E3 -> 8.25 | F3: =[4]CER_EmpInd!F3 -> 6.5 | G3: =[4]CER_EmpInd!G3 -> 1 | H3: =[4]CER_EmpInd!H3 -> 0 | I3: =[4]CER_EmpInd!I3 -> 20.5 | J3: =[4]CER_EmpInd!J3 -> 24 | K3: =[4]CER_EmpInd!K3 -> 23.75 | L3: =[4]CER_EmpInd!L3 -> 27 | M3: =[4]CER_EmpInd!M3 -> 31 | N3: =[4]CER_EmpInd!N3 -> 27.5 | O3: =[4]CER_EmpInd!O3 -> 24.75 | P3: =[4]CER_EmpInd!P3 -> 23 | Q3: =[4]CER_EmpInd!Q3 -> 18.75
A4: B | B4: Fisheries (1) | C4: =[4]CER_EmpInd!C4 -> 82.5 | D4: =[4]CER_EmpInd!D4 -> 83.5 | E4: =[4]CER_EmpInd!E4 -> 47.5 | F4: =[4]CER_EmpInd!F4 -> 546.13 | G4: =[4]CER_EmpInd!G4 -> 617.75 | H4: =[4]CER_EmpInd!H4 -> 734.75 | I4: =[4]CER_EmpInd!I4 -> 901.75 | J4: =[4]CER_EmpInd!J4 -> 1002 | K4: =[4]CER_EmpInd!K4 -> 280 | L4: =[4]CER_EmpInd!L4 -> 343.25 | M4: =[4]CER_EmpInd!M4 -> 324.75 | N4: =[4]CER_EmpInd!N4 -> 477.13 | O4: =[4]CER_EmpInd!O4 -> 734 | P4: =[4]CER_EmpInd!P4 -> 1150.75 | Q4: =[4]CER_EmpInd!Q4 -> 1146.5
A5: C | B5: Mining and Quarrying | C5: =[4]CER_EmpInd!C5 -> 0 | D5: =[4]CER_EmpInd!D5 -> 0 | E5: =[4]CER_EmpInd!E5 -> 0 | F5: =[4]CER_EmpInd!F5 -> 0 | G5: =[4]CER_EmpInd!G5 -> 0 | H5: =[4]CER_EmpInd!H5 -> 0 | I5: =[4]CER_EmpInd!I5 -> 0 | J5: =[4]CER_EmpInd!J5 -> 0 | K5: =[4]CER_EmpInd!K5 -> 0 | L5: =[4]CER_EmpInd!L5 -> 0 | M5: =[4]CER_EmpInd!M5 -> 0 | N5: =[4]CER_EmpInd!N5 -> 0 | O5: =[4]CER_EmpInd!O5 -> 0 | P5: =[4]CER_EmpInd!P5 -> 0 | Q5: =[4]CER_EmpInd!Q5 -> 0
A6: D | B6: Manufacturing | C6: =[4]CER_EmpInd!C6 -> 107.5 | D6: =[4]CER_EmpInd!D6 -> 117 | E6: =[4]CER_EmpInd!E6 -> 92 | F6: =[4]CER_EmpInd!F6 -> 79 | G6: =[4]CER_EmpInd!G6 -> 72 | H6: =[4]CER_EmpInd!H6 -> 78.25 | I6: =[4]CER_EmpInd!I6 -> 74.75 | J6: =[4]CER_EmpInd!J6 -> 71 | K6: =[4]CER_EmpInd!K6 -> 94.25 | L6: =[4]CER_EmpInd!L6 -> 96.38 | M6: =[4]CER_EmpInd!M6 -> 106.38 | N6: =[4]CER_EmpInd!N6 -> 96.38 | O6: =[4]CER_EmpInd!O6 -> 77.5 | P6: =[4]CER_EmpInd!P6 -> 75 | Q6: =[4]CER_EmpInd!Q6 -> 98.25
A7: E | B7: Electricity, Gas and Water Supply | C7: =[4]CER_EmpInd!C7 -> 230.25 | D7: =[4]CER_EmpInd!D7 -> 232.75 | E7: =[4]CER_EmpInd!E7 -> 220 | F7: =[4]CER_EmpInd!F7 -> 218.25 | G7: =[4]CER_EmpInd!G7 -> 230.75 | H7: =[4]CER_EmpInd!H7 -> 250.5 | I7: =[4]CER_EmpInd!I7 -> 261.13 | J7: =[4]CER_EmpInd!J7 -> 277.5 | K7: =[4]CER_EmpInd!K7 -> 275.88 | L7: =[4]CER_EmpInd!L7 -> 269.75 | M7: =[4]CER_EmpInd!M7 -> 306.25 | N7: =[4]CER_EmpInd!N7 -> 304 | O7: =[4]CER_EmpInd!O7 -> 345 | P7: =[4]CER_EmpInd!P7 -> 319.25 | Q7: =[4]CER_EmpInd!Q7 -> 312.75
A8: F | B8: Construction | C8: =[4]CER_EmpInd!C8 -> 404.75 | D8: =[4]CER_EmpInd!D8 -> 610.38 | E8: =[4]CER_EmpInd!E8 -> 613 | F8: =[4]CER_EmpInd!F8 -> 423.75 | G8: =[4]CER_EmpInd!G8 -> 488.75 | H8: =[4]CER_EmpInd!H8 -> 636 | I8: =[4]CER_EmpInd!I8 -> 562.75 | J8: =[4]CER_EmpInd!J8 -> 522.38 | K8: =[4]CER_EmpInd!K8 -> 557.25 | L8: =[4]CER_EmpInd!L8 -> 729 | M8: =[4]CER_EmpInd!M8 -> 856.5 | N8: =[4]CER_EmpInd!N8 -> 819.75 | O8: =[4]CER_EmpInd!O8 -> 677.25 | P8: =[4]CER_EmpInd!P8 -> 583.75 | Q8: =[4]CER_EmpInd!Q8 -> 514.5
A9: G | B9: Wholesale and Retail Trade | C9: =[4]CER_EmpInd!C9 -> 1391.64 | D9: =[4]CER_EmpInd!D9 -> 1369.14 | E9: =[4]CER_EmpInd!E9 -> 1390.64 | F9: =[4]CER_EmpInd!F9 -> 1552.27 | G9: =[4]CER_EmpInd!G9 -> 1746.52 | H9: =[4]CER_EmpInd!H9 -> 1729.52 | I9: =[4]CER_EmpInd!I9 -> 1635.89 | J9: =[4]CER_EmpInd!J9 -> 1748.39 | K9: =[4]CER_EmpInd!K9 -> 1814.27 | L9: =[4]CER_EmpInd!L9 -> 1826.14 | M9: =[4]CER_EmpInd!M9 -> 1821.89 | N9: =[4]CER_EmpInd!N9 -> 1829.52 | O9: =[4]CER_EmpInd!O9 -> 1708.64 | P9: =[4]CER_EmpInd!P9 -> 1726.14 | Q9: =[4]CER_EmpInd!Q9 -> 1713.27
A10: H | B10: Hotels and Restaurants | C10: =[4]CER_EmpInd!C10 -> 246.13 | D10: =[4]CER_EmpInd!D10 -> 241.25 | E10: =[4]CER_EmpInd!E10 -> 232.25 | F10: =[4]CER_EmpInd!F10 -> 256.63 | G10: =[4]CER_EmpInd!G10 -> 266.38 | H10: =[4]CER_EmpInd!H10 -> 266.63 | I10: =[4]CER_EmpInd!I10 -> 308.75 | J10: =[4]CER_EmpInd!J10 -> 269.5 | K10: =[4]CER_EmpInd!K10 -> 238.38 | L10: =[4]CER_EmpInd!L10 -> 263.38 | M10: =[4]CER_EmpInd!M10 -> 295.88 | N10: =[4]CER_EmpInd!N10 -> 283.5 | O10: =[4]CER_EmpInd!O10 -> 260.13 | P10: =[4]CER_EmpInd!P10 -> 250 | Q10: =[4]CER_EmpInd!Q10 -> 241.25
A11: I | B11: Transport, Storage and Communications | C11: =[4]CER_EmpInd!C11 -> 416.38 | D11: =[4]CER_EmpInd!D11 -> 394.01 | E11: =[4]CER_EmpInd!E11 -> 392.76 | F11: =[4]CER_EmpInd!F11 -> 409.26 | G11: =[4]CER_EmpInd!G11 -> 411.13 | H11: =[4]CER_EmpInd!H11 -> 451.26 | I11: =[4]CER_EmpInd!I11 -> 475.26 | J11: =[4]CER_EmpInd!J11 -> 541.01 | K11: =[4]CER_EmpInd!K11 -> 561.76 | L11: =[4]CER_EmpInd!L11 -> 577.01 | M11: =[4]CER_EmpInd!M11 -> 707.51 | N11: =[4]CER_EmpInd!N11 -> 671.38 | O11: =[4]CER_EmpInd!O11 -> 706.63 | P11: =[4]CER_EmpInd!P11 -> 645.01 | Q11: =[4]CER_EmpInd!Q11 -> 650.38
A12: J | B12: Financial Intermediation | C12: =[4]CER_EmpInd!C12 -> 120.5 | D12: =[4]CER_EmpInd!D12 -> 132.75 | E12: =[4]CER_EmpInd!E12 -> 138.75 | F12: =[4]CER_EmpInd!F12 -> 140.13 | G12: =[4]CER_EmpInd!G12 -> 167.75 | H12: =[4]CER_EmpInd!H12 -> 158.75 | I12: =[4]CER_EmpInd!I12 -> 152 | J12: =[4]CER_EmpInd!J12 -> 169.25 | K12: =[4]CER_EmpInd!K12 -> 174 | L12: =[4]CER_EmpInd!L12 -> 193 | M12: =[4]CER_EmpInd!M12 -> 208 | N12: =[4]CER_EmpInd!N12 -> 210.75 | O12: =[4]CER_EmpInd!O12 -> 207.5 | P12: =[4]CER_EmpInd!P12 -> 221.75 | Q12: =[4]CER_EmpInd!Q12 -> 222
A13: K | B13: Real Estate, Renting and Businesss Activities | C13: =[4]CER_EmpInd!C13 -> 217.38 | D13: =[4]CER_EmpInd!D13 -> 229.88 | E13: =[4]CER_EmpInd!E13 -> 193.88 | F13: =[4]CER_EmpInd!F13 -> 212 | G13: =[4]CER_EmpInd!G13 -> 223.63 | H13: =[4]CER_EmpInd!H13 -> 221.13 | I13: =[4]CER_EmpInd!I13 -> 220.25 | J13: =[4]CER_EmpInd!J13 -> 231.38 | K13: =[4]CER_EmpInd!K13 -> 249 | L13: =[4]CER_EmpInd!L13 -> 210.63 | M13: =[4]CER_EmpInd!M13 -> 219.63 | N13: =[4]CER_EmpInd!N13 -> 224.25 | O13: =[4]CER_EmpInd!O13 -> 241.25 | P13: =[4]CER_EmpInd!P13 -> 230.88 | Q13: =[4]CER_EmpInd!Q13 -> 231.25
A14: L | B14: Public Administration | C14: =[4]CER_EmpInd!C14 -> 2905.75 | D14: =[4]CER_EmpInd!D14 -> 2829.63 | E14: =[4]CER_EmpInd!E14 -> 2708 | F14: =[4]CER_EmpInd!F14 -> 2672.5 | G14: =[4]CER_EmpInd!G14 -> 2768.75 | H14: =[4]CER_EmpInd!H14 -> 2919.38 | I14: =[4]CER_EmpInd!I14 -> 2985.63 | J14: =[4]CER_EmpInd!J14 -> 3150 | K14: =[4]CER_EmpInd!K14 -> 3325.38 | L14: =[4]CER_EmpInd!L14 -> 3639.63 | M14: =[4]CER_EmpInd!M14 -> 3574.63 | N14: =[4]CER_EmpInd!N14 -> 3550.75 | O14: =[4]CER_EmpInd!O14 -> 3438.88 | P14: =[4]CER_EmpInd!P14 -> 3423.75 | Q14: =[4]CER_EmpInd!Q14 -> 3446.5
A15: M | B15: Education (2) | C15: =[4]CER_EmpInd!C15 -> 456.13 | D15: =[4]CER_EmpInd!D15 -> 401.38 | E15: =[4]CER_EmpInd!E15 -> 519.88 | F15: =[4]CER_EmpInd!F15 -> 561.25 | G15: =[4]CER_EmpInd!G15 -> 627.25 | H15: =[4]CER_EmpInd!H15 -> 623.75 | I15: =[4]CER_EmpInd!I15 -> 605.5 | J15: =[4]CER_EmpInd!J15 -> 589.88 | K15: =[4]CER_EmpInd!K15 -> 623.75 | L15: =[4]CER_EmpInd!L15 -> 383 | M15: =[4]CER_EmpInd!M15 -> 435.25 | N15: =[4]CER_EmpInd!N15 -> 399.38 | O15: =[4]CER_EmpInd!O15 -> 416.38 | P15: =[4]CER_EmpInd!P15 -> 456.88 | Q15: =[4]CER_EmpInd!Q15 -> 494.13
A16: N | B16: Health and Social Work (2) | C16: =[4]CER_EmpInd!C16 -> 153.38 | D16: =[4]CER_EmpInd!D16 -> 176.5 | E16: =[4]CER_EmpInd!E16 -> 177.88 | F16: =[4]CER_EmpInd!F16 -> 180.88 | G16: =[4]CER_EmpInd!G16 -> 194.5 | H16: =[4]CER_EmpInd!H16 -> 203.25 | I16: =[4]CER_EmpInd!I16 -> 204.75 | J16: =[4]CER_EmpInd!J16 -> 225.13 | K16: =[4]CER_EmpInd!K16 -> 238.75 | L16: =[4]CER_EmpInd!L16 -> 246 | M16: =[4]CER_EmpInd!M16 -> 247.5 | N16: =[4]CER_EmpInd!N16 -> 250.5 | O16: =[4]CER_EmpInd!O16 -> 248.75 | P16: =[4]CER_EmpInd!P16 -> 245.75 | Q16: =[4]CER_EmpInd!Q16 -> 235.25
A17: O | B17: Community, Social & Personal Service Activities | C17: =[4]CER_EmpInd!C17 -> 44.25 | D17: =[4]CER_EmpInd!D17 -> 62 | E17: =[4]CER_EmpInd!E17 -> 70.5 | F17: =[4]CER_EmpInd!F17 -> 86.63 | G17: =[4]CER_EmpInd!G17 -> 93.5 | H17: =[4]CER_EmpInd!H17 -> 80.25 | I17: =[4]CER_EmpInd!I17 -> 78.13 | J17: =[4]CER_EmpInd!J17 -> 80.5 | K17: =[4]CER_EmpInd!K17 -> 81.75 | L17: =[4]CER_EmpInd!L17 -> 84.13 | M17: =[4]CER_EmpInd!M17 -> 86.5 | N17: =[4]CER_EmpInd!N17 -> 120.25 | O17: =[4]CER_EmpInd!O17 -> 129 | P17: =[4]CER_EmpInd!P17 -> 145 | Q17: =[4]CER_EmpInd!Q17 -> 171.25
A18: P | B18: Private Households With Employed Persons | C18: =[4]CER_EmpInd!C18 -> 5 | D18: =[4]CER_EmpInd!D18 -> 4.25 | E18: =[4]CER_EmpInd!E18 -> 4.5 | F18: =[4]CER_EmpInd!F18 -> 4.75 | G18: =[4]CER_EmpInd!G18 -> 5.5 | H18: =[4]CER_EmpInd!H18 -> 6 | I18: =[4]CER_EmpInd!I18 -> 8.75 | J18: =[4]CER_EmpInd!J18 -> 8.25 | K18: =[4]CER_EmpInd!K18 -> 5 | L18: =[4]CER_EmpInd!L18 -> 4 | M18: =[4]CER_EmpInd!M18 -> 7 | N18: =[4]CER_EmpInd!N18 -> 15.5 | O18: =[4]CER_EmpInd!O18 -> 19 | P18: =[4]CER_EmpInd!P18 -> 11.5 | Q18: =[4]CER_EmpInd!Q18 -> 13.75
A19: Q | B19: Extra-Territorial Organizations and Bodies | C19: =[4]CER_EmpInd!C19 -> 1149.25 | D19: =[4]CER_EmpInd!D19 -> 1119.5 | E19: =[4]CER_EmpInd!E19 -> 1168.5 | F19: =[4]CER_EmpInd!F19 -> 1254.25 | G19: =[4]CER_EmpInd!G19 -> 1296 | H19: =[4]CER_EmpInd!H19 -> 1177.25 | I19: =[4]CER_EmpInd!I19 -> 1466.5 | J19: =[4]CER_EmpInd!J19 -> 1243.25 | K19: =[4]CER_EmpInd!K19 -> 1222 | L19: =[4]CER_EmpInd!L19 -> 1254.38 | M19: =[4]CER_EmpInd!M19 -> 1209.88 | N19: =[4]CER_EmpInd!N19 -> 1112.5 | O19: =[4]CER_EmpInd!O19 -> 1044 | P19: =[4]CER_EmpInd!P19 -> 1013.75 | Q19: =[4]CER_EmpInd!Q19 -> 972.5
B20: Total | C20: =SUM(C3:C19) -> 7940.79 | D20: =SUM(D3:D19) -> 8012.42 | E20: =SUM(E3:E19) -> 7978.29 | F20: 8604.18 | G20: 9211.16 | H20: 9536.67 | I20: 9962.29 | J20: 10153.42 | K20: 9765.17 | L20: 10146.68 | M20: 10438.55 | N20: 10393.04 | O20: 10278.66 | P20: 10522.16 | Q20: 10482.28
A21: (1) Includes Shore based fish processing and vessel support services. Part time workers may be significant. 2) Not including government workers which are included under "Public Administration"
A22: Source: Social Security plus EPPSO 'non-reported' estimate.
A24: Table 3e Employment by industry, wage costs, FY2004-FY2011
B25: (US$'000) | C25: FY1997 | D25: FY1998 | E25: FY1999 | F25: FY2000 | G25: FY2001 | H25: FY2002 | I25: FY2003 | J25: FY2004 | K25: FY2005 | L25: FY2006 | M25: FY2007 | N25: FY2008 | O25: FY2009 | P25: FY2010 | Q25: FY2011
A26: A | B26: Agriculture, Hunting and Forestry | C26: =[4]CER_EmpInd!C24 -> 24.41 | D26: =[4]CER_EmpInd!D24 -> 19.4 | E26: =[4]CER_EmpInd!E24 -> 17.89 | F26: =[4]CER_EmpInd!F24 -> 13.71 | G26: =[4]CER_EmpInd!G24 -> 1.48 | H26: =[4]CER_EmpInd!H24 -> 0 | I26: =[4]CER_EmpInd!I24 -> 53.59 | J26: =[4]CER_EmpInd!J24 -> 67.92 | K26: =[4]CER_EmpInd!K24 -> 78.73 | L26: =[4]CER_EmpInd!L24 -> 73.26 | M26: =[4]CER_EmpInd!M24 -> 84.96 | N26: =[4]CER_EmpInd!N24 -> 81.56 | O26: =[4]CER_EmpInd!O24 -> 77.51 | P26: =[4]CER_EmpInd!P24 -> 72.74 | Q26: =[4]CER_EmpInd!Q24 -> 68.98
A27: B | B27: Fisheries (1) | C27: =[4]CER_EmpInd!C25 -> 423.34 | D27: =[4]CER_EmpInd!D25 -> 414.62 | E27: =[4]CER_EmpInd!E25 -> 421.11 | F27: =[4]CER_EmpInd!F25 -> 1686.38 | G27: =[4]CER_EmpInd!G25 -> 1910.95 | H27: =[4]CER_EmpInd!H25 -> 2018.01 | I27: =[4]CER_EmpInd!I25 -> 2202.95 | J27: =[4]CER_EmpInd!J25 -> 2546.7 | K27: =[4]CER_EmpInd!K25 -> 1527.78 | L27: =[4]CER_EmpInd!L25 -> 1847.23 | M27: =[4]CER_EmpInd!M25 -> 1870.45 | N27: =[4]CER_EmpInd!N25 -> 2215.36 | O27: =[4]CER_EmpInd!O25 -> 2779.89 | P27: =[4]CER_EmpInd!P25 -> 3439.08 | Q27: =[4]CER_EmpInd!Q25 -> 3493.07
A28: C | B28: Mining and Quarrying | C28: =[4]CER_EmpInd!C26 -> 0 | D28: =[4]CER_EmpInd!D26 -> 0 | E28: =[4]CER_EmpInd!E26 -> 0 | F28: =[4]CER_EmpInd!F26 -> 0 | G28: =[4]CER_EmpInd!G26 -> 0 | H28: =[4]CER_EmpInd!H26 -> 0 | I28: =[4]CER_EmpInd!I26 -> 0 | J28: =[4]CER_EmpInd!J26 -> 0 | K28: =[4]CER_EmpInd!K26 -> 0 | L28: =[4]CER_EmpInd!L26 -> 0 | M28: =[4]CER_EmpInd!M26 -> 0 | N28: =[4]CER_EmpInd!N26 -> 0 | O28: =[4]CER_EmpInd!O26 -> 0 | P28: =[4]CER_EmpInd!P26 -> 0 | Q28: =[4]CER_EmpInd!Q26 -> 0
A29: D | B29: Manufacturing | C29: =[4]CER_EmpInd!C27 -> 538.63 | D29: =[4]CER_EmpInd!D27 -> 524.84 | E29: =[4]CER_EmpInd!E27 -> 397.14 | F29: =[4]CER_EmpInd!F27 -> 373.35 | G29: =[4]CER_EmpInd!G27 -> 373.87 | H29: =[4]CER_EmpInd!H27 -> 434.61 | I29: =[4]CER_EmpInd!I27 -> 415.8 | J29: =[4]CER_EmpInd!J27 -> 439.11 | K29: =[4]CER_EmpInd!K27 -> 504.87 | L29: =[4]CER_EmpInd!L27 -> 505.89 | M29: =[4]CER_EmpInd!M27 -> 587.32 | N29: =[4]CER_EmpInd!N27 -> 493.6 | O29: =[4]CER_EmpInd!O27 -> 435.9 | P29: =[4]CER_EmpInd!P27 -> 490.18 | Q29: =[4]CER_EmpInd!Q27 -> 572.59
A30: E | B30: Electricity, Gas and Water Supply | C30: =[4]CER_EmpInd!C28 -> 2604.87 | D30: =[4]CER_EmpInd!D28 -> 2681.7 | E30: =[4]CER_EmpInd!E28 -> 2425.6 | F30: =[4]CER_EmpInd!F28 -> 2615.24 | G30: =[4]CER_EmpInd!G28 -> 2586.99 | H30: =[4]CER_EmpInd!H28 -> 2843.07 | I30: =[4]CER_EmpInd!I28 -> 3298.3 | J30: =[4]CER_EmpInd!J28 -> 3398.02 | K30: =[4]CER_EmpInd!K28 -> 3611.15 | L30: =[4]CER_EmpInd!L28 -> 3550.58 | M30: =[4]CER_EmpInd!M28 -> 3410.75 | N30: =[4]CER_EmpInd!N28 -> 3720.31 | O30: =[4]CER_EmpInd!O28 -> 4129.73 | P30: =[4]CER_EmpInd!P28 -> 4429.03 | Q30: =[4]CER_EmpInd!Q28 -> 4435.18
A31: F | B31: Construction | C31: =[4]CER_EmpInd!C29 -> 2588.67 | D31: =[4]CER_EmpInd!D29 -> 3603.92 | E31: =[4]CER_EmpInd!E29 -> 3824.7 | F31: =[4]CER_EmpInd!F29 -> 2589.64 | G31: =[4]CER_EmpInd!G29 -> 3005.13 | H31: =[4]CER_EmpInd!H29 -> 3369.04 | I31: =[4]CER_EmpInd!I29 -> 3016.89 | J31: =[4]CER_EmpInd!J29 -> 2758.59 | K31: =[4]CER_EmpInd!K29 -> 2859.93 | L31: =[4]CER_EmpInd!L29 -> 4043.94 | M31: =[4]CER_EmpInd!M29 -> 4730.74 | N31: =[4]CER_EmpInd!N29 -> 4845.24 | O31: =[4]CER_EmpInd!O29 -> 4352.19 | P31: =[4]CER_EmpInd!P29 -> 3912.29 | Q31: =[4]CER_EmpInd!Q29 -> 3736.68
A32: G | B32: Wholesale and Retail Trade | C32: =[4]CER_EmpInd!C30 -> 7659.83 | D32: =[4]CER_EmpInd!D30 -> 7303.48 | E32: =[4]CER_EmpInd!E30 -> 7599.76 | F32: =[4]CER_EmpInd!F30 -> 8527.41 | G32: =[4]CER_EmpInd!G30 -> 9469.2 | H32: =[4]CER_EmpInd!H30 -> 8997.4 | I32: =[4]CER_EmpInd!I30 -> 7757.12 | J32: =[4]CER_EmpInd!J30 -> 7963.73 | K32: =[4]CER_EmpInd!K30 -> 8178.81 | L32: =[4]CER_EmpInd!L30 -> 7859.5 | M32: =[4]CER_EmpInd!M30 -> 8190.99 | N32: =[4]CER_EmpInd!N30 -> 8482.52 | O32: =[4]CER_EmpInd!O30 -> 8673.19 | P32: =[4]CER_EmpInd!P30 -> 8896.92 | Q32: =[4]CER_EmpInd!Q30 -> 9187.24
A33: H | B33: Hotels and Restaurants | C33: =[4]CER_EmpInd!C31 -> 1282.51 | D33: =[4]CER_EmpInd!D31 -> 1281.91 | E33: =[4]CER_EmpInd!E31 -> 1255.55 | F33: =[4]CER_EmpInd!F31 -> 1338.49 | G33: =[4]CER_EmpInd!G31 -> 1278.71 | H33: =[4]CER_EmpInd!H31 -> 1390.25 | I33: =[4]CER_EmpInd!I31 -> 1438.25 | J33: =[4]CER_EmpInd!J31 -> 1202.75 | K33: =[4]CER_EmpInd!K31 -> 1179.38 | L33: =[4]CER_EmpInd!L31 -> 1339.53 | M33: =[4]CER_EmpInd!M31 -> 1468.59 | N33: =[4]CER_EmpInd!N31 -> 1331.16 | O33: =[4]CER_EmpInd!O31 -> 1332.55 | P33: =[4]CER_EmpInd!P31 -> 1271.14 | Q33: =[4]CER_EmpInd!Q31 -> 1314.65
A34: I | B34: Transport, Storage and Communications | C34: =[4]CER_EmpInd!C32 -> 4214.23 | D34: =[4]CER_EmpInd!D32 -> 3966.35 | E34: =[4]CER_EmpInd!E32 -> 3892.78 | F34: =[4]CER_EmpInd!F32 -> 4003.5 | G34: =[4]CER_EmpInd!G32 -> 4057.28 | H34: =[4]CER_EmpInd!H32 -> 4239.9 | I34: =[4]CER_EmpInd!I32 -> 4598.86 | J34: =[4]CER_EmpInd!J32 -> 5001.61 | K34: =[4]CER_EmpInd!K32 -> 4703.79 | L34: =[4]CER_EmpInd!L32 -> 4710.56 | M34: =[4]CER_EmpInd!M32 -> 5481.16 | N34: =[4]CER_EmpInd!N32 -> 6042.29 | O34: =[4]CER_EmpInd!O32 -> 6208.84 | P34: =[4]CER_EmpInd!P32 -> 6363.86 | Q34: =[4]CER_EmpInd!Q32 -> 6574.59
A35: J | B35: Financial Intermediation | C35: =[4]CER_EmpInd!C33 -> 1585.4 | D35: =[4]CER_EmpInd!D33 -> 1800.1 | E35: =[4]CER_EmpInd!E33 -> 1774.28 | F35: =[4]CER_EmpInd!F33 -> 1716.91 | G35: =[4]CER_EmpInd!G33 -> 1909.18 | H35: =[4]CER_EmpInd!H33 -> 2130.11 | I35: =[4]CER_EmpInd!I33 -> 2183.64 | J35: =[4]CER_EmpInd!J33 -> 2443.44 | K35: =[4]CER_EmpInd!K33 -> 2856.71 | L35: =[4]CER_EmpInd!L33 -> 3181.29 | M35: =[4]CER_EmpInd!M33 -> 3434.04 | N35: =[4]CER_EmpInd!N33 -> 3388.64 | O35: =[4]CER_EmpInd!O33 -> 3493.48 | P35: =[4]CER_EmpInd!P33 -> 3681.25 | Q35: =[4]CER_EmpInd!Q33 -> 3779.49
A36: K | B36: Real Estate, Renting and Businesss Activities | C36: =[4]CER_EmpInd!C34 -> 1591.51 | D36: =[4]CER_EmpInd!D34 -> 1468.08 | E36: =[4]CER_EmpInd!E34 -> 1379.91 | F36: =[4]CER_EmpInd!F34 -> 1415.2 | G36: =[4]CER_EmpInd!G34 -> 1489.07 | H36: =[4]CER_EmpInd!H34 -> 1624.42 | I36: =[4]CER_EmpInd!I34 -> 1616.64 | J36: =[4]CER_EmpInd!J34 -> 1309.99 | K36: =[4]CER_EmpInd!K34 -> 1370.63 | L36: =[4]CER_EmpInd!L34 -> 1358.63 | M36: =[4]CER_EmpInd!M34 -> 1382.08 | N36: =[4]CER_EmpInd!N34 -> 1446.68 | O36: =[4]CER_EmpInd!O34 -> 1637.05 | P36: =[4]CER_EmpInd!P34 -> 1778.82 | Q36: =[4]CER_EmpInd!Q34 -> 1912.39
A37: L | B37: Public Administration | C37: =[4]CER_EmpInd!C35 -> 26126.07 | D37: =[4]CER_EmpInd!D35 -> 24818.2 | E37: =[4]CER_EmpInd!E35 -> 24796.37 | F37: =[4]CER_EmpInd!F35 -> 25967.22 | G37: =[4]CER_EmpInd!G35 -> 27489.42 | H37: =[4]CER_EmpInd!H35 -> 30051.9 | I37: =[4]CER_EmpInd!I35 -> 30621.08 | J37: =[4]CER_EmpInd!J35 -> 35297.23 | K37: =[4]CER_EmpInd!K35 -> 37211.36 | L37: =[4]CER_EmpInd!L35 -> 40326.71 | M37: =[4]CER_EmpInd!M35 -> 40149.16 | N37: =[4]CER_EmpInd!N35 -> 40459.34 | O37: =[4]CER_EmpInd!O35 -> 39756.82 | P37: =[4]CER_EmpInd!P35 -> 39619.93 | Q37: =[4]CER_EmpInd!Q35 -> 40342.3
A38: M | B38: Education (2) | C38: =[4]CER_EmpInd!C36 -> 2826.56 | D38: =[4]CER_EmpInd!D36 -> 2747.8 | E38: =[4]CER_EmpInd!E36 -> 4210.31 | F38: =[4]CER_EmpInd!F36 -> 5031.46 | G38: =[4]CER_EmpInd!G36 -> 5369.29 | H38: =[4]CER_EmpInd!H36 -> 5823.98 | I38: =[4]CER_EmpInd!I36 -> 6393.37 | J38: =[4]CER_EmpInd!J36 -> 6340.57 | K38: =[4]CER_EmpInd!K36 -> 6708.19 | L38: =[4]CER_EmpInd!L36 -> 4642.9 | M38: =[4]CER_EmpInd!M36 -> 5014.88 | N38: =[4]CER_EmpInd!N36 -> 4888.86 | O38: =[4]CER_EmpInd!O36 -> 5305.71 | P38: =[4]CER_EmpInd!P36 -> 5847.45 | Q38: =[4]CER_EmpInd!Q36 -> 6436.77
A39: N | B39: Health and Social Work (2) | C39: =[4]CER_EmpInd!C37 -> 801.89 | D39: =[4]CER_EmpInd!D37 -> 820.77 | E39: =[4]CER_EmpInd!E37 -> 832.53 | F39: =[4]CER_EmpInd!F37 -> 871.79 | G39: =[4]CER_EmpInd!G37 -> 961.86 | H39: =[4]CER_EmpInd!H37 -> 1044.45 | I39: =[4]CER_EmpInd!I37 -> 1180.91 | J39: =[4]CER_EmpInd!J37 -> 1316.82 | K39: =[4]CER_EmpInd!K37 -> 1443.91 | L39: =[4]CER_EmpInd!L37 -> 1788.73 | M39: =[4]CER_EmpInd!M37 -> 1827.74 | N39: =[4]CER_EmpInd!N37 -> 1769.61 | O39: =[4]CER_EmpInd!O37 -> 1759.84 | P39: =[4]CER_EmpInd!P37 -> 2108.59 | Q39: =[4]CER_EmpInd!Q37 -> 2028.24
A40: O | B40: Community, Social & Personal Service Activities | C40: =[4]CER_EmpInd!C38 -> 247.37 | D40: =[4]CER_EmpInd!D38 -> 297.51 | E40: =[4]CER_EmpInd!E38 -> 350.2 | F40: =[4]CER_EmpInd!F38 -> 406.69 | G40: =[4]CER_EmpInd!G38 -> 479.82 | H40: =[4]CER_EmpInd!H38 -> 479.45 | I40: =[4]CER_EmpInd!I38 -> 441.37 | J40: =[4]CER_EmpInd!J38 -> 467.79 | K40: =[4]CER_EmpInd!K38 -> 433.79 | L40: =[4]CER_EmpInd!L38 -> 457.89 | M40: =[4]CER_EmpInd!M38 -> 518.63 | N40: =[4]CER_EmpInd!N38 -> 738.58 | O40: =[4]CER_EmpInd!O38 -> 852.06 | P40: =[4]CER_EmpInd!P38 -> 936.67 | Q40: =[4]CER_EmpInd!Q38 -> 1132.59
A41: P | B41: Private Households With Employed Persons | C41: =[4]CER_EmpInd!C39 -> 18.77 | D41: =[4]CER_EmpInd!D39 -> 17.66 | E41: =[4]CER_EmpInd!E39 -> 21.87 | F41: =[4]CER_EmpInd!F39 -> 19.72 | G41: =[4]CER_EmpInd!G39 -> 21.24 | H41: =[4]CER_EmpInd!H39 -> 17.42 | I41: =[4]CER_EmpInd!I39 -> 23.76 | J41: =[4]CER_EmpInd!J39 -> 27.59 | K41: =[4]CER_EmpInd!K39 -> 14.18 | L41: =[4]CER_EmpInd!L39 -> 7.14 | M41: =[4]CER_EmpInd!M39 -> 31.93 | N41: =[4]CER_EmpInd!N39 -> 74.93 | O41: =[4]CER_EmpInd!O39 -> 57.14 | P41: =[4]CER_EmpInd!P39 -> 37.64 | Q41: =[4]CER_EmpInd!Q39 -> 54.43
A42: Q | B42: Extra-Territorial Organizations and Bodies | C42: =[4]CER_EmpInd!C40 -> 13286.72 | D42: =[4]CER_EmpInd!D40 -> 13435.83 | E42: =[4]CER_EmpInd!E40 -> 14742.88 | F42: =[4]CER_EmpInd!F40 -> 17027.05 | G42: =[4]CER_EmpInd!G40 -> 17765.62 | H42: =[4]CER_EmpInd!H40 -> 16051.72 | I42: =[4]CER_EmpInd!I40 -> 17836.27 | J42: =[4]CER_EmpInd!J40 -> 18067.01 | K42: =[4]CER_EmpInd!K40 -> 18594.76 | L42: =[4]CER_EmpInd!L40 -> 20322.28 | M42: =[4]CER_EmpInd!M40 -> 19451.41 | N42: =[4]CER_EmpInd!N40 -> 17272.05 | O42: =[4]CER_EmpInd!O40 -> 17490.71 | P42: =[4]CER_EmpInd!P40 -> 16614.33 | Q42: =[4]CER_EmpInd!Q40 -> 16497.14
B43: Total | C43: =SUM(C26:C42) -> 65820.78 | D43: =SUM(D26:D42) -> 65202.17 | E43: 67942.88 | F43: 73603.76 | G43: 78169.11 | H43: 80515.73 | I43: 83078.8 | J43: 88648.87 | K43: 91277.97 | L43: 96016.06 | M43: 97634.83 | N43: 97250.73 | O43: 98342.61 | P43: 99499.92 | Q43: 101566.33
A44: (1) Includes Shore based fish processing and vessel support services. 2) Not including government workers which are included under "Public Administration"
A45: Source: Social Security plus EPPSO 'non-reported' estimate. Wage Costs = Gross wages and salaries as per Social Security regulations.
A47: Table 3f Employment by industry, average wage and salary rates, FY2004-FY2011
C48: FY1997 | D48: FY1998 | E48: FY1999 | F48: FY2000 | G48: FY2001 | H48: FY2002 | I48: FY2003 | J48: FY2004 | K48: FY2005 | L48: FY2006 | M48: FY2007 | N48: FY2008 | O48: FY2009 | P48: FY2010 | Q48: FY2011
A49: A | B49: Agriculture, Hunting and Forestry | C49: =[4]CER_EmpInd!C46 ->  | D49: =[4]CER_EmpInd!D46 ->  | E49: =[4]CER_EmpInd!E46 ->  | F49: =[4]CER_EmpInd!F46 ->  | G49: =[4]CER_EmpInd!G46 ->  | H49: =[4]CER_EmpInd!H46 ->  | I49: =[4]CER_EmpInd!I46 -> 2614.146341 | J49: =[4]CER_EmpInd!J46 -> 2830 | K49: =[4]CER_EmpInd!K46 -> 3314.947368 | L49: =[4]CER_EmpInd!L46 -> 2713.333333 | M49: =[4]CER_EmpInd!M46 -> 2740.645161 | N49: =[4]CER_EmpInd!N46 -> 2965.818182 | O49: =[4]CER_EmpInd!O46 -> 3131.717172 | P49: =[4]CER_EmpInd!P46 -> 3162.608696 | Q49: =[4]CER_EmpInd!Q46 -> 3678.933333
A50: B | B50: Fisheries (1) | C50: =[4]CER_EmpInd!C47 -> 5131.393939 | D50: =[4]CER_EmpInd!D47 -> 4965.508982 | E50: =[4]CER_EmpInd!E47 -> 8865.473684 | F50: =[4]CER_EmpInd!F47 -> 3087.872851 | G50: =[4]CER_EmpInd!G47 -> 3093.40348 | H50: =[4]CER_EmpInd!H47 -> 2746.526029 | I50: =[4]CER_EmpInd!I47 -> 2442.971999 | J50: =[4]CER_EmpInd!J47 -> 2541.616766 | K50: =[4]CER_EmpInd!K47 -> 5456.357143 | L50: =[4]CER_EmpInd!L47 -> 5381.587764 | M50: =[4]CER_EmpInd!M47 -> 5759.661278 | N50: =[4]CER_EmpInd!N47 -> 4643.095173 | O50: =[4]CER_EmpInd!O47 -> 3787.316076 | P50: =[4]CER_EmpInd!P47 -> 2988.55529 | Q50: =[4]CER_EmpInd!Q47 -> 3046.724815
A51: C | B51: Mining and Quarrying | C51: =[4]CER_EmpInd!C48 ->  | D51: =[4]CER_EmpInd!D48 ->  | E51: =[4]CER_EmpInd!E48 ->  | F51: =[4]CER_EmpInd!F48 ->  | G51: =[4]CER_EmpInd!G48 ->  | H51: =[4]CER_EmpInd!H48 ->  | I51: =[4]CER_EmpInd!I48 ->  | J51: =[4]CER_EmpInd!J48 ->  | K51: =[4]CER_EmpInd!K48 ->  | L51: =[4]CER_EmpInd!L48 ->  | M51: =[4]CER_EmpInd!M48 ->  | N51: =[4]CER_EmpInd!N48 ->  | O51: =[4]CER_EmpInd!O48 ->  | P51: =[4]CER_EmpInd!P48 ->  | Q51: =[4]CER_EmpInd!Q48 -> 
A52: D | B52: Manufacturing | C52: =[4]CER_EmpInd!C49 -> 5010.511628 | D52: =[4]CER_EmpInd!D49 -> 4485.811966 | E52: =[4]CER_EmpInd!E49 -> 4316.73913 | F52: =[4]CER_EmpInd!F49 -> 4725.949367 | G52: =[4]CER_EmpInd!G49 -> 5192.638889 | H52: =[4]CER_EmpInd!H49 -> 5554.121406 | I52: =[4]CER_EmpInd!I49 -> 5562.541806 | J52: =[4]CER_EmpInd!J49 -> 6184.647887 | K52: =[4]CER_EmpInd!K49 -> 5356.710875 | L52: =[4]CER_EmpInd!L49 -> 5248.910562 | M52: =[4]CER_EmpInd!M49 -> 5520.962587 | N52: =[4]CER_EmpInd!N49 -> 5121.39448 | O52: =[4]CER_EmpInd!O49 -> 5624.516129 | P52: =[4]CER_EmpInd!P49 -> 6535.733333 | Q52: =[4]CER_EmpInd!Q49 -> 5827.888041
A53: E | B53: Electricity, Gas and Water Supply | C53: =[4]CER_EmpInd!C50 -> 11313.22476 | D53: =[4]CER_EmpInd!D50 -> 11521.80451 | E53: =[4]CER_EmpInd!E50 -> 11025.45455 | F53: =[4]CER_EmpInd!F50 -> 11982.77205 | G53: =[4]CER_EmpInd!G50 -> 11211.22427 | H53: =[4]CER_EmpInd!H50 -> 11349.58084 | I53: =[4]CER_EmpInd!I50 -> 12630.87351 | J53: =[4]CER_EmpInd!J50 -> 12245.11712 | K53: =[4]CER_EmpInd!K50 -> 13089.56793 | L53: =[4]CER_EmpInd!L50 -> 13162.48378 | M53: =[4]CER_EmpInd!M50 -> 11137.14286 | N53: =[4]CER_EmpInd!N50 -> 12237.86184 | O53: =[4]CER_EmpInd!O50 -> 11970.23188 | P53: =[4]CER_EmpInd!P50 -> 13873.23414 | Q53: =[4]CER_EmpInd!Q50 -> 14181.23102
A54: F | B54: Construction | C54: =[4]CER_EmpInd!C51 -> 6395.725757 | D54: =[4]CER_EmpInd!D51 -> 5904.387431 | E54: =[4]CER_EmpInd!E51 -> 6239.314845 | F54: =[4]CER_EmpInd!F51 -> 6111.244838 | G54: =[4]CER_EmpInd!G51 -> 6148.603581 | H54: =[4]CER_EmpInd!H51 -> 5297.232704 | I54: =[4]CER_EmpInd!I51 -> 5360.977343 | J54: =[4]CER_EmpInd!J51 -> 5280.810904 | K54: =[4]CER_EmpInd!K51 -> 5132.220727 | L54: =[4]CER_EmpInd!L51 -> 5547.242798 | M54: =[4]CER_EmpInd!M51 -> 5523.339171 | N54: =[4]CER_EmpInd!N51 -> 5910.63129 | O54: =[4]CER_EmpInd!O51 -> 6426.267996 | P54: =[4]CER_EmpInd!P51 -> 6701.995717 | Q54: =[4]CER_EmpInd!Q51 -> 7262.740525
A55: G | B55: Wholesale and Retail Trade | C55: =[4]CER_EmpInd!C52 -> 5504.17493 | D55: =[4]CER_EmpInd!D52 -> 5334.355873 | E55: =[4]CER_EmpInd!E52 -> 5464.937007 | F55: =[4]CER_EmpInd!F52 -> 5493.509505 | G55: =[4]CER_EmpInd!G52 -> 5421.752972 | H55: =[4]CER_EmpInd!H52 -> 5202.252648 | I55: =[4]CER_EmpInd!I52 -> 4741.83472 | J55: =[4]CER_EmpInd!J52 -> 4554.893359 | K55: =[4]CER_EmpInd!K52 -> 4508.044558 | L55: =[4]CER_EmpInd!L52 -> 4303.886887 | M55: =[4]CER_EmpInd!M52 -> 4495.875163 | N55: =[4]CER_EmpInd!N52 -> 4636.472955 | O55: =[4]CER_EmpInd!O52 -> 5076.07805 | P55: =[4]CER_EmpInd!P52 -> 5154.22851 | Q55: =[4]CER_EmpInd!Q52 -> 5362.400556
A56: H | B56: Hotels and Restaurants | C56: =[4]CER_EmpInd!C53 -> 5210.701662 | D56: =[4]CER_EmpInd!D53 -> 5313.61658 | E56: =[4]CER_EmpInd!E53 -> 5406.027987 | F56: =[4]CER_EmpInd!F53 -> 5215.641195 | G56: =[4]CER_EmpInd!G53 -> 4800.322847 | H56: =[4]CER_EmpInd!H53 -> 5214.154446 | I56: =[4]CER_EmpInd!I53 -> 4658.299595 | J56: =[4]CER_EmpInd!J53 -> 4462.894249 | K56: =[4]CER_EmpInd!K53 -> 4947.478815 | L56: =[4]CER_EmpInd!L53 -> 5085.921482 | M56: =[4]CER_EmpInd!M53 -> 4963.464918 | N56: =[4]CER_EmpInd!N53 -> 4695.449735 | O56: =[4]CER_EmpInd!O53 -> 5122.630992 | P56: =[4]CER_EmpInd!P53 -> 5084.56 | Q56: =[4]CER_EmpInd!Q53 -> 5449.326425
A57: I | B57: Transport, Storage and Communications | C57: =[4]CER_EmpInd!C54 -> 10121.11533 | D57: =[4]CER_EmpInd!D54 -> 10066.62267 | E57: =[4]CER_EmpInd!E54 -> 9911.345351 | F57: =[4]CER_EmpInd!F54 -> 9782.289987 | G57: =[4]CER_EmpInd!G54 -> 9868.606037 | H57: =[4]CER_EmpInd!H54 -> 9395.692062 | I57: =[4]CER_EmpInd!I54 -> 9676.513908 | J57: =[4]CER_EmpInd!J54 -> 9244.949262 | K57: =[4]CER_EmpInd!K54 -> 8373.308886 | L57: =[4]CER_EmpInd!L54 -> 8163.740663 | M57: =[4]CER_EmpInd!M54 -> 7747.113115 | N57: =[4]CER_EmpInd!N54 -> 8999.806369 | O57: =[4]CER_EmpInd!O54 -> 8786.550246 | P57: =[4]CER_EmpInd!P54 -> 9866.296647 | Q57: =[4]CER_EmpInd!Q54 -> 10108.84406
A58: J | B58: Financial Intermediation | C58: =[4]CER_EmpInd!C55 -> 13156.84647 | D58: =[4]CER_EmpInd!D55 -> 13560.07533 | E58: =[4]CER_EmpInd!E55 -> 12787.6036 | F58: =[4]CER_EmpInd!F55 -> 12252.26575 | G58: =[4]CER_EmpInd!G55 -> 11381.10283 | H58: =[4]CER_EmpInd!H55 -> 13418.01575 | I58: =[4]CER_EmpInd!I55 -> 14366.05263 | J58: =[4]CER_EmpInd!J55 -> 14436.86854 | K58: =[4]CER_EmpInd!K55 -> 16417.87356 | L58: =[4]CER_EmpInd!L55 -> 16483.36788 | M58: =[4]CER_EmpInd!M55 -> 16509.80769 | N58: =[4]CER_EmpInd!N55 -> 16078.95611 | O58: =[4]CER_EmpInd!O55 -> 16836.04819 | P58: =[4]CER_EmpInd!P55 -> 16600.90192 | Q58: =[4]CER_EmpInd!Q55 -> 17024.72973
A59: K | B59: Real Estate, Renting and Businesss Activities | C59: =[4]CER_EmpInd!C56 -> 7321.326709 | D59: =[4]CER_EmpInd!D56 -> 6386.288498 | E59: =[4]CER_EmpInd!E56 -> 7117.340623 | F59: =[4]CER_EmpInd!F56 -> 6675.471698 | G59: =[4]CER_EmpInd!G56 -> 6658.632563 | H59: =[4]CER_EmpInd!H56 -> 7345.995568 | I59: =[4]CER_EmpInd!I56 -> 7340.022701 | J59: =[4]CER_EmpInd!J56 -> 5661.638862 | K59: =[4]CER_EmpInd!K56 -> 5504.538153 | L59: =[4]CER_EmpInd!L56 -> 6450.31572 | M59: =[4]CER_EmpInd!M56 -> 6292.765105 | N59: =[4]CER_EmpInd!N56 -> 6451.192865 | O59: =[4]CER_EmpInd!O56 -> 6785.699482 | P59: =[4]CER_EmpInd!P56 -> 7704.52183 | Q59: =[4]CER_EmpInd!Q56 -> 8269.794595
A60: L | B60: Public Administration | C60: =[4]CER_EmpInd!C57 -> 8991.162351 | D60: =[4]CER_EmpInd!D57 -> 8770.828695 | E60: =[4]CER_EmpInd!E57 -> 9156.709749 | F60: =[4]CER_EmpInd!F57 -> 9716.45276 | G60: =[4]CER_EmpInd!G57 -> 9928.458691 | H60: =[4]CER_EmpInd!H57 -> 10293.93227 | I60: =[4]CER_EmpInd!I57 -> 10256.15364 | J60: =[4]CER_EmpInd!J57 -> 11205.46984 | K60: =[4]CER_EmpInd!K57 -> 11190.1076 | L60: =[4]CER_EmpInd!L57 -> 11079.89274 | M60: =[4]CER_EmpInd!M57 -> 11231.69671 | N60: =[4]CER_EmpInd!N57 -> 11394.58988 | O60: =[4]CER_EmpInd!O57 -> 11560.97916 | P60: =[4]CER_EmpInd!P57 -> 11572.08616 | Q60: =[4]CER_EmpInd!Q57 -> 11705.29523
A61: M | B61: Education (2) | C61: =[4]CER_EmpInd!C58 -> 6196.829851 | D61: =[4]CER_EmpInd!D58 -> 6845.881708 | E61: =[4]CER_EmpInd!E58 -> 8098.618912 | F61: =[4]CER_EmpInd!F58 -> 8964.739421 | G61: =[4]CER_EmpInd!G58 -> 8560.047828 | H61: =[4]CER_EmpInd!H58 -> 9337.042084 | I61: =[4]CER_EmpInd!I58 -> 10558.82742 | J61: =[4]CER_EmpInd!J58 -> 10748.91503 | K61: =[4]CER_EmpInd!K58 -> 10754.61323 | L61: =[4]CER_EmpInd!L58 -> 12122.45431 | M61: =[4]CER_EmpInd!M58 -> 11521.83802 | N61: =[4]CER_EmpInd!N58 -> 12241.12374 | O61: =[4]CER_EmpInd!O58 -> 12742.47082 | P61: =[4]CER_EmpInd!P58 -> 12798.6561 | Q61: =[4]CER_EmpInd!Q58 -> 13026.47077
A62: N | B62: Health and Social Work (2) | C62: =[4]CER_EmpInd!C59 -> 5228.126222 | D62: =[4]CER_EmpInd!D59 -> 4650.254958 | E62: =[4]CER_EmpInd!E59 -> 4680.290083 | F62: =[4]CER_EmpInd!F59 -> 4819.714728 | G62: =[4]CER_EmpInd!G59 -> 4945.29563 | H62: =[4]CER_EmpInd!H59 -> 5138.745387 | I62: =[4]CER_EmpInd!I59 -> 5767.570208 | J62: =[4]CER_EmpInd!J59 -> 5849.153822 | K62: =[4]CER_EmpInd!K59 -> 6047.790576 | L62: =[4]CER_EmpInd!L59 -> 7271.260163 | M62: =[4]CER_EmpInd!M59 -> 7384.808081 | N62: =[4]CER_EmpInd!N59 -> 7064.311377 | O62: =[4]CER_EmpInd!O59 -> 7074.733668 | P62: =[4]CER_EmpInd!P59 -> 8580.223805 | Q62: =[4]CER_EmpInd!Q59 -> 8621.636557
A63: O | B63: Community, Social & Personal Service Activities | C63: =[4]CER_EmpInd!C60 -> 5590.282486 | D63: =[4]CER_EmpInd!D60 -> 4798.548387 | E63: =[4]CER_EmpInd!E60 -> 4967.375887 | F63: =[4]CER_EmpInd!F60 -> 4694.563084 | G63: =[4]CER_EmpInd!G60 -> 5131.764706 | H63: =[4]CER_EmpInd!H60 -> 5974.454829 | I63: =[4]CER_EmpInd!I60 -> 5649.174453 | J63: =[4]CER_EmpInd!J60 -> 5811.055901 | K63: =[4]CER_EmpInd!K60 -> 5306.299694 | L63: =[4]CER_EmpInd!L60 -> 5442.648282 | M63: =[4]CER_EmpInd!M60 -> 5995.722543 | N63: =[4]CER_EmpInd!N60 -> 6142.037422 | O63: =[4]CER_EmpInd!O60 -> 6605.116279 | P63: =[4]CER_EmpInd!P60 -> 6459.793103 | Q63: =[4]CER_EmpInd!Q60 -> 6613.664234
A64: P | B64: Private Households With Employed Persons | C64: =[4]CER_EmpInd!C61 ->  | D64: =[4]CER_EmpInd!D61 ->  | E64: =[4]CER_EmpInd!E61 ->  | F64: =[4]CER_EmpInd!F61 ->  | G64: =[4]CER_EmpInd!G61 ->  | H64: =[4]CER_EmpInd!H61 ->  | I64: =[4]CER_EmpInd!I61 ->  | J64: =[4]CER_EmpInd!J61 ->  | K64: =[4]CER_EmpInd!K61 ->  | L64: =[4]CER_EmpInd!L61 ->  | M64: =[4]CER_EmpInd!M61 ->  | N64: =[4]CER_EmpInd!N61 -> 4834.193548 | O64: =[4]CER_EmpInd!O61 -> 3007.368421 | P64: =[4]CER_EmpInd!P61 -> 3273.043478 | Q64: =[4]CER_EmpInd!Q61 -> 3958.545455
A65: Q | B65: Extra-Territorial Organizations and Bodies | C65: =[4]CER_EmpInd!C62 -> 11561.20948 | D65: =[4]CER_EmpInd!D62 -> 12001.63466 | E65: =[4]CER_EmpInd!E62 -> 12616.92769 | F65: =[4]CER_EmpInd!F62 -> 13575.48336 | G65: =[4]CER_EmpInd!G62 -> 13708.04012 | H65: =[4]CER_EmpInd!H62 -> 13634.92886 | I65: =[4]CER_EmpInd!I62 -> 12162.47528 | J65: =[4]CER_EmpInd!J62 -> 14532.08124 | K65: =[4]CER_EmpInd!K62 -> 15216.66121 | L65: =[4]CER_EmpInd!L62 -> 16201.0555 | M65: =[4]CER_EmpInd!M62 -> 16077.13988 | N65: =[4]CER_EmpInd!N62 -> 15525.4382 | O65: =[4]CER_EmpInd!O62 -> 16753.55364 | P65: =[4]CER_EmpInd!P62 -> 16388.9815 | Q65: =[4]CER_EmpInd!Q62 -> 16963.6401
B66: Total | C66: =[4]CER_EmpInd!C63 -> 8288.946062 | D66: =[4]CER_EmpInd!D63 -> 8137.637568 | E66: =[4]CER_EmpInd!E63 -> 8515.970214 | F66: =[4]CER_EmpInd!F63 -> 8554.418899 | G66: =[4]CER_EmpInd!G63 -> 8486.348082 | H66: =[4]CER_EmpInd!H63 -> 8442.750981 | I66: =[4]CER_EmpInd!I63 -> 8339.327604 | J66: =[4]CER_EmpInd!J63 -> 8730.936965 | K66: =[4]CER_EmpInd!K63 -> 9347.299637 | L66: =[4]CER_EmpInd!L63 -> 9462.805568 | M66: =[4]CER_EmpInd!M63 -> 9353.294279 | N66: =[4]CER_EmpInd!N63 -> 9357.29392 | O66: =[4]CER_EmpInd!O63 -> 9567.648896 | P66: =[4]CER_EmpInd!P63 -> 9456.225718 | Q66: =[4]CER_EmpInd!Q63 -> 9689.335717
A67: (1) Includes Shore based fish processing and vessel support services. 2) Not including government workers which are included under "Public Administration"
A68: Source: Social Security plus EPPSO 'non-reported' estimate.

Sheet EmpPriv
A1: Table 3g Employment in private sector by industry, numbers, FY2004-FY2011
B2: (No. of workers, part and full time) | C2: FY1997 | D2: FY1998 | E2: FY1999 | F2: FY2000 | G2: FY2001 | H2: FY2002 | I2: FY2003 | J2: FY2004 | K2: FY2005 | L2: FY2006 | M2: FY2007 | N2: FY2008 | O2: FY2009 | P2: FY2010 | Q2: FY2011
A3: A | B3: Agriculture, Hunting and Forestry | C3: =[4]CER_EmpIndPriv!C3 -> 8 | D3: =[4]CER_EmpIndPriv!D3 -> 8 | E3: =[4]CER_EmpIndPriv!E3 -> 8.25 | F3: =[4]CER_EmpIndPriv!F3 -> 6.5 | G3: =[4]CER_EmpIndPriv!G3 -> 1 | H3: =[4]CER_EmpIndPriv!H3 -> 0 | I3: =[4]CER_EmpIndPriv!I3 -> 0 | J3: =[4]CER_EmpIndPriv!J3 -> 1.5 | K3: =[4]CER_EmpIndPriv!K3 -> 2 | L3: =[4]CER_EmpIndPriv!L3 -> 0.5 | M3: =[4]CER_EmpIndPriv!M3 -> 0 | N3: =[4]CER_EmpIndPriv!N3 -> 0 | O3: =[4]CER_EmpIndPriv!O3 -> 0 | P3: =[4]CER_EmpIndPriv!P3 -> 0 | Q3: =[4]CER_EmpIndPriv!Q3 -> 0
A4: B | B4: Fisheries (1) | C4: =[4]CER_EmpIndPriv!C4 -> 81.5 | D4: =[4]CER_EmpIndPriv!D4 -> 81 | E4: =[4]CER_EmpIndPriv!E4 -> 45 | F4: =[4]CER_EmpIndPriv!F4 -> 516 | G4: =[4]CER_EmpIndPriv!G4 -> 574 | H4: =[4]CER_EmpIndPriv!H4 -> 688 | I4: =[4]CER_EmpIndPriv!I4 -> 852 | J4: =[4]CER_EmpIndPriv!J4 -> 946.5 | K4: =[4]CER_EmpIndPriv!K4 -> 217.5 | L4: =[4]CER_EmpIndPriv!L4 -> 267 | M4: =[4]CER_EmpIndPriv!M4 -> 235.25 | N4: =[4]CER_EmpIndPriv!N4 -> 397.13 | O4: =[4]CER_EmpIndPriv!O4 -> 647.25 | P4: =[4]CER_EmpIndPriv!P4 -> 1063 | Q4: =[4]CER_EmpIndPriv!Q4 -> 1063
A5: C | B5: Mining and Quarrying | C5: =[4]CER_EmpIndPriv!C5 -> 0 | D5: =[4]CER_EmpIndPriv!D5 -> 0 | E5: =[4]CER_EmpIndPriv!E5 -> 0 | F5: =[4]CER_EmpIndPriv!F5 -> 0 | G5: =[4]CER_EmpIndPriv!G5 -> 0 | H5: =[4]CER_EmpIndPriv!H5 -> 0 | I5: =[4]CER_EmpIndPriv!I5 -> 0 | J5: =[4]CER_EmpIndPriv!J5 -> 0 | K5: =[4]CER_EmpIndPriv!K5 -> 0 | L5: =[4]CER_EmpIndPriv!L5 -> 0 | M5: =[4]CER_EmpIndPriv!M5 -> 0 | N5: =[4]CER_EmpIndPriv!N5 -> 0 | O5: =[4]CER_EmpIndPriv!O5 -> 0 | P5: =[4]CER_EmpIndPriv!P5 -> 0 | Q5: =[4]CER_EmpIndPriv!Q5 -> 0
A6: D | B6: Manufacturing | C6: =[4]CER_EmpIndPriv!C6 -> 36.5 | D6: =[4]CER_EmpIndPriv!D6 -> 43.75 | E6: =[4]CER_EmpIndPriv!E6 -> 39.5 | F6: =[4]CER_EmpIndPriv!F6 -> 40 | G6: =[4]CER_EmpIndPriv!G6 -> 44.5 | H6: =[4]CER_EmpIndPriv!H6 -> 45 | I6: =[4]CER_EmpIndPriv!I6 -> 40.5 | J6: =[4]CER_EmpIndPriv!J6 -> 44 | K6: =[4]CER_EmpIndPriv!K6 -> 65.5 | L6: =[4]CER_EmpIndPriv!L6 -> 67.13 | M6: =[4]CER_EmpIndPriv!M6 -> 75.38 | N6: =[4]CER_EmpIndPriv!N6 -> 66.38 | O6: =[4]CER_EmpIndPriv!O6 -> 49 | P6: =[4]CER_EmpIndPriv!P6 -> 49.25 | Q6: =[4]CER_EmpIndPriv!Q6 -> 51.5
A7: E | B7: Electricity, Gas and Water Supply | C7: =[4]CER_EmpIndPriv!C7 -> 0 | D7: =[4]CER_EmpIndPriv!D7 -> 0 | E7: =[4]CER_EmpIndPriv!E7 -> 0 | F7: =[4]CER_EmpIndPriv!F7 -> 0 | G7: =[4]CER_EmpIndPriv!G7 -> 0 | H7: =[4]CER_EmpIndPriv!H7 -> 0 | I7: =[4]CER_EmpIndPriv!I7 -> 0 | J7: =[4]CER_EmpIndPriv!J7 -> 0 | K7: =[4]CER_EmpIndPriv!K7 -> 0 | L7: =[4]CER_EmpIndPriv!L7 -> 0 | M7: =[4]CER_EmpIndPriv!M7 -> 0 | N7: =[4]CER_EmpIndPriv!N7 -> 0 | O7: =[4]CER_EmpIndPriv!O7 -> 0 | P7: =[4]CER_EmpIndPriv!P7 -> 0 | Q7: =[4]CER_EmpIndPriv!Q7 -> 0
A8: F | B8: Construction | C8: =[4]CER_EmpIndPriv!C8 -> 404.75 | D8: =[4]CER_EmpIndPriv!D8 -> 610.38 | E8: =[4]CER_EmpIndPriv!E8 -> 613 | F8: =[4]CER_EmpIndPriv!F8 -> 423.75 | G8: =[4]CER_EmpIndPriv!G8 -> 488.75 | H8: =[4]CER_EmpIndPriv!H8 -> 636 | I8: =[4]CER_EmpIndPriv!I8 -> 562.75 | J8: =[4]CER_EmpIndPriv!J8 -> 522.38 | K8: =[4]CER_EmpIndPriv!K8 -> 557.25 | L8: =[4]CER_EmpIndPriv!L8 -> 729 | M8: =[4]CER_EmpIndPriv!M8 -> 856.5 | N8: =[4]CER_EmpIndPriv!N8 -> 819.75 | O8: =[4]CER_EmpIndPriv!O8 -> 677.25 | P8: =[4]CER_EmpIndPriv!P8 -> 583.75 | Q8: =[4]CER_EmpIndPriv!Q8 -> 514.5
A9: G | B9: Wholesale and Retail Trade | C9: =[4]CER_EmpIndPriv!C9 -> 1391.64 | D9: =[4]CER_EmpIndPriv!D9 -> 1369.14 | E9: =[4]CER_EmpIndPriv!E9 -> 1390.64 | F9: =[4]CER_EmpIndPriv!F9 -> 1552.27 | G9: =[4]CER_EmpIndPriv!G9 -> 1746.52 | H9: =[4]CER_EmpIndPriv!H9 -> 1729.52 | I9: =[4]CER_EmpIndPriv!I9 -> 1635.89 | J9: =[4]CER_EmpIndPriv!J9 -> 1748.39 | K9: =[4]CER_EmpIndPriv!K9 -> 1814.27 | L9: =[4]CER_EmpIndPriv!L9 -> 1826.14 | M9: =[4]CER_EmpIndPriv!M9 -> 1821.89 | N9: =[4]CER_EmpIndPriv!N9 -> 1829.52 | O9: =[4]CER_EmpIndPriv!O9 -> 1708.64 | P9: =[4]CER_EmpIndPriv!P9 -> 1726.14 | Q9: =[4]CER_EmpIndPriv!Q9 -> 1713.27
A10: H | B10: Hotels and Restaurants | C10: =[4]CER_EmpIndPriv!C10 -> 149.88 | D10: =[4]CER_EmpIndPriv!D10 -> 149.25 | E10: =[4]CER_EmpIndPriv!E10 -> 146.5 | F10: =[4]CER_EmpIndPriv!F10 -> 169.63 | G10: =[4]CER_EmpIndPriv!G10 -> 176.75 | H10: =[4]CER_EmpIndPriv!H10 -> 163.13 | I10: =[4]CER_EmpIndPriv!I10 -> 206.25 | J10: =[4]CER_EmpIndPriv!J10 -> 183.25 | K10: =[4]CER_EmpIndPriv!K10 -> 149.13 | L10: =[4]CER_EmpIndPriv!L10 -> 162.63 | M10: =[4]CER_EmpIndPriv!M10 -> 190.38 | N10: =[4]CER_EmpIndPriv!N10 -> 182.25 | O10: =[4]CER_EmpIndPriv!O10 -> 168.63 | P10: =[4]CER_EmpIndPriv!P10 -> 157.5 | Q10: =[4]CER_EmpIndPriv!Q10 -> 141
A11: I | B11: Transport, Storage and Communications | C11: =[4]CER_EmpIndPriv!C11 -> 172.38 | D11: =[4]CER_EmpIndPriv!D11 -> 148.51 | E11: =[4]CER_EmpIndPriv!E11 -> 163.01 | F11: =[4]CER_EmpIndPriv!F11 -> 168.88 | G11: =[4]CER_EmpIndPriv!G11 -> 175.88 | H11: =[4]CER_EmpIndPriv!H11 -> 210.01 | I11: =[4]CER_EmpIndPriv!I11 -> 225.26 | J11: =[4]CER_EmpIndPriv!J11 -> 256.76 | K11: =[4]CER_EmpIndPriv!K11 -> 299.01 | L11: =[4]CER_EmpIndPriv!L11 -> 318.26 | M11: =[4]CER_EmpIndPriv!M11 -> 403.01 | N11: =[4]CER_EmpIndPriv!N11 -> 343.88 | O11: =[4]CER_EmpIndPriv!O11 -> 356.38 | P11: =[4]CER_EmpIndPriv!P11 -> 319.76 | Q11: =[4]CER_EmpIndPriv!Q11 -> 305.88
A12: J | B12: Financial Intermediation | C12: =[4]CER_EmpIndPriv!C12 -> 17.25 | D12: =[4]CER_EmpIndPriv!D12 -> 17.5 | E12: =[4]CER_EmpIndPriv!E12 -> 16 | F12: =[4]CER_EmpIndPriv!F12 -> 16.63 | G12: =[4]CER_EmpIndPriv!G12 -> 19.25 | H12: =[4]CER_EmpIndPriv!H12 -> 18.25 | I12: =[4]CER_EmpIndPriv!I12 -> 15.25 | J12: =[4]CER_EmpIndPriv!J12 -> 16 | K12: =[4]CER_EmpIndPriv!K12 -> 15.75 | L12: =[4]CER_EmpIndPriv!L12 -> 18.5 | M12: =[4]CER_EmpIndPriv!M12 -> 24.25 | N12: =[4]CER_EmpIndPriv!N12 -> 20 | O12: =[4]CER_EmpIndPriv!O12 -> 21.25 | P12: =[4]CER_EmpIndPriv!P12 -> 19.5 | Q12: =[4]CER_EmpIndPriv!Q12 -> 19.75
A13: K | B13: Real Estate, Renting and Businesss Activities | C13: =[4]CER_EmpIndPriv!C13 -> 209.63 | D13: =[4]CER_EmpIndPriv!D13 -> 221.88 | E13: =[4]CER_EmpIndPriv!E13 -> 185.88 | F13: =[4]CER_EmpIndPriv!F13 -> 204.75 | G13: =[4]CER_EmpIndPriv!G13 -> 216.38 | H13: =[4]CER_EmpIndPriv!H13 -> 213.75 | I13: =[4]CER_EmpIndPriv!I13 -> 210.63 | J13: =[4]CER_EmpIndPriv!J13 -> 222.88 | K13: =[4]CER_EmpIndPriv!K13 -> 241 | L13: =[4]CER_EmpIndPriv!L13 -> 201.63 | M13: =[4]CER_EmpIndPriv!M13 -> 210.63 | N13: =[4]CER_EmpIndPriv!N13 -> 215 | O13: =[4]CER_EmpIndPriv!O13 -> 233.25 | P13: =[4]CER_EmpIndPriv!P13 -> 222.38 | Q13: =[4]CER_EmpIndPriv!Q13 -> 221.75
A14: L | B14: Public Administration | C14: =[4]CER_EmpIndPriv!C14 -> 0 | D14: =[4]CER_EmpIndPriv!D14 -> 0 | E14: =[4]CER_EmpIndPriv!E14 -> 0 | F14: =[4]CER_EmpIndPriv!F14 -> 0 | G14: =[4]CER_EmpIndPriv!G14 -> 0 | H14: =[4]CER_EmpIndPriv!H14 -> 0 | I14: =[4]CER_EmpIndPriv!I14 -> 0 | J14: =[4]CER_EmpIndPriv!J14 -> 0 | K14: =[4]CER_EmpIndPriv!K14 -> 0 | L14: =[4]CER_EmpIndPriv!L14 -> 0 | M14: =[4]CER_EmpIndPriv!M14 -> 0 | N14: =[4]CER_EmpIndPriv!N14 -> 0 | O14: =[4]CER_EmpIndPriv!O14 -> 0 | P14: =[4]CER_EmpIndPriv!P14 -> 0 | Q14: =[4]CER_EmpIndPriv!Q14 -> 0
A15: M | B15: Education | C15: =[4]CER_EmpIndPriv!C15 -> 0 | D15: =[4]CER_EmpIndPriv!D15 -> 0 | E15: =[4]CER_EmpIndPriv!E15 -> 0 | F15: =[4]CER_EmpIndPriv!F15 -> 0 | G15: =[4]CER_EmpIndPriv!G15 -> 0 | H15: =[4]CER_EmpIndPriv!H15 -> 0 | I15: =[4]CER_EmpIndPriv!I15 -> 0 | J15: =[4]CER_EmpIndPriv!J15 -> 0 | K15: =[4]CER_EmpIndPriv!K15 -> 0 | L15: =[4]CER_EmpIndPriv!L15 -> 0 | M15: =[4]CER_EmpIndPriv!M15 -> 0 | N15: =[4]CER_EmpIndPriv!N15 -> 0 | O15: =[4]CER_EmpIndPriv!O15 -> 0 | P15: =[4]CER_EmpIndPriv!P15 -> 0 | Q15: =[4]CER_EmpIndPriv!Q15 -> 0
A16: N | B16: Health and Social Work | C16: =[4]CER_EmpIndPriv!C16 -> 8 | D16: =[4]CER_EmpIndPriv!D16 -> 6.75 | E16: =[4]CER_EmpIndPriv!E16 -> 6 | F16: =[4]CER_EmpIndPriv!F16 -> 6.75 | G16: =[4]CER_EmpIndPriv!G16 -> 8 | H16: =[4]CER_EmpIndPriv!H16 -> 11.25 | I16: =[4]CER_EmpIndPriv!I16 -> 14.75 | J16: =[4]CER_EmpIndPriv!J16 -> 20 | K16: =[4]CER_EmpIndPriv!K16 -> 27.25 | L16: =[4]CER_EmpIndPriv!L16 -> 37 | M16: =[4]CER_EmpIndPriv!M16 -> 39.25 | N16: =[4]CER_EmpIndPriv!N16 -> 56.25 | O16: =[4]CER_EmpIndPriv!O16 -> 66.75 | P16: =[4]CER_EmpIndPriv!P16 -> 46.75 | Q16: =[4]CER_EmpIndPriv!Q16 -> 37
A17: O | B17: Community, Social & Personal Service Activities | C17: =[4]CER_EmpIndPriv!C17 -> 40.25 | D17: =[4]CER_EmpIndPriv!D17 -> 57.25 | E17: =[4]CER_EmpIndPriv!E17 -> 65.5 | F17: =[4]CER_EmpIndPriv!F17 -> 81.63 | G17: =[4]CER_EmpIndPriv!G17 -> 88.5 | H17: =[4]CER_EmpIndPriv!H17 -> 75.25 | I17: =[4]CER_EmpIndPriv!I17 -> 74.63 | J17: =[4]CER_EmpIndPriv!J17 -> 77.5 | K17: =[4]CER_EmpIndPriv!K17 -> 79.25 | L17: =[4]CER_EmpIndPriv!L17 -> 80.88 | M17: =[4]CER_EmpIndPriv!M17 -> 74 | N17: =[4]CER_EmpIndPriv!N17 -> 95 | O17: =[4]CER_EmpIndPriv!O17 -> 94 | P17: =[4]CER_EmpIndPriv!P17 -> 113.5 | Q17: =[4]CER_EmpIndPriv!Q17 -> 123.38
A18: P | B18: Private Households With Employed Persons | C18: =[4]CER_EmpIndPriv!C18 -> 5 | D18: =[4]CER_EmpIndPriv!D18 -> 4.25 | E18: =[4]CER_EmpIndPriv!E18 -> 4.5 | F18: =[4]CER_EmpIndPriv!F18 -> 4.75 | G18: =[4]CER_EmpIndPriv!G18 -> 5.5 | H18: =[4]CER_EmpIndPriv!H18 -> 6 | I18: =[4]CER_EmpIndPriv!I18 -> 8.75 | J18: =[4]CER_EmpIndPriv!J18 -> 8.25 | K18: =[4]CER_EmpIndPriv!K18 -> 5 | L18: =[4]CER_EmpIndPriv!L18 -> 4 | M18: =[4]CER_EmpIndPriv!M18 -> 7 | N18: =[4]CER_EmpIndPriv!N18 -> 15.5 | O18: =[4]CER_EmpIndPriv!O18 -> 19 | P18: =[4]CER_EmpIndPriv!P18 -> 11.5 | Q18: =[4]CER_EmpIndPriv!Q18 -> 13.75
A19: Q | B19: Extra-Territorial Organizations and Bodies | C19: =[4]CER_EmpIndPriv!C19 -> 0 | D19: =[4]CER_EmpIndPriv!D19 -> 0 | E19: =[4]CER_EmpIndPriv!E19 -> 0 | F19: =[4]CER_EmpIndPriv!F19 -> 0 | G19: =[4]CER_EmpIndPriv!G19 -> 0 | H19: =[4]CER_EmpIndPriv!H19 -> 0 | I19: =[4]CER_EmpIndPriv!I19 -> 0 | J19: =[4]CER_EmpIndPriv!J19 -> 0 | K19: =[4]CER_EmpIndPriv!K19 -> 0 | L19: =[4]CER_EmpIndPriv!L19 -> 0 | M19: =[4]CER_EmpIndPriv!M19 -> 0 | N19: =[4]CER_EmpIndPriv!N19 -> 0 | O19: =[4]CER_EmpIndPriv!O19 -> 0 | P19: =[4]CER_EmpIndPriv!P19 -> 0 | Q19: =[4]CER_EmpIndPriv!Q19 -> 0
B20: Total | C20: =SUM(C3:C19) -> 2524.78 | D20: =SUM(D3:D19) -> 2717.66 | E20: 2683.78 | F20: 3191.54 | G20: 3545.03 | H20: 3796.16 | I20: 3846.66 | J20: 4047.41 | K20: 3472.91 | L20: 3712.67 | M20: 3937.54 | N20: 4040.66 | O20: 4041.4 | P20: 4313.03 | Q20: 4204.78
A21: (1) Includes Shore based fish processed and vessel support services
A22: Source: Social Security plus EPPSO 'non-reported' estimate.
A24: Table 3h Employment in private sector by industry, wage costs, FY2004-FY2011
B25: (US$000) | C25: FY1997 | D25: FY1998 | E25: FY1999 | F25: FY2000 | G25: FY2001 | H25: FY2002 | I25: FY2003 | J25: FY2004 | K25: FY2005 | L25: FY2006 | M25: FY2007 | N25: FY2008 | O25: FY2009 | P25: FY2010 | Q25: FY2011
A26: A | B26: Agriculture, Hunting and Forestry | C26: =[4]CER_EmpIndPriv!C24 -> 17.32 | D26: =[4]CER_EmpIndPriv!D24 -> 17.32 | E26: =[4]CER_EmpIndPriv!E24 -> 17.89 | F26: =[4]CER_EmpIndPriv!F24 -> 13.71 | G26: =[4]CER_EmpIndPriv!G24 -> 1.48 | H26: =[4]CER_EmpIndPriv!H24 -> 0 | I26: =[4]CER_EmpIndPriv!I24 -> 0 | J26: =[4]CER_EmpIndPriv!J24 -> 1.8 | K26: =[4]CER_EmpIndPriv!K24 -> 6 | L26: =[4]CER_EmpIndPriv!L24 -> 1.8 | M26: =[4]CER_EmpIndPriv!M24 -> 0 | N26: =[4]CER_EmpIndPriv!N24 -> 0 | O26: =[4]CER_EmpIndPriv!O24 -> 0 | P26: =[4]CER_EmpIndPriv!P24 -> 0 | Q26: =[4]CER_EmpIndPriv!Q24 -> 0
A27: B | B27: Fisheries (1) | C27: =[4]CER_EmpIndPriv!C25 -> 419.2 | D27: =[4]CER_EmpIndPriv!D25 -> 398.96 | E27: =[4]CER_EmpIndPriv!E25 -> 401.68 | F27: =[4]CER_EmpIndPriv!F25 -> 1374.49 | G27: =[4]CER_EmpIndPriv!G25 -> 1447.96 | H27: =[4]CER_EmpIndPriv!H25 -> 1543.22 | I27: =[4]CER_EmpIndPriv!I25 -> 1710.55 | J27: =[4]CER_EmpIndPriv!J25 -> 1966.12 | K27: =[4]CER_EmpIndPriv!K25 -> 810.01 | L27: =[4]CER_EmpIndPriv!L25 -> 1036 | M27: =[4]CER_EmpIndPriv!M25 -> 1003.01 | N27: =[4]CER_EmpIndPriv!N25 -> 1400.4 | O27: =[4]CER_EmpIndPriv!O25 -> 1959.36 | P27: =[4]CER_EmpIndPriv!P25 -> 2518.28 | Q27: =[4]CER_EmpIndPriv!Q25 -> 2494.86
A28: C | B28: Mining and Quarrying | C28: =[4]CER_EmpIndPriv!C26 -> 0 | D28: =[4]CER_EmpIndPriv!D26 -> 0 | E28: =[4]CER_EmpIndPriv!E26 -> 0 | F28: =[4]CER_EmpIndPriv!F26 -> 0 | G28: =[4]CER_EmpIndPriv!G26 -> 0 | H28: =[4]CER_EmpIndPriv!H26 -> 0 | I28: =[4]CER_EmpIndPriv!I26 -> 0 | J28: =[4]CER_EmpIndPriv!J26 -> 0 | K28: =[4]CER_EmpIndPriv!K26 -> 0 | L28: =[4]CER_EmpIndPriv!L26 -> 0 | M28: =[4]CER_EmpIndPriv!M26 -> 0 | N28: =[4]CER_EmpIndPriv!N26 -> 0 | O28: =[4]CER_EmpIndPriv!O26 -> 0 | P28: =[4]CER_EmpIndPriv!P26 -> 0 | Q28: =[4]CER_EmpIndPriv!Q26 -> 0
A29: D | B29: Manufacturing | C29: =[4]CER_EmpIndPriv!C27 -> 176.75 | D29: =[4]CER_EmpIndPriv!D27 -> 192.53 | E29: =[4]CER_EmpIndPriv!E27 -> 180.05 | F29: =[4]CER_EmpIndPriv!F27 -> 167.9 | G29: =[4]CER_EmpIndPriv!G27 -> 196.61 | H29: =[4]CER_EmpIndPriv!H27 -> 207.65 | I29: =[4]CER_EmpIndPriv!I27 -> 179.64 | J29: =[4]CER_EmpIndPriv!J27 -> 198.79 | K29: =[4]CER_EmpIndPriv!K27 -> 249.62 | L29: =[4]CER_EmpIndPriv!L27 -> 251.4 | M29: =[4]CER_EmpIndPriv!M27 -> 316.78 | N29: =[4]CER_EmpIndPriv!N27 -> 259.72 | O29: =[4]CER_EmpIndPriv!O27 -> 204 | P29: =[4]CER_EmpIndPriv!P27 -> 246.13 | Q29: =[4]CER_EmpIndPriv!Q27 -> 202.81
A30: E | B30: Electricity, Gas and Water Supply | C30: =[4]CER_EmpIndPriv!C28 -> 0 | D30: =[4]CER_EmpIndPriv!D28 -> 0 | E30: =[4]CER_EmpIndPriv!E28 -> 0 | F30: =[4]CER_EmpIndPriv!F28 -> 0 | G30: =[4]CER_EmpIndPriv!G28 -> 0 | H30: =[4]CER_EmpIndPriv!H28 -> 0 | I30: =[4]CER_EmpIndPriv!I28 -> 0 | J30: =[4]CER_EmpIndPriv!J28 -> 0 | K30: =[4]CER_EmpIndPriv!K28 -> 0 | L30: =[4]CER_EmpIndPriv!L28 -> 0 | M30: =[4]CER_EmpIndPriv!M28 -> 0 | N30: =[4]CER_EmpIndPriv!N28 -> 0 | O30: =[4]CER_EmpIndPriv!O28 -> 0 | P30: =[4]CER_EmpIndPriv!P28 -> 0 | Q30: =[4]CER_EmpIndPriv!Q28 -> 0
A31: F | B31: Construction | C31: =[4]CER_EmpIndPriv!C29 -> 2588.67 | D31: =[4]CER_EmpIndPriv!D29 -> 3603.92 | E31: =[4]CER_EmpIndPriv!E29 -> 3824.7 | F31: =[4]CER_EmpIndPriv!F29 -> 2589.64 | G31: =[4]CER_EmpIndPriv!G29 -> 3005.13 | H31: =[4]CER_EmpIndPriv!H29 -> 3369.04 | I31: =[4]CER_EmpIndPriv!I29 -> 3016.89 | J31: =[4]CER_EmpIndPriv!J29 -> 2758.59 | K31: =[4]CER_EmpIndPriv!K29 -> 2859.93 | L31: =[4]CER_EmpIndPriv!L29 -> 4043.94 | M31: =[4]CER_EmpIndPriv!M29 -> 4730.74 | N31: =[4]CER_EmpIndPriv!N29 -> 4845.24 | O31: =[4]CER_EmpIndPriv!O29 -> 4352.19 | P31: =[4]CER_EmpIndPriv!P29 -> 3912.29 | Q31: =[4]CER_EmpIndPriv!Q29 -> 3736.68
A32: G | B32: Wholesale and Retail Trade | C32: =[4]CER_EmpIndPriv!C30 -> 7659.83 | D32: =[4]CER_EmpIndPriv!D30 -> 7303.48 | E32: =[4]CER_EmpIndPriv!E30 -> 7599.76 | F32: =[4]CER_EmpIndPriv!F30 -> 8527.41 | G32: =[4]CER_EmpIndPriv!G30 -> 9469.2 | H32: =[4]CER_EmpIndPriv!H30 -> 8997.4 | I32: =[4]CER_EmpIndPriv!I30 -> 7757.12 | J32: =[4]CER_EmpIndPriv!J30 -> 7963.73 | K32: =[4]CER_EmpIndPriv!K30 -> 8178.81 | L32: =[4]CER_EmpIndPriv!L30 -> 7859.5 | M32: =[4]CER_EmpIndPriv!M30 -> 8190.99 | N32: =[4]CER_EmpIndPriv!N30 -> 8482.52 | O32: =[4]CER_EmpIndPriv!O30 -> 8673.19 | P32: =[4]CER_EmpIndPriv!P30 -> 8896.92 | Q32: =[4]CER_EmpIndPriv!Q30 -> 9187.24
A33: H | B33: Hotels and Restaurants | C33: =[4]CER_EmpIndPriv!C31 -> 574.79 | D33: =[4]CER_EmpIndPriv!D31 -> 548.31 | E33: =[4]CER_EmpIndPriv!E31 -> 545.65 | F33: =[4]CER_EmpIndPriv!F31 -> 619.45 | G33: =[4]CER_EmpIndPriv!G31 -> 585.05 | H33: =[4]CER_EmpIndPriv!H31 -> 605.99 | I33: =[4]CER_EmpIndPriv!I31 -> 673.63 | J33: =[4]CER_EmpIndPriv!J31 -> 587.7 | K33: =[4]CER_EmpIndPriv!K31 -> 553.04 | L33: =[4]CER_EmpIndPriv!L31 -> 637.48 | M33: =[4]CER_EmpIndPriv!M31 -> 726.92 | N33: =[4]CER_EmpIndPriv!N31 -> 615.99 | O33: =[4]CER_EmpIndPriv!O31 -> 602.63 | P33: =[4]CER_EmpIndPriv!P31 -> 591.23 | Q33: =[4]CER_EmpIndPriv!Q31 -> 536.69
A34: I | B34: Transport, Storage and Communications | C34: =[4]CER_EmpIndPriv!C32 -> 1176.13 | D34: =[4]CER_EmpIndPriv!D32 -> 1075.42 | E34: =[4]CER_EmpIndPriv!E32 -> 1138.52 | F34: =[4]CER_EmpIndPriv!F32 -> 1230.23 | G34: =[4]CER_EmpIndPriv!G32 -> 1225.64 | H34: =[4]CER_EmpIndPriv!H32 -> 1386.31 | I34: =[4]CER_EmpIndPriv!I32 -> 1481.1 | J34: =[4]CER_EmpIndPriv!J32 -> 1594.97 | K34: =[4]CER_EmpIndPriv!K32 -> 1691.4 | L34: =[4]CER_EmpIndPriv!L32 -> 1680.63 | M34: =[4]CER_EmpIndPriv!M32 -> 1947.88 | N34: =[4]CER_EmpIndPriv!N32 -> 2010.04 | O34: =[4]CER_EmpIndPriv!O32 -> 1851 | P34: =[4]CER_EmpIndPriv!P32 -> 1887.97 | Q34: =[4]CER_EmpIndPriv!Q32 -> 2063.8
A35: J | B35: Financial Intermediation | C35: =[4]CER_EmpIndPriv!C33 -> 197.22 | D35: =[4]CER_EmpIndPriv!D33 -> 200.54 | E35: =[4]CER_EmpIndPriv!E33 -> 204.9 | F35: =[4]CER_EmpIndPriv!F33 -> 182.75 | G35: =[4]CER_EmpIndPriv!G33 -> 226.03 | H35: =[4]CER_EmpIndPriv!H33 -> 178.32 | I35: =[4]CER_EmpIndPriv!I33 -> 164.15 | J35: =[4]CER_EmpIndPriv!J33 -> 171.73 | K35: =[4]CER_EmpIndPriv!K33 -> 191.83 | L35: =[4]CER_EmpIndPriv!L33 -> 206.79 | M35: =[4]CER_EmpIndPriv!M33 -> 216.81 | N35: =[4]CER_EmpIndPriv!N33 -> 232.33 | O35: =[4]CER_EmpIndPriv!O33 -> 232.93 | P35: =[4]CER_EmpIndPriv!P33 -> 238.03 | Q35: =[4]CER_EmpIndPriv!Q33 -> 255.15
A36: K | B36: Real Estate, Renting and Businesss Activities | C36: =[4]CER_EmpIndPriv!C34 -> 1416.37 | D36: =[4]CER_EmpIndPriv!D34 -> 1286.6 | E36: =[4]CER_EmpIndPriv!E34 -> 1185.91 | F36: =[4]CER_EmpIndPriv!F34 -> 1269.18 | G36: =[4]CER_EmpIndPriv!G34 -> 1317.85 | H36: =[4]CER_EmpIndPriv!H34 -> 1454.66 | I36: =[4]CER_EmpIndPriv!I34 -> 1387.51 | J36: =[4]CER_EmpIndPriv!J34 -> 1103.35 | K36: =[4]CER_EmpIndPriv!K34 -> 1169.94 | L36: =[4]CER_EmpIndPriv!L34 -> 1125.19 | M36: =[4]CER_EmpIndPriv!M34 -> 1169.45 | N36: =[4]CER_EmpIndPriv!N34 -> 1214.43 | O36: =[4]CER_EmpIndPriv!O34 -> 1431.18 | P36: =[4]CER_EmpIndPriv!P34 -> 1556.24 | Q36: =[4]CER_EmpIndPriv!Q34 -> 1659.7
A37: L | B37: Public Administration | C37: =[4]CER_EmpIndPriv!C35 -> 0 | D37: =[4]CER_EmpIndPriv!D35 -> 0 | E37: =[4]CER_EmpIndPriv!E35 -> 0 | F37: =[4]CER_EmpIndPriv!F35 -> 0 | G37: =[4]CER_EmpIndPriv!G35 -> 0 | H37: =[4]CER_EmpIndPriv!H35 -> 0 | I37: =[4]CER_EmpIndPriv!I35 -> 0 | J37: =[4]CER_EmpIndPriv!J35 -> 0 | K37: =[4]CER_EmpIndPriv!K35 -> 0 | L37: =[4]CER_EmpIndPriv!L35 -> 0 | M37: =[4]CER_EmpIndPriv!M35 -> 0 | N37: =[4]CER_EmpIndPriv!N35 -> 0 | O37: =[4]CER_EmpIndPriv!O35 -> 0 | P37: =[4]CER_EmpIndPriv!P35 -> 0 | Q37: =[4]CER_EmpIndPriv!Q35 -> 0
A38: M | B38: Education | C38: =[4]CER_EmpIndPriv!C36 -> 0 | D38: =[4]CER_EmpIndPriv!D36 -> 0 | E38: =[4]CER_EmpIndPriv!E36 -> 0 | F38: =[4]CER_EmpIndPriv!F36 -> 0 | G38: =[4]CER_EmpIndPriv!G36 -> 0 | H38: =[4]CER_EmpIndPriv!H36 -> 0 | I38: =[4]CER_EmpIndPriv!I36 -> 0 | J38: =[4]CER_EmpIndPriv!J36 -> 0 | K38: =[4]CER_EmpIndPriv!K36 -> 0 | L38: =[4]CER_EmpIndPriv!L36 -> 0 | M38: =[4]CER_EmpIndPriv!M36 -> 0 | N38: =[4]CER_EmpIndPriv!N36 -> 0 | O38: =[4]CER_EmpIndPriv!O36 -> 0 | P38: =[4]CER_EmpIndPriv!P36 -> 0 | Q38: =[4]CER_EmpIndPriv!Q36 -> 0
A39: N | B39: Health and Social Work | C39: =[4]CER_EmpIndPriv!C37 -> 45.58 | D39: =[4]CER_EmpIndPriv!D37 -> 41.65 | E39: =[4]CER_EmpIndPriv!E37 -> 34.6 | F39: =[4]CER_EmpIndPriv!F37 -> 40.18 | G39: =[4]CER_EmpIndPriv!G37 -> 50.91 | H39: =[4]CER_EmpIndPriv!H37 -> 96.83 | I39: =[4]CER_EmpIndPriv!I37 -> 138.48 | J39: =[4]CER_EmpIndPriv!J37 -> 202.07 | K39: =[4]CER_EmpIndPriv!K37 -> 260.13 | L39: =[4]CER_EmpIndPriv!L37 -> 449.06 | M39: =[4]CER_EmpIndPriv!M37 -> 377.04 | N39: =[4]CER_EmpIndPriv!N37 -> 337.21 | O39: =[4]CER_EmpIndPriv!O37 -> 348.98 | P39: =[4]CER_EmpIndPriv!P37 -> 405.93 | Q39: =[4]CER_EmpIndPriv!Q37 -> 338.19
A40: O | B40: Community, Social & Personal Service Activities | C40: =[4]CER_EmpIndPriv!C38 -> 241.97 | D40: =[4]CER_EmpIndPriv!D38 -> 291.36 | E40: =[4]CER_EmpIndPriv!E38 -> 343.8 | F40: =[4]CER_EmpIndPriv!F38 -> 400.29 | G40: =[4]CER_EmpIndPriv!G38 -> 473.42 | H40: =[4]CER_EmpIndPriv!H38 -> 473.05 | I40: =[4]CER_EmpIndPriv!I38 -> 436.32 | J40: =[4]CER_EmpIndPriv!J38 -> 463.19 | K40: =[4]CER_EmpIndPriv!K38 -> 429.96 | L40: =[4]CER_EmpIndPriv!L38 -> 452.35 | M40: =[4]CER_EmpIndPriv!M38 -> 446.35 | N40: =[4]CER_EmpIndPriv!N38 -> 553.12 | O40: =[4]CER_EmpIndPriv!O38 -> 592.92 | P40: =[4]CER_EmpIndPriv!P38 -> 666.19 | Q40: =[4]CER_EmpIndPriv!Q38 -> 775.17
A41: P | B41: Private Households With Employed Persons | C41: =[4]CER_EmpIndPriv!C39 -> 18.77 | D41: =[4]CER_EmpIndPriv!D39 -> 17.66 | E41: =[4]CER_EmpIndPriv!E39 -> 21.87 | F41: =[4]CER_EmpIndPriv!F39 -> 19.72 | G41: =[4]CER_EmpIndPriv!G39 -> 21.24 | H41: =[4]CER_EmpIndPriv!H39 -> 17.42 | I41: =[4]CER_EmpIndPriv!I39 -> 23.76 | J41: =[4]CER_EmpIndPriv!J39 -> 27.59 | K41: =[4]CER_EmpIndPriv!K39 -> 14.18 | L41: =[4]CER_EmpIndPriv!L39 -> 7.14 | M41: =[4]CER_EmpIndPriv!M39 -> 31.93 | N41: =[4]CER_EmpIndPriv!N39 -> 74.93 | O41: =[4]CER_EmpIndPriv!O39 -> 57.14 | P41: =[4]CER_EmpIndPriv!P39 -> 37.64 | Q41: =[4]CER_EmpIndPriv!Q39 -> 54.43
A42: Q | B42: Extra-Territorial Organizations and Bodies | C42: =[4]CER_EmpIndPriv!C40 -> 0 | D42: =[4]CER_EmpIndPriv!D40 -> 0 | E42: =[4]CER_EmpIndPriv!E40 -> 0 | F42: =[4]CER_EmpIndPriv!F40 -> 0 | G42: =[4]CER_EmpIndPriv!G40 -> 0 | H42: =[4]CER_EmpIndPriv!H40 -> 0 | I42: =[4]CER_EmpIndPriv!I40 -> 0 | J42: =[4]CER_EmpIndPriv!J40 -> 0 | K42: =[4]CER_EmpIndPriv!K40 -> 0 | L42: =[4]CER_EmpIndPriv!L40 -> 0 | M42: =[4]CER_EmpIndPriv!M40 -> 0 | N42: =[4]CER_EmpIndPriv!N40 -> 0 | O42: =[4]CER_EmpIndPriv!O40 -> 0 | P42: =[4]CER_EmpIndPriv!P40 -> 0 | Q42: =[4]CER_EmpIndPriv!Q40 -> 0
B43: Total | C43: =SUM(C26:C42) -> 14532.6 | D43: =SUM(D26:D42) -> 14977.75 | E43: 15499.33 | F43: 16434.95 | G43: 18020.52 | H43: 18329.89 | I43: 16969.15 | J43: 17039.63 | K43: 16414.85 | L43: 17751.28 | M43: 19157.9 | N43: 20025.93 | O43: 20305.52 | P43: 20956.85 | Q43: 21304.72
A44: (1) Includes Shore based fish processed and vessel support services
A45: Source: Social Security plus EPPSO 'non-reported' estimate. Wage Costs = Gross wages and salaries as per Social Security regulations.
A47: Table 3i Employment in private sector by industry, average wage and salary rates, FY2004-FY2011
C48: FY1997 | D48: FY1998 | E48: FY1999 | F48: FY2000 | G48: FY2001 | H48: FY2002 | I48: FY2003 | J48: FY2004 | K48: FY2005 | L48: FY2006 | M48: FY2007 | N48: FY2008 | O48: FY2009 | P48: FY2010 | Q48: FY2011
A49: A | B49: Agriculture, Hunting and Forestry | C49: =[4]CER_EmpIndPriv!C45 ->  | D49: =[4]CER_EmpIndPriv!D45 ->  | E49: =[4]CER_EmpIndPriv!E45 ->  | F49: =[4]CER_EmpIndPriv!F45 ->  | G49: =[4]CER_EmpIndPriv!G45 ->  | H49: =[4]CER_EmpIndPriv!H45 ->  | I49: =[4]CER_EmpIndPriv!I45 ->  | J49: =[4]CER_EmpIndPriv!J45 ->  | K49: =[4]CER_EmpIndPriv!K45 ->  | L49: =[4]CER_EmpIndPriv!L45 ->  | M49: =[4]CER_EmpIndPriv!M45 ->  | N49: =[4]CER_EmpIndPriv!N45 ->  | O49: =[4]CER_EmpIndPriv!O45 ->  | P49: =[4]CER_EmpIndPriv!P45 ->  | Q49: =[4]CER_EmpIndPriv!Q45 -> 
A50: B | B50: Fisheries (1) | C50: =[4]CER_EmpIndPriv!C46 -> 5143.558282 | D50: =[4]CER_EmpIndPriv!D46 -> 4925.432099 | E50: =[4]CER_EmpIndPriv!E46 -> 8926.222222 | F50: =[4]CER_EmpIndPriv!F46 -> 2663.74031 | G50: =[4]CER_EmpIndPriv!G46 -> 2522.578397 | H50: =[4]CER_EmpIndPriv!H46 -> 2243.052326 | I50: =[4]CER_EmpIndPriv!I46 -> 2007.687793 | J50: =[4]CER_EmpIndPriv!J46 -> 2077.253038 | K50: =[4]CER_EmpIndPriv!K46 -> 3724.183908 | L50: =[4]CER_EmpIndPriv!L46 -> 3880.149813 | M50: =[4]CER_EmpIndPriv!M46 -> 4263.591923 | N50: =[4]CER_EmpIndPriv!N46 -> 3526.301211 | O50: =[4]CER_EmpIndPriv!O46 -> 3027.207416 | P50: =[4]CER_EmpIndPriv!P46 -> 2369.031044 | Q50: =[4]CER_EmpIndPriv!Q46 -> 2346.999059
A51: C | B51: Mining and Quarrying | C51: =[4]CER_EmpIndPriv!C47 ->  | D51: =[4]CER_EmpIndPriv!D47 ->  | E51: =[4]CER_EmpIndPriv!E47 ->  | F51: =[4]CER_EmpIndPriv!F47 ->  | G51: =[4]CER_EmpIndPriv!G47 ->  | H51: =[4]CER_EmpIndPriv!H47 ->  | I51: =[4]CER_EmpIndPriv!I47 ->  | J51: =[4]CER_EmpIndPriv!J47 ->  | K51: =[4]CER_EmpIndPriv!K47 ->  | L51: =[4]CER_EmpIndPriv!L47 ->  | M51: =[4]CER_EmpIndPriv!M47 ->  | N51: =[4]CER_EmpIndPriv!N47 ->  | O51: =[4]CER_EmpIndPriv!O47 ->  | P51: =[4]CER_EmpIndPriv!P47 ->  | Q51: =[4]CER_EmpIndPriv!Q47 -> 
A52: D | B52: Manufacturing | C52: =[4]CER_EmpIndPriv!C48 -> 4842.465753 | D52: =[4]CER_EmpIndPriv!D48 -> 4400.685714 | E52: =[4]CER_EmpIndPriv!E48 -> 4558.227848 | F52: =[4]CER_EmpIndPriv!F48 -> 4197.5 | G52: =[4]CER_EmpIndPriv!G48 -> 4418.202247 | H52: =[4]CER_EmpIndPriv!H48 -> 4614.444444 | I52: =[4]CER_EmpIndPriv!I48 -> 4435.555556 | J52: =[4]CER_EmpIndPriv!J48 -> 4517.954545 | K52: =[4]CER_EmpIndPriv!K48 -> 3810.992366 | L52: =[4]CER_EmpIndPriv!L48 -> 3744.972442 | M52: =[4]CER_EmpIndPriv!M48 -> 4202.440966 | N52: =[4]CER_EmpIndPriv!N48 -> 3912.624284 | O52: =[4]CER_EmpIndPriv!O48 -> 4163.265306 | P52: =[4]CER_EmpIndPriv!P48 -> 4997.563452 | Q52: =[4]CER_EmpIndPriv!Q48 -> 3938.058252
A53: E | B53: Electricity, Gas and Water Supply | C53: =[4]CER_EmpIndPriv!C49 ->  | D53: =[4]CER_EmpIndPriv!D49 ->  | E53: =[4]CER_EmpIndPriv!E49 ->  | F53: =[4]CER_EmpIndPriv!F49 ->  | G53: =[4]CER_EmpIndPriv!G49 ->  | H53: =[4]CER_EmpIndPriv!H49 ->  | I53: =[4]CER_EmpIndPriv!I49 ->  | J53: =[4]CER_EmpIndPriv!J49 ->  | K53: =[4]CER_EmpIndPriv!K49 ->  | L53: =[4]CER_EmpIndPriv!L49 ->  | M53: =[4]CER_EmpIndPriv!M49 ->  | N53: =[4]CER_EmpIndPriv!N49 ->  | O53: =[4]CER_EmpIndPriv!O49 ->  | P53: =[4]CER_EmpIndPriv!P49 ->  | Q53: =[4]CER_EmpIndPriv!Q49 -> 
A54: F | B54: Construction | C54: =[4]CER_EmpIndPriv!C50 -> 6395.725757 | D54: =[4]CER_EmpIndPriv!D50 -> 5904.387431 | E54: =[4]CER_EmpIndPriv!E50 -> 6239.314845 | F54: =[4]CER_EmpIndPriv!F50 -> 6111.244838 | G54: =[4]CER_EmpIndPriv!G50 -> 6148.603581 | H54: =[4]CER_EmpIndPriv!H50 -> 5297.232704 | I54: =[4]CER_EmpIndPriv!I50 -> 5360.977343 | J54: =[4]CER_EmpIndPriv!J50 -> 5280.810904 | K54: =[4]CER_EmpIndPriv!K50 -> 5132.220727 | L54: =[4]CER_EmpIndPriv!L50 -> 5547.242798 | M54: =[4]CER_EmpIndPriv!M50 -> 5523.339171 | N54: =[4]CER_EmpIndPriv!N50 -> 5910.63129 | O54: =[4]CER_EmpIndPriv!O50 -> 6426.267996 | P54: =[4]CER_EmpIndPriv!P50 -> 6701.995717 | Q54: =[4]CER_EmpIndPriv!Q50 -> 7262.740525
A55: G | B55: Wholesale and Retail Trade | C55: =[4]CER_EmpIndPriv!C51 -> 5504.17493 | D55: =[4]CER_EmpIndPriv!D51 -> 5334.355873 | E55: =[4]CER_EmpIndPriv!E51 -> 5464.937007 | F55: =[4]CER_EmpIndPriv!F51 -> 5493.509505 | G55: =[4]CER_EmpIndPriv!G51 -> 5421.752972 | H55: =[4]CER_EmpIndPriv!H51 -> 5202.252648 | I55: =[4]CER_EmpIndPriv!I51 -> 4741.83472 | J55: =[4]CER_EmpIndPriv!J51 -> 4554.893359 | K55: =[4]CER_EmpIndPriv!K51 -> 4508.044558 | L55: =[4]CER_EmpIndPriv!L51 -> 4303.886887 | M55: =[4]CER_EmpIndPriv!M51 -> 4495.875163 | N55: =[4]CER_EmpIndPriv!N51 -> 4636.472955 | O55: =[4]CER_EmpIndPriv!O51 -> 5076.07805 | P55: =[4]CER_EmpIndPriv!P51 -> 5154.22851 | Q55: =[4]CER_EmpIndPriv!Q51 -> 5362.400556
A56: H | B56: Hotels and Restaurants | C56: =[4]CER_EmpIndPriv!C52 -> 3835.001334 | D56: =[4]CER_EmpIndPriv!D52 -> 3673.768844 | E56: =[4]CER_EmpIndPriv!E52 -> 3724.573379 | F56: =[4]CER_EmpIndPriv!F52 -> 3651.771503 | G56: =[4]CER_EmpIndPriv!G52 -> 3310.042433 | H56: =[4]CER_EmpIndPriv!H52 -> 3714.767363 | I56: =[4]CER_EmpIndPriv!I52 -> 3266.084848 | J56: =[4]CER_EmpIndPriv!J52 -> 3207.094134 | K56: =[4]CER_EmpIndPriv!K52 -> 3708.442299 | L56: =[4]CER_EmpIndPriv!L52 -> 3919.817992 | M56: =[4]CER_EmpIndPriv!M52 -> 3818.25822 | N56: =[4]CER_EmpIndPriv!N52 -> 3379.917695 | O56: =[4]CER_EmpIndPriv!O52 -> 3573.682026 | P56: =[4]CER_EmpIndPriv!P52 -> 3753.84127 | Q56: =[4]CER_EmpIndPriv!Q52 -> 3806.312057
A57: I | B57: Transport, Storage and Communications | C57: =[4]CER_EmpIndPriv!C53 -> 6822.891287 | D57: =[4]CER_EmpIndPriv!D53 -> 7241.397886 | E57: =[4]CER_EmpIndPriv!E53 -> 6984.356788 | F57: =[4]CER_EmpIndPriv!F53 -> 7284.639981 | G57: =[4]CER_EmpIndPriv!G53 -> 6968.614965 | H57: =[4]CER_EmpIndPriv!H53 -> 6601.161849 | I57: =[4]CER_EmpIndPriv!I53 -> 6575.068809 | J57: =[4]CER_EmpIndPriv!J53 -> 6211.909955 | K57: =[4]CER_EmpIndPriv!K53 -> 5656.667001 | L57: =[4]CER_EmpIndPriv!L53 -> 5280.682461 | M57: =[4]CER_EmpIndPriv!M53 -> 4833.329198 | N57: =[4]CER_EmpIndPriv!N53 -> 5845.178551 | O57: =[4]CER_EmpIndPriv!O53 -> 5193.894158 | P57: =[4]CER_EmpIndPriv!P53 -> 5904.334501 | Q57: =[4]CER_EmpIndPriv!Q53 -> 6747.090362
A58: J | B58: Financial Intermediation | C58: =[4]CER_EmpIndPriv!C54 -> 11433.04348 | D58: =[4]CER_EmpIndPriv!D54 -> 11459.42857 | E58: =[4]CER_EmpIndPriv!E54 -> 12806.25 | F58: =[4]CER_EmpIndPriv!F54 -> 10989.17619 | G58: =[4]CER_EmpIndPriv!G54 -> 11741.81818 | H58: =[4]CER_EmpIndPriv!H54 -> 9770.958904 | I58: =[4]CER_EmpIndPriv!I54 -> 10763.93443 | J58: =[4]CER_EmpIndPriv!J54 -> 10733.125 | K58: =[4]CER_EmpIndPriv!K54 -> 12179.68254 | L58: =[4]CER_EmpIndPriv!L54 -> 11177.83784 | M58: =[4]CER_EmpIndPriv!M54 -> 8940.618557 | N58: =[4]CER_EmpIndPriv!N54 -> 11616.5 | O58: =[4]CER_EmpIndPriv!O54 -> 10961.41176 | P58: =[4]CER_EmpIndPriv!P54 -> 12206.66667 | Q58: =[4]CER_EmpIndPriv!Q54 -> 12918.98734
A59: K | B59: Real Estate, Renting and Businesss Activities | C59: =[4]CER_EmpIndPriv!C55 -> 6756.523398 | D59: =[4]CER_EmpIndPriv!D55 -> 5798.62989 | E59: =[4]CER_EmpIndPriv!E55 -> 6379.976329 | F59: =[4]CER_EmpIndPriv!F55 -> 6198.681319 | G59: =[4]CER_EmpIndPriv!G55 -> 6090.44274 | H59: =[4]CER_EmpIndPriv!H55 -> 6805.426901 | I59: =[4]CER_EmpIndPriv!I55 -> 6587.428192 | J59: =[4]CER_EmpIndPriv!J55 -> 4950.421752 | K59: =[4]CER_EmpIndPriv!K55 -> 4854.522822 | L59: =[4]CER_EmpIndPriv!L55 -> 5580.469176 | M59: =[4]CER_EmpIndPriv!M55 -> 5552.153065 | N59: =[4]CER_EmpIndPriv!N55 -> 5648.511628 | O59: =[4]CER_EmpIndPriv!O55 -> 6135.819936 | P59: =[4]CER_EmpIndPriv!P55 -> 6998.111341 | Q59: =[4]CER_EmpIndPriv!Q55 -> 7484.554679
A60: L | B60: Public Administration | C60: =[4]CER_EmpIndPriv!C56 ->  | D60: =[4]CER_EmpIndPriv!D56 ->  | E60: =[4]CER_EmpIndPriv!E56 ->  | F60: =[4]CER_EmpIndPriv!F56 ->  | G60: =[4]CER_EmpIndPriv!G56 ->  | H60: =[4]CER_EmpIndPriv!H56 ->  | I60: =[4]CER_EmpIndPriv!I56 ->  | J60: =[4]CER_EmpIndPriv!J56 ->  | K60: =[4]CER_EmpIndPriv!K56 ->  | L60: =[4]CER_EmpIndPriv!L56 ->  | M60: =[4]CER_EmpIndPriv!M56 ->  | N60: =[4]CER_EmpIndPriv!N56 ->  | O60: =[4]CER_EmpIndPriv!O56 ->  | P60: =[4]CER_EmpIndPriv!P56 ->  | Q60: =[4]CER_EmpIndPriv!Q56 -> 
A61: M | B61: Education | C61: =[4]CER_EmpIndPriv!C57 ->  | D61: =[4]CER_EmpIndPriv!D57 ->  | E61: =[4]CER_EmpIndPriv!E57 ->  | F61: =[4]CER_EmpIndPriv!F57 ->  | G61: =[4]CER_EmpIndPriv!G57 ->  | H61: =[4]CER_EmpIndPriv!H57 ->  | I61: =[4]CER_EmpIndPriv!I57 ->  | J61: =[4]CER_EmpIndPriv!J57 ->  | K61: =[4]CER_EmpIndPriv!K57 ->  | L61: =[4]CER_EmpIndPriv!L57 ->  | M61: =[4]CER_EmpIndPriv!M57 ->  | N61: =[4]CER_EmpIndPriv!N57 ->  | O61: =[4]CER_EmpIndPriv!O57 ->  | P61: =[4]CER_EmpIndPriv!P57 ->  | Q61: =[4]CER_EmpIndPriv!Q57 -> 
A62: N | B62: Health and Social Work | C62: =[4]CER_EmpIndPriv!C58 ->  | D62: =[4]CER_EmpIndPriv!D58 ->  | E62: =[4]CER_EmpIndPriv!E58 ->  | F62: =[4]CER_EmpIndPriv!F58 ->  | G62: =[4]CER_EmpIndPriv!G58 ->  | H62: =[4]CER_EmpIndPriv!H58 -> 8607.111111 | I62: =[4]CER_EmpIndPriv!I58 -> 9388.474576 | J62: =[4]CER_EmpIndPriv!J58 -> 10103.5 | K62: =[4]CER_EmpIndPriv!K58 -> 9546.055046 | L62: =[4]CER_EmpIndPriv!L58 -> 12136.75676 | M62: =[4]CER_EmpIndPriv!M58 -> 9606.11465 | N62: =[4]CER_EmpIndPriv!N58 -> 5994.844444 | O62: =[4]CER_EmpIndPriv!O58 -> 5228.164794 | P62: =[4]CER_EmpIndPriv!P58 -> 8682.994652 | Q62: =[4]CER_EmpIndPriv!Q58 -> 9140.27027
A63: O | B63: Community, Social & Personal Service Activities | C63: =[4]CER_EmpIndPriv!C59 -> 6011.677019 | D63: =[4]CER_EmpIndPriv!D59 -> 5089.257642 | E63: =[4]CER_EmpIndPriv!E59 -> 5248.854962 | F63: =[4]CER_EmpIndPriv!F59 -> 4903.711871 | G63: =[4]CER_EmpIndPriv!G59 -> 5349.378531 | H63: =[4]CER_EmpIndPriv!H59 -> 6286.378738 | I63: =[4]CER_EmpIndPriv!I59 -> 5846.442449 | J63: =[4]CER_EmpIndPriv!J59 -> 5976.645161 | K63: =[4]CER_EmpIndPriv!K59 -> 5425.362776 | L63: =[4]CER_EmpIndPriv!L59 -> 5592.85361 | M63: =[4]CER_EmpIndPriv!M59 -> 6031.756757 | N63: =[4]CER_EmpIndPriv!N59 -> 5822.315789 | O63: =[4]CER_EmpIndPriv!O59 -> 6307.659574 | P63: =[4]CER_EmpIndPriv!P59 -> 5869.515419 | Q63: =[4]CER_EmpIndPriv!Q59 -> 6282.784892
A64: P | B64: Private Households With Employed Persons | C64: =[4]CER_EmpIndPriv!C60 ->  | D64: =[4]CER_EmpIndPriv!D60 ->  | E64: =[4]CER_EmpIndPriv!E60 ->  | F64: =[4]CER_EmpIndPriv!F60 ->  | G64: =[4]CER_EmpIndPriv!G60 ->  | H64: =[4]CER_EmpIndPriv!H60 ->  | I64: =[4]CER_EmpIndPriv!I60 ->  | J64: =[4]CER_EmpIndPriv!J60 ->  | K64: =[4]CER_EmpIndPriv!K60 ->  | L64: =[4]CER_EmpIndPriv!L60 ->  | M64: =[4]CER_EmpIndPriv!M60 ->  | N64: =[4]CER_EmpIndPriv!N60 -> 4834.193548 | O64: =[4]CER_EmpIndPriv!O60 -> 3007.368421 | P64: =[4]CER_EmpIndPriv!P60 ->  | Q64: =[4]CER_EmpIndPriv!Q60 -> 
A65: Q | B65: Extra-Territorial Organizations and Bodies | C65: =[4]CER_EmpIndPriv!C61 ->  | D65: =[4]CER_EmpIndPriv!D61 ->  | E65: =[4]CER_EmpIndPriv!E61 ->  | F65: =[4]CER_EmpIndPriv!F61 ->  | G65: =[4]CER_EmpIndPriv!G61 ->  | H65: =[4]CER_EmpIndPriv!H61 ->  | I65: =[4]CER_EmpIndPriv!I61 ->  | J65: =[4]CER_EmpIndPriv!J61 ->  | K65: =[4]CER_EmpIndPriv!K61 ->  | L65: =[4]CER_EmpIndPriv!L61 ->  | M65: =[4]CER_EmpIndPriv!M61 ->  | N65: =[4]CER_EmpIndPriv!N61 ->  | O65: =[4]CER_EmpIndPriv!O61 ->  | P65: =[4]CER_EmpIndPriv!P61 ->  | Q65: =[4]CER_EmpIndPriv!Q61 -> 
B66: Total | C66: =[4]CER_EmpIndPriv!C62 -> 5755.98666 | D66: =[4]CER_EmpIndPriv!D62 -> 5511.267046 | E66: =[4]CER_EmpIndPriv!E62 -> 5775.186491 | F66: =[4]CER_EmpIndPriv!F62 -> 5149.535961 | G66: =[4]CER_EmpIndPriv!G62 -> 5083.319464 | H66: =[4]CER_EmpIndPriv!H62 -> 4828.534624 | I66: =[4]CER_EmpIndPriv!I62 -> 4411.39846 | J66: =[4]CER_EmpIndPriv!J62 -> 4210.008376 | K66: =[4]CER_EmpIndPriv!K62 -> 4726.540567 | L66: =[4]CER_EmpIndPriv!L62 -> 4781.270622 | M66: =[4]CER_EmpIndPriv!M62 -> 4865.448986 | N66: =[4]CER_EmpIndPriv!N62 -> 4956.103706 | O66: =[4]CER_EmpIndPriv!O62 -> 5024.377691 | P66: =[4]CER_EmpIndPriv!P62 -> 4858.962261 | Q66: =[4]CER_EmpIndPriv!Q62 -> 5066.785896
A67: (1) Includes Shore based fish processed and vessel support services
A68: Source: Social Security plus EPPSO 'non-reported' estimate.

Sheet Pb_Dept
A1: Table 4a National government employment by department, FY2004-FY2012
C2: FY991 | D2: FY00 | E2: FY01 | F2: FY02 | G2: FY03 | H2: FY2004 | I2: FY2005 | J2: FY2006 | K2: FY2007 | L2: FY2008 | M2: FY2009 | N2: FY2010 | O2: FY2011 | P2: FY20122
A3: 10 | B3: President & Cabinet | C3: 23.5 | D3: 22.5 | E3: 22.25 | F3: 23.25 | G3: 22.55738132 | H3: 22.25 | I3: 26.25 | J3: 27.25 | K3: 32 | L3: 32.5 | M3: 29.75 | N3: 28.25 | O3: 27.25 | P3: 25.5
A4: 11 | B4: Chief Secretary Office | C4: 15 | D4: 13.75 | E4: 13.75 | F4: 12.5 | G4: 12.2812989 | H4: 17.5 | I4: 20.25 | J4: 21.25 | K4: 24.5 | L4: 25 | M4: 30.5 | N4: 34 | O4: 27 | P4: 24
A5: 12 | B5: Special Appropriations | C5: 0 | D5: 1 | E5: 2 | F5: 2 | G5: 2.005216484 | H5: 0 | I5: 2 | J5: 0 | K5: 0 | L5: 10.25 | M5: 0 | N5: 0 | O5: 0 | P5: 0
A6: 13 | B6: Council of Iroij | C6: 17.25 | D6: 17 | E6: 17.25 | F6: 15.25 | G6: 13.78651539 | H6: 14.75 | I6: 15.25 | J6: 15.75 | K6: 15 | L6: 14.75 | M6: 16.75 | N6: 16.25 | O6: 17.25 | P6: 17.5
A7: 14 | B7: Nitijela | C7: 39 | D7: 35 | E7: 36.75 | F7: 37 | G7: 38.3491132 | H7: 41.75 | I7: 45 | J7: 47.75 | K7: 48.5 | L7: 49.5 | M7: 50.75 | N7: 49.5 | O7: 50.25 | P7: 51
A8: 15 | B8: Auditor General | C8: 7 | D8: 6.75 | E8: 7.5 | F8: 11 | G8: 11.02869066 | H8: 11 | I8: 10.25 | J8: 10.75 | K8: 9.75 | L8: 7 | M8: 7.25 | N8: 8 | O8: 9 | P8: 9
A9: 16 | B9: Foreign Affairs | C9: 29.75 | D9: 55.75 | E9: 34 | F9: 33.75 | G9: 33.08607199 | H9: 31.5 | I9: 35.75 | J9: 33.5 | K9: 36.75 | L9: 36.75 | M9: 39 | N9: 37.25 | O9: 35.25 | P9: 30
A10: 17 | B10: Public Service Commission | C10: 12 | D10: 11 | E10: 11.75 | F10: 11 | G10: 11.02869066 | H10: 13 | I10: 13 | J10: 13.75 | K10: 14.75 | L10: 15 | M10: 15.25 | N10: 16 | O10: 16 | P10: 16
A11: 18 | B11: Judiciary | C11: 21.5 | D11: 21.25 | E11: 21.5 | F11: 21.5 | G11: 20.05216484 | H11: 29.5 | I11: 35.25 | J11: 40 | K11: 40.25 | L11: 36.75 | M11: 35 | N11: 34 | O11: 40.5 | P11: 39.5
A12: 19 | B12: Attorney General Office | C12: 8.5 | D12: 10.25 | E12: 16 | F12: 17.5 | G12: 24.31520605 | H12: 25.25 | I12: 25 | J12: 25.75 | K12: 25 | L12: 22.25 | M12: 22.5 | N12: 23.25 | O12: 24.5 | P12: 27.5
A13: 20 | B13: Ministry of Education 3 | C13: 471.5 | D13: 474.25 | E13: 478 | F13: 671.25 | G13: 706.0757694 | H13: 719.75 | I13: 799.5 | J13: 1027.75 | K13: 1032.25 | L13: 1067 | M13: 1072.5 | N13: 1086 | O13: 1091.5 | P13: 1118
A14: 30 | B14: Health & Environment | C14: 385.75 | D14: 388.5 | E14: 375.75 | F14: 389 | G14: 436.7206573 | H14: 479.5 | I14: 529.25 | J14: 534.75 | K14: 539.5 | L14: 528.5 | M14: 497 | N14: 512.75 | O14: 528.75 | P14: 529.5
A15: 40 | B15: Transport & Communications | C15: 33.25 | D15: 23.5 | E15: 40.75 | F15: 84 | G15: 92.49517475 | H15: 107.5 | I15: 108.25 | J15: 100.25 | K15: 53.75 | L15: 18.25 | M15: 18.5 | N15: 17 | O15: 17.25 | P15: 19.5
A16: 45 | B16: R & D | C16: 61 | D16: 45 | E16: 32.75 | F16: 32.5 | G16: 31.83346375 | H16: 26.5 | I16: 25.75 | J16: 27.5 | K16: 29 | L16: 27.25 | M16: 30.5 | N16: 33 | O16: 32.75 | P16: 33
A17: 50 | B17: Internal Affairs | C17: 50.5 | D17: 54 | E17: 55.75 | F17: 52.75 | G17: 54.39084507 | H17: 69 | I17: 60.75 | J17: 63.5 | K17: 62.5 | L17: 101.75 | M17: 78.5 | N17: 93.5 | O17: 87.75 | P17: 100.5
A18: 55 | B18: Justice | C18: 157.5 | D18: 170.25 | E18: 152.75 | F18: 143.5 | G18: 162.9277517 | H18: 167.75 | I18: 168 | J18: 169.75 | K18: 166.25 | L18: 167 | M18: 171.25 | N18: 172.5 | O18: 161.75 | P18: 154
A19: 60 | B19: Finance | C19: 89.25 | D19: 86.25 | E19: 93 | F19: 99.25 | G19: 104.0186489 | H19: 106.75 | I19: 112 | J19: 121 | K19: 120.75 | L19: 127.75 | M19: 115.5 | N19: 114.75 | O19: 112.75 | P19: 112.5
A20: 70 | B20: Public Works | C20: 52.25 | D20: 49.5 | E20: 110.75 | F20: 113.75 | G20: 115.2973396 | H20: 98.75 | I20: 99.75 | J20: 99 | K20: 90 | L20: 91 | M20: 91.5 | N20: 89.75 | O20: 83.5 | P20: 78
A21: 75 | B21: Epa | C21: 0 | D21: 0 | E21: 0 | F21: 0 | G21: 0 | H21: 16.25 | I21: 18 | J21: 19.25 | K21: 19 | L21: 18.5 | M21: 18.5 | N21: 17.25 | O21: 18.25 | P21: 18.5
A22: 80 | B22: Compact II Capital | C22: 0 | D22: 0 | E22: 0 | F22: 0 | G22: 0 | H22: 1 | I22: 1.5 | J22: 3 | K22: 3 | L22: 3 | M22: 5 | N22: 5 | O22: 8 | P22: 7
B23: Total | C23: 1474.5 | D23: 1485.5 | E23: 1522.25 | F23: 1770.75 | G23: 1892.25 | H23: 1999.25 | I23: 2150.75 | J23: 2401.5 | K23: 2362.5 | L23: 2399.75 | M23: 2345.5 | N23: 2388 | O23: 2389.25 | P23: 2410.5
A24: 1) Based on last 2 quarters of FY1999.
A25: 2) Temporary election staff adjusted for full time equivalent basis.
A26: 3) Based on first two quarters of FY2012
A27: Table 4b National government wage costs by department, FY2004-FY2012
B28: (US$'000 1) | C28: FY19992 | D28: FY2000 | E28: FY2001 | F28: FY2002 | G28: FY2003 | H28: FY2004 | I28: FY2005 | J28: FY2006 | K28: FY2007 | L28: FY2008 | M28: FY2009 | N28: FY2010 | O28: FY2011 | P28: FY20123
A29: 10 | B29: President & Cabinet | C29: 549.10934 | D29: 536.81968 | E29: 585.8232 | F29: 649.8899 | G29: 649.1418711 | H29: 720.49764 | I29: 702.26985 | J29: 740.48056 | K29: 760.12279 | L29: 702.03165 | M29: 776.64325 | N29: 783.80369 | O29: 759.73304 | P29: 550.29434
A30: 11 | B30: Chief Secretary Office | C30: 248.75311 | D30: 224.77046 | E30: 243.91977 | F30: 264.20258 | G30: 262.3663581 | H30: 384.54557 | I30: 455.25947 | J30: 464.70269 | K30: 473.37671 | L30: 542.86459 | M30: 582.7243 | N30: 593.52367 | O30: 528.65384 | P30: 439.54758
A31: 12 | B31: Special Appropriations | C31: 0 | D31: 14.74854 | E31: 40.7882 | F31: 40.99973 | G31: 39.67639103 | H31: 0 | I31: 13.65784 | J31: 0 | K31: 0 | L31: 189.31807 | M31: 0 | N31: 0 | O31: 0 | P31: 0
A32: 13 | B32: Council of Iroij | C32: 195.23016 | D32: 205.17092 | E32: 204.19159 | F32: 186.93838 | G32: 180.0190487 | H32: 248.08941 | I32: 248.57951 | J32: 251.99558 | K32: 248.36261 | L32: 239.67464 | M32: 267.66284 | N32: 248.69195 | O32: 263.49501 | P32: 254.87594
A33: 14 | B33: Nitijela | C33: 814.79535 | D33: 628.03342 | E33: 791.97585 | F33: 819.29934 | G33: 797.7263328 | H33: 790.70393 | I33: 907.45983 | J33: 918.9256 | K33: 1022.49505 | L33: 869.75979 | M33: 996.91919 | N33: 965.93042 | O33: 1098.79448 | P33: 907.83126
A34: 15 | B34: Auditor General | C34: 98.02341 | D34: 108.6701 | E34: 123.67685 | F34: 167.18622 | G34: 164.8759397 | H34: 175.78027 | I34: 164.07969 | J34: 166.53812 | K34: 158.15243 | L34: 132.29279 | M34: 107.09793 | N34: 112.32202 | O34: 153.29787 | P34: 154.06988
A35: 16 | B35: Foreign Affairs | C35: 596.38098 | D35: 788.30844 | E35: 743.24728 | F35: 781.30694 | G35: 756.1911336 | H35: 723.19878 | I35: 799.64132 | J35: 762.31344 | K35: 840.74299 | L35: 825.52617 | M35: 866.32337 | N35: 879.19331 | O35: 818.10212 | P35: 712.97998
A36: 17 | B36: Public Service Commission | C36: 269.52256 | D36: 266.60798 | E36: 249.92718 | F36: 256.98634 | G36: 258.4621031 | H36: 330.7291 | I36: 323.44458 | J36: 333.98054 | K36: 341.88047 | L36: 346.33329 | M36: 341.67209 | N36: 370.47057 | O36: 372.28421 | P36: 372.66218
A37: 18 | B37: Judiciary | C37: 358.93203 | D37: 344.6369 | E37: 375.97763 | F37: 479.83906 | G37: 479.4608174 | H37: 546.62344 | I37: 520.3694 | J37: 529.31989 | K37: 577.63553 | L37: 574.22078 | M37: 516.02427 | N37: 457.07998 | O37: 517.00212 | P37: 525.05486
A38: 19 | B38: Attorney General Office | C38: 170.76706 | D38: 263.02781 | E38: 320.55338 | F38: 356.75098 | G38: 441.9916866 | H38: 458.64249 | I38: 473.98409 | J38: 479.32687 | K38: 461.68506 | L38: 424.1969 | M38: 421.84614 | N38: 443.30852 | O38: 522.99238 | P38: 551.09822
A39: 20 | B39: Ministry of Education 3 | C39: 3882.83091 | D39: 4086.9311 | E39: 4289.5059 | F39: 5775.33565 | G39: 5952.739033 | H39: 8015.45509 | I39: 8009.82999 | J39: 10444.43206 | K39: 10500.01516 | L39: 10857.32378 | M39: 11139.33652 | N39: 11405.25682 | O39: 11631.70873 | P39: 12311.67398
A40: 30 | B40: Health & Environment | C40: 3948.37366 | D40: 4054.06901 | E40: 4145.1553 | F40: 4501.92299 | G40: 5026.383017 | H40: 5971.09167 | I40: 6704.49188 | J40: 6805.00469 | K40: 7092.65787 | L40: 7249.14369 | M40: 7027.07816 | N40: 7109.81646 | O40: 7240.22639 | P40: 7568.08322
A41: 40 | B41: Transport & Communications | C41: 487.76801 | D41: 428.14846 | E41: 494.22682 | F41: 918.60221 | G41: 1093.978253 | H41: 1412.21071 | I41: 1398.31036 | J41: 1240.79943 | K41: 722.97228 | L41: 324.29112 | M41: 334.39593 | N41: 316.39356 | O41: 312.2426 | P41: 364.94434
A42: 45 | B42: R & D | C42: 635.23241 | D42: 444.58326 | E42: 386.58976 | F42: 431.31 | G42: 415.1825305 | H42: 360.92972 | I42: 319.65667 | J42: 368.55113 | K42: 397.94911 | L42: 362.97914 | M42: 437.89545 | N42: 474.64134 | O42: 502.03 | P42: 540.5521
A43: 50 | B43: Internal Affairs | C43: 549.15469 | D43: 589.40858 | E43: 676.89357 | F43: 704.25447 | G43: 688.8275238 | H43: 1074.18495 | I43: 894.76378 | J43: 957.61581 | K43: 853.5035 | L43: 968.129 | M43: 1081.40844 | N43: 1199.91655 | O43: 1234.97426 | P43: 1258.37592
A44: 55 | B44: Justice | C44: 1507.32075 | D44: 1930.91343 | E44: 1728.44612 | F44: 1630.0311 | G44: 1825.220156 | H44: 2147.03321 | I44: 2156.72674 | J44: 2123.51072 | K44: 2059.54231 | L44: 2123.51286 | M44: 2224.89931 | N44: 2228.29381 | O44: 2061.17629 | P44: 2015.08018
A45: 60 | B45: Finance | C45: 1266.39217 | D45: 1259.14852 | E45: 1329.40527 | F45: 1414.83712 | G45: 1471.74075 | H45: 1641.19922 | I45: 1848.16255 | J45: 1933.22322 | K45: 1914.86694 | L45: 2020.93607 | M45: 1837.66963 | N45: 1917.40962 | O45: 1944.81518 | P45: 1999.40226
A46: 70 | B46: Public Works | C46: 458.64306 | D46: 434.40161 | E46: 1172.29671 | F46: 1229.63321 | G46: 1267.087384 | H46: 1172.36844 | I46: 1156.36809 | J46: 1200.14485 | K46: 1117.22783 | L46: 1165.72594 | M46: 1174.13261 | N46: 1105.77178 | O46: 1038.99401 | P46: 1054.10012
A47: 75 | B47: Epa | C47: 0 | D47: 0 | E47: 0 | F47: 0 | G47: 0 | H47: 223.42249 | I47: 273.77244 | J47: 287.89137 | K47: 282.44847 | L47: 294.99789 | M47: 286.52767 | N47: 280.82624 | O47: 304.15186 | P47: 305.69916
A48: 80 | B48: Compact II Capital | C48: 0 | D48: 0 | E48: 0 | F48: 0 | G48: 0 | H48: 41.5368 | I48: 51.22535 | J48: 98.32531 | K48: 96.30608 | L48: 91.27185 | M48: 132.025 | N48: 133.93211 | O48: 161.80958 | P48: 165.79694
B49: Total | C49: 16037.22966 | D49: 16608.39822 | E49: 17902.60038 | F49: 20609.32622 | G49: 21771.07033 | H49: 26438.24293 | I49: 27422.05343 | J49: 30107.08188 | K49: 29921.94319 | L49: 30304.53001 | M49: 30552.2821 | N49: 31026.58242 | O49: 31466.48397 | P49: 32052.12246
A50: 1) Sum of gross galary and wages, does not include benefits.
A51: 2) Based on last 2 quarters of FY1999.
A52: 3) Based on first two quarters of FY2012
A53: Table 4c National government average wage and salary rates by department, FY2004-FY2012
B54: (US$ per annum) | C54: FY19991 | D54: FY2000 | E54: FY2001 | F54: FY2002 | G54: FY2003 | H54: FY2004 | I54: FY2005 | J54: FY2006 | K54: FY2007 | L54: FY2008 | M54: FY2009 | N54: FY2010 | O54: FY2011 | P54: FY20122
A55: 10 | B55: President & Cabinet | C55: 23366.35489 | D55: 23858.65244 | E55: 26329.13258 | F55: 27952.25376 | G55: 28777.35947 | H55: 32381.9164 | I55: 26753.13714 | J55: 27173.59853 | K55: 23753.83719 | L55: 21600.97385 | M55: 26105.65546 | N55: 27745.26336 | O55: 27880.11156 | P55: 21580.1702
A56: 11 | B56: Chief Secretary Office | C56: 16583.54067 | D56: 16346.94255 | E56: 17739.61964 | F56: 21136.2064 | G56: 21363.07895 | H56: 21974.03257 | I56: 22481.94914 | J56: 21868.36188 | K56: 19321.49837 | L56: 21714.5836 | M56: 19105.71475 | N56: 17456.57853 | O56: 19579.77185 | P56: 18314.4825
A57: 12 | B57: Special Appropriations | D57: 14748.54 | E57: 20394.1 | F57: 20499.865 | G57: 19786.58731 | I57: 6828.92 | L57: 18470.05561
A58: 13 | B58: Council of Iroij | C58: 11317.69043 | D58: 12068.87765 | E58: 11837.19362 | F58: 12258.25443 | G58: 13057.6178 | H58: 16819.62102 | I58: 16300.29574 | J58: 15999.71937 | K58: 16557.50733 | L58: 16249.12814 | M58: 15979.87104 | N58: 15304.12 | O58: 15275.07304 | P58: 14564.33943
A59: 14 | B59: Nitijela | C59: 20892.18846 | D59: 17943.812 | E59: 21550.36327 | F59: 22143.22541 | G59: 20801.68917 | H59: 18939.01629 | I59: 20165.774 | J59: 19244.51518 | K59: 21082.37216 | L59: 17570.90485 | M59: 19643.72788 | N59: 19513.74586 | O59: 21866.55682 | P59: 17800.61294
A60: 15 | B60: Auditor General | C60: 14003.34429 | D60: 16099.27407 | E60: 16490.24667 | F60: 15198.74727 | G60: 14949.72928 | H60: 15980.02455 | I60: 16007.77463 | J60: 15491.91814 | K60: 16220.76205 | L60: 18898.97 | M60: 14772.12828 | N60: 14040.2525 | O60: 17033.09667 | P60: 17118.87556
A61: 16 | B61: Foreign Affairs | C61: 20046.4195 | D61: 14140.0617 | E61: 21860.21412 | F61: 23149.83526 | G61: 22855.27076 | H61: 22958.69143 | I61: 22367.58937 | J61: 22755.62507 | K61: 22877.36027 | L61: 22463.29714 | M61: 22213.41974 | N61: 23602.50497 | O61: 23208.57078 | P61: 23765.99933
A62: 17 | B62: Public Service Commission | C62: 22460.21333 | D62: 24237.08909 | E62: 21270.3983 | F62: 23362.39455 | G62: 23435.42955 | H62: 25440.7 | I62: 24880.35231 | J62: 24289.49382 | K62: 23178.33695 | L62: 23088.886 | M62: 22404.72721 | N62: 23154.41063 | O62: 23267.76313 | P62: 23291.38625
A63: 18 | B63: Judiciary | C63: 16694.51302 | D63: 16218.20706 | E63: 17487.33163 | F63: 22318.09581 | G63: 23910.67604 | H63: 18529.60814 | I63: 14762.25248 | J63: 13232.99725 | K63: 14351.19329 | L63: 15625.05524 | M63: 14743.55057 | N63: 13443.52882 | O63: 12765.48444 | P63: 13292.5281
A64: 19 | B64: Attorney General Office | C64: 20090.24235 | D64: 25661.24976 | E64: 20034.58625 | F64: 20385.77029 | G64: 18177.58343 | H64: 18164.05901 | I64: 18959.3636 | J64: 18614.63573 | K64: 18467.4024 | L64: 19065.02921 | M64: 18748.71733 | N64: 19067.03312 | O64: 21346.62776 | P64: 20039.93527
A65: 20 | B65: Ministry of Education 3 | C65: 8235.060255 | D65: 8617.672325 | E65: 8973.861715 | F65: 8603.851993 | G65: 8430.736886 | H65: 11136.44333 | I65: 10018.54908 | J65: 10162.42477 | K65: 10171.96915 | L65: 10175.56118 | M65: 10386.32776 | N65: 10502.0781 | O65: 10656.62733 | P65: 11012.23075
A66: 30 | B66: Health & Environment | C66: 10235.57657 | D66: 10435.18407 | E66: 11031.6841 | F66: 11573.06681 | G66: 11509.37775 | H66: 12452.74592 | I66: 12667.91097 | J66: 12725.58147 | K66: 13146.7245 | L66: 13716.44974 | M66: 14138.99026 | N66: 13866.04868 | O66: 13693.09956 | P66: 14292.88616
A67: 40 | B67: Transport & Communications | C67: 14669.71459 | D67: 18219.0834 | E67: 12128.26552 | F67: 10935.7406 | G67: 11827.4089 | H67: 13136.84381 | I67: 12917.41672 | J67: 12377.05167 | K67: 13450.64707 | L67: 17769.37644 | M67: 18075.45568 | N67: 18611.38588 | O67: 18101.02029 | P67: 18715.09436
A68: 45 | B68: R & D | C68: 10413.64607 | D68: 9879.628 | E68: 11804.26748 | F68: 13271.07692 | G68: 13042.32973 | H68: 13619.98943 | I68: 12413.85126 | J68: 13401.85927 | K68: 13722.3831 | L68: 13320.33541 | M68: 14357.22787 | N68: 14383.07091 | O68: 15329.16031 | P68: 16380.36667
A69: 50 | B69: Internal Affairs | C69: 10874.3503 | D69: 10914.9737 | E69: 12141.5887 | F69: 13350.79564 | G69: 12664.40194 | H69: 15567.89783 | I69: 14728.62189 | J69: 15080.56394 | K69: 13656.056 | L69: 9514.781327 | M69: 13775.90369 | N69: 12833.33209 | O69: 14073.78074 | P69: 12521.15343
A70: 55 | B70: Justice | C70: 9570.290476 | D70: 11341.63542 | E70: 11315.52288 | F70: 11359.10174 | G70: 11202.63514 | H70: 12799.00572 | I70: 12837.65917 | J70: 12509.63605 | K70: 12388.22442 | L70: 12715.64587 | M70: 12992.11276 | N70: 12917.64528 | O70: 12742.97552 | P70: 13084.93623
A71: 60 | B71: Finance | C71: 14189.26801 | D71: 14598.82342 | E71: 14294.68032 | F71: 14255.28584 | G71: 14148.81625 | H71: 15374.23157 | I71: 16501.45134 | J71: 15977.0514 | K71: 15858.1113 | L71: 15819.46043 | M71: 15910.55957 | N71: 16709.45203 | O71: 17248.91512 | P71: 17772.46453
A72: 70 | B72: Public Works | C72: 8777.857608 | D72: 8775.790101 | E72: 10585.07187 | F72: 10809.96229 | G72: 10989.73652 | H72: 11872.08547 | I72: 11592.66256 | J72: 12122.67525 | K72: 12413.64256 | L72: 12810.17516 | M72: 12832.05038 | N72: 12320.57694 | O72: 12443.04204 | P72: 13514.1041
A73: 75 | B73: Epa | H73: 13749.07631 | I73: 15209.58 | J73: 14955.39584 | K73: 14865.70895 | L73: 15945.83189 | M73: 15487.98216 | N73: 16279.78203 | O73: 16665.85534 | P73: 16524.27892
A74: 80 | B74: Compact II Capital | H74: 41536.8 | I74: 34150.23333 | J74: 32775.10333 | K74: 32102.02667 | L74: 30423.95 | M74: 26405 | N74: 26786.422 | O74: 20226.1975 | P74: 23685.27714
B75: Total | C75: 10876.38498 | D75: 11180.34212 | E75: 11760.61776 | F75: 11638.75545 | G75: 11505.38794 | H75: 13224.0805 | I75: 12749.99578 | J75: 12536.78196 | K75: 12665.37278 | L75: 12628.20294 | M75: 13025.91435 | N75: 12992.70621 | O75: 13170.02573 | P75: 13296.87719
A76: 1) Based on last 2 quarters of FY99.
A77: 2) Based on first two quarters of FY2012

Sheet Pb_Fnd
A1: Table 4d National government employment, by fund, FY2004 - FY2012 Qtr 1
D2: Employment numbers 1
A3: Fund | B3: General Fund | C3: Compact II | D3: Special Revenue | E3: Federal Grant | F3: ROC | G3: UNDP | H3: Total
A4: 2004q1 | B4: 855 | C4: 892 | D4: 67 | E4: 166 | F4: 36 | G4: 0 | H4: 2016
A5: 2004q2 | B5: 804 | C5: 881 | D5: 71 | E5: 167 | F5: 36 | G5: 0 | H5: 1959
A6: 2004q3 | B6: 817 | C6: 891 | D6: 70 | E6: 164 | F6: 36 | G6: 2 | H6: 1980
A7: 2004q4 | B7: 838 | C7: 925 | D7: 73 | E7: 169 | F7: 35 | G7: 2 | H7: 2042
A8: 2005q1 | B8: 870 | C8: 938 | D8: 74 | E8: 176 | F8: 34 | G8: 1 | H8: 2093
A9: 2005q2 | B9: 863 | C9: 936 | D9: 74 | E9: 179 | F9: 33 | G9: 2 | H9: 2087
A10: 2005q3 | B10: 871 | C10: 934 | D10: 76 | E10: 182 | F10: 33 | G10: 2 | H10: 2098
A11: 2005q4 | B11: 861 | C11: 1117 | D11: 71 | E11: 243 | F11: 30 | G11: 3 | H11: 2325
A12: 2006q1 | B12: 881 | C12: 1207 | D12: 74 | E12: 183 | F12: 30 | G12: 1 | H12: 2376
A13: 2006q2 | B13: 890 | C13: 1202 | D13: 78 | E13: 210 | F13: 31 | G13: 3 | H13: 2414
A14: 2006q3 | B14: 851 | C14: 1158 | D14: 79 | E14: 270 | F14: 30 | G14: 3 | H14: 2391
A15: 2006q4 | B15: 858 | C15: 1184 | D15: 78 | E15: 271 | F15: 28 | G15: 6 | H15: 2425
A16: 2007q1 | B16: 897 | C16: 1110 | D16: 79 | E16: 283 | F16: 27 | G16: 4 | H16: 2400
A17: 2007q2 | B17: 893 | C17: 1122 | D17: 79 | E17: 289 | F17: 27 | G17: 5 | H17: 2415
A18: 2007q3 | B18: 812 | C18: 1103 | D18: 80 | E18: 284 | F18: 26 | G18: 6 | H18: 2311
A19: 2007q4 | B19: 816 | C19: 1117 | D19: 78 | E19: 283 | F19: 26 | G19: 4 | H19: 2324
A20: 2008q1 | B20: 998 | C20: 1128 | D20: 93 | E20: 234 | F20: 26 | G20: 4 | H20: 2483
A21: 2008q2 | B21: 859 | C21: 1152 | D21: 88 | E21: 233 | F21: 26 | G21: 5 | H21: 2363
A22: 2008q3 | B22: 866 | C22: 1139 | D22: 82 | E22: 225 | F22: 73 | G22: 5 | H22: 2390
A23: 2008q4 | B23: 908 | C23: 1120 | D23: 84 | E23: 220 | F23: 25 | G23: 6 | H23: 2363
A24: 2009q1 | B24: 911 | C24: 1099 | D24: 81 | E24: 216 | F24: 27 | G24: 6 | H24: 2340
A25: 2009q2 | B25: 927 | C25: 1107 | D25: 51 | E25: 218 | F25: 31 | G25: 5 | H25: 2339
A26: 2009q3 | B26: 932 | C26: 1101 | D26: 56 | E26: 220 | F26: 27 | G26: 7 | H26: 2343
A27: 2009q4 | B27: 930 | C27: 1119 | D27: 52 | E27: 224 | F27: 26 | G27: 9 | H27: 2360
A28: 2010q1 | B28: 925 | C28: 1117 | D28: 48 | E28: 227 | F28: 26 | G28: 9 | H28: 2352
A29: 2010q2 | B29: 970 | C29: 1128 | D29: 43 | E29: 229 | F29: 26 | G29: 10 | H29: 2406
A30: 2010q3 | B30: 931 | C30: 1129 | D30: 40 | E30: 230 | F30: 26 | G30: 7 | H30: 2363
A31: 2010q4 | B31: 942 | C31: 1144 | D31: 51 | E31: 233 | F31: 26 | G31: 8 | H31: 2404
A32: 2011q1 | B32: 950 | C32: 1134 | D32: 54 | E32: 238 | F32: 27 | G32: 8 | H32: 2411
A33: 2011q2 | B33: 934 | C33: 1129 | D33: 62 | E33: 233 | F33: 26 | G33: 8 | H33: 2392
A34: 2011q3 | B34: 925 | C34: 1131 | D34: 61 | E34: 234 | F34: 26 | G34: 8 | H34: 2385
A35: 2011q4 | B35: 928 | C35: 1125 | D35: 36 | E35: 232 | F35: 24 | G35: 8 | H35: 2353
A36: 2012q1 | B36: 927 | C36: 1165 | D36: 32 | E36: 234 | F36: 31 | G36: 14 | H36: 2403
A37: 1) For 2008 Q1, Q2 and Q3, temporary election staff are adjusted for full time equivalent basis
A38: 2) Sum of gross galary and wages, does not include benefits.Quarter on quarter changes may reflect the number of pay days per quarter
A39: Table 4e National government wage costs, by fund, FY2004 - FY2012 Qtr 1
D40: Wage costs $US000 2
A41: Fund | B41: General Fund | C41: Compact II | D41: Special Revenue | E41: Federal Grant | F41: ROC | G41: UNDP | H41: Total
A42: 2004q1 | B42: 3215.41774 | C42: 3086.56899 | D42: 268.16109 | E42: 448.13134 | F42: 106.71592 | G42: 0 | H42: 7124.99508
A43: 2004q2 | B43: 2669.25816 | C43: 2303.19753 | D43: 237.80849 | E43: 351.25746 | F43: 99.60165 | G43: 0 | H43: 5661.12329
A44: 2004q3 | B44: 3132.54801 | C44: 2737.34417 | D44: 294.49919 | E44: 423.08343 | F44: 100.84129 | G44: 10.94069 | H44: 6699.25678
A45: 2004q4 | B45: 3286.57213 | C45: 2824.80613 | D45: 295.92051 | E45: 437.99958 | F45: 97.53527 | G45: 10.03416 | H45: 6952.86778
A46: 2005q1 | B46: 2962.36706 | C46: 2566.39472 | D46: 261.74169 | E46: 413.89364 | F46: 82.50651 | G46: 2.8492 | H46: 6289.75282
A47: 2005q2 | B47: 3015.90169 | C47: 2559.8433 | D47: 224.00292 | E47: 412.54908 | F47: 80.58032 | G47: 12.55792 | H47: 6305.43523
A48: 2005q3 | B48: 3481.32038 | C48: 3005.22734 | D48: 262.47726 | E48: 482.89053 | F48: 94.6056 | G48: 8.88109 | H48: 7335.4022
A49: 2005q4 | B49: 3445.80002 | C49: 3104.01897 | D49: 254.60389 | E49: 597.25967 | F49: 83.75075 | G49: 6.02988 | H49: 7491.46318
A50: 2006q1 | B50: 3007.52043 | C50: 3195.18984 | D50: 226.50786 | E50: 446.02942 | F50: 75.73256 | G50: 3.46152 | H50: 6954.44163
A51: 2006q2 | B51: 3521.44016 | C51: 3676.05345 | D51: 251.66004 | E51: 529.30961 | F51: 84.36752 | G51: 7.44583 | H51: 8070.27661
A52: 2006q3 | B52: 2965.91881 | C52: 3162.67693 | D52: 233.67214 | E52: 561.17697 | F52: 70.84622 | G52: 8.42859 | H52: 7002.71966
A53: 2006q4 | B53: 3458.27718 | C53: 3603.20834 | D53: 268.24841 | E53: 650.40038 | F53: 81.49878 | G53: 18.01089 | H53: 8079.64398
A54: 2007q1 | B54: 3125.29904 | C54: 2959.98534 | D54: 241.02132 | E54: 635.90582 | F54: 68.80646 | G54: 9.24951 | H54: 7040.26749
A55: 2007q2 | B55: 3626.14177 | C55: 3453.44933 | D55: 276.78452 | E55: 750.19216 | F55: 81.88881 | G55: 15.73072 | H55: 8204.18731
A56: 2007q3 | B56: 2928.91061 | C56: 2951.67321 | D56: 243.1349 | E56: 653.05711 | F56: 65.78336 | G56: 12.92342 | H56: 6855.48261
A57: 2007q4 | B57: 3370.03582 | C57: 3331.7029 | D57: 287.259 | E57: 742.03995 | F57: 78.17198 | G57: 12.79613 | H57: 7822.00578
A58: 2008q1 | B58: 3120.45501 | C58: 3066.78603 | D58: 274.91498 | E58: 548.21945 | F58: 69.14123 | G58: 12.40768 | H58: 7091.92438
A59: 2008q2 | B59: 3444.34677 | C59: 3603.88575 | D59: 262.18901 | E59: 630.79335 | F59: 73.36032 | G59: 15.21294 | H59: 8029.78814
A60: 2008q3 | B60: 3100.06735 | C60: 3080.51639 | D60: 218.83098 | E60: 525.91104 | F60: 126.50683 | G60: 18.31513 | H60: 7070.14772
A61: 2008q4 | B61: 3772.30825 | C61: 3412.42397 | D61: 250.2009 | E61: 573.62595 | F61: 79.70687 | G61: 24.40383 | H61: 8112.66977
A62: 2009q1 | B62: 3293.18686 | C62: 2950.71599 | D62: 163.16629 | E62: 498.24759 | F62: 72.84476 | G62: 16.60995 | H62: 6994.77144
A63: 2009q2 | B63: 3897.90783 | C63: 3498.68283 | D63: 182.56854 | E63: 608.07037 | F63: 105.28952 | G63: 17.25486 | H63: 8309.77395
A64: 2009q3 | B64: 3316.93318 | C64: 3008.06689 | D64: 165.17222 | E64: 524.69569 | F64: 71.12755 | G64: 25.93028 | H64: 7111.92581
A65: 2009q4 | B65: 3836.17991 | C65: 3412.69312 | D65: 143.37985 | E65: 616.75694 | F65: 86.2886 | G65: 40.51248 | H65: 8135.8109
A66: 2010q1 | B66: 3498.556 | C66: 3161.24757 | D66: 116.5646 | E66: 596.63765 | F66: 80.75091 | G66: 38.09771 | H66: 7491.85444
A67: 2010q2 | B67: 3883.36091 | C67: 3467.30101 | D67: 140.2101 | E67: 644.18506 | F67: 83.53184 | G67: 42.19521 | H67: 8260.78413
A68: 2010q3 | B68: 3274.9931 | C68: 3044.29254 | D68: 118.52095 | E68: 572.65672 | F68: 74.46178 | G68: 30.46158 | H68: 7115.38667
A69: 2010q4 | B69: 3789.37633 | C69: 3411.74854 | D69: 143.6646 | E69: 659.24427 | F69: 81.24991 | G69: 31.17083 | H69: 8116.45448
A70: 2011q1 | B70: 4166.80637 | C70: 3747.49753 | D70: 158.30347 | E70: 740.48203 | F70: 93.62026 | G70: 34.13959 | H70: 8940.84925
A71: 2011q2 | B71: 3286.55974 | C71: 3034.8719 | D71: 135.0806 | E71: 604.71651 | F71: 71.80268 | G71: 26.98366 | H71: 7160.01509
A72: 2011q3 | B72: 3801.8065 | C72: 3521.19835 | D72: 154.23445 | E72: 721.92197 | F72: 87.81364 | G72: 33.53784 | H72: 8320.51275
A73: 2011q4 | B73: 3300.81617 | C73: 2916.12917 | D73: 87.3872 | E73: 614.16595 | F73: 65.67679 | G73: 29.02213 | H73: 7013.19741
A74: 2012q1 | B74: 3914.99528 | C74: 3914.68657 | D74: 96.65936 | E74: 777.01493 | F74: 102.07156 | G74: 35.90982 | H74: 8841.33752
A75: 1) For 2008 Q1, Q2 and Q3, temporary election staff are adjusted for full time equivalent basis
A76: 2) Sum of gross galary and wages, does not include benefits.Quarter on quarter changes may reflect the number of pay days per quarter
A77: Table 4f National government wage rates, by fund, FY2004 - FY2012 Qtr 1
D78: Average wage rates (US$)
A79: Fund | B79: General Fund | C79: Compact II | D79: Special Revenue | E79: Federal Grant | F79: ROC | G79: UNDP | H79: Total
A80: 2004q1 | B80: 15042.89001 | C80: 13841.11655 | D80: 16009.61731 | E80: 10798.34554 | F80: 11857.32444 | H80: 14136.895
A81: 2004q2 | B81: 13279.89134 | C81: 10457.1965 | D81: 13397.66141 | E81: 8413.352335 | F81: 11066.85 | H81: 11559.21039
A82: 2004q3 | B82: 15336.83236 | C82: 12288.86272 | D82: 16828.52514 | E82: 10319.10805 | F82: 11204.58778 | G82: 21881.38 | H82: 13533.85208
A83: 2004q4 | B83: 15687.69513 | C83: 12215.37786 | D83: 16214.82247 | E83: 10366.85396 | F83: 11146.888 | G83: 20068.32 | H83: 13619.72141
A84: 2005q1 | B84: 13620.07844 | C84: 10944.11394 | D84: 14148.19946 | E84: 9406.673636 | F84: 9706.648235 | G84: 11396.8 | H84: 12020.55006
A85: 2005q2 | B85: 13978.68686 | C85: 10939.50128 | D85: 12108.26595 | E85: 9218.973855 | F85: 9767.311515 | G85: 25115.84 | H85: 12085.16575
